Workbook

Sheet Données FDC déc 2020 (2)
A1: REGION | B1: TERRITOIRE | C1: PDV | D1: EDS_EXTR_PERS_MOIS | E1: CODE_SEGM_ACTV | F1: Nb clients | G1: Détenteurs 10 12 ans | H1: Détenteurs 12 25 ans | I1: Détenteurs sup 12ans | J1: Détenteurs majeurs | K1: Détenteurs 12 17 ans | L1: Détenteurs 16 25 ans | M1: Détenteurs 18 28 ans | N1: Nouveaux clients | O1: Clients sortants | P1: Age moyen | Q1: SF moyenne | R1: Encours collecte | S1: CRD Crédits | T1: TOP_UNVR_BNCA | U1: TOP_UNVR_EPAR | V1: TOP_UNVR_PLCM | W1: TOP_UNVR_CRDT | X1: TOP_UNVR_ASSR | Y1: Carte de paiement | Z1: Détenteurs IZICARTE | AA1: Détenteurs Carte 1er Plat Inf | AB1: Détenteurs de carte à débit diff | AC1: CBR | AD1: CBR chargée | AE1: Détenteurs Forfait | AF1: Détenteurs BL | AG1: Crédit conso | AH1: Crédit Etudiant | AI1: Crédit 1000€ | AJ1: Crédit projet | AK1: Réserve Izicarte | AL1: Crédit immo | AM1: LVA | AN1: L1012 | AO1: LVJ | AP1: LVB | AQ1: LGF | AR1: LGP | AS1: LVREGION | AT1: LDD | AU1: LEP | AV1: CEL | AW1: Abo sur Liv ou AS | AX1: PEL | AY1: SLR | AZ1: PEP | BA1: PERP | BB1: Assurance Vie | BC1: CAT | BD1: PEA | BE1: CTI | BF1: PARTS SOCIALES | BG1: Parts Sociales +10 | BH1: Auto | BI1: MRH | BJ1: GAV | BK1: SANTE | BL1: PREV_LOCAT | BM1: GF | BN1: ESO ou ASSIST VIE | BO1: Détenteurs GU | BP1: Détenteurs PJ | BQ1: Détenteurs SECUR MEDIA | BR1: Détenteurs ECARTE BLEUE | BS1: Détenteurs relevé num | BT1: Détenteurs ASSUR SUR EPAR | BU1: Détenteurs ALERT'ECUREUIL | BV1: Détenteurs CFN | BY1: EDS_EXTR_PERS_MOIS | BZ1: CODE_SEGM_ACTV | CA1: CRD Crédit
D2: 0 | E2: Dne | F2: 1 | G2: 0 | H2: 0 | I2: 1 | J2: 1 | K2: 0 | L2: 0 | M2: 0 | N2: 1 | O2: 0 | P2: 65 | Q2: 9898.28 | R2: 9898.28 | S2: 0 | T2: 0 | U2: 1 | V2: 0 | W2: 0 | X2: 0 | Y2: 0 | Z2: 0 | AA2: 0 | AB2: 0 | AC2: 0 | AD2: 0 | AE2: 1 | AF2: 0 | AG2: 0 | AH2: 0 | AI2: 0 | AJ2: 0 | AK2: 0 | AL2: 0 | AM2: 0 | AN2: 0 | AO2: 0 | AP2: 0 | AQ2: 0 | AR2: 0 | AS2: 0 | AT2: 0 | AU2: 1 | AV2: 0 | AW2: 0 | AX2: 0 | AY2: 0 | AZ2: 0 | BA2: 0 | BB2: 0 | BC2: 0 | BD2: 0 | BE2: 0 | BF2: 0 | BG2: 0 | BH2: 0 | BI2: 0 | BJ2: 0 | BK2: 0 | BL2: 0 | BM2: 0 | BN2: 0 | BO2: 0 | BP2: 0 | BQ2: 0 | BR2: 0 | BS2: 0 | BT2: 0 | BU2: 0 | BV2: 0 | BW2: 0 | BY2: 0 | BZ2: Dne | CA2: 0 | CB2: =IF(AND(BY2=D2,E2=BZ2),1,0) -> 1
A3: BAS_RHIN | B3: STRASBOURG | C3: STRASBOURG NEUDORF | D3: 6 | E3: BPe | F3: 1139 | G3: 0 | H3: 0 | I3: 1139 | J3: 1139 | K3: 0 | L3: 0 | M3: 59 | N3: 9 | O3: 7 | P3: 49.1641791 | Q3: 45526.70035 | R3: 51854911.7 | S3: 34118627.58 | T3: 1102 | U3: 1037 | V3: 743 | W3: 609 | X3: 593 | Y3: 1129 | Z3: 626 | AA3: 546 | AB3: 320 | AC3: 0 | AD3: 0 | AE3: 1271 | AF3: 900 | AG3: 283 | AH3: 7 | AI3: 1 | AJ3: 21 | AK3: 169 | AL3: 333 | AM3: 1053 | AN3: 0 | AO3: 0 | AP3: 65 | AQ3: 50 | AR3: 23 | AS3: 16 | AT3: 370 | AU3: 141 | AV3: 138 | AW3: 457 | AX3: 376 | AY3: 13 | AZ3: 2 | BA3: 34 | BB3: 377 | BC3: 39 | BD3: 139 | BE3: 84 | BF3: 677 | BG3: 327 | BH3: 117 | BI3: 330 | BJ3: 233 | BK3: 53 | BL3: 1 | BM3: 224 | BN3: 36 | BO3: 119 | BP3: 182 | BQ3: 40 | BR3: 88 | BS3: 874 | BT3: 76 | BU3: 259 | BV3: 237 | BW3: 169 | BY3: 6 | BZ3: BPe | CA3: 34118627.58 | CB3: =IF(AND(BY3=D3,E3=BZ3),1,0) -> 1
A4: BAS_RHIN | B4: STRASBOURG | C4: STRASBOURG NEUDORF | D4: 6 | E4: BPne | F4: 602 | G4: 0 | H4: 0 | I4: 602 | J4: 602 | K4: 0 | L4: 0 | M4: 49 | N4: 4 | O4: 13 | P4: 50.64451827 | Q4: 15843.75588 | R4: 9537941.04 | S4: 4237198.64 | T4: 454 | U4: 314 | V4: 61 | W4: 84 | X4: 61 | Y4: 517 | Z4: 149 | AA4: 147 | AB4: 88 | AC4: 0 | AD4: 0 | AE4: 619 | AF4: 429 | AG4: 41 | AH4: 2 | AI4: 0 | AJ4: 2 | AK4: 23 | AL4: 47 | AM4: 453 | AN4: 0 | AO4: 0 | AP4: 11 | AQ4: 9 | AR4: 4 | AS4: 2 | AT4: 84 | AU4: 49 | AV4: 19 | AW4: 105 | AX4: 18 | AY4: 0 | AZ4: 0 | BA4: 1 | BB4: 35 | BC4: 1 | BD4: 14 | BE4: 7 | BF4: 182 | BG4: 24 | BH4: 10 | BI4: 28 | BJ4: 29 | BK4: 7 | BL4: 1 | BM4: 15 | BN4: 4 | BO4: 38 | BP4: 42 | BQ4: 17 | BR4: 38 | BS4: 405 | BT4: 11 | BU4: 133 | BV4: 85 | BW4: 76 | BY4: 6 | BZ4: BPne | CA4: 4237198.64 | CB4: 1
A5: BAS_RHIN | B5: STRASBOURG | C5: STRASBOURG NEUDORF | D5: 6 | E5: De | F5: 901 | G5: 0 | H5: 0 | I5: 901 | J5: 901 | K5: 0 | L5: 0 | M5: 17 | N5: 14 | O5: 38 | P5: 62.36071032 | Q5: 65510.05459 | R5: 59024559.19 | S5: 6836765.52 | T5: 184 | U5: 816 | V5: 738 | W5: 111 | X5: 144 | Y5: 339 | Z5: 74 | AA5: 65 | AB5: 55 | AC5: 0 | AD5: 0 | AE5: 355 | AF5: 219 | AG5: 38 | AH5: 2 | AI5: 0 | AJ5: 1 | AK5: 17 | AL5: 69 | AM5: 790 | AN5: 0 | AO5: 0 | AP5: 57 | AQ5: 49 | AR5: 22 | AS5: 10 | AT5: 222 | AU5: 135 | AV5: 79 | AW5: 127 | AX5: 302 | AY5: 1 | AZ5: 5 | BA5: 9 | BB5: 387 | BC5: 26 | BD5: 103 | BE5: 76 | BF5: 551 | BG5: 356 | BH5: 10 | BI5: 71 | BJ5: 45 | BK5: 10 | BL5: 0 | BM5: 32 | BN5: 10 | BO5: 20 | BP5: 35 | BQ5: 2 | BR5: 14 | BS5: 296 | BT5: 12 | BU5: 47 | BV5: 44 | BW5: 40 | BY5: 6 | BZ5: De | CA5: 6836765.52 | CB5: 1
A6: BAS_RHIN | B6: STRASBOURG | C6: STRASBOURG NEUDORF | D6: 6 | E6: Dne | F6: 2252 | G6: 0 | H6: 0 | I6: 2252 | J6: 2252 | K6: 0 | L6: 0 | M6: 84 | N6: 44 | O6: 169 | P6: 57.29040853 | Q6: 10067.85607 | R6: 22672811.88 | S6: 3419440.57 | T6: 64 | U6: 1028 | V6: 252 | W6: 76 | X6: 42 | Y6: 311 | Z6: 33 | AA6: 31 | AB6: 25 | AC6: 0 | AD6: 0 | AE6: 345 | AF6: 191 | AG6: 29 | AH6: 5 | AI6: 1 | AJ6: 4 | AK6: 4 | AL6: 46 | AM6: 1519 | AN6: 0 | AO6: 0 | AP6: 43 | AQ6: 32 | AR6: 12 | AS6: 5 | AT6: 170 | AU6: 103 | AV6: 28 | AW6: 44 | AX6: 44 | AY6: 0 | AZ6: 4 | BA6: 26 | BB6: 142 | BC6: 5 | BD6: 33 | BE6: 29 | BF6: 603 | BG6: 52 | BH6: 2 | BI6: 16 | BJ6: 14 | BK6: 2 | BL6: 0 | BM6: 10 | BN6: 2 | BO6: 23 | BP6: 20 | BQ6: 5 | BR6: 14 | BS6: 438 | BT6: 13 | BU6: 64 | BV6: 55 | BW6: 22 | BY6: 6 | BZ6: Dne | CA6: 3419440.57 | CB6: 1
A7: BAS_RHIN | B7: STRASBOURG | C7: STRASBOURG NEUDORF | D7: 6 | E7: Ee | F7: 359 | G7: 58 | H7: 96 | I7: 96 | J7: 0 | K7: 96 | L7: 0 | M7: 0 | N7: 18 | O7: 9 | P7: 8.370473538 | Q7: 4371.172535 | R7: 1569250.94 | S7: 0 | T7: 2 | U7: 279 | V7: 131 | W7: 0 | X7: 0 | Y7: 16 | Z7: 0 | AA7: 0 | AB7: 0 | AC7: 0 | AD7: 0 | AE7: 16 | AF7: 3 | AG7: 0 | AH7: 0 | AI7: 0 | AJ7: 0 | AK7: 0 | AL7: 0 | AM7: 325 | AN7: 18 | AO7: 61 | AP7: 6 | AQ7: 0 | AR7: 0 | AS7: 1 | AT7: 0 | AU7: 0 | AV7: 1 | AW7: 183 | AX7: 71 | AY7: 0 | AZ7: 0 | BA7: 0 | BB7: 49 | BC7: 2 | BD7: 0 | BE7: 0 | BF7: 32 | BG7: 4 | BH7: 0 | BI7: 0 | BJ7: 0 | BK7: 0 | BL7: 0 | BM7: 0 | BN7: 0 | BO7: 0 | BP7: 0 | BQ7: 0 | BR7: 0 | BS7: 52 | BT7: 0 | BU7: 3 | BV7: 0 | BW7: 13 | BY7: 6 | BZ7: Ee | CA7: 0 | CB7: 1
A8: BAS_RHIN | B8: STRASBOURG | C8: STRASBOURG NEUDORF | D8: 6 | E8: Ene | F8: 276 | G8: 119 | H8: 117 | I8: 117 | J8: 0 | K8: 117 | L8: 0 | M8: 0 | N8: 12 | O8: 3 | P8: 10.50724638 | Q8: 1043.345109 | R8: 287963.25 | S8: 0 | T8: 0 | U8: 0 | V8: 0 | W8: 0 | X8: 0 | Y8: 4 | Z8: 0 | AA8: 0 | AB8: 0 | AC8: 0 | AD8: 0 | AE8: 4 | AF8: 0 | AG8: 0 | AH8: 0 | AI8: 0 | AJ8: 0 | AK8: 0 | AL8: 0 | AM8: 232 | AN8: 0 | AO8: 1 | AP8: 2 | AQ8: 0 | AR8: 0 | AS8: 0 | AT8: 0 | AU8: 0 | AV8: 0 | AW8: 33 | AX8: 0 | AY8: 0 | AZ8: 0 | BA8: 0 | BB8: 0 | BC8: 0 | BD8: 0 | BE8: 0 | BF8: 34 | BG8: 3 | BH8: 0 | BI8: 0 | BJ8: 0 | BK8: 0 | BL8: 0 | BM8: 0 | BN8: 0 | BO8: 0 | BP8: 0 | BQ8: 0 | BR8: 0 | BS8: 21 | BT8: 0 | BU8: 0 | BV8: 0 | BW8: 4 | BY8: 6 | BZ8: Ene | CA8: 0 | CB8: 1
A9: BAS_RHIN | B9: STRASBOURG | C9: STRASBOURG NEUDORF | D9: 6 | E9: I | F9: 1438 | G9: 0 | H9: 0 | I9: 1438 | J9: 1438 | K9: 0 | L9: 0 | M9: 92 | N9: 1 | O9: 284 | P9: 50.45757997 | Q9: 16.44063282 | R9: 23641.63 | S9: 217.7 | T9: 0 | U9: 23 | V9: 15 | W9: 0 | X9: 30 | Y9: 5 | Z9: 0 | AA9: 0 | AB9: 0 | AC9: 0 | AD9: 0 | AE9: 0 | AF9: 0 | AG9: 0 | AH9: 0 | AI9: 0 | AJ9: 0 | AK9: 0 | AL9: 0 | AM9: 827 | AN9: 0 | AO9: 0 | AP9: 2 | AQ9: 0 | AR9: 0 | AS9: 0 | AT9: 34 | AU9: 2 | AV9: 0 | AW9: 0 | AX9: 0 | AY9: 0 | AZ9: 1 | BA9: 14 | BB9: 0 | BC9: 0 | BD9: 0 | BE9: 0 | BF9: 20 | BG9: 0 | BH9: 5 | BI9: 8 | BJ9: 5 | BK9: 6 | BL9: 0 | BM9: 7 | BN9: 0 | BO9: 3 | BP9: 5 | BQ9: 1 | BR9: 0 | BS9: 21 | BT9: 1 | BU9: 0 | BV9: 0 | BW9: 0 | BY9: 6 | BZ9: I | CA9: 217.7 | CB9: 1
A10: BAS_RHIN | B10: STRASBOURG | C10: STRASBOURG NEUDORF | D10: 6 | E10: JBPe | F10: 266 | G10: 0 | H10: 266 | I10: 266 | J10: 252 | K10: 14 | L10: 266 | M10: 252 | N10: 17 | O10: 4 | P10: 21.84586466 | Q10: 11191.98759 | R10: 2977068.7 | S10: 1492471.86 | T10: 259 | U10: 224 | V10: 87 | W10: 59 | X10: 123 | Y10: 263 | Z10: 41 | AA10: 128 | AB10: 64 | AC10: 0 | AD10: 0 | AE10: 276 | AF10: 156 | AG10: 52 | AH10: 17 | AI10: 8 | AJ10: 1 | AK10: 10 | AL10: 7 | AM10: 230 | AN10: 0 | AO10: 232 | AP10: 3 | AQ10: 0 | AR10: 0 | AS10: 1 | AT10: 13 | AU10: 5 | AV10: 5 | AW10: 86 | AX10: 55 | AY10: 0 | AZ10: 0 | BA10: 0 | BB10: 29 | BC10: 3 | BD10: 6 | BE10: 0 | BF10: 55 | BG10: 22 | BH10: 7 | BI10: 30 | BJ10: 21 | BK10: 2 | BL10: 1 | BM10: 107 | BN10: 0 | BO10: 40 | BP10: 8 | BQ10: 11 | BR10: 6 | BS10: 242 | BT10: 0 | BU10: 215 | BV10: 96 | BW10: 108 | BY10: 6 | BZ10: JBPe | CA10: 1492471.86 | CB10: 1
A11: BAS_RHIN | B11: STRASBOURG | C11: STRASBOURG NEUDORF | D11: 6 | E11: JBPne | F11: 63 | G11: 0 | H11: 63 | I11: 63 | J11: 55 | K11: 8 | L11: 63 | M11: 55 | N11: 7 | O11: 4 | P11: 21.0952381 | Q11: 1110.736825 | R11: 69976.42 | S11: 59818.77 | T11: 46 | U11: 9 | V11: 0 | W11: 1 | X11: 0 | Y11: 61 | Z11: 2 | AA11: 13 | AB11: 7 | AC11: 0 | AD11: 0 | AE11: 64 | AF11: 46 | AG11: 1 | AH11: 1 | AI11: 0 | AJ11: 0 | AK11: 0 | AL11: 0 | AM11: 32 | AN11: 0 | AO11: 33 | AP11: 0 | AQ11: 0 | AR11: 0 | AS11: 1 | AT11: 1 | AU11: 0 | AV11: 0 | AW11: 3 | AX11: 0 | AY11: 0 | AZ11: 0 | BA11: 0 | BB11: 0 | BC11: 0 | BD11: 0 | BE11: 0 | BF11: 5 | BG11: 0 | BH11: 0 | BI11: 0 | BJ11: 0 | BK11: 0 | BL11: 0 | BM11: 0 | BN11: 0 | BO11: 5 | BP11: 0 | BQ11: 0 | BR11: 4 | BS11: 50 | BT11: 0 | BU11: 45 | BV11: 17 | BW11: 16 | BY11: 6 | BZ11: JBPne | CA11: 59818.77 | CB11: 1
A12: BAS_RHIN | B12: STRASBOURG | C12: STRASBOURG NEUDORF | D12: 6 | E12: JDe | F12: 48 | G12: 0 | H12: 48 | I12: 48 | J12: 32 | K12: 16 | L12: 48 | M12: 32 | N12: 2 | O12: 1 | P12: 19.33333333 | Q12: 11410.31313 | R12: 547695.03 | S12: 49294.92 | T12: 1 | U12: 45 | V12: 42 | W12: 5 | X12: 4 | Y12: 10 | Z12: 0 | AA12: 0 | AB12: 0 | AC12: 0 | AD12: 0 | AE12: 9 | AF12: 3 | AG12: 5 | AH12: 2 | AI12: 2 | AJ12: 0 | AK12: 0 | AL12: 0 | AM12: 43 | AN12: 0 | AO12: 35 | AP12: 0 | AQ12: 0 | AR12: 0 | AS12: 0 | AT12: 0 | AU12: 0 | AV12: 2 | AW12: 10 | AX12: 27 | AY12: 0 | AZ12: 0 | BA12: 0 | BB12: 11 | BC12: 0 | BD12: 0 | BE12: 0 | BF12: 17 | BG12: 13 | BH12: 0 | BI12: 1 | BJ12: 0 | BK12: 0 | BL12: 0 | BM12: 3 | BN12: 0 | BO12: 2 | BP12: 0 | BQ12: 0 | BR12: 0 | BS12: 13 | BT12: 0 | BU12: 2 | BV12: 0 | BW12: 6 | BY12: 6 | BZ12: JDe | CA12: 49294.92 | CB12: 1
A13: BAS_RHIN | B13: STRASBOURG | C13: STRASBOURG NEUDORF | D13: 6 | E13: JDne | F13: 415 | G13: 0 | H13: 415 | I13: 415 | J13: 310 | K13: 105 | L13: 415 | M13: 310 | N13: 12 | O13: 34 | P13: 20.29156627 | Q13: 1860.252554 | R13: 772004.81 | S13: 46476.33 | T13: 0 | U13: 141 | V13: 35 | W13: 2 | X13: 7 | Y13: 46 | Z13: 0 | AA13: 6 | AB13: 2 | AC13: 0 | AD13: 0 | AE13: 51 | AF13: 27 | AG13: 2 | AH13: 1 | AI13: 0 | AJ13: 0 | AK13: 1 | AL13: 0 | AM13: 297 | AN13: 0 | AO13: 159 | AP13: 1 | AQ13: 0 | AR13: 0 | AS13: 1 | AT13: 0 | AU13: 0 | AV13: 2 | AW13: 24 | AX13: 8 | AY13: 0 | AZ13: 0 | BA13: 0 | BB13: 24 | BC13: 0 | BD13: 0 | BE13: 2 | BF13: 45 | BG13: 3 | BH13: 1 | BI13: 0 | BJ13: 2 | BK13: 0 | BL13: 0 | BM13: 4 | BN13: 0 | BO13: 3 | BP13: 0 | BQ13: 2 | BR13: 5 | BS13: 64 | BT13: 0 | BU13: 27 | BV13: 12 | BW13: 20 | BY13: 6 | BZ13: JDne | CA13: 46476.33 | CB13: 1
A14: BAS_RHIN | B14: SELESTAT | C14: ILLKIRCH CENTRE | D14: 7 | E14: BPe | F14: 1876 | G14: 0 | H14: 0 | I14: 1876 | J14: 1876 | K14: 0 | L14: 0 | M14: 85 | N14: 23 | O14: 11 | P14: 52.1401919 | Q14: 59573.53665 | R14: 111759954.8 | S14: 89283853 | T14: 1801 | U14: 1686 | V14: 1376 | W14: 1150 | X14: 895 | Y14: 1839 | Z14: 1159 | AA14: 966 | AB14: 691 | AC14: 0 | AD14: 0 | AE14: 2076 | AF14: 1445 | AG14: 563 | AH14: 19 | AI14: 8 | AJ14: 57 | AK14: 244 | AL14: 778 | AM14: 1665 | AN14: 0 | AO14: 0 | AP14: 139 | AQ14: 141 | AR14: 32 | AS14: 48 | AT14: 816 | AU14: 251 | AV14: 337 | AW14: 635 | AX14: 708 | AY14: 13 | AZ14: 3 | BA14: 57 | BB14: 767 | BC14: 62 | BD14: 380 | BE14: 160 | BF14: 1081 | BG14: 719 | BH14: 278 | BI14: 529 | BJ14: 362 | BK14: 40 | BL14: 2 | BM14: 291 | BN14: 75 | BO14: 163 | BP14: 309 | BQ14: 68 | BR14: 268 | BS14: 1405 | BT14: 138 | BU14: 262 | BV14: 301 | BW14: 289 | BY14: 7 | BZ14: BPe | CA14: 89283853 | CB14: 1
A15: BAS_RHIN | B15: SELESTAT | C15: ILLKIRCH CENTRE | D15: 7 | E15: BPne | F15: 681 | G15: 0 | H15: 0 | I15: 681 | J15: 681 | K15: 0 | L15: 0 | M15: 34 | N15: 10 | O15: 19 | P15: 56.19970631 | Q15: 31827.47059 | R15: 21674507.47 | S15: 5857362.8 | T15: 402 | U15: 382 | V15: 165 | W15: 115 | X15: 50 | Y15: 513 | Z15: 168 | AA15: 143 | AB15: 130 | AC15: 0 | AD15: 0 | AE15: 639 | AF15: 476 | AG15: 54 | AH15: 5 | AI15: 0 | AJ15: 5 | AK15: 14 | AL15: 82 | AM15: 479 | AN15: 0 | AO15: 0 | AP15: 10 | AQ15: 24 | AR15: 6 | AS15: 6 | AT15: 162 | AU15: 83 | AV15: 45 | AW15: 93 | AX15: 63 | AY15: 0 | AZ15: 0 | BA15: 2 | BB15: 100 | BC15: 8 | BD15: 40 | BE15: 28 | BF15: 227 | BG15: 73 | BH15: 7 | BI15: 19 | BJ15: 18 | BK15: 3 | BL15: 0 | BM15: 23 | BN15: 2 | BO15: 37 | BP15: 42 | BQ15: 10 | BR15: 53 | BS15: 405 | BT15: 13 | BU15: 73 | BV15: 69 | BW15: 49 | BY15: 7 | BZ15: BPne | CA15: 5857362.8 | CB15: 1
A16: BAS_RHIN | B16: SELESTAT | C16: ILLKIRCH CENTRE | D16: 7 | E16: De | F16: 1035 | G16: 0 | H16: 0 | I16: 1035 | J16: 1035 | K16: 0 | L16: 0 | M16: 31 | N16: 5 | O16: 24 | P16: 63.4763285 | Q16: 76015.81212 | R16: 78676365.54 | S16: 9125974.16 | T16: 157 | U16: 954 | V16: 902 | W16: 147 | X16: 176 | Y16: 331 | Z16: 91 | AA16: 66 | AB16: 62 | AC16: 0 | AD16: 0 | AE16: 342 | AF16: 216 | AG16: 41 | AH16: 4 | AI16: 0 | AJ16: 5 | AK16: 9 | AL16: 110 | AM16: 878 | AN16: 0 | AO16: 0 | AP16: 58 | AQ16: 120 | AR16: 16 | AS16: 16 | AT16: 308 | AU16: 171 | AV16: 143 | AW16: 135 | AX16: 381 | AY16: 3 | AZ16: 2 | BA16: 22 | BB16: 536 | BC16: 40 | BD16: 167 | BE16: 86 | BF16: 594 | BG16: 477 | BH16: 31 | BI16: 65 | BJ16: 46 | BK16: 10 | BL16: 0 | BM16: 33 | BN16: 35 | BO16: 20 | BP16: 38 | BQ16: 5 | BR16: 23 | BS16: 347 | BT16: 22 | BU16: 32 | BV16: 52 | BW16: 18 | BY16: 7 | BZ16: De | CA16: 9125974.16 | CB16: 1
A17: BAS_RHIN | B17: SELESTAT | C17: ILLKIRCH CENTRE | D17: 7 | E17: Dne | F17: 1919 | G17: 0 | H17: 0 | I17: 1919 | J17: 1919 | K17: 0 | L17: 0 | M17: 68 | N17: 29 | O17: 119 | P17: 57.69463262 | Q17: 13128.26487 | R17: 25193140.28 | S17: 2637287.69 | T17: 34 | U17: 888 | V17: 311 | W17: 90 | X17: 54 | Y17: 210 | Z17: 43 | AA17: 36 | AB17: 43 | AC17: 0 | AD17: 0 | AE17: 235 | AF17: 143 | AG17: 34 | AH17: 3 | AI17: 0 | AJ17: 7 | AK17: 4 | AL17: 58 | AM17: 1139 | AN17: 0 | AO17: 0 | AP17: 33 | AQ17: 52 | AR17: 5 | AS17: 5 | AT17: 152 | AU17: 79 | AV17: 29 | AW17: 55 | AX17: 58 | AY17: 0 | AZ17: 1 | BA17: 18 | BB17: 186 | BC17: 14 | BD17: 44 | BE17: 23 | BF17: 351 | BG17: 85 | BH17: 11 | BI17: 19 | BJ17: 16 | BK17: 4 | BL17: 0 | BM17: 18 | BN17: 6 | BO17: 21 | BP17: 17 | BQ17: 1 | BR17: 16 | BS17: 434 | BT17: 10 | BU17: 31 | BV17: 39 | BW17: 23 | BY17: 7 | BZ17: Dne | CA17: 2637287.69 | CB17: 1
A18: BAS_RHIN | B18: SELESTAT | C18: ILLKIRCH CENTRE | D18: 7 | E18: Ee | F18: 513 | G18: 82 | H18: 166 | I18: 166 | J18: 0 | K18: 166 | L18: 0 | M18: 0 | N18: 26 | O18: 10 | P18: 8.621832359 | Q18: 5107.57731 | R18: 2620187.16 | S18: 0 | T18: 14 | U18: 367 | V18: 243 | W18: 0 | X18: 0 | Y18: 40 | Z18: 0 | AA18: 0 | AB18: 0 | AC18: 0 | AD18: 0 | AE18: 39 | AF18: 7 | AG18: 0 | AH18: 0 | AI18: 0 | AJ18: 0 | AK18: 0 | AL18: 0 | AM18: 434 | AN18: 19 | AO18: 102 | AP18: 1 | AQ18: 0 | AR18: 0 | AS18: 2 | AT18: 0 | AU18: 0 | AV18: 2 | AW18: 170 | AX18: 125 | AY18: 0 | AZ18: 0 | BA18: 0 | BB18: 101 | BC18: 5 | BD18: 0 | BE18: 1 | BF18: 52 | BG18: 27 | BH18: 0 | BI18: 0 | BJ18: 0 | BK18: 0 | BL18: 0 | BM18: 0 | BN18: 0 | BO18: 0 | BP18: 0 | BQ18: 0 | BR18: 0 | BS18: 160 | BT18: 0 | BU18: 13 | BV18: 0 | BW18: 32 | BY18: 7 | BZ18: Ee | CA18: 0 | CB18: 1
A19: BAS_RHIN | B19: SELESTAT | C19: ILLKIRCH CENTRE | D19: 7 | E19: Ene | F19: 277 | G19: 100 | H19: 104 | I19: 104 | J19: 0 | K19: 104 | L19: 0 | M19: 0 | N19: 10 | O19: 7 | P19: 10.00722022 | Q19: 1215.520614 | R19: 336699.21 | S19: 0 | T19: 0 | U19: 0 | V19: 0 | W19: 0 | X19: 0 | Y19: 8 | Z19: 0 | AA19: 0 | AB19: 0 | AC19: 0 | AD19: 0 | AE19: 8 | AF19: 1 | AG19: 0 | AH19: 0 | AI19: 0 | AJ19: 0 | AK19: 0 | AL19: 0 | AM19: 217 | AN19: 0 | AO19: 5 | AP19: 2 | AQ19: 0 | AR19: 0 | AS19: 0 | AT19: 0 | AU19: 0 | AV19: 0 | AW19: 42 | AX19: 0 | AY19: 0 | AZ19: 0 | BA19: 0 | BB19: 0 | BC19: 0 | BD19: 0 | BE19: 0 | BF19: 27 | BG19: 9 | BH19: 0 | BI19: 0 | BJ19: 0 | BK19: 0 | BL19: 0 | BM19: 0 | BN19: 0 | BO19: 0 | BP19: 0 | BQ19: 0 | BR19: 0 | BS19: 39 | BT19: 0 | BU19: 0 | BV19: 0 | BW19: 7 | BY19: 7 | BZ19: Ene | CA19: 0 | CB19: 1
A20: BAS_RHIN | B20: SELESTAT | C20: ILLKIRCH CENTRE | D20: 7 | E20: I | F20: 1064 | G20: 0 | H20: 0 | I20: 1064 | J20: 1064 | K20: 0 | L20: 0 | M20: 42 | N20: 1 | O20: 93 | P20: 50.02819549 | Q20: 14.34089286 | R20: 15258.71 | S20: 0 | T20: 0 | U20: 20 | V20: 3 | W20: 0 | X20: 27 | Y20: 3 | Z20: 0 | AA20: 0 | AB20: 0 | AC20: 0 | AD20: 0 | AE20: 1 | AF20: 0 | AG20: 0 | AH20: 0 | AI20: 0 | AJ20: 0 | AK20: 0 | AL20: 0 | AM20: 579 | AN20: 0 | AO20: 0 | AP20: 3 | AQ20: 2 | AR20: 0 | AS20: 0 | AT20: 19 | AU20: 2 | AV20: 0 | AW20: 0 | AX20: 0 | AY20: 0 | AZ20: 0 | BA20: 3 | BB20: 0 | BC20: 0 | BD20: 0 | BE20: 0 | BF20: 4 | BG20: 0 | BH20: 4 | BI20: 8 | BJ20: 1 | BK20: 6 | BL20: 0 | BM20: 10 | BN20: 0 | BO20: 9 | BP20: 3 | BQ20: 0 | BR20: 0 | BS20: 24 | BT20: 1 | BU20: 0 | BV20: 0 | BW20: 0 | BY20: 7 | BZ20: I | CA20: 0 | CB20: 1
A21: BAS_RHIN | B21: SELESTAT | C21: ILLKIRCH CENTRE | D21: 7 | E21: JBPe | F21: 367 | G21: 0 | H21: 367 | I21: 367 | J21: 346 | K21: 21 | L21: 367 | M21: 346 | N21: 7 | O21: 4 | P21: 21.64305177 | Q21: 17039.29463 | R21: 6253421.13 | S21: 2194855.85 | T21: 346 | U21: 331 | V21: 177 | W21: 81 | X21: 105 | Y21: 366 | Z21: 54 | AA21: 163 | AB21: 94 | AC21: 0 | AD21: 0 | AE21: 393 | AF21: 251 | AG21: 68 | AH21: 31 | AI21: 6 | AJ21: 3 | AK21: 5 | AL21: 16 | AM21: 322 | AN21: 0 | AO21: 333 | AP21: 7 | AQ21: 0 | AR21: 0 | AS21: 8 | AT21: 35 | AU21: 8 | AV21: 8 | AW21: 101 | AX21: 107 | AY21: 0 | AZ21: 0 | BA21: 0 | BB21: 83 | BC21: 0 | BD21: 9 | BE21: 1 | BF21: 111 | BG21: 52 | BH21: 16 | BI21: 31 | BJ21: 34 | BK21: 10 | BL21: 0 | BM21: 63 | BN21: 0 | BO21: 48 | BP21: 12 | BQ21: 13 | BR21: 21 | BS21: 339 | BT21: 4 | BU21: 282 | BV21: 100 | BW21: 115 | BY21: 7 | BZ21: JBPe | CA21: 2194855.85 | CB21: 1
A22: BAS_RHIN | B22: SELESTAT | C22: ILLKIRCH CENTRE | D22: 7 | E22: JBPne | F22: 67 | G22: 0 | H22: 67 | I22: 67 | J22: 60 | K22: 7 | L22: 67 | M22: 60 | N22: 7 | O22: 10 | P22: 21.23880597 | Q22: 1698.583731 | R22: 113805.11 | S22: 3629.03 | T22: 39 | U22: 8 | V22: 2 | W22: 1 | X22: 3 | Y22: 58 | Z22: 4 | AA22: 13 | AB22: 7 | AC22: 0 | AD22: 0 | AE22: 67 | AF22: 41 | AG22: 1 | AH22: 1 | AI22: 0 | AJ22: 0 | AK22: 0 | AL22: 0 | AM22: 32 | AN22: 0 | AO22: 38 | AP22: 0 | AQ22: 0 | AR22: 0 | AS22: 0 | AT22: 1 | AU22: 0 | AV22: 0 | AW22: 3 | AX22: 1 | AY22: 0 | AZ22: 0 | BA22: 0 | BB22: 1 | BC22: 0 | BD22: 1 | BE22: 0 | BF22: 9 | BG22: 0 | BH22: 0 | BI22: 0 | BJ22: 0 | BK22: 1 | BL22: 0 | BM22: 3 | BN22: 0 | BO22: 4 | BP22: 4 | BQ22: 3 | BR22: 3 | BS22: 59 | BT22: 0 | BU22: 36 | BV22: 10 | BW22: 16 | BY22: 7 | BZ22: JBPne | CA22: 3629.03 | CB22: 1
A23: BAS_RHIN | B23: SELESTAT | C23: ILLKIRCH CENTRE | D23: 7 | E23: JDe | F23: 77 | G23: 0 | H23: 77 | I23: 77 | J23: 57 | K23: 20 | L23: 77 | M23: 57 | N23: 2 | O23: 3 | P23: 19.72727273 | Q23: 21297.40688 | R23: 1639900.33 | S23: 95542.63 | T23: 1 | U23: 76 | V23: 75 | W23: 3 | X23: 3 | Y23: 30 | Z23: 2 | AA23: 6 | AB23: 4 | AC23: 0 | AD23: 0 | AE23: 33 | AF23: 13 | AG23: 1 | AH23: 1 | AI23: 0 | AJ23: 0 | AK23: 0 | AL23: 2 | AM23: 68 | AN23: 1 | AO23: 63 | AP23: 1 | AQ23: 0 | AR23: 0 | AS23: 0 | AT23: 2 | AU23: 1 | AV23: 4 | AW23: 14 | AX23: 48 | AY23: 0 | AZ23: 0 | BA23: 0 | BB23: 25 | BC23: 5 | BD23: 1 | BE23: 1 | BF23: 25 | BG23: 20 | BH23: 0 | BI23: 0 | BJ23: 0 | BK23: 0 | BL23: 0 | BM23: 3 | BN23: 0 | BO23: 0 | BP23: 0 | BQ23: 0 | BR23: 0 | BS23: 31 | BT23: 0 | BU23: 9 | BV23: 1 | BW23: 19 | BY23: 7 | BZ23: JDe | CA23: 95542.63 | CB23: 1
A24: BAS_RHIN | B24: SELESTAT | C24: ILLKIRCH CENTRE | D24: 7 | E24: JDne | F24: 410 | G24: 0 | H24: 410 | I24: 410 | J24: 296 | K24: 114 | L24: 410 | M24: 296 | N24: 6 | O24: 26 | P24: 19.92439024 | Q24: 2817.166049 | R24: 1155038.08 | S24: 74282.26 | T24: 1 | U24: 170 | V24: 44 | W24: 5 | X24: 2 | Y24: 46 | Z24: 1 | AA24: 7 | AB24: 6 | AC24: 0 | AD24: 0 | AE24: 49 | AF24: 25 | AG24: 5 | AH24: 5 | AI24: 1 | AJ24: 0 | AK24: 0 | AL24: 0 | AM24: 306 | AN24: 0 | AO24: 162 | AP24: 0 | AQ24: 0 | AR24: 1 | AS24: 0 | AT24: 0 | AU24: 0 | AV24: 0 | AW24: 29 | AX24: 14 | AY24: 0 | AZ24: 0 | BA24: 0 | BB24: 27 | BC24: 1 | BD24: 0 | BE24: 0 | BF24: 38 | BG24: 4 | BH24: 0 | BI24: 1 | BJ24: 0 | BK24: 1 | BL24: 0 | BM24: 1 | BN24: 0 | BO24: 1 | BP24: 1 | BQ24: 0 | BR24: 1 | BS24: 65 | BT24: 0 | BU24: 22 | BV24: 5 | BW24: 20 | BY24: 7 | BZ24: JDne | CA24: 74282.26 | CB24: 1
A25: BAS_RHIN | B25: SELESTAT | C25: FEGERSHEIM | D25: 8 | E25: BPe | F25: 654 | G25: 0 | H25: 0 | I25: 654 | J25: 654 | K25: 0 | L25: 0 | M25: 40 | N25: 2 | O25: 5 | P25: 50.64525994 | Q25: 52061.8458 | R25: 34048447.15 | S25: 25219784.69 | T25: 632 | U25: 577 | V25: 501 | W25: 403 | X25: 327 | Y25: 645 | Z25: 444 | AA25: 359 | AB25: 194 | AC25: 0 | AD25: 0 | AE25: 762 | AF25: 553 | AG25: 182 | AH25: 6 | AI25: 3 | AJ25: 17 | AK25: 85 | AL25: 255 | AM25: 590 | AN25: 0 | AO25: 0 | AP25: 40 | AQ25: 47 | AR25: 24 | AS25: 14 | AT25: 279 | AU25: 104 | AV25: 114 | AW25: 203 | AX25: 270 | AY25: 3 | AZ25: 0 | BA25: 15 | BB25: 247 | BC25: 19 | BD25: 136 | BE25: 40 | BF25: 412 | BG25: 266 | BH25: 103 | BI25: 182 | BJ25: 113 | BK25: 20 | BL25: 5 | BM25: 150 | BN25: 30 | BO25: 61 | BP25: 121 | BQ25: 14 | BR25: 110 | BS25: 510 | BT25: 64 | BU25: 126 | BV25: 225 | BW25: 101 | BY25: 8 | BZ25: BPe | CA25: 25219784.69 | CB25: 1
A26: BAS_RHIN | B26: SELESTAT | C26: FEGERSHEIM | D26: 8 | E26: BPne | F26: 238 | G26: 0 | H26: 0 | I26: 238 | J26: 238 | K26: 0 | L26: 0 | M26: 15 | N26: 7 | O26: 4 | P26: 54.00420168 | Q26: 27287.50353 | R26: 6494425.84 | S26: 1657521.09 | T26: 134 | U26: 125 | V26: 55 | W26: 38 | X26: 22 | Y26: 171 | Z26: 71 | AA26: 61 | AB26: 38 | AC26: 0 | AD26: 0 | AE26: 228 | AF26: 189 | AG26: 12 | AH26: 0 | AI26: 0 | AJ26: 5 | AK26: 10 | AL26: 25 | AM26: 162 | AN26: 0 | AO26: 0 | AP26: 10 | AQ26: 6 | AR26: 3 | AS26: 3 | AT26: 63 | AU26: 26 | AV26: 17 | AW26: 17 | AX26: 28 | AY26: 0 | AZ26: 0 | BA26: 0 | BB26: 32 | BC26: 1 | BD26: 14 | BE26: 5 | BF26: 86 | BG26: 31 | BH26: 8 | BI26: 7 | BJ26: 11 | BK26: 4 | BL26: 0 | BM26: 11 | BN26: 3 | BO26: 19 | BP26: 21 | BQ26: 3 | BR26: 24 | BS26: 148 | BT26: 8 | BU26: 42 | BV26: 53 | BW26: 14 | BY26: 8 | BZ26: BPne | CA26: 1657521.09 | CB26: 1
A27: BAS_RHIN | B27: SELESTAT | C27: FEGERSHEIM | D27: 8 | E27: De | F27: 417 | G27: 0 | H27: 0 | I27: 417 | J27: 417 | K27: 0 | L27: 0 | M27: 13 | N27: 2 | O27: 5 | P27: 60.2853717 | Q27: 67045.48787 | R27: 27957968.44 | S27: 3027667.65 | T27: 50 | U27: 381 | V27: 369 | W27: 61 | X27: 74 | Y27: 108 | Z27: 37 | AA27: 34 | AB27: 24 | AC27: 0 | AD27: 0 | AE27: 117 | AF27: 92 | AG27: 18 | AH27: 1 | AI27: 0 | AJ27: 1 | AK27: 6 | AL27: 41 | AM27: 351 | AN27: 0 | AO27: 0 | AP27: 27 | AQ27: 57 | AR27: 22 | AS27: 9 | AT27: 113 | AU27: 50 | AV27: 64 | AW27: 51 | AX27: 143 | AY27: 3 | AZ27: 0 | BA27: 4 | BB27: 210 | BC27: 14 | BD27: 62 | BE27: 31 | BF27: 231 | BG27: 196 | BH27: 10 | BI27: 28 | BJ27: 24 | BK27: 3 | BL27: 1 | BM27: 27 | BN27: 8 | BO27: 13 | BP27: 26 | BQ27: 2 | BR27: 7 | BS27: 143 | BT27: 12 | BU27: 18 | BV27: 37 | BW27: 7 | BY27: 8 | BZ27: De | CA27: 3027667.65 | CB27: 1
A28: BAS_RHIN | B28: SELESTAT | C28: FEGERSHEIM | D28: 8 | E28: Dne | F28: 804 | G28: 0 | H28: 0 | I28: 804 | J28: 804 | K28: 0 | L28: 0 | M28: 40 | N28: 12 | O28: 33 | P28: 55.58333333 | Q28: 10967.02882 | R28: 8817491.17 | S28: 298154.71 | T28: 9 | U28: 357 | V28: 147 | W28: 27 | X28: 26 | Y28: 67 | Z28: 10 | AA28: 7 | AB28: 6 | AC28: 0 | AD28: 0 | AE28: 79 | AF28: 59 | AG28: 9 | AH28: 2 | AI28: 0 | AJ28: 0 | AK28: 3 | AL28: 15 | AM28: 447 | AN28: 0 | AO28: 0 | AP28: 20 | AQ28: 17 | AR28: 0 | AS28: 5 | AT28: 64 | AU28: 23 | AV28: 16 | AW28: 18 | AX28: 27 | AY28: 0 | AZ28: 0 | BA28: 6 | BB28: 88 | BC28: 4 | BD28: 25 | BE28: 12 | BF28: 180 | BG28: 63 | BH28: 2 | BI28: 4 | BJ28: 11 | BK28: 3 | BL28: 0 | BM28: 9 | BN28: 2 | BO28: 20 | BP28: 13 | BQ28: 0 | BR28: 4 | BS28: 193 | BT28: 4 | BU28: 12 | BV28: 30 | BW28: 7 | BY28: 8 | BZ28: Dne | CA28: 298154.71 | CB28: 1
A29: BAS_RHIN | B29: SELESTAT | C29: FEGERSHEIM | D29: 8 | E29: Ee | F29: 252 | G29: 45 | H29: 81 | I29: 81 | J29: 0 | K29: 81 | L29: 0 | M29: 0 | N29: 11 | O29: 4 | P29: 8.765873016 | Q29: 6137.942183 | R29: 1546761.43 | S29: 0 | T29: 4 | U29: 197 | V29: 102 | W29: 0 | X29: 0 | Y29: 11 | Z29: 0 | AA29: 0 | AB29: 0 | AC29: 0 | AD29: 0 | AE29: 11 | AF29: 0 | AG29: 0 | AH29: 0 | AI29: 0 | AJ29: 0 | AK29: 0 | AL29: 0 | AM29: 212 | AN29: 21 | AO29: 69 | AP29: 4 | AQ29: 0 | AR29: 0 | AS29: 2 | AT29: 0 | AU29: 0 | AV29: 2 | AW29: 75 | AX29: 66 | AY29: 0 | AZ29: 0 | BA29: 0 | BB29: 30 | BC29: 1 | BD29: 0 | BE29: 0 | BF29: 45 | BG29: 34 | BH29: 0 | BI29: 0 | BJ29: 0 | BK29: 0 | BL29: 0 | BM29: 0 | BN29: 0 | BO29: 0 | BP29: 0 | BQ29: 0 | BR29: 0 | BS29: 60 | BT29: 0 | BU29: 0 | BV29: 0 | BW29: 11 | BY29: 8 | BZ29: Ee | CA29: 0 | CB29: 1
A30: BAS_RHIN | B30: SELESTAT | C30: FEGERSHEIM | D30: 8 | E30: Ene | F30: 73 | G30: 32 | H30: 31 | I30: 31 | J30: 0 | K30: 31 | L30: 0 | M30: 0 | N30: 4 | O30: 4 | P30: 10.12328767 | Q30: 1263.423014 | R30: 92229.88 | S30: 0 | T30: 0 | U30: 0 | V30: 0 | W30: 0 | X30: 0 | Y30: 1 | Z30: 0 | AA30: 0 | AB30: 0 | AC30: 0 | AD30: 0 | AE30: 1 | AF30: 0 | AG30: 0 | AH30: 0 | AI30: 0 | AJ30: 0 | AK30: 0 | AL30: 0 | AM30: 57 | AN30: 0 | AO30: 1 | AP30: 0 | AQ30: 0 | AR30: 0 | AS30: 0 | AT30: 0 | AU30: 0 | AV30: 0 | AW30: 10 | AX30: 0 | AY30: 0 | AZ30: 0 | BA30: 0 | BB30: 0 | BC30: 0 | BD30: 0 | BE30: 0 | BF30: 12 | BG30: 5 | BH30: 0 | BI30: 0 | BJ30: 0 | BK30: 0 | BL30: 0 | BM30: 0 | BN30: 0 | BO30: 0 | BP30: 0 | BQ30: 0 | BR30: 0 | BS30: 14 | BT30: 0 | BU30: 0 | BV30: 0 | BW30: 1 | BY30: 8 | BZ30: Ene | CA30: 0 | CB30: 1
A31: BAS_RHIN | B31: SELESTAT | C31: FEGERSHEIM | D31: 8 | E31: I | F31: 476 | G31: 0 | H31: 0 | I31: 476 | J31: 476 | K31: 0 | L31: 0 | M31: 42 | N31: 2 | O31: 30 | P31: 48.20168067 | Q31: 14.56739496 | R31: 6934.08 | S31: 0 | T31: 0 | U31: 13 | V31: 0 | W31: 0 | X31: 17 | Y31: 0 | Z31: 0 | AA31: 0 | AB31: 0 | AC31: 0 | AD31: 0 | AE31: 0 | AF31: 0 | AG31: 0 | AH31: 0 | AI31: 0 | AJ31: 0 | AK31: 0 | AL31: 0 | AM31: 219 | AN31: 0 | AO31: 0 | AP31: 1 | AQ31: 0 | AR31: 0 | AS31: 1 | AT31: 12 | AU31: 1 | AV31: 0 | AW31: 0 | AX31: 0 | AY31: 0 | AZ31: 0 | BA31: 0 | BB31: 0 | BC31: 0 | BD31: 0 | BE31: 0 | BF31: 8 | BG31: 0 | BH31: 1 | BI31: 4 | BJ31: 3 | BK31: 5 | BL31: 0 | BM31: 2 | BN31: 2 | BO31: 2 | BP31: 3 | BQ31: 0 | BR31: 0 | BS31: 10 | BT31: 0 | BU31: 0 | BV31: 0 | BW31: 0 | BY31: 8 | BZ31: I | CA31: 0 | CB31: 1
A32: BAS_RHIN | B32: SELESTAT | C32: FEGERSHEIM | D32: 8 | E32: JBPe | F32: 169 | G32: 0 | H32: 169 | I32: 169 | J32: 156 | K32: 13 | L32: 169 | M32: 156 | N32: 3 | O32: 1 | P32: 21.56804734 | Q32: 15399.11728 | R32: 2602450.82 | S32: 1077583.1 | T32: 160 | U32: 143 | V32: 104 | W32: 38 | X32: 65 | Y32: 166 | Z32: 32 | AA32: 89 | AB32: 10 | AC32: 0 | AD32: 0 | AE32: 174 | AF32: 122 | AG32: 32 | AH32: 19 | AI32: 5 | AJ32: 0 | AK32: 6 | AL32: 5 | AM32: 151 | AN32: 1 | AO32: 150 | AP32: 2 | AQ32: 1 | AR32: 2 | AS32: 1 | AT32: 7 | AU32: 7 | AV32: 2 | AW32: 28 | AX32: 82 | AY32: 0 | AZ32: 0 | BA32: 0 | BB32: 28 | BC32: 1 | BD32: 4 | BE32: 1 | BF32: 53 | BG32: 31 | BH32: 9 | BI32: 15 | BJ32: 16 | BK32: 6 | BL32: 1 | BM32: 48 | BN32: 0 | BO32: 31 | BP32: 4 | BQ32: 4 | BR32: 10 | BS32: 150 | BT32: 1 | BU32: 138 | BV32: 65 | BW32: 45 | BY32: 8 | BZ32: JBPe | CA32: 1077583.1 | CB32: 1
A33: BAS_RHIN | B33: SELESTAT | C33: FEGERSHEIM | D33: 8 | E33: JBPne | F33: 24 | G33: 0 | H33: 24 | I33: 24 | J33: 23 | K33: 1 | L33: 24 | M33: 23 | N33: 1 | O33: 2 | P33: 20.95833333 | Q33: 1042.909167 | R33: 25029.82 | S33: 6377.98 | T33: 11 | U33: 2 | V33: 0 | W33: 1 | X33: 7 | Y33: 18 | Z33: 0 | AA33: 5 | AB33: 1 | AC33: 0 | AD33: 0 | AE33: 23 | AF33: 19 | AG33: 1 | AH33: 1 | AI33: 0 | AJ33: 0 | AK33: 0 | AL33: 0 | AM33: 9 | AN33: 0 | AO33: 15 | AP33: 0 | AQ33: 0 | AR33: 0 | AS33: 1 | AT33: 0 | AU33: 0 | AV33: 0 | AW33: 1 | AX33: 0 | AY33: 0 | AZ33: 0 | BA33: 0 | BB33: 0 | BC33: 0 | BD33: 0 | BE33: 0 | BF33: 2 | BG33: 0 | BH33: 0 | BI33: 1 | BJ33: 3 | BK33: 1 | BL33: 0 | BM33: 5 | BN33: 0 | BO33: 3 | BP33: 1 | BQ33: 1 | BR33: 0 | BS33: 21 | BT33: 0 | BU33: 14 | BV33: 4 | BW33: 3 | BY33: 8 | BZ33: JBPne | CA33: 6377.98 | CB33: 1
A34: BAS_RHIN | B34: SELESTAT | C34: FEGERSHEIM | D34: 8 | E34: JDe | F34: 64 | G34: 0 | H34: 64 | I34: 64 | J34: 45 | K34: 19 | L34: 64 | M34: 45 | N34: 0 | O34: 1 | P34: 20.296875 | Q34: 17458.20109 | R34: 1117324.87 | S34: 88257.22 | T34: 2 | U34: 57 | V34: 60 | W34: 5 | X34: 7 | Y34: 19 | Z34: 0 | AA34: 4 | AB34: 2 | AC34: 0 | AD34: 0 | AE34: 19 | AF34: 14 | AG34: 5 | AH34: 4 | AI34: 0 | AJ34: 0 | AK34: 0 | AL34: 0 | AM34: 57 | AN34: 0 | AO34: 51 | AP34: 0 | AQ34: 1 | AR34: 0 | AS34: 0 | AT34: 2 | AU34: 1 | AV34: 4 | AW34: 8 | AX34: 41 | AY34: 0 | AZ34: 0 | BA34: 0 | BB34: 13 | BC34: 0 | BD34: 1 | BE34: 1 | BF34: 32 | BG34: 22 | BH34: 0 | BI34: 2 | BJ34: 1 | BK34: 0 | BL34: 0 | BM34: 5 | BN34: 0 | BO34: 1 | BP34: 0 | BQ34: 0 | BR34: 0 | BS34: 25 | BT34: 0 | BU34: 11 | BV34: 2 | BW34: 4 | BY34: 8 | BZ34: JDe | CA34: 88257.22 | CB34: 1
A35: BAS_RHIN | B35: SELESTAT | C35: FEGERSHEIM | D35: 8 | E35: JDne | F35: 174 | G35: 0 | H35: 174 | I35: 174 | J35: 137 | K35: 37 | L35: 174 | M35: 137 | N35: 4 | O35: 17 | P35: 20.33908046 | Q35: 2598.39092 | R35: 452120.02 | S35: 95183.77 | T35: 0 | U35: 65 | V35: 20 | W35: 3 | X35: 3 | Y35: 14 | Z35: 0 | AA35: 2 | AB35: 2 | AC35: 0 | AD35: 0 | AE35: 15 | AF35: 10 | AG35: 3 | AH35: 3 | AI35: 0 | AJ35: 0 | AK35: 0 | AL35: 0 | AM35: 112 | AN35: 0 | AO35: 78 | AP35: 0 | AQ35: 0 | AR35: 0 | AS35: 0 | AT35: 0 | AU35: 0 | AV35: 0 | AW35: 8 | AX35: 6 | AY35: 0 | AZ35: 0 | BA35: 0 | BB35: 13 | BC35: 0 | BD35: 0 | BE35: 0 | BF35: 17 | BG35: 1 | BH35: 0 | BI35: 0 | BJ35: 1 | BK35: 2 | BL35: 0 | BM35: 1 | BN35: 0 | BO35: 2 | BP35: 0 | BQ35: 0 | BR35: 0 | BS35: 19 | BT35: 0 | BU35: 7 | BV35: 2 | BW35: 4 | BY35: 8 | BZ35: JDne | CA35: 95183.77 | CB35: 1
A36: BAS_RHIN | B36: STRASBOURG | C36: STRASBOURG MEINAU | D36: 10 | E36: BPe | F36: 618 | G36: 0 | H36: 0 | I36: 618 | J36: 618 | K36: 0 | L36: 0 | M36: 45 | N36: 7 | O36: 6 | P36: 50.1197411 | Q36: 43478.37455 | R36: 26869635.47 | S36: 16852645.11 | T36: 600 | U36: 545 | V36: 406 | W36: 333 | X36: 318 | Y36: 613 | Z36: 368 | AA36: 344 | AB36: 198 | AC36: 0 | AD36: 0 | AE36: 673 | AF36: 516 | AG36: 197 | AH36: 6 | AI36: 4 | AJ36: 14 | AK36: 104 | AL36: 146 | AM36: 566 | AN36: 0 | AO36: 0 | AP36: 23 | AQ36: 19 | AR36: 13 | AS36: 14 | AT36: 179 | AU36: 55 | AV36: 50 | AW36: 240 | AX36: 186 | AY36: 3 | AZ36: 1 | BA36: 21 | BB36: 194 | BC36: 15 | BD36: 109 | BE36: 40 | BF36: 367 | BG36: 170 | BH36: 60 | BI36: 166 | BJ36: 109 | BK36: 23 | BL36: 4 | BM36: 150 | BN36: 16 | BO36: 74 | BP36: 91 | BQ36: 31 | BR36: 48 | BS36: 477 | BT36: 25 | BU36: 126 | BV36: 163 | BW36: 59 | BY36: 10 | BZ36: BPe | CA36: 16852645.11 | CB36: 1
A37: BAS_RHIN | B37: STRASBOURG | C37: STRASBOURG MEINAU | D37: 10 | E37: BPne | F37: 358 | G37: 0 | H37: 0 | I37: 358 | J37: 358 | K37: 0 | L37: 0 | M37: 25 | N37: 5 | O37: 12 | P37: 52.03910615 | Q37: 13849.33218 | R37: 4958060.92 | S37: 897394.33 | T37: 265 | U37: 195 | V37: 39 | W37: 34 | X37: 42 | Y37: 307 | Z37: 72 | AA37: 68 | AB37: 53 | AC37: 0 | AD37: 0 | AE37: 356 | AF37: 264 | AG37: 16 | AH37: 0 | AI37: 0 | AJ37: 2 | AK37: 11 | AL37: 14 | AM37: 268 | AN37: 0 | AO37: 0 | AP37: 0 | AQ37: 4 | AR37: 2 | AS37: 1 | AT37: 49 | AU37: 30 | AV37: 5 | AW37: 60 | AX37: 15 | AY37: 1 | AZ37: 0 | BA37: 1 | BB37: 22 | BC37: 3 | BD37: 13 | BE37: 5 | BF37: 134 | BG37: 20 | BH37: 4 | BI37: 26 | BJ37: 17 | BK37: 3 | BL37: 0 | BM37: 19 | BN37: 2 | BO37: 19 | BP37: 20 | BQ37: 5 | BR37: 29 | BS37: 233 | BT37: 1 | BU37: 58 | BV37: 74 | BW37: 28 | BY37: 10 | BZ37: BPne | CA37: 897394.33 | CB37: 1
A38: BAS_RHIN | B38: STRASBOURG | C38: STRASBOURG MEINAU | D38: 10 | E38: De | F38: 512 | G38: 0 | H38: 0 | I38: 512 | J38: 512 | K38: 0 | L38: 0 | M38: 25 | N38: 8 | O38: 15 | P38: 63.00976562 | Q38: 68272.89148 | R38: 34955720.44 | S38: 1617078.66 | T38: 115 | U38: 469 | V38: 399 | W38: 61 | X38: 89 | Y38: 208 | Z38: 52 | AA38: 50 | AB38: 40 | AC38: 0 | AD38: 0 | AE38: 208 | AF38: 134 | AG38: 25 | AH38: 3 | AI38: 0 | AJ38: 3 | AK38: 11 | AL38: 27 | AM38: 462 | AN38: 0 | AO38: 0 | AP38: 24 | AQ38: 36 | AR38: 16 | AS38: 7 | AT38: 141 | AU38: 82 | AV38: 29 | AW38: 81 | AX38: 153 | AY38: 4 | AZ38: 2 | BA38: 6 | BB38: 246 | BC38: 13 | BD38: 71 | BE38: 58 | BF38: 266 | BG38: 180 | BH38: 9 | BI38: 47 | BJ38: 27 | BK38: 9 | BL38: 0 | BM38: 29 | BN38: 11 | BO38: 15 | BP38: 16 | BQ38: 2 | BR38: 9 | BS38: 162 | BT38: 7 | BU38: 29 | BV38: 44 | BW38: 22 | BY38: 10 | BZ38: De | CA38: 1617078.66 | CB38: 1
A39: BAS_RHIN | B39: STRASBOURG | C39: STRASBOURG MEINAU | D39: 10 | E39: Dne | F39: 1082 | G39: 0 | H39: 0 | I39: 1082 | J39: 1082 | K39: 0 | L39: 0 | M39: 49 | N39: 19 | O39: 81 | P39: 56.30591497 | Q39: 9410.221479 | R39: 10181859.64 | S39: 1090810.65 | T39: 44 | U39: 480 | V39: 111 | W39: 46 | X39: 25 | Y39: 194 | Z39: 18 | AA39: 24 | AB39: 23 | AC39: 0 | AD39: 0 | AE39: 202 | AF39: 110 | AG39: 20 | AH39: 1 | AI39: 1 | AJ39: 1 | AK39: 4 | AL39: 25 | AM39: 714 | AN39: 0 | AO39: 0 | AP39: 18 | AQ39: 17 | AR39: 7 | AS39: 3 | AT39: 78 | AU39: 49 | AV39: 8 | AW39: 27 | AX39: 23 | AY39: 0 | AZ39: 1 | BA39: 17 | BB39: 51 | BC39: 2 | BD39: 19 | BE39: 7 | BF39: 225 | BG39: 29 | BH39: 1 | BI39: 14 | BJ39: 4 | BK39: 0 | BL39: 0 | BM39: 8 | BN39: 4 | BO39: 23 | BP39: 8 | BQ39: 3 | BR39: 9 | BS39: 252 | BT39: 3 | BU39: 29 | BV39: 37 | BW39: 28 | BY39: 10 | BZ39: Dne | CA39: 1090810.65 | CB39: 1
A40: BAS_RHIN | B40: STRASBOURG | C40: STRASBOURG MEINAU | D40: 10 | E40: Ee | F40: 201 | G40: 38 | H40: 62 | I40: 62 | J40: 0 | K40: 62 | L40: 0 | M40: 0 | N40: 14 | O40: 4 | P40: 8.84079602 | Q40: 3199.219701 | R40: 643043.16 | S40: 0 | T40: 3 | U40: 139 | V40: 77 | W40: 0 | X40: 0 | Y40: 9 | Z40: 0 | AA40: 0 | AB40: 0 | AC40: 0 | AD40: 0 | AE40: 9 | AF40: 2 | AG40: 0 | AH40: 0 | AI40: 0 | AJ40: 0 | AK40: 0 | AL40: 0 | AM40: 174 | AN40: 11 | AO40: 38 | AP40: 1 | AQ40: 0 | AR40: 0 | AS40: 0 | AT40: 0 | AU40: 0 | AV40: 0 | AW40: 89 | AX40: 21 | AY40: 0 | AZ40: 0 | BA40: 0 | BB40: 29 | BC40: 3 | BD40: 0 | BE40: 0 | BF40: 24 | BG40: 7 | BH40: 0 | BI40: 0 | BJ40: 0 | BK40: 0 | BL40: 0 | BM40: 0 | BN40: 0 | BO40: 0 | BP40: 0 | BQ40: 0 | BR40: 0 | BS40: 53 | BT40: 0 | BU40: 4 | BV40: 0 | BW40: 7 | BY40: 10 | BZ40: Ee | CA40: 0 | CB40: 1
A41: BAS_RHIN | B41: STRASBOURG | C41: STRASBOURG MEINAU | D41: 10 | E41: Ene | F41: 102 | G41: 42 | H41: 44 | I41: 44 | J41: 0 | K41: 44 | L41: 0 | M41: 0 | N41: 6 | O41: 1 | P41: 10.38235294 | Q41: 736.012549 | R41: 75073.28 | S41: 0 | T41: 0 | U41: 0 | V41: 0 | W41: 0 | X41: 0 | Y41: 4 | Z41: 0 | AA41: 0 | AB41: 0 | AC41: 0 | AD41: 0 | AE41: 4 | AF41: 0 | AG41: 0 | AH41: 0 | AI41: 0 | AJ41: 0 | AK41: 0 | AL41: 0 | AM41: 84 | AN41: 0 | AO41: 5 | AP41: 1 | AQ41: 0 | AR41: 0 | AS41: 0 | AT41: 0 | AU41: 0 | AV41: 0 | AW41: 18 | AX41: 0 | AY41: 0 | AZ41: 0 | BA41: 0 | BB41: 0 | BC41: 0 | BD41: 0 | BE41: 0 | BF41: 11 | BG41: 0 | BH41: 0 | BI41: 0 | BJ41: 0 | BK41: 0 | BL41: 0 | BM41: 0 | BN41: 0 | BO41: 0 | BP41: 0 | BQ41: 0 | BR41: 0 | BS41: 16 | BT41: 0 | BU41: 1 | BV41: 0 | BW41: 4 | BY41: 10 | BZ41: Ene | CA41: 0 | CB41: 1
A42: BAS_RHIN | B42: STRASBOURG | C42: STRASBOURG MEINAU | D42: 10 | E42: I | F42: 706 | G42: 0 | H42: 0 | I42: 706 | J42: 706 | K42: 0 | L42: 0 | M42: 29 | N42: 2 | O42: 84 | P42: 50.4631728 | Q42: 14.88677054 | R42: 10510.06 | S42: 0 | T42: 0 | U42: 10 | V42: 7 | W42: 0 | X42: 11 | Y42: 1 | Z42: 0 | AA42: 0 | AB42: 0 | AC42: 0 | AD42: 0 | AE42: 0 | AF42: 0 | AG42: 0 | AH42: 0 | AI42: 0 | AJ42: 0 | AK42: 0 | AL42: 0 | AM42: 484 | AN42: 0 | AO42: 0 | AP42: 0 | AQ42: 1 | AR42: 0 | AS42: 1 | AT42: 12 | AU42: 2 | AV42: 0 | AW42: 0 | AX42: 0 | AY42: 0 | AZ42: 0 | BA42: 7 | BB42: 0 | BC42: 0 | BD42: 0 | BE42: 0 | BF42: 9 | BG42: 0 | BH42: 2 | BI42: 3 | BJ42: 4 | BK42: 1 | BL42: 0 | BM42: 2 | BN42: 0 | BO42: 0 | BP42: 0 | BQ42: 0 | BR42: 0 | BS42: 8 | BT42: 0 | BU42: 0 | BV42: 0 | BW42: 0 | BY42: 10 | BZ42: I | CA42: 0 | CB42: 1
A43: BAS_RHIN | B43: STRASBOURG | C43: STRASBOURG MEINAU | D43: 10 | E43: JBPe | F43: 143 | G43: 0 | H43: 143 | I43: 143 | J43: 137 | K43: 6 | L43: 143 | M43: 137 | N43: 4 | O43: 8 | P43: 21.92307692 | Q43: 7706.38993 | R43: 1102013.76 | S43: 353157.5 | T43: 141 | U43: 126 | V43: 28 | W43: 29 | X43: 54 | Y43: 143 | Z43: 27 | AA43: 55 | AB43: 29 | AC43: 0 | AD43: 0 | AE43: 150 | AF43: 128 | AG43: 24 | AH43: 10 | AI43: 7 | AJ43: 0 | AK43: 8 | AL43: 1 | AM43: 117 | AN43: 0 | AO43: 116 | AP43: 0 | AQ43: 3 | AR43: 0 | AS43: 1 | AT43: 9 | AU43: 4 | AV43: 1 | AW43: 65 | AX43: 17 | AY43: 0 | AZ43: 0 | BA43: 0 | BB43: 4 | BC43: 1 | BD43: 0 | BE43: 0 | BF43: 32 | BG43: 7 | BH43: 8 | BI43: 17 | BJ43: 8 | BK43: 3 | BL43: 0 | BM43: 41 | BN43: 0 | BO43: 30 | BP43: 3 | BQ43: 6 | BR43: 5 | BS43: 132 | BT43: 0 | BU43: 121 | BV43: 90 | BW43: 16 | BY43: 10 | BZ43: JBPe | CA43: 353157.5 | CB43: 1
A44: BAS_RHIN | B44: STRASBOURG | C44: STRASBOURG MEINAU | D44: 10 | E44: JBPne | F44: 28 | G44: 0 | H44: 28 | I44: 28 | J44: 23 | K44: 5 | L44: 28 | M44: 23 | N44: 5 | O44: 6 | P44: 21.25 | Q44: 3720.8625 | R44: 104184.15 | S44: 0 | T44: 12 | U44: 6 | V44: 0 | W44: 0 | X44: 1 | Y44: 26 | Z44: 2 | AA44: 3 | AB44: 2 | AC44: 0 | AD44: 0 | AE44: 27 | AF44: 21 | AG44: 0 | AH44: 0 | AI44: 0 | AJ44: 0 | AK44: 0 | AL44: 0 | AM44: 14 | AN44: 0 | AO44: 13 | AP44: 0 | AQ44: 0 | AR44: 0 | AS44: 0 | AT44: 0 | AU44: 0 | AV44: 0 | AW44: 4 | AX44: 0 | AY44: 0 | AZ44: 0 | BA44: 0 | BB44: 0 | BC44: 0 | BD44: 0 | BE44: 0 | BF44: 5 | BG44: 0 | BH44: 0 | BI44: 0 | BJ44: 0 | BK44: 0 | BL44: 0 | BM44: 1 | BN44: 0 | BO44: 0 | BP44: 0 | BQ44: 1 | BR44: 0 | BS44: 26 | BT44: 0 | BU44: 20 | BV44: 11 | BW44: 4 | BY44: 10 | BZ44: JBPne | CA44: 0 | CB44: 1
A45: BAS_RHIN | B45: STRASBOURG | C45: STRASBOURG MEINAU | D45: 10 | E45: JDe | F45: 33 | G45: 0 | H45: 33 | I45: 33 | J45: 26 | K45: 7 | L45: 33 | M45: 26 | N45: 0 | O45: 2 | P45: 20.06060606 | Q45: 15024.46424 | R45: 495807.32 | S45: 3.79 | T45: 3 | U45: 32 | V45: 30 | W45: 1 | X45: 1 | Y45: 8 | Z45: 0 | AA45: 1 | AB45: 1 | AC45: 0 | AD45: 0 | AE45: 7 | AF45: 5 | AG45: 1 | AH45: 0 | AI45: 0 | AJ45: 0 | AK45: 0 | AL45: 0 | AM45: 25 | AN45: 0 | AO45: 25 | AP45: 0 | AQ45: 0 | AR45: 1 | AS45: 1 | AT45: 0 | AU45: 0 | AV45: 0 | AW45: 8 | AX45: 19 | AY45: 0 | AZ45: 0 | BA45: 0 | BB45: 10 | BC45: 1 | BD45: 1 | BE45: 0 | BF45: 8 | BG45: 6 | BH45: 0 | BI45: 0 | BJ45: 1 | BK45: 0 | BL45: 0 | BM45: 0 | BN45: 0 | BO45: 0 | BP45: 0 | BQ45: 0 | BR45: 0 | BS45: 15 | BT45: 0 | BU45: 5 | BV45: 2 | BW45: 2 | BY45: 10 | BZ45: JDe | CA45: 3.79 | CB45: 1
A46: BAS_RHIN | B46: STRASBOURG | C46: STRASBOURG MEINAU | D46: 10 | E46: JDne | F46: 186 | G46: 0 | H46: 186 | I46: 186 | J46: 136 | K46: 50 | L46: 186 | M46: 136 | N46: 7 | O46: 21 | P46: 20.24731183 | Q46: 2782.468011 | R46: 517539.05 | S46: 12256.33 | T46: 0 | U46: 65 | V46: 10 | W46: 3 | X46: 2 | Y46: 30 | Z46: 0 | AA46: 1 | AB46: 3 | AC46: 0 | AD46: 0 | AE46: 30 | AF46: 18 | AG46: 3 | AH46: 3 | AI46: 0 | AJ46: 0 | AK46: 0 | AL46: 0 | AM46: 133 | AN46: 0 | AO46: 86 | AP46: 0 | AQ46: 0 | AR46: 0 | AS46: 0 | AT46: 1 | AU46: 0 | AV46: 0 | AW46: 15 | AX46: 3 | AY46: 0 | AZ46: 0 | BA46: 0 | BB46: 4 | BC46: 0 | BD46: 0 | BE46: 0 | BF46: 14 | BG46: 3 | BH46: 0 | BI46: 1 | BJ46: 0 | BK46: 0 | BL46: 0 | BM46: 2 | BN46: 0 | BO46: 2 | BP46: 0 | BQ46: 0 | BR46: 2 | BS46: 49 | BT46: 0 | BU46: 18 | BV46: 13 | BW46: 9 | BY46: 10 | BZ46: JDne | CA46: 12256.33 | CB46: 1
A47: BAS_RHIN | B47: STRASBOURG | C47: STRASBOURG STOCKFELD | D47: 12 | E47: BPe | F47: 470 | G47: 0 | H47: 0 | I47: 470 | J47: 470 | K47: 0 | L47: 0 | M47: 28 | N47: 7 | O47: 3 | P47: 51.36595745 | Q47: 30214.67806 | R47: 14200898.69 | S47: 9504184.51 | T47: 449 | U47: 400 | V47: 294 | W47: 248 | X47: 268 | Y47: 463 | Z47: 247 | AA47: 226 | AB47: 150 | AC47: 0 | AD47: 0 | AE47: 517 | AF47: 345 | AG47: 127 | AH47: 4 | AI47: 3 | AJ47: 5 | AK47: 73 | AL47: 110 | AM47: 440 | AN47: 0 | AO47: 0 | AP47: 22 | AQ47: 21 | AR47: 0 | AS47: 3 | AT47: 99 | AU47: 45 | AV47: 30 | AW47: 230 | AX47: 139 | AY47: 9 | AZ47: 1 | BA47: 5 | BB47: 143 | BC47: 16 | BD47: 47 | BE47: 29 | BF47: 295 | BG47: 133 | BH47: 45 | BI47: 120 | BJ47: 123 | BK47: 17 | BL47: 2 | BM47: 90 | BN47: 34 | BO47: 45 | BP47: 87 | BQ47: 30 | BR47: 50 | BS47: 330 | BT47: 41 | BU47: 129 | BV47: 146 | BW47: 107 | BY47: 12 | BZ47: BPe | CA47: 9504184.51 | CB47: 1
A48: BAS_RHIN | B48: STRASBOURG | C48: STRASBOURG STOCKFELD | D48: 12 | E48: BPne | F48: 267 | G48: 0 | H48: 0 | I48: 267 | J48: 267 | K48: 0 | L48: 0 | M48: 20 | N48: 2 | O48: 12 | P48: 51.04494382 | Q48: 15812.58199 | R48: 4221959.39 | S48: 2073298.58 | T48: 191 | U48: 146 | V48: 31 | W48: 38 | X48: 35 | Y48: 231 | Z48: 63 | AA48: 66 | AB48: 40 | AC48: 0 | AD48: 0 | AE48: 271 | AF48: 194 | AG48: 15 | AH48: 0 | AI48: 0 | AJ48: 1 | AK48: 9 | AL48: 20 | AM48: 205 | AN48: 0 | AO48: 0 | AP48: 8 | AQ48: 4 | AR48: 2 | AS48: 8 | AT48: 32 | AU48: 30 | AV48: 5 | AW48: 57 | AX48: 13 | AY48: 0 | AZ48: 0 | BA48: 0 | BB48: 15 | BC48: 0 | BD48: 2 | BE48: 6 | BF48: 99 | BG48: 11 | BH48: 5 | BI48: 18 | BJ48: 17 | BK48: 1 | BL48: 0 | BM48: 18 | BN48: 0 | BO48: 21 | BP48: 28 | BQ48: 8 | BR48: 25 | BS48: 177 | BT48: 6 | BU48: 58 | BV48: 73 | BW48: 34 | BY48: 12 | BZ48: BPne | CA48: 2073298.58 | CB48: 1
A49: BAS_RHIN | B49: STRASBOURG | C49: STRASBOURG STOCKFELD | D49: 12 | E49: De | F49: 336 | G49: 0 | H49: 0 | I49: 336 | J49: 336 | K49: 0 | L49: 0 | M49: 11 | N49: 9 | O49: 9 | P49: 60.28869048 | Q49: 55288.38646 | R49: 18576897.85 | S49: 2813993.43 | T49: 94 | U49: 302 | V49: 245 | W49: 48 | X49: 91 | Y49: 169 | Z49: 29 | AA49: 33 | AB49: 35 | AC49: 0 | AD49: 0 | AE49: 158 | AF49: 107 | AG49: 22 | AH49: 1 | AI49: 2 | AJ49: 2 | AK49: 7 | AL49: 24 | AM49: 287 | AN49: 0 | AO49: 0 | AP49: 20 | AQ49: 25 | AR49: 3 | AS49: 10 | AT49: 80 | AU49: 55 | AV49: 31 | AW49: 88 | AX49: 94 | AY49: 9 | AZ49: 0 | BA49: 2 | BB49: 140 | BC49: 22 | BD49: 23 | BE49: 34 | BF49: 193 | BG49: 114 | BH49: 10 | BI49: 41 | BJ49: 41 | BK49: 9 | BL49: 0 | BM49: 16 | BN49: 12 | BO49: 11 | BP49: 23 | BQ49: 3 | BR49: 10 | BS49: 117 | BT49: 5 | BU49: 39 | BV49: 57 | BW49: 28 | BY49: 12 | BZ49: De | CA49: 2813993.43 | CB49: 1
A50: BAS_RHIN | B50: STRASBOURG | C50: STRASBOURG STOCKFELD | D50: 12 | E50: Dne | F50: 788 | G50: 0 | H50: 0 | I50: 788 | J50: 788 | K50: 0 | L50: 0 | M50: 36 | N50: 14 | O50: 61 | P50: 56.29060914 | Q50: 8021.931942 | R50: 6321282.37 | S50: 642447.89 | T50: 30 | U50: 334 | V50: 84 | W50: 30 | X50: 22 | Y50: 141 | Z50: 6 | AA50: 17 | AB50: 18 | AC50: 0 | AD50: 0 | AE50: 156 | AF50: 78 | AG50: 20 | AH50: 2 | AI50: 2 | AJ50: 0 | AK50: 0 | AL50: 11 | AM50: 545 | AN50: 0 | AO50: 0 | AP50: 8 | AQ50: 8 | AR50: 3 | AS50: 6 | AT50: 61 | AU50: 31 | AV50: 4 | AW50: 33 | AX50: 16 | AY50: 2 | AZ50: 2 | BA50: 6 | BB50: 48 | BC50: 5 | BD50: 7 | BE50: 5 | BF50: 190 | BG50: 16 | BH50: 2 | BI50: 8 | BJ50: 12 | BK50: 2 | BL50: 0 | BM50: 6 | BN50: 2 | BO50: 11 | BP50: 9 | BQ50: 2 | BR50: 13 | BS50: 156 | BT50: 1 | BU50: 27 | BV50: 31 | BW50: 22 | BY50: 12 | BZ50: Dne | CA50: 642447.89 | CB50: 1
A51: BAS_RHIN | B51: STRASBOURG | C51: STRASBOURG STOCKFELD | D51: 12 | E51: Ee | F51: 140 | G51: 21 | H51: 36 | I51: 36 | J51: 0 | K51: 36 | L51: 0 | M51: 0 | N51: 16 | O51: 8 | P51: 7.935714286 | Q51: 2961.616571 | R51: 414626.32 | S51: 0 | T51: 3 | U51: 100 | V51: 50 | W51: 0 | X51: 0 | Y51: 8 | Z51: 0 | AA51: 0 | AB51: 0 | AC51: 0 | AD51: 0 | AE51: 8 | AF51: 1 | AG51: 0 | AH51: 0 | AI51: 0 | AJ51: 0 | AK51: 0 | AL51: 0 | AM51: 119 | AN51: 3 | AO51: 19 | AP51: 1 | AQ51: 0 | AR51: 0 | AS51: 1 | AT51: 0 | AU51: 0 | AV51: 0 | AW51: 64 | AX51: 13 | AY51: 0 | AZ51: 0 | BA51: 0 | BB51: 27 | BC51: 0 | BD51: 0 | BE51: 0 | BF51: 5 | BG51: 2 | BH51: 0 | BI51: 0 | BJ51: 0 | BK51: 0 | BL51: 0 | BM51: 0 | BN51: 0 | BO51: 0 | BP51: 0 | BQ51: 0 | BR51: 0 | BS51: 42 | BT51: 0 | BU51: 3 | BV51: 0 | BW51: 7 | BY51: 12 | BZ51: Ee | CA51: 0 | CB51: 1
A52: BAS_RHIN | B52: STRASBOURG | C52: STRASBOURG STOCKFELD | D52: 12 | E52: Ene | F52: 154 | G52: 59 | H52: 72 | I52: 72 | J52: 0 | K52: 72 | L52: 0 | M52: 0 | N52: 6 | O52: 6 | P52: 10.42857143 | Q52: 754.0055195 | R52: 116116.85 | S52: 0 | T52: 0 | U52: 0 | V52: 0 | W52: 0 | X52: 0 | Y52: 1 | Z52: 0 | AA52: 0 | AB52: 0 | AC52: 0 | AD52: 0 | AE52: 1 | AF52: 0 | AG52: 0 | AH52: 0 | AI52: 0 | AJ52: 0 | AK52: 0 | AL52: 0 | AM52: 138 | AN52: 0 | AO52: 4 | AP52: 4 | AQ52: 0 | AR52: 0 | AS52: 0 | AT52: 0 | AU52: 0 | AV52: 0 | AW52: 19 | AX52: 0 | AY52: 0 | AZ52: 0 | BA52: 0 | BB52: 0 | BC52: 0 | BD52: 0 | BE52: 0 | BF52: 8 | BG52: 2 | BH52: 0 | BI52: 0 | BJ52: 0 | BK52: 0 | BL52: 0 | BM52: 0 | BN52: 0 | BO52: 0 | BP52: 0 | BQ52: 0 | BR52: 0 | BS52: 21 | BT52: 0 | BU52: 0 | BV52: 0 | BW52: 1 | BY52: 12 | BZ52: Ene | CA52: 0 | CB52: 1
A53: BAS_RHIN | B53: STRASBOURG | C53: STRASBOURG STOCKFELD | D53: 12 | E53: I | F53: 531 | G53: 0 | H53: 0 | I53: 531 | J53: 531 | K53: 0 | L53: 0 | M53: 44 | N53: 2 | O53: 83 | P53: 48.57815443 | Q53: 15.09229755 | R53: 8014.01 | S53: 0 | T53: 0 | U53: 11 | V53: 1 | W53: 0 | X53: 13 | Y53: 3 | Z53: 0 | AA53: 0 | AB53: 0 | AC53: 0 | AD53: 0 | AE53: 0 | AF53: 0 | AG53: 0 | AH53: 0 | AI53: 0 | AJ53: 0 | AK53: 0 | AL53: 0 | AM53: 361 | AN53: 0 | AO53: 0 | AP53: 1 | AQ53: 1 | AR53: 0 | AS53: 0 | AT53: 9 | AU53: 0 | AV53: 0 | AW53: 0 | AX53: 0 | AY53: 0 | AZ53: 0 | BA53: 1 | BB53: 0 | BC53: 0 | BD53: 0 | BE53: 0 | BF53: 13 | BG53: 0 | BH53: 0 | BI53: 4 | BJ53: 4 | BK53: 2 | BL53: 0 | BM53: 3 | BN53: 0 | BO53: 3 | BP53: 4 | BQ53: 0 | BR53: 0 | BS53: 13 | BT53: 2 | BU53: 0 | BV53: 0 | BW53: 0 | BY53: 12 | BZ53: I | CA53: 0 | CB53: 1
A54: BAS_RHIN | B54: STRASBOURG | C54: STRASBOURG STOCKFELD | D54: 12 | E54: JBPe | F54: 105 | G54: 0 | H54: 105 | I54: 105 | J54: 100 | K54: 5 | L54: 105 | M54: 100 | N54: 4 | O54: 3 | P54: 21.51428571 | Q54: 7861.710762 | R54: 825479.63 | S54: 251619.03 | T54: 101 | U54: 84 | V54: 35 | W54: 24 | X54: 33 | Y54: 104 | Z54: 21 | AA54: 36 | AB54: 28 | AC54: 0 | AD54: 0 | AE54: 107 | AF54: 70 | AG54: 17 | AH54: 3 | AI54: 6 | AJ54: 0 | AK54: 10 | AL54: 2 | AM54: 97 | AN54: 0 | AO54: 89 | AP54: 1 | AQ54: 1 | AR54: 0 | AS54: 0 | AT54: 2 | AU54: 2 | AV54: 1 | AW54: 34 | AX54: 20 | AY54: 0 | AZ54: 0 | BA54: 0 | BB54: 9 | BC54: 0 | BD54: 0 | BE54: 1 | BF54: 28 | BG54: 11 | BH54: 2 | BI54: 6 | BJ54: 12 | BK54: 1 | BL54: 0 | BM54: 26 | BN54: 0 | BO54: 19 | BP54: 8 | BQ54: 8 | BR54: 12 | BS54: 95 | BT54: 0 | BU54: 90 | BV54: 36 | BW54: 35 | BY54: 12 | BZ54: JBPe | CA54: 251619.03 | CB54: 1
A55: BAS_RHIN | B55: STRASBOURG | C55: STRASBOURG STOCKFELD | D55: 12 | E55: JBPne | F55: 32 | G55: 0 | H55: 32 | I55: 32 | J55: 26 | K55: 6 | L55: 32 | M55: 26 | N55: 3 | O55: 8 | P55: 20.125 | Q55: 2019.235625 | R55: 64615.54 | S55: 0 | T55: 22 | U55: 4 | V55: 0 | W55: 1 | X55: 1 | Y55: 31 | Z55: 1 | AA55: 2 | AB55: 5 | AC55: 0 | AD55: 0 | AE55: 34 | AF55: 24 | AG55: 1 | AH55: 0 | AI55: 1 | AJ55: 0 | AK55: 0 | AL55: 0 | AM55: 17 | AN55: 0 | AO55: 18 | AP55: 0 | AQ55: 0 | AR55: 0 | AS55: 0 | AT55: 0 | AU55: 0 | AV55: 0 | AW55: 1 | AX55: 0 | AY55: 0 | AZ55: 0 | BA55: 0 | BB55: 0 | BC55: 0 | BD55: 0 | BE55: 0 | BF55: 1 | BG55: 0 | BH55: 0 | BI55: 0 | BJ55: 0 | BK55: 0 | BL55: 0 | BM55: 1 | BN55: 0 | BO55: 3 | BP55: 0 | BQ55: 1 | BR55: 4 | BS55: 19 | BT55: 0 | BU55: 25 | BV55: 5 | BW55: 7 | BY55: 12 | BZ55: JBPne | CA55: 0 | CB55: 1
A56: BAS_RHIN | B56: STRASBOURG | C56: STRASBOURG STOCKFELD | D56: 12 | E56: JDe | F56: 9 | G56: 0 | H56: 9 | I56: 9 | J56: 5 | K56: 4 | L56: 9 | M56: 5 | N56: 0 | O56: 0 | P56: 18.77777778 | Q56: 10588.81667 | R56: 95299.35 | S56: 0 | T56: 0 | U56: 9 | V56: 9 | W56: 0 | X56: 0 | Y56: 2 | Z56: 0 | AA56: 0 | AB56: 0 | AC56: 0 | AD56: 0 | AE56: 2 | AF56: 2 | AG56: 0 | AH56: 0 | AI56: 0 | AJ56: 0 | AK56: 0 | AL56: 0 | AM56: 9 | AN56: 0 | AO56: 8 | AP56: 0 | AQ56: 0 | AR56: 0 | AS56: 0 | AT56: 0 | AU56: 0 | AV56: 0 | AW56: 5 | AX56: 5 | AY56: 0 | AZ56: 0 | BA56: 0 | BB56: 4 | BC56: 0 | BD56: 0 | BE56: 0 | BF56: 3 | BG56: 1 | BH56: 0 | BI56: 0 | BJ56: 0 | BK56: 0 | BL56: 0 | BM56: 0 | BN56: 0 | BO56: 0 | BP56: 0 | BQ56: 0 | BR56: 0 | BS56: 0 | BT56: 0 | BU56: 2 | BV56: 0 | BW56: 0 | BY56: 12 | BZ56: JDe | CA56: 0 | CB56: 1
A57: BAS_RHIN | B57: STRASBOURG | C57: STRASBOURG STOCKFELD | D57: 12 | E57: JDne | F57: 175 | G57: 0 | H57: 175 | I57: 175 | J57: 132 | K57: 43 | L57: 175 | M57: 132 | N57: 2 | O57: 15 | P57: 19.89714286 | Q57: 1411.153943 | R57: 246951.94 | S57: 0 | T57: 2 | U57: 48 | V57: 6 | W57: 0 | X57: 1 | Y57: 18 | Z57: 0 | AA57: 2 | AB57: 2 | AC57: 0 | AD57: 0 | AE57: 19 | AF57: 8 | AG57: 0 | AH57: 0 | AI57: 0 | AJ57: 0 | AK57: 0 | AL57: 0 | AM57: 151 | AN57: 0 | AO57: 96 | AP57: 0 | AQ57: 0 | AR57: 0 | AS57: 0 | AT57: 0 | AU57: 0 | AV57: 1 | AW57: 15 | AX57: 2 | AY57: 0 | AZ57: 0 | BA57: 0 | BB57: 3 | BC57: 0 | BD57: 0 | BE57: 0 | BF57: 20 | BG57: 1 | BH57: 0 | BI57: 0 | BJ57: 0 | BK57: 0 | BL57: 0 | BM57: 1 | BN57: 0 | BO57: 1 | BP57: 0 | BQ57: 0 | BR57: 1 | BS57: 13 | BT57: 0 | BU57: 11 | BV57: 1 | BW57: 11 | BY57: 12 | BZ57: JDne | CA57: 0 | CB57: 1
A58: BAS_RHIN | B58: SELESTAT | C58: OSTWALD | D58: 14 | E58: BPe | F58: 1 | G58: 0 | H58: 0 | I58: 1 | J58: 1 | K58: 0 | L58: 0 | M58: 0 | N58: 0 | O58: 5 | P58: 44 | Q58: 20483.16 | R58: 20483.16 | S58: 67999.29 | T58: 0 | U58: 1 | V58: 0 | W58: 1 | X58: 1 | Y58: 1 | Z58: 1 | AA58: 0 | AB58: 0 | AC58: 0 | AD58: 0 | AE58: 1 | AF58: 1 | AG58: 1 | AH58: 0 | AI58: 0 | AJ58: 0 | AK58: 0 | AL58: 1 | AM58: 1 | AN58: 0 | AO58: 0 | AP58: 0 | AQ58: 0 | AR58: 0 | AS58: 0 | AT58: 0 | AU58: 0 | AV58: 0 | AW58: 0 | AX58: 0 | AY58: 0 | AZ58: 0 | BA58: 0 | BB58: 0 | BC58: 0 | BD58: 0 | BE58: 0 | BF58: 0 | BG58: 0 | BH58: 0 | BI58: 0 | BJ58: 0 | BK58: 0 | BL58: 0 | BM58: 1 | BN58: 0 | BO58: 1 | BP58: 0 | BQ58: 0 | BR58: 0 | BS58: 0 | BT58: 0 | BU58: 0 | BV58: 0 | BW58: 0 | BY58: 14 | BZ58: BPe | CA58: 67999.29 | CB58: 1
A59: BAS_RHIN | B59: SELESTAT | C59: LINGOLSHEIM | D59: 15 | E59: BPe | F59: 961 | G59: 0 | H59: 0 | I59: 961 | J59: 961 | K59: 0 | L59: 0 | M59: 61 | N59: 12 | O59: 6 | P59: 49.12695109 | Q59: 43795.42443 | R59: 42087402.88 | S59: 37391335.91 | T59: 940 | U59: 829 | V59: 625 | W59: 609 | X59: 477 | Y59: 953 | Z59: 619 | AA59: 444 | AB59: 344 | AC59: 0 | AD59: 0 | AE59: 1037 | AF59: 817 | AG59: 289 | AH59: 10 | AI59: 8 | AJ59: 32 | AK59: 157 | AL59: 372 | AM59: 856 | AN59: 0 | AO59: 0 | AP59: 39 | AQ59: 68 | AR59: 31 | AS59: 32 | AT59: 349 | AU59: 130 | AV59: 133 | AW59: 282 | AX59: 301 | AY59: 4 | AZ59: 0 | BA59: 28 | BB59: 309 | BC59: 16 | BD59: 165 | BE59: 55 | BF59: 498 | BG59: 289 | BH59: 127 | BI59: 296 | BJ59: 150 | BK59: 25 | BL59: 5 | BM59: 161 | BN59: 37 | BO59: 86 | BP59: 132 | BQ59: 46 | BR59: 99 | BS59: 783 | BT59: 40 | BU59: 121 | BV59: 195 | BW59: 74 | BY59: 15 | BZ59: BPe | CA59: 37391335.91 | CB59: 1
A60: BAS_RHIN | B60: SELESTAT | C60: LINGOLSHEIM | D60: 15 | E60: BPne | F60: 531 | G60: 0 | H60: 0 | I60: 531 | J60: 531 | K60: 0 | L60: 0 | M60: 38 | N60: 5 | O60: 15 | P60: 51.56685499 | Q60: 19671.25341 | R60: 10445435.56 | S60: 4063725.32 | T60: 374 | U60: 248 | V60: 69 | W60: 104 | X60: 54 | Y60: 431 | Z60: 169 | AA60: 129 | AB60: 96 | AC60: 0 | AD60: 0 | AE60: 512 | AF60: 406 | AG60: 54 | AH60: 3 | AI60: 2 | AJ60: 5 | AK60: 38 | AL60: 50 | AM60: 380 | AN60: 0 | AO60: 0 | AP60: 13 | AQ60: 22 | AR60: 14 | AS60: 5 | AT60: 104 | AU60: 50 | AV60: 20 | AW60: 53 | AX60: 28 | AY60: 0 | AZ60: 0 | BA60: 2 | BB60: 38 | BC60: 0 | BD60: 13 | BE60: 5 | BF60: 151 | BG60: 29 | BH60: 8 | BI60: 30 | BJ60: 16 | BK60: 2 | BL60: 1 | BM60: 21 | BN60: 2 | BO60: 33 | BP60: 36 | BQ60: 5 | BR60: 27 | BS60: 351 | BT60: 8 | BU60: 58 | BV60: 74 | BW60: 32 | BY60: 15 | BZ60: BPne | CA60: 4063725.32 | CB60: 1
A61: BAS_RHIN | B61: SELESTAT | C61: LINGOLSHEIM | D61: 15 | E61: De | F61: 574 | G61: 0 | H61: 0 | I61: 574 | J61: 574 | K61: 0 | L61: 0 | M61: 15 | N61: 2 | O61: 23 | P61: 64.30487805 | Q61: 71420.74866 | R61: 40995509.73 | S61: 2483699.63 | T61: 110 | U61: 533 | V61: 481 | W61: 72 | X61: 93 | Y61: 176 | Z61: 47 | AA61: 32 | AB61: 37 | AC61: 0 | AD61: 0 | AE61: 184 | AF61: 118 | AG61: 20 | AH61: 1 | AI61: 0 | AJ61: 2 | AK61: 10 | AL61: 45 | AM61: 514 | AN61: 0 | AO61: 0 | AP61: 25 | AQ61: 57 | AR61: 30 | AS61: 21 | AT61: 177 | AU61: 100 | AV61: 58 | AW61: 80 | AX61: 198 | AY61: 0 | AZ61: 0 | BA61: 8 | BB61: 282 | BC61: 15 | BD61: 73 | BE61: 65 | BF61: 296 | BG61: 211 | BH61: 11 | BI61: 42 | BJ61: 22 | BK61: 7 | BL61: 0 | BM61: 18 | BN61: 18 | BO61: 7 | BP61: 11 | BQ61: 5 | BR61: 5 | BS61: 183 | BT61: 10 | BU61: 7 | BV61: 20 | BW61: 14 | BY61: 15 | BZ61: De | CA61: 2483699.63 | CB61: 1
A62: BAS_RHIN | B62: SELESTAT | C62: LINGOLSHEIM | D62: 15 | E62: Dne | F62: 1387 | G62: 0 | H62: 0 | I62: 1387 | J62: 1387 | K62: 0 | L62: 0 | M62: 65 | N62: 17 | O62: 83 | P62: 56.12545061 | Q62: 10812.96962 | R62: 14997588.86 | S62: 1332499.96 | T62: 40 | U62: 639 | V62: 183 | W62: 57 | X62: 28 | Y62: 166 | Z62: 27 | AA62: 26 | AB62: 28 | AC62: 0 | AD62: 0 | AE62: 183 | AF62: 110 | AG62: 22 | AH62: 0 | AI62: 0 | AJ62: 1 | AK62: 10 | AL62: 28 | AM62: 867 | AN62: 0 | AO62: 0 | AP62: 19 | AQ62: 35 | AR62: 16 | AS62: 9 | AT62: 110 | AU62: 59 | AV62: 30 | AW62: 32 | AX62: 19 | AY62: 0 | AZ62: 1 | BA62: 12 | BB62: 119 | BC62: 5 | BD62: 20 | BE62: 14 | BF62: 246 | BG62: 36 | BH62: 9 | BI62: 11 | BJ62: 7 | BK62: 3 | BL62: 0 | BM62: 7 | BN62: 1 | BO62: 12 | BP62: 8 | BQ62: 4 | BR62: 5 | BS62: 312 | BT62: 0 | BU62: 24 | BV62: 20 | BW62: 25 | BY62: 15 | BZ62: Dne | CA62: 1332499.96 | CB62: 1
A63: BAS_RHIN | B63: SELESTAT | C63: LINGOLSHEIM | D63: 15 | E63: Ee | F63: 299 | G63: 48 | H63: 87 | I63: 87 | J63: 0 | K63: 87 | L63: 0 | M63: 0 | N63: 14 | O63: 1 | P63: 8.464882943 | Q63: 4518.997191 | R63: 1351180.16 | S63: 0 | T63: 3 | U63: 222 | V63: 114 | W63: 0 | X63: 0 | Y63: 21 | Z63: 0 | AA63: 0 | AB63: 0 | AC63: 0 | AD63: 0 | AE63: 21 | AF63: 1 | AG63: 0 | AH63: 0 | AI63: 0 | AJ63: 0 | AK63: 0 | AL63: 0 | AM63: 258 | AN63: 9 | AO63: 62 | AP63: 2 | AQ63: 0 | AR63: 0 | AS63: 0 | AT63: 0 | AU63: 0 | AV63: 3 | AW63: 132 | AX63: 53 | AY63: 0 | AZ63: 0 | BA63: 0 | BB63: 48 | BC63: 1 | BD63: 0 | BE63: 0 | BF63: 15 | BG63: 8 | BH63: 0 | BI63: 0 | BJ63: 0 | BK63: 0 | BL63: 0 | BM63: 0 | BN63: 0 | BO63: 0 | BP63: 0 | BQ63: 0 | BR63: 0 | BS63: 74 | BT63: 0 | BU63: 3 | BV63: 0 | BW63: 20 | BY63: 15 | BZ63: Ee | CA63: 0 | CB63: 1
A64: BAS_RHIN | B64: SELESTAT | C64: LINGOLSHEIM | D64: 15 | E64: Ene | F64: 244 | G64: 89 | H64: 116 | I64: 116 | J64: 0 | K64: 116 | L64: 0 | M64: 0 | N64: 6 | O64: 8 | P64: 10.73360656 | Q64: 981.9243033 | R64: 239589.53 | S64: 0 | T64: 0 | U64: 0 | V64: 0 | W64: 0 | X64: 0 | Y64: 8 | Z64: 0 | AA64: 0 | AB64: 0 | AC64: 0 | AD64: 0 | AE64: 8 | AF64: 0 | AG64: 0 | AH64: 0 | AI64: 0 | AJ64: 0 | AK64: 0 | AL64: 0 | AM64: 214 | AN64: 1 | AO64: 5 | AP64: 0 | AQ64: 0 | AR64: 0 | AS64: 0 | AT64: 0 | AU64: 0 | AV64: 0 | AW64: 27 | AX64: 0 | AY64: 0 | AZ64: 0 | BA64: 0 | BB64: 0 | BC64: 0 | BD64: 0 | BE64: 0 | BF64: 13 | BG64: 1 | BH64: 0 | BI64: 0 | BJ64: 0 | BK64: 0 | BL64: 0 | BM64: 0 | BN64: 0 | BO64: 0 | BP64: 0 | BQ64: 0 | BR64: 0 | BS64: 36 | BT64: 0 | BU64: 2 | BV64: 0 | BW64: 8 | BY64: 15 | BZ64: Ene | CA64: 0 | CB64: 1
A65: BAS_RHIN | B65: SELESTAT | C65: LINGOLSHEIM | D65: 15 | E65: I | F65: 731 | G65: 0 | H65: 0 | I65: 731 | J65: 731 | K65: 0 | L65: 0 | M65: 36 | N65: 0 | O65: 40 | P65: 48.59097127 | Q65: 16.12435021 | R65: 11786.9 | S65: 0 | T65: 0 | U65: 21 | V65: 1 | W65: 0 | X65: 17 | Y65: 0 | Z65: 0 | AA65: 0 | AB65: 0 | AC65: 0 | AD65: 0 | AE65: 0 | AF65: 0 | AG65: 0 | AH65: 0 | AI65: 0 | AJ65: 0 | AK65: 0 | AL65: 0 | AM65: 446 | AN65: 0 | AO65: 0 | AP65: 2 | AQ65: 2 | AR65: 0 | AS65: 0 | AT65: 14 | AU65: 0 | AV65: 0 | AW65: 0 | AX65: 0 | AY65: 0 | AZ65: 0 | BA65: 1 | BB65: 0 | BC65: 0 | BD65: 0 | BE65: 0 | BF65: 8 | BG65: 0 | BH65: 3 | BI65: 6 | BJ65: 1 | BK65: 2 | BL65: 2 | BM65: 4 | BN65: 0 | BO65: 1 | BP65: 6 | BQ65: 0 | BR65: 0 | BS65: 29 | BT65: 1 | BU65: 0 | BV65: 0 | BW65: 0 | BY65: 15 | BZ65: I | CA65: 0 | CB65: 1
A66: BAS_RHIN | B66: SELESTAT | C66: LINGOLSHEIM | D66: 15 | E66: JBPe | F66: 219 | G66: 0 | H66: 219 | I66: 219 | J66: 203 | K66: 16 | L66: 219 | M66: 203 | N66: 7 | O66: 6 | P66: 21.38812785 | Q66: 14577.18151 | R66: 3192402.75 | S66: 1638086.92 | T66: 213 | U66: 183 | V66: 95 | W66: 69 | X66: 67 | Y66: 217 | Z66: 31 | AA66: 95 | AB66: 52 | AC66: 0 | AD66: 0 | AE66: 225 | AF66: 145 | AG66: 57 | AH66: 27 | AI66: 12 | AJ66: 0 | AK66: 6 | AL66: 10 | AM66: 190 | AN66: 0 | AO66: 191 | AP66: 3 | AQ66: 0 | AR66: 2 | AS66: 0 | AT66: 22 | AU66: 8 | AV66: 6 | AW66: 60 | AX66: 69 | AY66: 0 | AZ66: 0 | BA66: 0 | BB66: 31 | BC66: 1 | BD66: 2 | BE66: 0 | BF66: 34 | BG66: 19 | BH66: 4 | BI66: 15 | BJ66: 2 | BK66: 1 | BL66: 0 | BM66: 54 | BN66: 0 | BO66: 16 | BP66: 4 | BQ66: 7 | BR66: 5 | BS66: 192 | BT66: 1 | BU66: 166 | BV66: 85 | BW66: 71 | BY66: 15 | BZ66: JBPe | CA66: 1638086.92 | CB66: 1
A67: BAS_RHIN | B67: SELESTAT | C67: LINGOLSHEIM | D67: 15 | E67: JBPne | F67: 61 | G67: 0 | H67: 61 | I67: 61 | J67: 50 | K67: 11 | L67: 61 | M67: 50 | N67: 3 | O67: 5 | P67: 20.96721311 | Q67: 2125.768361 | R67: 129671.87 | S67: 83.34 | T67: 42 | U67: 7 | V67: 1 | W67: 1 | X67: 3 | Y67: 57 | Z67: 2 | AA67: 16 | AB67: 8 | AC67: 0 | AD67: 0 | AE67: 58 | AF67: 41 | AG67: 1 | AH67: 0 | AI67: 1 | AJ67: 0 | AK67: 0 | AL67: 0 | AM67: 36 | AN67: 0 | AO67: 34 | AP67: 0 | AQ67: 0 | AR67: 0 | AS67: 0 | AT67: 1 | AU67: 0 | AV67: 0 | AW67: 3 | AX67: 1 | AY67: 0 | AZ67: 0 | BA67: 0 | BB67: 0 | BC67: 0 | BD67: 0 | BE67: 0 | BF67: 3 | BG67: 0 | BH67: 0 | BI67: 0 | BJ67: 0 | BK67: 0 | BL67: 0 | BM67: 3 | BN67: 0 | BO67: 2 | BP67: 1 | BQ67: 0 | BR67: 0 | BS67: 54 | BT67: 0 | BU67: 42 | BV67: 15 | BW67: 17 | BY67: 15 | BZ67: JBPne | CA67: 83.34 | CB67: =IF(AND(BY67=D67,E67=BZ67),1,0) -> 1
A68: BAS_RHIN | B68: SELESTAT | C68: LINGOLSHEIM | D68: 15 | E68: JDe | F68: 30 | G68: 0 | H68: 30 | I68: 30 | J68: 19 | K68: 11 | L68: 30 | M68: 19 | N68: 0 | O68: 0 | P68: 19.13333333 | Q68: 20622.898 | R68: 618686.94 | S68: 19201.05 | T68: 2 | U68: 30 | V68: 27 | W68: 1 | X68: 2 | Y68: 11 | Z68: 0 | AA68: 2 | AB68: 1 | AC68: 0 | AD68: 0 | AE68: 11 | AF68: 5 | AG68: 1 | AH68: 1 | AI68: 0 | AJ68: 0 | AK68: 0 | AL68: 0 | AM68: 26 | AN68: 0 | AO68: 23 | AP68: 1 | AQ68: 0 | AR68: 0 | AS68: 0 | AT68: 0 | AU68: 1 | AV68: 0 | AW68: 5 | AX68: 20 | AY68: 0 | AZ68: 0 | BA68: 0 | BB68: 6 | BC68: 1 | BD68: 0 | BE68: 1 | BF68: 4 | BG68: 2 | BH68: 0 | BI68: 0 | BJ68: 0 | BK68: 0 | BL68: 0 | BM68: 2 | BN68: 0 | BO68: 0 | BP68: 0 | BQ68: 0 | BR68: 1 | BS68: 12 | BT68: 0 | BU68: 7 | BV68: 2 | BW68: 6 | BY68: 15 | BZ68: JDe | CA68: 19201.05 | CB68: 1
A69: BAS_RHIN | B69: SELESTAT | C69: LINGOLSHEIM | D69: 15 | E69: JDne | F69: 297 | G69: 0 | H69: 297 | I69: 297 | J69: 224 | K69: 73 | L69: 297 | M69: 224 | N69: 7 | O69: 25 | P69: 20.1010101 | Q69: 2114.275387 | R69: 627939.79 | S69: 64364.52 | T69: 1 | U69: 139 | V69: 11 | W69: 3 | X69: 5 | Y69: 35 | Z69: 1 | AA69: 5 | AB69: 7 | AC69: 0 | AD69: 0 | AE69: 36 | AF69: 12 | AG69: 3 | AH69: 4 | AI69: 0 | AJ69: 0 | AK69: 0 | AL69: 0 | AM69: 240 | AN69: 0 | AO69: 140 | AP69: 0 | AQ69: 0 | AR69: 0 | AS69: 1 | AT69: 2 | AU69: 0 | AV69: 2 | AW69: 24 | AX69: 2 | AY69: 0 | AZ69: 0 | BA69: 0 | BB69: 9 | BC69: 0 | BD69: 0 | BE69: 0 | BF69: 20 | BG69: 0 | BH69: 1 | BI69: 0 | BJ69: 0 | BK69: 0 | BL69: 0 | BM69: 4 | BN69: 0 | BO69: 2 | BP69: 0 | BQ69: 1 | BR69: 1 | BS69: 51 | BT69: 0 | BU69: 18 | BV69: 3 | BW69: 20 | BY69: 15 | BZ69: JDne | CA69: 64364.52 | CB69: 1
A70: BANQUE_DIGITALE | B70: MON_AGENCE | C70: MON AGENCE | D70: 17 | E70: BPe | F70: 2895 | G70: 0 | H70: 0 | I70: 2895 | J70: 2895 | K70: 0 | L70: 0 | M70: 111 | N70: 15 | O70: 5 | P70: 45.16891192 | Q70: 47223.12908 | R70: 136710958.7 | S70: 189942734 | T70: 2795 | U70: 2665 | V70: 2051 | W70: 2429 | X70: 1962 | Y70: 2841 | Z70: 1621 | AA70: 2002 | AB70: 1562 | AC70: 0 | AD70: 0 | AE70: 3309 | AF70: 1955 | AG70: 1235 | AH70: 28 | AI70: 21 | AJ70: 12 | AK70: 426 | AL70: 1998 | AM70: 2616 | AN70: 0 | AO70: 0 | AP70: 375 | AQ70: 194 | AR70: 141 | AS70: 220 | AT70: 1885 | AU70: 317 | AV70: 706 | AW70: 1297 | AX70: 1299 | AY70: 65 | AZ70: 15 | BA70: 234 | BB70: 1155 | BC70: 131 | BD70: 619 | BE70: 551 | BF70: 1329 | BG70: 647 | BH70: 1341 | BI70: 1412 | BJ70: 949 | BK70: 7 | BL70: 0 | BM70: 445 | BN70: 43 | BO70: 265 | BP70: 781 | BQ70: 462 | BR70: 214 | BS70: 2555 | BT70: 103 | BU70: 91 | BV70: 429 | BW70: 462 | BY70: 17 | BZ70: BPe | CA70: 189942734 | CB70: 1
A71: BANQUE_DIGITALE | B71: MON_AGENCE | C71: MON AGENCE | D71: 17 | E71: BPne | F71: 391 | G71: 0 | H71: 0 | I71: 391 | J71: 391 | K71: 0 | L71: 0 | M71: 22 | N71: 8 | O71: 6 | P71: 45.17902813 | Q71: 14859.16545 | R71: 5809933.69 | S71: 7474268.71 | T71: 251 | U71: 131 | V71: 46 | W71: 186 | X71: 48 | Y71: 297 | Z71: 81 | AA71: 156 | AB71: 132 | AC71: 0 | AD71: 0 | AE71: 380 | AF71: 214 | AG71: 91 | AH71: 0 | AI71: 1 | AJ71: 0 | AK71: 24 | AL71: 140 | AM71: 221 | AN71: 0 | AO71: 0 | AP71: 19 | AQ71: 7 | AR71: 5 | AS71: 4 | AT71: 91 | AU71: 15 | AV71: 14 | AW71: 27 | AX71: 22 | AY71: 4 | AZ71: 1 | BA71: 5 | BB71: 17 | BC71: 5 | BD71: 18 | BE71: 15 | BF71: 79 | BG71: 11 | BH71: 26 | BI71: 23 | BJ71: 12 | BK71: 0 | BL71: 0 | BM71: 16 | BN71: 0 | BO71: 11 | BP71: 22 | BQ71: 17 | BR71: 14 | BS71: 273 | BT71: 1 | BU71: 19 | BV71: 28 | BW71: 53 | BY71: 17 | BZ71: BPne | CA71: 7474268.71 | CB71: 1
A72: BANQUE_DIGITALE | B72: MON_AGENCE | C72: MON AGENCE | D72: 17 | E72: De | F72: 184 | G72: 0 | H72: 0 | I72: 184 | J72: 184 | K72: 0 | L72: 0 | M72: 10 | N72: 4 | O72: 1 | P72: 44 | Q72: 37440.27326 | R72: 6889010.28 | S72: 6809773.22 | T72: 27 | U72: 129 | V72: 110 | W72: 109 | X72: 86 | Y72: 54 | Z72: 12 | AA72: 19 | AB72: 20 | AC72: 0 | AD72: 0 | AE72: 50 | AF72: 26 | AG72: 36 | AH72: 1 | AI72: 0 | AJ72: 1 | AK72: 3 | AL72: 95 | AM72: 103 | AN72: 0 | AO72: 0 | AP72: 7 | AQ72: 13 | AR72: 7 | AS72: 8 | AT72: 74 | AU72: 14 | AV72: 39 | AW72: 27 | AX72: 63 | AY72: 2 | AZ72: 0 | BA72: 8 | BB72: 50 | BC72: 3 | BD72: 18 | BE72: 25 | BF72: 65 | BG72: 27 | BH72: 48 | BI72: 50 | BJ72: 19 | BK72: 0 | BL72: 0 | BM72: 18 | BN72: 1 | BO72: 11 | BP72: 11 | BQ72: 4 | BR72: 0 | BS72: 105 | BT72: 1 | BU72: 6 | BV72: 6 | BW72: 11 | BY72: 17 | BZ72: De | CA72: 6809773.22 | CB72: 1
A73: BANQUE_DIGITALE | B73: MON_AGENCE | C73: MON AGENCE | D73: 17 | E73: Dne | F73: 228 | G73: 0 | H73: 0 | I73: 228 | J73: 228 | K73: 0 | L73: 0 | M73: 26 | N73: 21 | O73: 7 | P73: 41.99122807 | Q73: 7373.342061 | R73: 1681121.99 | S73: 2842655.84 | T73: 5 | U73: 25 | V73: 6 | W73: 79 | X73: 18 | Y73: 49 | Z73: 8 | AA73: 26 | AB73: 23 | AC73: 0 | AD73: 0 | AE73: 58 | AF73: 28 | AG73: 27 | AH73: 2 | AI73: 0 | AJ73: 0 | AK73: 4 | AL73: 62 | AM73: 43 | AN73: 0 | AO73: 0 | AP73: 3 | AQ73: 3 | AR73: 0 | AS73: 4 | AT73: 9 | AU73: 1 | AV73: 3 | AW73: 2 | AX73: 1 | AY73: 1 | AZ73: 0 | BA73: 0 | BB73: 3 | BC73: 1 | BD73: 2 | BE73: 1 | BF73: 19 | BG73: 2 | BH73: 15 | BI73: 8 | BJ73: 4 | BK73: 0 | BL73: 0 | BM73: 4 | BN73: 0 | BO73: 11 | BP73: 4 | BQ73: 3 | BR73: 0 | BS73: 122 | BT73: 0 | BU73: 7 | BV73: 4 | BW73: 12 | BY73: 17 | BZ73: Dne | CA73: 2842655.84 | CB73: 1
A74: BANQUE_DIGITALE | B74: MON_AGENCE | C74: MON AGENCE | D74: 17 | E74: Ee | F74: 923 | G74: 161 | H74: 249 | I74: 249 | J74: 0 | K74: 249 | L74: 0 | M74: 0 | N74: 59 | O74: 10 | P74: 7.88624052 | Q74: 6559.640542 | R74: 6054548.22 | S74: 0 | T74: 17 | U74: 714 | V74: 570 | W74: 0 | X74: 0 | Y74: 100 | Z74: 0 | AA74: 0 | AB74: 0 | AC74: 0 | AD74: 0 | AE74: 100 | AF74: 11 | AG74: 0 | AH74: 0 | AI74: 0 | AJ74: 0 | AK74: 0 | AL74: 0 | AM74: 881 | AN74: 24 | AO74: 183 | AP74: 8 | AQ74: 0 | AR74: 0 | AS74: 4 | AT74: 0 | AU74: 0 | AV74: 31 | AW74: 425 | AX74: 416 | AY74: 0 | AZ74: 0 | BA74: 0 | BB74: 158 | BC74: 3 | BD74: 0 | BE74: 5 | BF74: 131 | BG74: 73 | BH74: 0 | BI74: 0 | BJ74: 0 | BK74: 0 | BL74: 0 | BM74: 0 | BN74: 0 | BO74: 0 | BP74: 0 | BQ74: 0 | BR74: 0 | BS74: 369 | BT74: 0 | BU74: 27 | BV74: 0 | BW74: 89 | BY74: 17 | BZ74: Ee | CA74: 0 | CB74: 1
A75: BANQUE_DIGITALE | B75: MON_AGENCE | C75: MON AGENCE | D75: 17 | E75: Ene | F75: 174 | G75: 81 | H75: 67 | I75: 67 | J75: 0 | K75: 67 | L75: 0 | M75: 0 | N75: 14 | O75: 5 | P75: 9.689655172 | Q75: 1686.25092 | R75: 293407.66 | S75: 0 | T75: 0 | U75: 0 | V75: 0 | W75: 0 | X75: 0 | Y75: 12 | Z75: 0 | AA75: 0 | AB75: 0 | AC75: 0 | AD75: 0 | AE75: 12 | AF75: 1 | AG75: 0 | AH75: 0 | AI75: 0 | AJ75: 0 | AK75: 0 | AL75: 0 | AM75: 158 | AN75: 0 | AO75: 4 | AP75: 2 | AQ75: 0 | AR75: 0 | AS75: 0 | AT75: 0 | AU75: 0 | AV75: 2 | AW75: 46 | AX75: 0 | AY75: 0 | AZ75: 0 | BA75: 0 | BB75: 0 | BC75: 0 | BD75: 0 | BE75: 0 | BF75: 21 | BG75: 7 | BH75: 0 | BI75: 0 | BJ75: 0 | BK75: 0 | BL75: 0 | BM75: 0 | BN75: 0 | BO75: 0 | BP75: 0 | BQ75: 1 | BR75: 0 | BS75: 60 | BT75: 0 | BU75: 3 | BV75: 0 | BW75: 11 | BY75: 17 | BZ75: Ene | CA75: 0 | CB75: 1
A76: BANQUE_DIGITALE | B76: MON_AGENCE | C76: MON AGENCE | D76: 17 | E76: I | F76: 26 | G76: 0 | H76: 0 | I76: 26 | J76: 26 | K76: 0 | L76: 0 | M76: 1 | N76: 2 | O76: 2 | P76: 41.15384615 | Q76: 7.528461538 | R76: 195.74 | S76: 0 | T76: 0 | U76: 0 | V76: 0 | W76: 0 | X76: 8 | Y76: 0 | Z76: 0 | AA76: 0 | AB76: 0 | AC76: 0 | AD76: 0 | AE76: 0 | AF76: 0 | AG76: 0 | AH76: 0 | AI76: 0 | AJ76: 0 | AK76: 0 | AL76: 0 | AM76: 5 | AN76: 0 | AO76: 0 | AP76: 0 | AQ76: 0 | AR76: 0 | AS76: 0 | AT76: 1 | AU76: 0 | AV76: 0 | AW76: 0 | AX76: 0 | AY76: 0 | AZ76: 0 | BA76: 0 | BB76: 0 | BC76: 0 | BD76: 0 | BE76: 0 | BF76: 0 | BG76: 0 | BH76: 6 | BI76: 2 | BJ76: 1 | BK76: 0 | BL76: 0 | BM76: 0 | BN76: 0 | BO76: 0 | BP76: 1 | BQ76: 1 | BR76: 0 | BS76: 5 | BT76: 0 | BU76: 0 | BV76: 0 | BW76: 0 | BY76: 17 | BZ76: I | CA76: 0 | CB76: 1
A77: BANQUE_DIGITALE | B77: MON_AGENCE | C77: MON AGENCE | D77: 17 | E77: JBPe | F77: 363 | G77: 0 | H77: 363 | I77: 363 | J77: 321 | K77: 42 | L77: 363 | M77: 321 | N77: 16 | O77: 1 | P77: 21.02479339 | Q77: 17450.30559 | R77: 6334460.93 | S77: 4841381.76 | T77: 347 | U77: 337 | V77: 213 | W77: 98 | X77: 97 | Y77: 363 | Z77: 37 | AA77: 177 | AB77: 50 | AC77: 0 | AD77: 0 | AE77: 389 | AF77: 236 | AG77: 84 | AH77: 55 | AI77: 13 | AJ77: 0 | AK77: 4 | AL77: 30 | AM77: 329 | AN77: 0 | AO77: 302 | AP77: 9 | AQ77: 0 | AR77: 2 | AS77: 7 | AT77: 41 | AU77: 18 | AV77: 43 | AW77: 84 | AX77: 175 | AY77: 0 | AZ77: 0 | BA77: 0 | BB77: 62 | BC77: 2 | BD77: 10 | BE77: 4 | BF77: 104 | BG77: 56 | BH77: 44 | BI77: 69 | BJ77: 17 | BK77: 1 | BL77: 0 | BM77: 10 | BN77: 0 | BO77: 12 | BP77: 10 | BQ77: 19 | BR77: 4 | BS77: 305 | BT77: 2 | BU77: 163 | BV77: 74 | BW77: 129 | BY77: 17 | BZ77: JBPe | CA77: 4841381.76 | CB77: 1
A78: BANQUE_DIGITALE | B78: MON_AGENCE | C78: MON AGENCE | D78: 17 | E78: JBPne | F78: 29 | G78: 0 | H78: 29 | I78: 29 | J78: 22 | K78: 7 | L78: 29 | M78: 22 | N78: 4 | O78: 3 | P78: 20.10344828 | Q78: 1572.682069 | R78: 45607.78 | S78: 0 | T78: 16 | U78: 5 | V78: 1 | W78: 1 | X78: 0 | Y78: 28 | Z78: 1 | AA78: 8 | AB78: 2 | AC78: 0 | AD78: 0 | AE78: 28 | AF78: 20 | AG78: 1 | AH78: 0 | AI78: 0 | AJ78: 0 | AK78: 0 | AL78: 1 | AM78: 16 | AN78: 0 | AO78: 16 | AP78: 0 | AQ78: 0 | AR78: 0 | AS78: 1 | AT78: 0 | AU78: 0 | AV78: 0 | AW78: 2 | AX78: 0 | AY78: 0 | AZ78: 0 | BA78: 0 | BB78: 0 | BC78: 0 | BD78: 0 | BE78: 0 | BF78: 4 | BG78: 1 | BH78: 0 | BI78: 0 | BJ78: 0 | BK78: 0 | BL78: 0 | BM78: 0 | BN78: 0 | BO78: 1 | BP78: 0 | BQ78: 0 | BR78: 0 | BS78: 25 | BT78: 0 | BU78: 9 | BV78: 2 | BW78: 8 | BY78: 17 | BZ78: JBPne | CA78: 0 | CB78: 1
A79: BANQUE_DIGITALE | B79: MON_AGENCE | C79: MON AGENCE | D79: 17 | E79: JDe | F79: 56 | G79: 0 | H79: 56 | I79: 56 | J79: 19 | K79: 37 | L79: 56 | M79: 19 | N79: 0 | O79: 0 | P79: 17.69642857 | Q79: 18982.09857 | R79: 1062997.52 | S79: 0 | T79: 5 | U79: 56 | V79: 55 | W79: 0 | X79: 2 | Y79: 37 | Z79: 0 | AA79: 2 | AB79: 1 | AC79: 0 | AD79: 0 | AE79: 38 | AF79: 14 | AG79: 0 | AH79: 0 | AI79: 0 | AJ79: 0 | AK79: 0 | AL79: 0 | AM79: 54 | AN79: 0 | AO79: 53 | AP79: 0 | AQ79: 0 | AR79: 0 | AS79: 4 | AT79: 0 | AU79: 0 | AV79: 6 | AW79: 24 | AX79: 46 | AY79: 0 | AZ79: 0 | BA79: 0 | BB79: 14 | BC79: 1 | BD79: 0 | BE79: 0 | BF79: 24 | BG79: 14 | BH79: 2 | BI79: 0 | BJ79: 0 | BK79: 0 | BL79: 0 | BM79: 0 | BN79: 0 | BO79: 0 | BP79: 0 | BQ79: 0 | BR79: 1 | BS79: 27 | BT79: 0 | BU79: 13 | BV79: 1 | BW79: 23 | BY79: 17 | BZ79: JDe | CA79: 0 | CB79: 1
A80: BANQUE_DIGITALE | B80: MON_AGENCE | C80: MON AGENCE | D80: 17 | E80: JDne | F80: 88 | G80: 0 | H80: 88 | I80: 88 | J80: 51 | K80: 37 | L80: 88 | M80: 51 | N80: 7 | O80: 5 | P80: 18.92045455 | Q80: 4089.919091 | R80: 359912.88 | S80: 29796.65 | T80: 0 | U80: 58 | V80: 7 | W80: 2 | X80: 5 | Y80: 43 | Z80: 2 | AA80: 9 | AB80: 5 | AC80: 0 | AD80: 0 | AE80: 44 | AF80: 16 | AG80: 2 | AH80: 2 | AI80: 0 | AJ80: 0 | AK80: 0 | AL80: 0 | AM80: 61 | AN80: 0 | AO80: 54 | AP80: 1 | AQ80: 0 | AR80: 0 | AS80: 0 | AT80: 1 | AU80: 1 | AV80: 5 | AW80: 15 | AX80: 3 | AY80: 0 | AZ80: 0 | BA80: 0 | BB80: 3 | BC80: 0 | BD80: 1 | BE80: 1 | BF80: 9 | BG80: 2 | BH80: 1 | BI80: 3 | BJ80: 2 | BK80: 0 | BL80: 0 | BM80: 0 | BN80: 0 | BO80: 0 | BP80: 1 | BQ80: 0 | BR80: 0 | BS80: 42 | BT80: 0 | BU80: 14 | BV80: 2 | BW80: 28 | BY80: 17 | BZ80: JDne | CA80: 29796.65 | CB80: 1
A81: BAS_RHIN | B81: STRASBOURG | C81: ESPACE MESANGE | D81: 18 | E81: BPe | F81: 98 | G81: 0 | H81: 0 | I81: 98 | J81: 98 | K81: 0 | L81: 0 | M81: 5 | N81: 0 | O81: 0 | P81: 49.12244898 | Q81: 136327.579 | R81: 13360102.74 | S81: 15388397.78 | T81: 92 | U81: 87 | V81: 74 | W81: 70 | X81: 26 | Y81: 96 | Z81: 27 | AA81: 64 | AB81: 43 | AC81: 0 | AD81: 0 | AE81: 118 | AF81: 85 | AG81: 27 | AH81: 1 | AI81: 0 | AJ81: 2 | AK81: 1 | AL81: 67 | AM81: 79 | AN81: 0 | AO81: 0 | AP81: 10 | AQ81: 11 | AR81: 8 | AS81: 16 | AT81: 49 | AU81: 1 | AV81: 24 | AW81: 22 | AX81: 42 | AY81: 0 | AZ81: 1 | BA81: 2 | BB81: 47 | BC81: 2 | BD81: 17 | BE81: 18 | BF81: 38 | BG81: 32 | BH81: 7 | BI81: 17 | BJ81: 7 | BK81: 0 | BL81: 0 | BM81: 5 | BN81: 3 | BO81: 2 | BP81: 3 | BQ81: 1 | BR81: 12 | BS81: 79 | BT81: 4 | BU81: 8 | BV81: 7 | BW81: 1 | BY81: 18 | BZ81: BPe | CA81: 15388397.78 | CB81: 1
A82: BAS_RHIN | B82: STRASBOURG | C82: ESPACE MESANGE | D82: 18 | E82: BPne | F82: 55 | G82: 0 | H82: 0 | I82: 55 | J82: 55 | K82: 0 | L82: 0 | M82: 3 | N82: 1 | O82: 1 | P82: 44.6 | Q82: 46600.18182 | R82: 2563010 | S82: 5368137.33 | T82: 39 | U82: 7 | V82: 9 | W82: 26 | X82: 4 | Y82: 48 | Z82: 4 | AA82: 35 | AB82: 15 | AC82: 0 | AD82: 0 | AE82: 68 | AF82: 49 | AG82: 10 | AH82: 0 | AI82: 0 | AJ82: 0 | AK82: 1 | AL82: 22 | AM82: 11 | AN82: 0 | AO82: 0 | AP82: 0 | AQ82: 0 | AR82: 1 | AS82: 6 | AT82: 11 | AU82: 0 | AV82: 0 | AW82: 5 | AX82: 2 | AY82: 0 | AZ82: 0 | BA82: 0 | BB82: 7 | BC82: 0 | BD82: 2 | BE82: 1 | BF82: 4 | BG82: 3 | BH82: 1 | BI82: 1 | BJ82: 0 | BK82: 0 | BL82: 0 | BM82: 2 | BN82: 0 | BO82: 3 | BP82: 2 | BQ82: 1 | BR82: 2 | BS82: 44 | BT82: 1 | BU82: 4 | BV82: 2 | BW82: 4 | BY82: 18 | BZ82: BPne | CA82: 5368137.33 | CB82: 1
A83: BAS_RHIN | B83: STRASBOURG | C83: ESPACE MESANGE | D83: 18 | E83: De | F83: 94 | G83: 0 | H83: 0 | I83: 94 | J83: 94 | K83: 0 | L83: 0 | M83: 0 | N83: 2 | O83: 6 | P83: 64.89361702 | Q83: 129022.2638 | R83: 12128092.8 | S83: 4090009.8 | T83: 9 | U83: 73 | V83: 79 | W83: 31 | X83: 19 | Y83: 32 | Z83: 6 | AA83: 15 | AB83: 16 | AC83: 0 | AD83: 0 | AE83: 40 | AF83: 22 | AG83: 8 | AH83: 0 | AI83: 0 | AJ83: 1 | AK83: 0 | AL83: 23 | AM83: 66 | AN83: 0 | AO83: 0 | AP83: 6 | AQ83: 11 | AR83: 7 | AS83: 5 | AT83: 25 | AU83: 4 | AV83: 9 | AW83: 4 | AX83: 27 | AY83: 1 | AZ83: 1 | BA83: 3 | BB83: 41 | BC83: 6 | BD83: 18 | BE83: 14 | BF83: 40 | BG83: 33 | BH83: 1 | BI83: 10 | BJ83: 3 | BK83: 2 | BL83: 0 | BM83: 1 | BN83: 3 | BO83: 0 | BP83: 2 | BQ83: 0 | BR83: 0 | BS83: 30 | BT83: 0 | BU83: 0 | BV83: 5 | BW83: 6 | BY83: 18 | BZ83: De | CA83: 4090009.8 | CB83: 1
A84: BAS_RHIN | B84: STRASBOURG | C84: ESPACE MESANGE | D84: 18 | E84: Dne | F84: 128 | G84: 0 | H84: 0 | I84: 128 | J84: 128 | K84: 0 | L84: 0 | M84: 3 | N84: 14 | O84: 9 | P84: 52.171875 | Q84: 39395.7743 | R84: 5042659.11 | S84: 3663249.55 | T84: 2 | U84: 26 | V84: 23 | W84: 41 | X84: 3 | Y84: 22 | Z84: 0 | AA84: 11 | AB84: 13 | AC84: 0 | AD84: 0 | AE84: 31 | AF84: 17 | AG84: 12 | AH84: 0 | AI84: 0 | AJ84: 1 | AK84: 0 | AL84: 29 | AM84: 34 | AN84: 0 | AO84: 0 | AP84: 4 | AQ84: 1 | AR84: 2 | AS84: 5 | AT84: 9 | AU84: 1 | AV84: 0 | AW84: 1 | AX84: 2 | AY84: 0 | AZ84: 0 | BA84: 1 | BB84: 14 | BC84: 1 | BD84: 2 | BE84: 4 | BF84: 13 | BG84: 3 | BH84: 1 | BI84: 2 | BJ84: 0 | BK84: 1 | BL84: 0 | BM84: 0 | BN84: 0 | BO84: 0 | BP84: 0 | BQ84: 0 | BR84: 0 | BS84: 59 | BT84: 0 | BU84: 0 | BV84: 3 | BW84: 4 | BY84: 18 | BZ84: Dne | CA84: 3663249.55 | CB84: 1
A85: BAS_RHIN | B85: STRASBOURG | C85: ESPACE MESANGE | D85: 18 | E85: Ee | F85: 40 | G85: 4 | H85: 9 | I85: 9 | J85: 0 | K85: 9 | L85: 0 | M85: 0 | N85: 4 | O85: 0 | P85: 7.3 | Q85: 8833.2185 | R85: 353328.74 | S85: 0 | T85: 0 | U85: 23 | V85: 22 | W85: 0 | X85: 0 | Y85: 1 | Z85: 0 | AA85: 0 | AB85: 0 | AC85: 0 | AD85: 0 | AE85: 1 | AF85: 1 | AG85: 0 | AH85: 0 | AI85: 0 | AJ85: 0 | AK85: 0 | AL85: 0 | AM85: 33 | AN85: 0 | AO85: 2 | AP85: 2 | AQ85: 0 | AR85: 0 | AS85: 0 | AT85: 0 | AU85: 0 | AV85: 0 | AW85: 11 | AX85: 17 | AY85: 0 | AZ85: 0 | BA85: 0 | BB85: 7 | BC85: 0 | BD85: 0 | BE85: 0 | BF85: 0 | BG85: 0 | BH85: 0 | BI85: 0 | BJ85: 0 | BK85: 0 | BL85: 0 | BM85: 0 | BN85: 0 | BO85: 0 | BP85: 0 | BQ85: 0 | BR85: 0 | BS85: 13 | BT85: 0 | BU85: 0 | BV85: 0 | BW85: 0 | BY85: 18 | BZ85: Ee | CA85: 0 | CB85: 1
A86: BAS_RHIN | B86: STRASBOURG | C86: ESPACE MESANGE | D86: 18 | E86: Ene | F86: 10 | G86: 2 | H86: 1 | I86: 1 | J86: 0 | K86: 1 | L86: 0 | M86: 0 | N86: 0 | O86: 0 | P86: 7 | Q86: 2074.978 | R86: 20749.78 | S86: 0 | T86: 0 | U86: 0 | V86: 0 | W86: 0 | X86: 0 | Y86: 0 | Z86: 0 | AA86: 0 | AB86: 0 | AC86: 0 | AD86: 0 | AE86: 0 | AF86: 0 | AG86: 0 | AH86: 0 | AI86: 0 | AJ86: 0 | AK86: 0 | AL86: 0 | AM86: 5 | AN86: 0 | AO86: 0 | AP86: 0 | AQ86: 0 | AR86: 0 | AS86: 0 | AT86: 0 | AU86: 0 | AV86: 0 | AW86: 0 | AX86: 0 | AY86: 0 | AZ86: 0 | BA86: 0 | BB86: 0 | BC86: 0 | BD86: 0 | BE86: 0 | BF86: 0 | BG86: 0 | BH86: 0 | BI86: 0 | BJ86: 0 | BK86: 0 | BL86: 0 | BM86: 0 | BN86: 0 | BO86: 0 | BP86: 0 | BQ86: 0 | BR86: 0 | BS86: 4 | BT86: 0 | BU86: 0 | BV86: 0 | BW86: 0 | BY86: 18 | BZ86: Ene | CA86: 0 | CB86: 1
A87: BAS_RHIN | B87: STRASBOURG | C87: ESPACE MESANGE | D87: 18 | E87: I | F87: 26 | G87: 0 | H87: 0 | I87: 26 | J87: 26 | K87: 0 | L87: 0 | M87: 2 | N87: 0 | O87: 0 | P87: 47.57692308 | Q87: 17.85269231 | R87: 464.17 | S87: 0 | T87: 0 | U87: 2 | V87: 0 | W87: 0 | X87: 1 | Y87: 0 | Z87: 0 | AA87: 0 | AB87: 0 | AC87: 0 | AD87: 0 | AE87: 2 | AF87: 0 | AG87: 0 | AH87: 0 | AI87: 0 | AJ87: 0 | AK87: 0 | AL87: 0 | AM87: 3 | AN87: 0 | AO87: 0 | AP87: 0 | AQ87: 0 | AR87: 0 | AS87: 0 | AT87: 0 | AU87: 0 | AV87: 0 | AW87: 0 | AX87: 0 | AY87: 0 | AZ87: 0 | BA87: 0 | BB87: 0 | BC87: 0 | BD87: 0 | BE87: 0 | BF87: 0 | BG87: 0 | BH87: 0 | BI87: 1 | BJ87: 0 | BK87: 0 | BL87: 0 | BM87: 0 | BN87: 0 | BO87: 0 | BP87: 1 | BQ87: 0 | BR87: 0 | BS87: 3 | BT87: 0 | BU87: 0 | BV87: 0 | BW87: 0 | BY87: 18 | BZ87: I | CA87: 0 | CB87: 1
A88: BAS_RHIN | B88: STRASBOURG | C88: ESPACE MESANGE | D88: 18 | E88: JBPe | F88: 14 | G88: 0 | H88: 14 | I88: 14 | J88: 13 | K88: 1 | L88: 14 | M88: 13 | N88: 0 | O88: 0 | P88: 21.07142857 | Q88: 17108.86071 | R88: 239524.05 | S88: 314653.79 | T88: 14 | U88: 11 | V88: 7 | W88: 5 | X88: 1 | Y88: 14 | Z88: 0 | AA88: 3 | AB88: 2 | AC88: 0 | AD88: 0 | AE88: 16 | AF88: 12 | AG88: 3 | AH88: 3 | AI88: 0 | AJ88: 0 | AK88: 0 | AL88: 2 | AM88: 11 | AN88: 0 | AO88: 11 | AP88: 0 | AQ88: 0 | AR88: 0 | AS88: 0 | AT88: 0 | AU88: 1 | AV88: 0 | AW88: 0 | AX88: 5 | AY88: 0 | AZ88: 0 | BA88: 0 | BB88: 4 | BC88: 1 | BD88: 0 | BE88: 1 | BF88: 2 | BG88: 0 | BH88: 0 | BI88: 1 | BJ88: 0 | BK88: 0 | BL88: 0 | BM88: 0 | BN88: 0 | BO88: 0 | BP88: 0 | BQ88: 1 | BR88: 0 | BS88: 12 | BT88: 0 | BU88: 3 | BV88: 0 | BW88: 1 | BY88: 18 | BZ88: JBPe | CA88: 314653.79 | CB88: 1
A89: BAS_RHIN | B89: STRASBOURG | C89: ESPACE MESANGE | D89: 18 | E89: JBPne | F89: 4 | G89: 0 | H89: 4 | I89: 4 | J89: 3 | K89: 1 | L89: 4 | M89: 3 | N89: 0 | O89: 1 | P89: 20 | Q89: 410.74 | R89: 1642.96 | S89: 0 | T89: 3 | U89: 0 | V89: 0 | W89: 0 | X89: 0 | Y89: 4 | Z89: 0 | AA89: 0 | AB89: 0 | AC89: 0 | AD89: 0 | AE89: 4 | AF89: 4 | AG89: 0 | AH89: 0 | AI89: 0 | AJ89: 0 | AK89: 0 | AL89: 0 | AM89: 1 | AN89: 0 | AO89: 2 | AP89: 0 | AQ89: 0 | AR89: 0 | AS89: 0 | AT89: 0 | AU89: 0 | AV89: 0 | AW89: 0 | AX89: 0 | AY89: 0 | AZ89: 0 | BA89: 0 | BB89: 0 | BC89: 0 | BD89: 0 | BE89: 0 | BF89: 1 | BG89: 0 | BH89: 0 | BI89: 0 | BJ89: 0 | BK89: 0 | BL89: 0 | BM89: 0 | BN89: 0 | BO89: 0 | BP89: 0 | BQ89: 0 | BR89: 1 | BS89: 4 | BT89: 0 | BU89: 3 | BV89: 1 | BW89: 0 | BY89: 18 | BZ89: JBPne | CA89: 0 | CB89: 1
A90: BAS_RHIN | B90: STRASBOURG | C90: ESPACE MESANGE | D90: 18 | E90: JDe | F90: 1 | G90: 0 | H90: 1 | I90: 1 | J90: 0 | K90: 1 | L90: 1 | M90: 0 | N90: 0 | O90: 0 | P90: 17 | Q90: 25051.87 | R90: 25051.87 | S90: 0 | T90: 0 | U90: 1 | V90: 1 | W90: 0 | X90: 0 | Y90: 0 | Z90: 0 | AA90: 0 | AB90: 0 | AC90: 0 | AD90: 0 | AE90: 0 | AF90: 0 | AG90: 0 | AH90: 0 | AI90: 0 | AJ90: 0 | AK90: 0 | AL90: 0 | AM90: 1 | AN90: 0 | AO90: 1 | AP90: 0 | AQ90: 0 | AR90: 0 | AS90: 0 | AT90: 0 | AU90: 0 | AV90: 1 | AW90: 0 | AX90: 1 | AY90: 0 | AZ90: 0 | BA90: 0 | BB90: 0 | BC90: 0 | BD90: 0 | BE90: 0 | BF90: 0 | BG90: 0 | BH90: 0 | BI90: 0 | BJ90: 0 | BK90: 0 | BL90: 0 | BM90: 0 | BN90: 0 | BO90: 0 | BP90: 0 | BQ90: 0 | BR90: 0 | BS90: 0 | BT90: 0 | BU90: 0 | BV90: 0 | BW90: 0 | BY90: 18 | BZ90: JDe | CA90: 0 | CB90: 1
A91: BAS_RHIN | B91: STRASBOURG | C91: ESPACE MESANGE | D91: 18 | E91: JDne | F91: 10 | G91: 0 | H91: 10 | I91: 10 | J91: 8 | K91: 2 | L91: 10 | M91: 8 | N91: 1 | O91: 0 | P91: 19.6 | Q91: 6434.69 | R91: 64346.9 | S91: 0 | T91: 0 | U91: 4 | V91: 1 | W91: 0 | X91: 0 | Y91: 2 | Z91: 0 | AA91: 0 | AB91: 0 | AC91: 0 | AD91: 0 | AE91: 2 | AF91: 1 | AG91: 0 | AH91: 0 | AI91: 0 | AJ91: 0 | AK91: 0 | AL91: 0 | AM91: 3 | AN91: 0 | AO91: 1 | AP91: 0 | AQ91: 0 | AR91: 0 | AS91: 1 | AT91: 0 | AU91: 0 | AV91: 0 | AW91: 0 | AX91: 1 | AY91: 0 | AZ91: 0 | BA91: 0 | BB91: 0 | BC91: 0 | BD91: 0 | BE91: 0 | BF91: 1 | BG91: 0 | BH91: 0 | BI91: 0 | BJ91: 0 | BK91: 0 | BL91: 0 | BM91: 0 | BN91: 0 | BO91: 0 | BP91: 0 | BQ91: 0 | BR91: 0 | BS91: 3 | BT91: 0 | BU91: 0 | BV91: 0 | BW91: 1 | BY91: 18 | BZ91: JDne | CA91: 0 | CB91: 1
A92: BAS_RHIN | B92: STRASBOURG | C92: STRASBOURG ANVERS | D92: 19 | E92: BPe | F92: 827 | G92: 0 | H92: 0 | I92: 827 | J92: 827 | K92: 0 | L92: 0 | M92: 43 | N92: 36 | O92: 9 | P92: 49.92261185 | Q92: 65433.12908 | R92: 54113197.75 | S92: 51462135.83 | T92: 785 | U92: 715 | V92: 585 | W92: 511 | X92: 420 | Y92: 811 | Z92: 462 | AA92: 548 | AB92: 347 | AC92: 0 | AD92: 0 | AE92: 970 | AF92: 647 | AG92: 237 | AH92: 14 | AI92: 4 | AJ92: 51 | AK92: 97 | AL92: 363 | AM92: 739 | AN92: 0 | AO92: 0 | AP92: 82 | AQ92: 54 | AR92: 50 | AS92: 51 | AT92: 308 | AU92: 83 | AV92: 155 | AW92: 227 | AX92: 300 | AY92: 1 | AZ92: 2 | BA92: 22 | BB92: 307 | BC92: 12 | BD92: 213 | BE92: 62 | BF92: 484 | BG92: 284 | BH92: 98 | BI92: 264 | BJ92: 150 | BK92: 27 | BL92: 0 | BM92: 168 | BN92: 12 | BO92: 70 | BP92: 114 | BQ92: 34 | BR92: 83 | BS92: 664 | BT92: 35 | BU92: 113 | BV92: 134 | BW92: 162 | BY92: 19 | BZ92: BPe | CA92: 51462135.83 | CB92: 1
A93: BAS_RHIN | B93: STRASBOURG | C93: STRASBOURG ANVERS | D93: 19 | E93: BPne | F93: 362 | G93: 0 | H93: 0 | I93: 362 | J93: 362 | K93: 0 | L93: 0 | M93: 19 | N93: 18 | O93: 17 | P93: 52.35911602 | Q93: 21942.67199 | R93: 7943247.26 | S93: 3328341.55 | T93: 261 | U93: 176 | V93: 43 | W93: 60 | X93: 47 | Y93: 309 | Z93: 85 | AA93: 128 | AB93: 88 | AC93: 0 | AD93: 0 | AE93: 384 | AF93: 279 | AG93: 26 | AH93: 1 | AI93: 0 | AJ93: 5 | AK93: 18 | AL93: 33 | AM93: 262 | AN93: 0 | AO93: 0 | AP93: 17 | AQ93: 16 | AR93: 8 | AS93: 4 | AT93: 59 | AU93: 22 | AV93: 25 | AW93: 35 | AX93: 21 | AY93: 0 | AZ93: 0 | BA93: 0 | BB93: 23 | BC93: 0 | BD93: 25 | BE93: 10 | BF93: 132 | BG93: 17 | BH93: 8 | BI93: 21 | BJ93: 14 | BK93: 7 | BL93: 0 | BM93: 20 | BN93: 1 | BO93: 32 | BP93: 27 | BQ93: 3 | BR93: 28 | BS93: 244 | BT93: 2 | BU93: 51 | BV93: 43 | BW93: 53 | BY93: 19 | BZ93: BPne | CA93: 3328341.55 | CB93: 1
A94: BAS_RHIN | B94: STRASBOURG | C94: STRASBOURG ANVERS | D94: 19 | E94: De | F94: 671 | G94: 0 | H94: 0 | I94: 671 | J94: 671 | K94: 0 | L94: 0 | M94: 24 | N94: 18 | O94: 25 | P94: 63.35767511 | Q94: 72942.19018 | R94: 48944209.61 | S94: 6470067.59 | T94: 95 | U94: 609 | V94: 576 | W94: 68 | X94: 120 | Y94: 198 | Z94: 41 | AA94: 56 | AB94: 49 | AC94: 0 | AD94: 0 | AE94: 225 | AF94: 148 | AG94: 24 | AH94: 1 | AI94: 0 | AJ94: 6 | AK94: 4 | AL94: 50 | AM94: 593 | AN94: 0 | AO94: 0 | AP94: 54 | AQ94: 83 | AR94: 33 | AS94: 31 | AT94: 191 | AU94: 61 | AV94: 89 | AW94: 61 | AX94: 221 | AY94: 0 | AZ94: 0 | BA94: 7 | BB94: 329 | BC94: 19 | BD94: 111 | BE94: 74 | BF94: 414 | BG94: 292 | BH94: 6 | BI94: 68 | BJ94: 31 | BK94: 6 | BL94: 0 | BM94: 31 | BN94: 8 | BO94: 7 | BP94: 34 | BQ94: 1 | BR94: 9 | BS94: 245 | BT94: 8 | BU94: 16 | BV94: 27 | BW94: 34 | BY94: 19 | BZ94: De | CA94: 6470067.59 | CB94: 1
A95: BAS_RHIN | B95: STRASBOURG | C95: STRASBOURG ANVERS | D95: 19 | E95: Dne | F95: 1465 | G95: 0 | H95: 0 | I95: 1465 | J95: 1465 | K95: 0 | L95: 0 | M95: 68 | N95: 41 | O95: 94 | P95: 58.65051195 | Q95: 14421.68543 | R95: 21127769.15 | S95: 3681059.19 | T95: 25 | U95: 734 | V95: 185 | W95: 62 | X95: 33 | Y95: 157 | Z95: 18 | AA95: 36 | AB95: 36 | AC95: 0 | AD95: 0 | AE95: 188 | AF95: 117 | AG95: 22 | AH95: 7 | AI95: 0 | AJ95: 2 | AK95: 3 | AL95: 39 | AM95: 948 | AN95: 0 | AO95: 0 | AP95: 55 | AQ95: 50 | AR95: 16 | AS95: 12 | AT95: 112 | AU95: 52 | AV95: 25 | AW95: 23 | AX95: 26 | AY95: 0 | AZ95: 1 | BA95: 6 | BB95: 102 | BC95: 4 | BD95: 47 | BE95: 18 | BF95: 337 | BG95: 63 | BH95: 4 | BI95: 17 | BJ95: 7 | BK95: 3 | BL95: 0 | BM95: 9 | BN95: 2 | BO95: 18 | BP95: 14 | BQ95: 4 | BR95: 11 | BS95: 312 | BT95: 2 | BU95: 27 | BV95: 27 | BW95: 31 | BY95: 19 | BZ95: Dne | CA95: 3681059.19 | CB95: 1
A96: BAS_RHIN | B96: STRASBOURG | C96: STRASBOURG ANVERS | D96: 19 | E96: Ee | F96: 283 | G96: 42 | H96: 80 | I96: 80 | J96: 0 | K96: 80 | L96: 0 | M96: 0 | N96: 28 | O96: 2 | P96: 8.448763251 | Q96: 5346.837138 | R96: 1513154.91 | S96: 0 | T96: 3 | U96: 206 | V96: 112 | W96: 0 | X96: 0 | Y96: 16 | Z96: 0 | AA96: 0 | AB96: 0 | AC96: 0 | AD96: 0 | AE96: 16 | AF96: 0 | AG96: 0 | AH96: 0 | AI96: 0 | AJ96: 0 | AK96: 0 | AL96: 0 | AM96: 244 | AN96: 8 | AO96: 51 | AP96: 1 | AQ96: 0 | AR96: 0 | AS96: 2 | AT96: 0 | AU96: 0 | AV96: 2 | AW96: 105 | AX96: 48 | AY96: 0 | AZ96: 0 | BA96: 0 | BB96: 48 | BC96: 1 | BD96: 0 | BE96: 0 | BF96: 24 | BG96: 7 | BH96: 0 | BI96: 0 | BJ96: 0 | BK96: 0 | BL96: 0 | BM96: 0 | BN96: 0 | BO96: 0 | BP96: 0 | BQ96: 0 | BR96: 0 | BS96: 88 | BT96: 0 | BU96: 1 | BV96: 0 | BW96: 16 | BY96: 19 | BZ96: Ee | CA96: 0 | CB96: 1
A97: BAS_RHIN | B97: STRASBOURG | C97: STRASBOURG ANVERS | D97: 19 | E97: Ene | F97: 196 | G97: 74 | H97: 81 | I97: 81 | J97: 0 | K97: 81 | L97: 0 | M97: 0 | N97: 16 | O97: 3 | P97: 10.23469388 | Q97: 1903.754031 | R97: 373135.79 | S97: 0 | T97: 0 | U97: 0 | V97: 0 | W97: 0 | X97: 0 | Y97: 3 | Z97: 0 | AA97: 0 | AB97: 0 | AC97: 0 | AD97: 0 | AE97: 3 | AF97: 1 | AG97: 0 | AH97: 0 | AI97: 0 | AJ97: 0 | AK97: 0 | AL97: 0 | AM97: 154 | AN97: 0 | AO97: 1 | AP97: 0 | AQ97: 0 | AR97: 0 | AS97: 1 | AT97: 0 | AU97: 0 | AV97: 0 | AW97: 24 | AX97: 0 | AY97: 0 | AZ97: 0 | BA97: 0 | BB97: 0 | BC97: 0 | BD97: 0 | BE97: 0 | BF97: 18 | BG97: 6 | BH97: 0 | BI97: 0 | BJ97: 0 | BK97: 0 | BL97: 0 | BM97: 0 | BN97: 0 | BO97: 0 | BP97: 0 | BQ97: 0 | BR97: 0 | BS97: 30 | BT97: 0 | BU97: 0 | BV97: 0 | BW97: 2 | BY97: 19 | BZ97: Ene | CA97: 0 | CB97: 1
A98: BAS_RHIN | B98: STRASBOURG | C98: STRASBOURG ANVERS | D98: 19 | E98: I | F98: 664 | G98: 0 | H98: 0 | I98: 664 | J98: 664 | K98: 0 | L98: 0 | M98: 37 | N98: 2 | O98: 92 | P98: 50.70180723 | Q98: 18.55817771 | R98: 12322.63 | S98: 0 | T98: 0 | U98: 22 | V98: 2 | W98: 0 | X98: 23 | Y98: 3 | Z98: 0 | AA98: 0 | AB98: 0 | AC98: 0 | AD98: 0 | AE98: 1 | AF98: 0 | AG98: 0 | AH98: 0 | AI98: 0 | AJ98: 0 | AK98: 0 | AL98: 0 | AM98: 408 | AN98: 0 | AO98: 0 | AP98: 3 | AQ98: 1 | AR98: 2 | AS98: 1 | AT98: 8 | AU98: 2 | AV98: 0 | AW98: 0 | AX98: 0 | AY98: 0 | AZ98: 0 | BA98: 2 | BB98: 0 | BC98: 0 | BD98: 0 | BE98: 0 | BF98: 7 | BG98: 0 | BH98: 4 | BI98: 8 | BJ98: 2 | BK98: 8 | BL98: 0 | BM98: 1 | BN98: 1 | BO98: 4 | BP98: 2 | BQ98: 1 | BR98: 0 | BS98: 28 | BT98: 0 | BU98: 0 | BV98: 0 | BW98: 0 | BY98: 19 | BZ98: I | CA98: 0 | CB98: 1
A99: BAS_RHIN | B99: STRASBOURG | C99: STRASBOURG ANVERS | D99: 19 | E99: JBPe | F99: 159 | G99: 0 | H99: 159 | I99: 159 | J99: 145 | K99: 14 | L99: 159 | M99: 145 | N99: 7 | O99: 3 | P99: 21.55345912 | Q99: 13645.05566 | R99: 2169563.85 | S99: 1467451.8 | T99: 153 | U99: 128 | V99: 73 | W99: 42 | X99: 45 | Y99: 159 | Z99: 9 | AA99: 73 | AB99: 41 | AC99: 0 | AD99: 0 | AE99: 161 | AF99: 117 | AG99: 36 | AH99: 23 | AI99: 3 | AJ99: 1 | AK99: 4 | AL99: 7 | AM99: 136 | AN99: 0 | AO99: 127 | AP99: 4 | AQ99: 0 | AR99: 0 | AS99: 1 | AT99: 8 | AU99: 1 | AV99: 5 | AW99: 31 | AX99: 49 | AY99: 0 | AZ99: 0 | BA99: 0 | BB99: 27 | BC99: 1 | BD99: 3 | BE99: 0 | BF99: 39 | BG99: 16 | BH99: 6 | BI99: 18 | BJ99: 12 | BK99: 3 | BL99: 0 | BM99: 27 | BN99: 0 | BO99: 12 | BP99: 7 | BQ99: 8 | BR99: 10 | BS99: 140 | BT99: 2 | BU99: 120 | BV99: 48 | BW99: 41 | BY99: 19 | BZ99: JBPe | CA99: 1467451.8 | CB99: 1
A100: BAS_RHIN | B100: STRASBOURG | C100: STRASBOURG ANVERS | D100: 19 | E100: JBPne | F100: 51 | G100: 0 | H100: 51 | I100: 51 | J100: 44 | K100: 7 | L100: 51 | M100: 44 | N100: 6 | O100: 6 | P100: 20.88235294 | Q100: 1867.372745 | R100: 95236.01 | S100: 0 | T100: 37 | U100: 6 | V100: 1 | W100: 0 | X100: 1 | Y100: 49 | Z100: 1 | AA100: 12 | AB100: 8 | AC100: 0 | AD100: 0 | AE100: 49 | AF100: 39 | AG100: 0 | AH100: 0 | AI100: 0 | AJ100: 0 | AK100: 0 | AL100: 0 | AM100: 20 | AN100: 0 | AO100: 20 | AP100: 0 | AQ100: 0 | AR100: 0 | AS100: 0 | AT100: 0 | AU100: 0 | AV100: 0 | AW100: 1 | AX100: 0 | AY100: 0 | AZ100: 0 | BA100: 0 | BB100: 1 | BC100: 0 | BD100: 0 | BE100: 0 | BF100: 4 | BG100: 0 | BH100: 0 | BI100: 1 | BJ100: 0 | BK100: 0 | BL100: 0 | BM100: 0 | BN100: 0 | BO100: 6 | BP100: 0 | BQ100: 0 | BR100: 3 | BS100: 41 | BT100: 0 | BU100: 34 | BV100: 11 | BW100: 9 | BY100: 19 | BZ100: JBPne | CA100: 0 | CB100: 1
A101: BAS_RHIN | B101: STRASBOURG | C101: STRASBOURG ANVERS | D101: 19 | E101: JDe | F101: 31 | G101: 0 | H101: 31 | I101: 31 | J101: 21 | K101: 10 | L101: 31 | M101: 21 | N101: 1 | O101: 0 | P101: 19.48387097 | Q101: 12857.30581 | R101: 398576.48 | S101: 102723.42 | T101: 0 | U101: 29 | V101: 29 | W101: 3 | X101: 3 | Y101: 5 | Z101: 0 | AA101: 1 | AB101: 1 | AC101: 0 | AD101: 0 | AE101: 5 | AF101: 3 | AG101: 3 | AH101: 3 | AI101: 0 | AJ101: 0 | AK101: 0 | AL101: 0 | AM101: 26 | AN101: 0 | AO101: 20 | AP101: 1 | AQ101: 0 | AR101: 0 | AS101: 0 | AT101: 0 | AU101: 0 | AV101: 1 | AW101: 7 | AX101: 20 | AY101: 0 | AZ101: 0 | BA101: 0 | BB101: 9 | BC101: 0 | BD101: 0 | BE101: 0 | BF101: 11 | BG101: 6 | BH101: 0 | BI101: 1 | BJ101: 1 | BK101: 0 | BL101: 0 | BM101: 3 | BN101: 0 | BO101: 0 | BP101: 0 | BQ101: 0 | BR101: 0 | BS101: 8 | BT101: 0 | BU101: 2 | BV101: 0 | BW101: 2 | BY101: 19 | BZ101: JDe | CA101: 102723.42 | CB101: 1
A102: BAS_RHIN | B102: STRASBOURG | C102: STRASBOURG ANVERS | D102: 19 | E102: JDne | F102: 267 | G102: 0 | H102: 267 | I102: 267 | J102: 203 | K102: 64 | L102: 267 | M102: 203 | N102: 7 | O102: 23 | P102: 20.25842697 | Q102: 3356.047116 | R102: 896064.58 | S102: 156500.22 | T102: 1 | U102: 115 | V102: 30 | W102: 5 | X102: 2 | Y102: 26 | Z102: 0 | AA102: 5 | AB102: 5 | AC102: 0 | AD102: 0 | AE102: 29 | AF102: 21 | AG102: 5 | AH102: 5 | AI102: 0 | AJ102: 0 | AK102: 0 | AL102: 0 | AM102: 199 | AN102: 0 | AO102: 109 | AP102: 1 | AQ102: 0 | AR102: 0 | AS102: 1 | AT102: 0 | AU102: 0 | AV102: 0 | AW102: 17 | AX102: 6 | AY102: 0 | AZ102: 0 | BA102: 0 | BB102: 21 | BC102: 0 | BD102: 0 | BE102: 0 | BF102: 29 | BG102: 5 | BH102: 0 | BI102: 2 | BJ102: 0 | BK102: 0 | BL102: 0 | BM102: 0 | BN102: 0 | BO102: 2 | BP102: 0 | BQ102: 1 | BR102: 1 | BS102: 45 | BT102: 0 | BU102: 16 | BV102: 4 | BW102: 8 | BY102: 19 | BZ102: JDne | CA102: 156500.22 | CB102: 1
A103: BAS_RHIN | B103: STRASBOURG | C103: STRASBOURG ROBERTSAU | D103: 20 | E103: BPe | F103: 939 | G103: 0 | H103: 0 | I103: 939 | J103: 939 | K103: 0 | L103: 0 | M103: 53 | N103: 20 | O103: 16 | P103: 50.71246006 | Q103: 69749.02834 | R103: 65494337.61 | S103: 37598976.95 | T103: 905 | U103: 857 | V103: 657 | W103: 531 | X103: 418 | Y103: 926 | Z103: 544 | AA103: 520 | AB103: 258 | AC103: 0 | AD103: 0 | AE103: 1055 | AF103: 767 | AG103: 255 | AH103: 12 | AI103: 1 | AJ103: 23 | AK103: 114 | AL103: 329 | AM103: 861 | AN103: 0 | AO103: 0 | AP103: 56 | AQ103: 63 | AR103: 30 | AS103: 41 | AT103: 375 | AU103: 129 | AV103: 132 | AW103: 337 | AX103: 358 | AY103: 5 | AZ103: 6 | BA103: 30 | BB103: 373 | BC103: 17 | BD103: 145 | BE103: 79 | BF103: 467 | BG103: 249 | BH103: 101 | BI103: 252 | BJ103: 133 | BK103: 23 | BL103: 0 | BM103: 153 | BN103: 28 | BO103: 54 | BP103: 127 | BQ103: 30 | BR103: 91 | BS103: 728 | BT103: 37 | BU103: 136 | BV103: 144 | BW103: 107 | BY103: 20 | BZ103: BPe | CA103: 37598976.95 | CB103: 1
A104: BAS_RHIN | B104: STRASBOURG | C104: STRASBOURG ROBERTSAU | D104: 20 | E104: BPne | F104: 388 | G104: 0 | H104: 0 | I104: 388 | J104: 388 | K104: 0 | L104: 0 | M104: 34 | N104: 8 | O104: 19 | P104: 50.64175258 | Q104: 24484.61013 | R104: 9500028.73 | S104: 4113776.37 | T104: 284 | U104: 196 | V104: 56 | W104: 63 | X104: 29 | Y104: 319 | Z104: 78 | AA104: 101 | AB104: 68 | AC104: 0 | AD104: 0 | AE104: 387 | AF104: 278 | AG104: 29 | AH104: 3 | AI104: 1 | AJ104: 3 | AK104: 10 | AL104: 37 | AM104: 272 | AN104: 0 | AO104: 0 | AP104: 8 | AQ104: 6 | AR104: 1 | AS104: 3 | AT104: 77 | AU104: 37 | AV104: 15 | AW104: 45 | AX104: 25 | AY104: 0 | AZ104: 0 | BA104: 2 | BB104: 33 | BC104: 0 | BD104: 16 | BE104: 8 | BF104: 106 | BG104: 16 | BH104: 2 | BI104: 12 | BJ104: 8 | BK104: 0 | BL104: 0 | BM104: 14 | BN104: 1 | BO104: 16 | BP104: 11 | BQ104: 2 | BR104: 24 | BS104: 253 | BT104: 2 | BU104: 63 | BV104: 47 | BW104: 38 | BY104: 20 | BZ104: BPne | CA104: 4113776.37 | CB104: 1
A105: BAS_RHIN | B105: STRASBOURG | C105: STRASBOURG ROBERTSAU | D105: 20 | E105: De | F105: 627 | G105: 0 | H105: 0 | I105: 627 | J105: 627 | K105: 0 | L105: 0 | M105: 23 | N105: 8 | O105: 25 | P105: 63.79904306 | Q105: 75712.55043 | R105: 47471769.12 | S105: 5207011.55 | T105: 96 | U105: 578 | V105: 546 | W105: 76 | X105: 92 | Y105: 182 | Z105: 44 | AA105: 45 | AB105: 38 | AC105: 0 | AD105: 0 | AE105: 205 | AF105: 122 | AG105: 25 | AH105: 2 | AI105: 1 | AJ105: 0 | AK105: 8 | AL105: 47 | AM105: 541 | AN105: 0 | AO105: 0 | AP105: 35 | AQ105: 69 | AR105: 11 | AS105: 9 | AT105: 192 | AU105: 75 | AV105: 54 | AW105: 90 | AX105: 236 | AY105: 2 | AZ105: 3 | BA105: 8 | BB105: 329 | BC105: 6 | BD105: 80 | BE105: 71 | BF105: 314 | BG105: 229 | BH105: 10 | BI105: 47 | BJ105: 19 | BK105: 4 | BL105: 0 | BM105: 19 | BN105: 18 | BO105: 7 | BP105: 28 | BQ105: 2 | BR105: 8 | BS105: 205 | BT105: 1 | BU105: 17 | BV105: 18 | BW105: 21 | BY105: 20 | BZ105: De | CA105: 5207011.55 | CB105: 1
A106: BAS_RHIN | B106: STRASBOURG | C106: STRASBOURG ROBERTSAU | D106: 20 | E106: Dne | F106: 1335 | G106: 0 | H106: 0 | I106: 1335 | J106: 1335 | K106: 0 | L106: 0 | M106: 46 | N106: 34 | O106: 85 | P106: 58.75205993 | Q106: 13086.16416 | R106: 17470029.16 | S106: 2728525.62 | T106: 26 | U106: 706 | V106: 175 | W106: 50 | X106: 17 | Y106: 146 | Z106: 18 | AA106: 34 | AB106: 29 | AC106: 0 | AD106: 0 | AE106: 157 | AF106: 97 | AG106: 22 | AH106: 2 | AI106: 0 | AJ106: 1 | AK106: 2 | AL106: 32 | AM106: 887 | AN106: 0 | AO106: 0 | AP106: 35 | AQ106: 27 | AR106: 8 | AS106: 10 | AT106: 109 | AU106: 40 | AV106: 9 | AW106: 22 | AX106: 31 | AY106: 0 | AZ106: 1 | BA106: 7 | BB106: 108 | BC106: 3 | BD106: 18 | BE106: 14 | BF106: 261 | BG106: 42 | BH106: 4 | BI106: 7 | BJ106: 6 | BK106: 0 | BL106: 0 | BM106: 4 | BN106: 1 | BO106: 13 | BP106: 13 | BQ106: 2 | BR106: 5 | BS106: 301 | BT106: 2 | BU106: 18 | BV106: 37 | BW106: 25 | BY106: 20 | BZ106: Dne | CA106: 2728525.62 | CB106: 1
A107: BAS_RHIN | B107: STRASBOURG | C107: STRASBOURG ROBERTSAU | D107: 20 | E107: Ee | F107: 264 | G107: 35 | H107: 72 | I107: 72 | J107: 0 | K107: 72 | L107: 0 | M107: 0 | N107: 30 | O107: 8 | P107: 8.128787879 | Q107: 11779.24617 | R107: 3109720.99 | S107: 0 | T107: 1 | U107: 196 | V107: 109 | W107: 0 | X107: 0 | Y107: 12 | Z107: 0 | AA107: 0 | AB107: 0 | AC107: 0 | AD107: 0 | AE107: 13 | AF107: 0 | AG107: 0 | AH107: 0 | AI107: 0 | AJ107: 0 | AK107: 0 | AL107: 0 | AM107: 230 | AN107: 6 | AO107: 37 | AP107: 4 | AQ107: 3 | AR107: 0 | AS107: 2 | AT107: 0 | AU107: 0 | AV107: 2 | AW107: 109 | AX107: 73 | AY107: 0 | AZ107: 0 | BA107: 0 | BB107: 38 | BC107: 4 | BD107: 0 | BE107: 4 | BF107: 10 | BG107: 4 | BH107: 0 | BI107: 0 | BJ107: 0 | BK107: 0 | BL107: 0 | BM107: 0 | BN107: 0 | BO107: 0 | BP107: 0 | BQ107: 0 | BR107: 0 | BS107: 50 | BT107: 0 | BU107: 1 | BV107: 0 | BW107: 12 | BY107: 20 | BZ107: Ee | CA107: 0 | CB107: 1
A108: BAS_RHIN | B108: STRASBOURG | C108: STRASBOURG ROBERTSAU | D108: 20 | E108: Ene | F108: 192 | G108: 72 | H108: 94 | I108: 94 | J108: 0 | K108: 94 | L108: 0 | M108: 0 | N108: 18 | O108: 7 | P108: 11.22395833 | Q108: 1282.256562 | R108: 246193.26 | S108: 0 | T108: 0 | U108: 0 | V108: 0 | W108: 0 | X108: 0 | Y108: 7 | Z108: 0 | AA108: 0 | AB108: 0 | AC108: 0 | AD108: 0 | AE108: 7 | AF108: 1 | AG108: 0 | AH108: 0 | AI108: 0 | AJ108: 0 | AK108: 0 | AL108: 0 | AM108: 168 | AN108: 1 | AO108: 3 | AP108: 0 | AQ108: 0 | AR108: 0 | AS108: 0 | AT108: 0 | AU108: 0 | AV108: 1 | AW108: 39 | AX108: 0 | AY108: 0 | AZ108: 0 | BA108: 0 | BB108: 0 | BC108: 0 | BD108: 0 | BE108: 0 | BF108: 3 | BG108: 0 | BH108: 0 | BI108: 0 | BJ108: 0 | BK108: 0 | BL108: 0 | BM108: 0 | BN108: 0 | BO108: 0 | BP108: 0 | BQ108: 0 | BR108: 0 | BS108: 24 | BT108: 0 | BU108: 2 | BV108: 0 | BW108: 6 | BY108: 20 | BZ108: Ene | CA108: 0 | CB108: 1
A109: BAS_RHIN | B109: STRASBOURG | C109: STRASBOURG ROBERTSAU | D109: 20 | E109: I | F109: 661 | G109: 0 | H109: 0 | I109: 661 | J109: 661 | K109: 0 | L109: 0 | M109: 39 | N109: 0 | O109: 108 | P109: 49.71709531 | Q109: 17.27848714 | R109: 11421.08 | S109: 0 | T109: 0 | U109: 13 | V109: 8 | W109: 0 | X109: 16 | Y109: 2 | Z109: 0 | AA109: 0 | AB109: 0 | AC109: 0 | AD109: 0 | AE109: 1 | AF109: 0 | AG109: 0 | AH109: 0 | AI109: 0 | AJ109: 0 | AK109: 0 | AL109: 0 | AM109: 399 | AN109: 0 | AO109: 0 | AP109: 1 | AQ109: 4 | AR109: 0 | AS109: 0 | AT109: 14 | AU109: 1 | AV109: 0 | AW109: 0 | AX109: 0 | AY109: 0 | AZ109: 3 | BA109: 5 | BB109: 0 | BC109: 0 | BD109: 0 | BE109: 0 | BF109: 14 | BG109: 0 | BH109: 2 | BI109: 7 | BJ109: 5 | BK109: 1 | BL109: 0 | BM109: 2 | BN109: 0 | BO109: 1 | BP109: 1 | BQ109: 0 | BR109: 0 | BS109: 17 | BT109: 0 | BU109: 1 | BV109: 0 | BW109: 0 | BY109: 20 | BZ109: I | CA109: 0 | CB109: 1
A110: BAS_RHIN | B110: STRASBOURG | C110: STRASBOURG ROBERTSAU | D110: 20 | E110: JBPe | F110: 170 | G110: 0 | H110: 170 | I110: 170 | J110: 160 | K110: 10 | L110: 170 | M110: 160 | N110: 5 | O110: 0 | P110: 21.21764706 | Q110: 14566.13112 | R110: 2476242.29 | S110: 889426.54 | T110: 164 | U110: 142 | V110: 68 | W110: 43 | X110: 40 | Y110: 170 | Z110: 13 | AA110: 99 | AB110: 27 | AC110: 0 | AD110: 0 | AE110: 173 | AF110: 108 | AG110: 41 | AH110: 26 | AI110: 3 | AJ110: 0 | AK110: 8 | AL110: 1 | AM110: 144 | AN110: 0 | AO110: 147 | AP110: 4 | AQ110: 1 | AR110: 0 | AS110: 0 | AT110: 8 | AU110: 4 | AV110: 2 | AW110: 39 | AX110: 50 | AY110: 0 | AZ110: 0 | BA110: 0 | BB110: 22 | BC110: 1 | BD110: 1 | BE110: 1 | BF110: 19 | BG110: 9 | BH110: 5 | BI110: 13 | BJ110: 6 | BK110: 3 | BL110: 0 | BM110: 25 | BN110: 0 | BO110: 17 | BP110: 0 | BQ110: 3 | BR110: 5 | BS110: 139 | BT110: 0 | BU110: 133 | BV110: 55 | BW110: 63 | BY110: 20 | BZ110: JBPe | CA110: 889426.54 | CB110: 1
A111: BAS_RHIN | B111: STRASBOURG | C111: STRASBOURG ROBERTSAU | D111: 20 | E111: JBPne | F111: 53 | G111: 0 | H111: 53 | I111: 53 | J111: 46 | K111: 7 | L111: 53 | M111: 46 | N111: 7 | O111: 5 | P111: 20.88679245 | Q111: 1238.957358 | R111: 65664.74 | S111: 29069.24 | T111: 36 | U111: 5 | V111: 0 | W111: 3 | X111: 0 | Y111: 48 | Z111: 0 | AA111: 17 | AB111: 7 | AC111: 0 | AD111: 0 | AE111: 51 | AF111: 29 | AG111: 2 | AH111: 2 | AI111: 0 | AJ111: 0 | AK111: 0 | AL111: 1 | AM111: 23 | AN111: 0 | AO111: 25 | AP111: 0 | AQ111: 0 | AR111: 0 | AS111: 0 | AT111: 1 | AU111: 0 | AV111: 0 | AW111: 3 | AX111: 0 | AY111: 0 | AZ111: 0 | BA111: 0 | BB111: 0 | BC111: 0 | BD111: 0 | BE111: 0 | BF111: 2 | BG111: 0 | BH111: 0 | BI111: 0 | BJ111: 0 | BK111: 0 | BL111: 0 | BM111: 0 | BN111: 0 | BO111: 2 | BP111: 1 | BQ111: 0 | BR111: 0 | BS111: 41 | BT111: 0 | BU111: 37 | BV111: 11 | BW111: 20 | BY111: 20 | BZ111: JBPne | CA111: 29069.24 | CB111: 1
A112: BAS_RHIN | B112: STRASBOURG | C112: STRASBOURG ROBERTSAU | D112: 20 | E112: JDe | F112: 42 | G112: 0 | H112: 42 | I112: 42 | J112: 27 | K112: 15 | L112: 42 | M112: 27 | N112: 1 | O112: 1 | P112: 19.0952381 | Q112: 21510.62857 | R112: 903446.4 | S112: 109142.44 | T112: 2 | U112: 40 | V112: 39 | W112: 3 | X112: 0 | Y112: 7 | Z112: 0 | AA112: 1 | AB112: 1 | AC112: 0 | AD112: 0 | AE112: 7 | AF112: 2 | AG112: 2 | AH112: 2 | AI112: 0 | AJ112: 0 | AK112: 0 | AL112: 1 | AM112: 38 | AN112: 0 | AO112: 31 | AP112: 1 | AQ112: 0 | AR112: 0 | AS112: 0 | AT112: 0 | AU112: 1 | AV112: 1 | AW112: 4 | AX112: 29 | AY112: 0 | AZ112: 0 | BA112: 0 | BB112: 13 | BC112: 5 | BD112: 1 | BE112: 0 | BF112: 6 | BG112: 4 | BH112: 0 | BI112: 0 | BJ112: 0 | BK112: 0 | BL112: 0 | BM112: 0 | BN112: 0 | BO112: 0 | BP112: 0 | BQ112: 0 | BR112: 0 | BS112: 6 | BT112: 0 | BU112: 3 | BV112: 0 | BW112: 5 | BY112: 20 | BZ112: JDe | CA112: 109142.44 | CB112: 1
A113: BAS_RHIN | B113: STRASBOURG | C113: STRASBOURG ROBERTSAU | D113: 20 | E113: JDne | F113: 240 | G113: 0 | H113: 240 | I113: 240 | J113: 173 | K113: 67 | L113: 240 | M113: 173 | N113: 4 | O113: 19 | P113: 19.94583333 | Q113: 4088.630417 | R113: 981271.3 | S113: 57576.95 | T113: 1 | U113: 104 | V113: 21 | W113: 5 | X113: 2 | Y113: 21 | Z113: 1 | AA113: 2 | AB113: 2 | AC113: 0 | AD113: 0 | AE113: 22 | AF113: 9 | AG113: 5 | AH113: 4 | AI113: 0 | AJ113: 0 | AK113: 0 | AL113: 0 | AM113: 178 | AN113: 0 | AO113: 96 | AP113: 1 | AQ113: 0 | AR113: 0 | AS113: 1 | AT113: 1 | AU113: 0 | AV113: 1 | AW113: 23 | AX113: 9 | AY113: 0 | AZ113: 0 | BA113: 0 | BB113: 12 | BC113: 1 | BD113: 1 | BE113: 0 | BF113: 12 | BG113: 1 | BH113: 0 | BI113: 0 | BJ113: 0 | BK113: 0 | BL113: 0 | BM113: 2 | BN113: 0 | BO113: 2 | BP113: 0 | BQ113: 0 | BR113: 0 | BS113: 36 | BT113: 0 | BU113: 14 | BV113: 1 | BW113: 13 | BY113: 20 | BZ113: JDne | CA113: 57576.95 | CB113: 1
A114: BAS_RHIN | B114: STRASBOURG | C114: STRASBOURG VOSGES | D114: 23 | E114: BPe | F114: 478 | G114: 0 | H114: 0 | I114: 478 | J114: 478 | K114: 0 | L114: 0 | M114: 28 | N114: 4 | O114: 3 | P114: 50.18828452 | Q114: 67116.76977 | R114: 32081815.95 | S114: 21600114.89 | T114: 465 | U114: 432 | V114: 340 | W114: 254 | X114: 218 | Y114: 470 | Z114: 299 | AA114: 286 | AB114: 188 | AC114: 0 | AD114: 0 | AE114: 532 | AF114: 411 | AG114: 110 | AH114: 18 | AI114: 3 | AJ114: 9 | AK114: 59 | AL114: 159 | AM114: 442 | AN114: 0 | AO114: 0 | AP114: 29 | AQ114: 44 | AR114: 17 | AS114: 29 | AT114: 172 | AU114: 49 | AV114: 73 | AW114: 144 | AX114: 180 | AY114: 4 | AZ114: 0 | BA114: 20 | BB114: 191 | BC114: 19 | BD114: 66 | BE114: 43 | BF114: 292 | BG114: 153 | BH114: 38 | BI114: 123 | BJ114: 77 | BK114: 17 | BL114: 5 | BM114: 72 | BN114: 11 | BO114: 53 | BP114: 95 | BQ114: 27 | BR114: 56 | BS114: 375 | BT114: 44 | BU114: 126 | BV114: 147 | BW114: 51 | BY114: 23 | BZ114: BPe | CA114: 21600114.89 | CB114: 1
A115: BAS_RHIN | B115: STRASBOURG | C115: STRASBOURG VOSGES | D115: 23 | E115: BPne | F115: 277 | G115: 0 | H115: 0 | I115: 277 | J115: 277 | K115: 0 | L115: 0 | M115: 28 | N115: 7 | O115: 13 | P115: 46.68592058 | Q115: 28413.51957 | R115: 7870544.92 | S115: 3417438.46 | T115: 217 | U115: 125 | V115: 38 | W115: 51 | X115: 31 | Y115: 242 | Z115: 86 | AA115: 96 | AB115: 73 | AC115: 0 | AD115: 0 | AE115: 293 | AF115: 225 | AG115: 20 | AH115: 3 | AI115: 1 | AJ115: 3 | AK115: 10 | AL115: 32 | AM115: 196 | AN115: 0 | AO115: 0 | AP115: 6 | AQ115: 8 | AR115: 4 | AS115: 7 | AT115: 52 | AU115: 20 | AV115: 12 | AW115: 23 | AX115: 18 | AY115: 0 | AZ115: 0 | BA115: 3 | BB115: 19 | BC115: 2 | BD115: 14 | BE115: 7 | BF115: 104 | BG115: 13 | BH115: 3 | BI115: 13 | BJ115: 12 | BK115: 1 | BL115: 0 | BM115: 9 | BN115: 0 | BO115: 25 | BP115: 15 | BQ115: 7 | BR115: 23 | BS115: 221 | BT115: 2 | BU115: 77 | BV115: 81 | BW115: 27 | BY115: 23 | BZ115: BPne | CA115: 3417438.46 | CB115: 1
A116: BAS_RHIN | B116: STRASBOURG | C116: STRASBOURG VOSGES | D116: 23 | E116: De | F116: 439 | G116: 0 | H116: 0 | I116: 439 | J116: 439 | K116: 0 | L116: 0 | M116: 22 | N116: 3 | O116: 18 | P116: 61.08883827 | Q116: 73843.4054 | R116: 32417254.97 | S116: 5421104 | T116: 50 | U116: 402 | V116: 374 | W116: 66 | X116: 79 | Y116: 116 | Z116: 37 | AA116: 37 | AB116: 37 | AC116: 0 | AD116: 0 | AE116: 129 | AF116: 90 | AG116: 22 | AH116: 11 | AI116: 0 | AJ116: 5 | AK116: 4 | AL116: 44 | AM116: 390 | AN116: 0 | AO116: 0 | AP116: 27 | AQ116: 47 | AR116: 16 | AS116: 21 | AT116: 122 | AU116: 45 | AV116: 47 | AW116: 35 | AX116: 151 | AY116: 1 | AZ116: 5 | BA116: 6 | BB116: 185 | BC116: 21 | BD116: 54 | BE116: 39 | BF116: 272 | BG116: 181 | BH116: 9 | BI116: 39 | BJ116: 22 | BK116: 5 | BL116: 0 | BM116: 16 | BN116: 11 | BO116: 9 | BP116: 19 | BQ116: 7 | BR116: 9 | BS116: 159 | BT116: 14 | BU116: 32 | BV116: 52 | BW116: 19 | BY116: 23 | BZ116: De | CA116: 5421104 | CB116: 1
A117: BAS_RHIN | B117: STRASBOURG | C117: STRASBOURG VOSGES | D117: 23 | E117: Dne | F117: 1065 | G117: 0 | H117: 0 | I117: 1065 | J117: 1065 | K117: 0 | L117: 0 | M117: 65 | N117: 11 | O117: 51 | P117: 54.73051643 | Q117: 10951.67876 | R117: 11663537.88 | S117: 1395354.83 | T117: 15 | U117: 520 | V117: 148 | W117: 49 | X117: 21 | Y117: 87 | Z117: 18 | AA117: 22 | AB117: 17 | AC117: 0 | AD117: 0 | AE117: 109 | AF117: 76 | AG117: 22 | AH117: 12 | AI117: 1 | AJ117: 2 | AK117: 2 | AL117: 29 | AM117: 709 | AN117: 0 | AO117: 0 | AP117: 20 | AQ117: 26 | AR117: 13 | AS117: 9 | AT117: 67 | AU117: 29 | AV117: 13 | AW117: 13 | AX117: 39 | AY117: 0 | AZ117: 4 | BA117: 12 | BB117: 73 | BC117: 3 | BD117: 16 | BE117: 21 | BF117: 291 | BG117: 51 | BH117: 3 | BI117: 10 | BJ117: 3 | BK117: 0 | BL117: 1 | BM117: 7 | BN117: 2 | BO117: 14 | BP117: 14 | BQ117: 5 | BR117: 8 | BS117: 288 | BT117: 5 | BU117: 34 | BV117: 49 | BW117: 10 | BY117: 23 | BZ117: Dne | CA117: 1395354.83 | CB117: 1
A118: BAS_RHIN | B118: STRASBOURG | C118: STRASBOURG VOSGES | D118: 23 | E118: Ee | F118: 188 | G118: 30 | H118: 71 | I118: 71 | J118: 0 | K118: 71 | L118: 0 | M118: 0 | N118: 11 | O118: 11 | P118: 9.132978723 | Q118: 8202.073457 | R118: 1541989.81 | S118: 0 | T118: 9 | U118: 129 | V118: 100 | W118: 0 | X118: 0 | Y118: 11 | Z118: 0 | AA118: 0 | AB118: 0 | AC118: 0 | AD118: 0 | AE118: 11 | AF118: 1 | AG118: 0 | AH118: 0 | AI118: 0 | AJ118: 0 | AK118: 0 | AL118: 0 | AM118: 156 | AN118: 5 | AO118: 42 | AP118: 1 | AQ118: 0 | AR118: 0 | AS118: 0 | AT118: 0 | AU118: 0 | AV118: 0 | AW118: 67 | AX118: 49 | AY118: 0 | AZ118: 0 | BA118: 0 | BB118: 45 | BC118: 2 | BD118: 0 | BE118: 0 | BF118: 32 | BG118: 4 | BH118: 0 | BI118: 0 | BJ118: 0 | BK118: 0 | BL118: 0 | BM118: 0 | BN118: 0 | BO118: 0 | BP118: 0 | BQ118: 0 | BR118: 0 | BS118: 33 | BT118: 0 | BU118: 0 | BV118: 0 | BW118: 10 | BY118: 23 | BZ118: Ee | CA118: 0 | CB118: 1
A119: BAS_RHIN | B119: STRASBOURG | C119: STRASBOURG VOSGES | D119: 23 | E119: Ene | F119: 116 | G119: 49 | H119: 49 | I119: 49 | J119: 0 | K119: 49 | L119: 0 | M119: 0 | N119: 4 | O119: 9 | P119: 10.52586207 | Q119: 2342.536466 | R119: 271734.23 | S119: 0 | T119: 0 | U119: 0 | V119: 0 | W119: 0 | X119: 0 | Y119: 2 | Z119: 0 | AA119: 0 | AB119: 0 | AC119: 0 | AD119: 0 | AE119: 2 | AF119: 1 | AG119: 0 | AH119: 0 | AI119: 0 | AJ119: 0 | AK119: 0 | AL119: 0 | AM119: 93 | AN119: 1 | AO119: 2 | AP119: 0 | AQ119: 0 | AR119: 0 | AS119: 0 | AT119: 0 | AU119: 0 | AV119: 0 | AW119: 7 | AX119: 0 | AY119: 0 | AZ119: 0 | BA119: 0 | BB119: 0 | BC119: 0 | BD119: 0 | BE119: 0 | BF119: 10 | BG119: 0 | BH119: 0 | BI119: 0 | BJ119: 0 | BK119: 0 | BL119: 0 | BM119: 0 | BN119: 0 | BO119: 0 | BP119: 0 | BQ119: 0 | BR119: 0 | BS119: 20 | BT119: 0 | BU119: 0 | BV119: 0 | BW119: 1 | BY119: 23 | BZ119: Ene | CA119: 0 | CB119: 1
A120: BAS_RHIN | B120: STRASBOURG | C120: STRASBOURG VOSGES | D120: 23 | E120: I | F120: 572 | G120: 0 | H120: 0 | I120: 572 | J120: 572 | K120: 0 | L120: 0 | M120: 31 | N120: 2 | O120: 102 | P120: 50.38636364 | Q120: 14.90687063 | R120: 8526.73 | S120: 0 | T120: 0 | U120: 11 | V120: 0 | W120: 0 | X120: 15 | Y120: 0 | Z120: 0 | AA120: 0 | AB120: 0 | AC120: 0 | AD120: 0 | AE120: 0 | AF120: 0 | AG120: 0 | AH120: 0 | AI120: 0 | AJ120: 0 | AK120: 0 | AL120: 0 | AM120: 369 | AN120: 0 | AO120: 0 | AP120: 2 | AQ120: 1 | AR120: 0 | AS120: 2 | AT120: 10 | AU120: 2 | AV120: 0 | AW120: 0 | AX120: 0 | AY120: 0 | AZ120: 0 | BA120: 0 | BB120: 0 | BC120: 0 | BD120: 0 | BE120: 0 | BF120: 6 | BG120: 0 | BH120: 1 | BI120: 8 | BJ120: 1 | BK120: 2 | BL120: 1 | BM120: 2 | BN120: 0 | BO120: 2 | BP120: 0 | BQ120: 0 | BR120: 0 | BS120: 10 | BT120: 0 | BU120: 0 | BV120: 0 | BW120: 0 | BY120: 23 | BZ120: I | CA120: 0 | CB120: 1
A121: BAS_RHIN | B121: STRASBOURG | C121: STRASBOURG VOSGES | D121: 23 | E121: JBPe | F121: 126 | G121: 0 | H121: 126 | I121: 126 | J121: 119 | K121: 7 | L121: 126 | M121: 119 | N121: 4 | O121: 6 | P121: 21.64285714 | Q121: 9028.138175 | R121: 1137545.41 | S121: 408847.86 | T121: 121 | U121: 99 | V121: 47 | W121: 26 | X121: 46 | Y121: 125 | Z121: 6 | AA121: 48 | AB121: 23 | AC121: 0 | AD121: 0 | AE121: 122 | AF121: 79 | AG121: 22 | AH121: 18 | AI121: 1 | AJ121: 0 | AK121: 3 | AL121: 1 | AM121: 107 | AN121: 0 | AO121: 104 | AP121: 0 | AQ121: 0 | AR121: 0 | AS121: 1 | AT121: 3 | AU121: 1 | AV121: 0 | AW121: 17 | AX121: 39 | AY121: 0 | AZ121: 0 | BA121: 0 | BB121: 9 | BC121: 1 | BD121: 1 | BE121: 1 | BF121: 38 | BG121: 9 | BH121: 1 | BI121: 12 | BJ121: 3 | BK121: 2 | BL121: 0 | BM121: 33 | BN121: 0 | BO121: 15 | BP121: 3 | BQ121: 10 | BR121: 10 | BS121: 115 | BT121: 2 | BU121: 98 | BV121: 57 | BW121: 42 | BY121: 23 | BZ121: JBPe | CA121: 408847.86 | CB121: 1
A122: BAS_RHIN | B122: STRASBOURG | C122: STRASBOURG VOSGES | D122: 23 | E122: JBPne | F122: 28 | G122: 0 | H122: 28 | I122: 28 | J122: 26 | K122: 2 | L122: 28 | M122: 26 | N122: 1 | O122: 5 | P122: 20.82142857 | Q122: 1068.455714 | R122: 29916.76 | S122: 2206.74 | T122: 19 | U122: 4 | V122: 1 | W122: 1 | X122: 0 | Y122: 25 | Z122: 3 | AA122: 11 | AB122: 7 | AC122: 0 | AD122: 0 | AE122: 27 | AF122: 16 | AG122: 1 | AH122: 0 | AI122: 1 | AJ122: 0 | AK122: 0 | AL122: 0 | AM122: 15 | AN122: 0 | AO122: 16 | AP122: 1 | AQ122: 0 | AR122: 0 | AS122: 0 | AT122: 0 | AU122: 0 | AV122: 0 | AW122: 0 | AX122: 1 | AY122: 0 | AZ122: 0 | BA122: 0 | BB122: 0 | BC122: 0 | BD122: 0 | BE122: 0 | BF122: 6 | BG122: 0 | BH122: 0 | BI122: 0 | BJ122: 0 | BK122: 0 | BL122: 0 | BM122: 0 | BN122: 0 | BO122: 2 | BP122: 0 | BQ122: 0 | BR122: 3 | BS122: 25 | BT122: 0 | BU122: 15 | BV122: 6 | BW122: 10 | BY122: 23 | BZ122: JBPne | CA122: 2206.74 | CB122: 1
A123: BAS_RHIN | B123: STRASBOURG | C123: STRASBOURG VOSGES | D123: 23 | E123: JDe | F123: 57 | G123: 0 | H123: 57 | I123: 57 | J123: 44 | K123: 13 | L123: 57 | M123: 44 | N123: 0 | O123: 0 | P123: 20.31578947 | Q123: 31635.5907 | R123: 1803228.67 | S123: 100938.26 | T123: 2 | U123: 56 | V123: 52 | W123: 2 | X123: 5 | Y123: 17 | Z123: 0 | AA123: 6 | AB123: 1 | AC123: 0 | AD123: 0 | AE123: 17 | AF123: 12 | AG123: 1 | AH123: 1 | AI123: 0 | AJ123: 0 | AK123: 0 | AL123: 1 | AM123: 54 | AN123: 0 | AO123: 49 | AP123: 7 | AQ123: 1 | AR123: 0 | AS123: 0 | AT123: 4 | AU123: 0 | AV123: 1 | AW123: 15 | AX123: 33 | AY123: 0 | AZ123: 0 | BA123: 0 | BB123: 21 | BC123: 3 | BD123: 2 | BE123: 1 | BF123: 30 | BG123: 15 | BH123: 0 | BI123: 1 | BJ123: 0 | BK123: 1 | BL123: 0 | BM123: 3 | BN123: 0 | BO123: 1 | BP123: 0 | BQ123: 0 | BR123: 1 | BS123: 22 | BT123: 0 | BU123: 13 | BV123: 4 | BW123: 4 | BY123: 23 | BZ123: JDe | CA123: 100938.26 | CB123: 1
A124: BAS_RHIN | B124: STRASBOURG | C124: STRASBOURG VOSGES | D124: 23 | E124: JDne | F124: 233 | G124: 0 | H124: 233 | I124: 233 | J124: 179 | K124: 54 | L124: 233 | M124: 179 | N124: 4 | O124: 10 | P124: 20.60515021 | Q124: 3303.274764 | R124: 769663.02 | S124: 75712.55 | T124: 0 | U124: 88 | V124: 15 | W124: 6 | X124: 4 | Y124: 19 | Z124: 0 | AA124: 1 | AB124: 1 | AC124: 0 | AD124: 0 | AE124: 22 | AF124: 16 | AG124: 6 | AH124: 6 | AI124: 0 | AJ124: 0 | AK124: 0 | AL124: 0 | AM124: 163 | AN124: 0 | AO124: 118 | AP124: 2 | AQ124: 1 | AR124: 0 | AS124: 1 | AT124: 0 | AU124: 0 | AV124: 1 | AW124: 6 | AX124: 10 | AY124: 0 | AZ124: 0 | BA124: 0 | BB124: 6 | BC124: 0 | BD124: 0 | BE124: 0 | BF124: 49 | BG124: 2 | BH124: 0 | BI124: 1 | BJ124: 0 | BK124: 2 | BL124: 0 | BM124: 1 | BN124: 0 | BO124: 2 | BP124: 0 | BQ124: 2 | BR124: 2 | BS124: 46 | BT124: 0 | BU124: 15 | BV124: 6 | BW124: 3 | BY124: 23 | BZ124: JDne | CA124: 75712.55 | CB124: 1
A125: BAS_RHIN | B125: STRASBOURG | C125: STRASBOURG AUSTERLITZ | D125: 24 | E125: BPe | F125: 545 | G125: 0 | H125: 0 | I125: 545 | J125: 545 | K125: 0 | L125: 0 | M125: 32 | N125: 6 | O125: 9 | P125: 48.3559633 | Q125: 49235.88859 | R125: 26833559.28 | S125: 16106910.5 | T125: 526 | U125: 485 | V125: 361 | W125: 293 | X125: 267 | Y125: 539 | Z125: 341 | AA125: 298 | AB125: 160 | AC125: 0 | AD125: 0 | AE125: 604 | AF125: 456 | AG125: 159 | AH125: 7 | AI125: 3 | AJ125: 9 | AK125: 84 | AL125: 143 | AM125: 511 | AN125: 0 | AO125: 0 | AP125: 30 | AQ125: 37 | AR125: 11 | AS125: 9 | AT125: 162 | AU125: 59 | AV125: 59 | AW125: 189 | AX125: 189 | AY125: 5 | AZ125: 0 | BA125: 19 | BB125: 195 | BC125: 13 | BD125: 78 | BE125: 44 | BF125: 323 | BG125: 147 | BH125: 49 | BI125: 168 | BJ125: 84 | BK125: 18 | BL125: 1 | BM125: 102 | BN125: 13 | BO125: 54 | BP125: 86 | BQ125: 16 | BR125: 40 | BS125: 431 | BT125: 13 | BU125: 119 | BV125: 111 | BW125: 60 | BY125: 24 | BZ125: BPe | CA125: 16106910.5 | CB125: 1
A126: BAS_RHIN | B126: STRASBOURG | C126: STRASBOURG AUSTERLITZ | D126: 24 | E126: BPne | F126: 292 | G126: 0 | H126: 0 | I126: 292 | J126: 292 | K126: 0 | L126: 0 | M126: 35 | N126: 5 | O126: 7 | P126: 47.53767123 | Q126: 19910.89298 | R126: 5813980.75 | S126: 2353042.54 | T126: 229 | U126: 154 | V126: 35 | W126: 37 | X126: 26 | Y126: 262 | Z126: 74 | AA126: 82 | AB126: 50 | AC126: 0 | AD126: 0 | AE126: 293 | AF126: 207 | AG126: 21 | AH126: 2 | AI126: 0 | AJ126: 0 | AK126: 8 | AL126: 18 | AM126: 222 | AN126: 0 | AO126: 0 | AP126: 5 | AQ126: 7 | AR126: 0 | AS126: 2 | AT126: 61 | AU126: 28 | AV126: 13 | AW126: 46 | AX126: 17 | AY126: 0 | AZ126: 0 | BA126: 1 | BB126: 19 | BC126: 0 | BD126: 8 | BE126: 5 | BF126: 107 | BG126: 18 | BH126: 4 | BI126: 13 | BJ126: 4 | BK126: 3 | BL126: 0 | BM126: 12 | BN126: 1 | BO126: 29 | BP126: 13 | BQ126: 3 | BR126: 31 | BS126: 214 | BT126: 1 | BU126: 68 | BV126: 53 | BW126: 33 | BY126: 24 | BZ126: BPne | CA126: 2353042.54 | CB126: 1
A127: BAS_RHIN | B127: STRASBOURG | C127: STRASBOURG AUSTERLITZ | D127: 24 | E127: De | F127: 357 | G127: 0 | H127: 0 | I127: 357 | J127: 357 | K127: 0 | L127: 0 | M127: 19 | N127: 7 | O127: 12 | P127: 59.01120448 | Q127: 55793.03395 | R127: 19918113.12 | S127: 1738847.47 | T127: 72 | U127: 316 | V127: 276 | W127: 40 | X127: 84 | Y127: 132 | Z127: 35 | AA127: 37 | AB127: 18 | AC127: 0 | AD127: 0 | AE127: 137 | AF127: 89 | AG127: 14 | AH127: 3 | AI127: 0 | AJ127: 0 | AK127: 11 | AL127: 19 | AM127: 302 | AN127: 0 | AO127: 0 | AP127: 14 | AQ127: 22 | AR127: 13 | AS127: 6 | AT127: 93 | AU127: 53 | AV127: 33 | AW127: 60 | AX127: 108 | AY127: 3 | AZ127: 0 | BA127: 5 | BB127: 162 | BC127: 12 | BD127: 44 | BE127: 24 | BF127: 213 | BG127: 128 | BH127: 11 | BI127: 41 | BJ127: 21 | BK127: 6 | BL127: 1 | BM127: 21 | BN127: 9 | BO127: 10 | BP127: 15 | BQ127: 4 | BR127: 8 | BS127: 136 | BT127: 5 | BU127: 26 | BV127: 27 | BW127: 13 | BY127: 24 | BZ127: De | CA127: 1738847.47 | CB127: 1
A128: BAS_RHIN | B128: STRASBOURG | C128: STRASBOURG AUSTERLITZ | D128: 24 | E128: Dne | F128: 781 | G128: 0 | H128: 0 | I128: 781 | J128: 781 | K128: 0 | L128: 0 | M128: 41 | N128: 25 | O128: 48 | P128: 53.95518566 | Q128: 8505.399693 | R128: 6642717.16 | S128: 133352.1 | T128: 24 | U128: 337 | V128: 107 | W128: 21 | X128: 24 | Y128: 126 | Z128: 15 | AA128: 19 | AB128: 17 | AC128: 0 | AD128: 0 | AE128: 129 | AF128: 86 | AG128: 13 | AH128: 6 | AI128: 0 | AJ128: 0 | AK128: 2 | AL128: 8 | AM128: 476 | AN128: 0 | AO128: 0 | AP128: 17 | AQ128: 11 | AR128: 4 | AS128: 4 | AT128: 55 | AU128: 42 | AV128: 7 | AW128: 23 | AX128: 18 | AY128: 0 | AZ128: 3 | BA128: 11 | BB128: 56 | BC128: 1 | BD128: 16 | BE128: 6 | BF128: 204 | BG128: 25 | BH128: 2 | BI128: 5 | BJ128: 2 | BK128: 2 | BL128: 0 | BM128: 12 | BN128: 3 | BO128: 15 | BP128: 5 | BQ128: 2 | BR128: 6 | BS128: 238 | BT128: 3 | BU128: 42 | BV128: 26 | BW128: 17 | BY128: 24 | BZ128: Dne | CA128: 133352.1 | CB128: 1
A129: BAS_RHIN | B129: STRASBOURG | C129: STRASBOURG AUSTERLITZ | D129: 24 | E129: Ee | F129: 151 | G129: 23 | H129: 37 | I129: 37 | J129: 0 | K129: 37 | L129: 0 | M129: 0 | N129: 3 | O129: 4 | P129: 8.245033113 | Q129: 4537.283377 | R129: 685129.79 | S129: 0 | T129: 3 | U129: 106 | V129: 66 | W129: 0 | X129: 0 | Y129: 7 | Z129: 0 | AA129: 0 | AB129: 0 | AC129: 0 | AD129: 0 | AE129: 8 | AF129: 4 | AG129: 0 | AH129: 0 | AI129: 0 | AJ129: 0 | AK129: 0 | AL129: 0 | AM129: 133 | AN129: 4 | AO129: 21 | AP129: 0 | AQ129: 0 | AR129: 0 | AS129: 0 | AT129: 0 | AU129: 0 | AV129: 0 | AW129: 57 | AX129: 16 | AY129: 0 | AZ129: 0 | BA129: 0 | BB129: 44 | BC129: 1 | BD129: 0 | BE129: 0 | BF129: 14 | BG129: 4 | BH129: 0 | BI129: 0 | BJ129: 0 | BK129: 0 | BL129: 0 | BM129: 0 | BN129: 0 | BO129: 0 | BP129: 0 | BQ129: 0 | BR129: 0 | BS129: 28 | BT129: 0 | BU129: 4 | BV129: 0 | BW129: 3 | BY129: 24 | BZ129: Ee | CA129: 0 | CB129: 1
A130: BAS_RHIN | B130: STRASBOURG | C130: STRASBOURG AUSTERLITZ | D130: 24 | E130: Ene | F130: 99 | G130: 52 | H130: 32 | I130: 32 | J130: 0 | K130: 32 | L130: 0 | M130: 0 | N130: 5 | O130: 3 | P130: 10.19191919 | Q130: 2074.935758 | R130: 205418.64 | S130: 0 | T130: 0 | U130: 0 | V130: 0 | W130: 0 | X130: 0 | Y130: 2 | Z130: 0 | AA130: 0 | AB130: 0 | AC130: 0 | AD130: 0 | AE130: 2 | AF130: 1 | AG130: 0 | AH130: 0 | AI130: 0 | AJ130: 0 | AK130: 0 | AL130: 0 | AM130: 83 | AN130: 0 | AO130: 2 | AP130: 0 | AQ130: 0 | AR130: 0 | AS130: 1 | AT130: 0 | AU130: 0 | AV130: 0 | AW130: 9 | AX130: 0 | AY130: 0 | AZ130: 0 | BA130: 0 | BB130: 0 | BC130: 0 | BD130: 0 | BE130: 0 | BF130: 6 | BG130: 0 | BH130: 0 | BI130: 0 | BJ130: 0 | BK130: 0 | BL130: 0 | BM130: 0 | BN130: 0 | BO130: 0 | BP130: 0 | BQ130: 0 | BR130: 0 | BS130: 9 | BT130: 0 | BU130: 1 | BV130: 0 | BW130: 1 | BY130: 24 | BZ130: Ene | CA130: 0 | CB130: 1
A131: BAS_RHIN | B131: STRASBOURG | C131: STRASBOURG AUSTERLITZ | D131: 24 | E131: I | F131: 482 | G131: 0 | H131: 0 | I131: 482 | J131: 482 | K131: 0 | L131: 0 | M131: 37 | N131: 0 | O131: 68 | P131: 48.77593361 | Q131: 10.86607884 | R131: 5237.45 | S131: 0 | T131: 1 | U131: 8 | V131: 4 | W131: 0 | X131: 12 | Y131: 2 | Z131: 0 | AA131: 0 | AB131: 0 | AC131: 0 | AD131: 0 | AE131: 1 | AF131: 0 | AG131: 0 | AH131: 0 | AI131: 0 | AJ131: 0 | AK131: 0 | AL131: 0 | AM131: 276 | AN131: 0 | AO131: 0 | AP131: 1 | AQ131: 1 | AR131: 0 | AS131: 1 | AT131: 8 | AU131: 0 | AV131: 0 | AW131: 0 | AX131: 0 | AY131: 0 | AZ131: 0 | BA131: 3 | BB131: 0 | BC131: 0 | BD131: 0 | BE131: 1 | BF131: 3 | BG131: 0 | BH131: 0 | BI131: 4 | BJ131: 1 | BK131: 5 | BL131: 1 | BM131: 1 | BN131: 0 | BO131: 2 | BP131: 4 | BQ131: 0 | BR131: 0 | BS131: 17 | BT131: 0 | BU131: 0 | BV131: 0 | BW131: 0 | BY131: 24 | BZ131: I | CA131: 0 | CB131: =IF(AND(BY131=D131,E131=BZ131),1,0) -> 1
A132: BAS_RHIN | B132: STRASBOURG | C132: STRASBOURG AUSTERLITZ | D132: 24 | E132: JBPe | F132: 128 | G132: 0 | H132: 128 | I132: 128 | J132: 123 | K132: 5 | L132: 128 | M132: 123 | N132: 15 | O132: 2 | P132: 22.234375 | Q132: 8534.90375 | R132: 1092467.68 | S132: 558180.22 | T132: 123 | U132: 98 | V132: 38 | W132: 31 | X132: 42 | Y132: 126 | Z132: 20 | AA132: 47 | AB132: 28 | AC132: 0 | AD132: 0 | AE132: 127 | AF132: 90 | AG132: 27 | AH132: 11 | AI132: 0 | AJ132: 0 | AK132: 6 | AL132: 2 | AM132: 103 | AN132: 0 | AO132: 109 | AP132: 2 | AQ132: 0 | AR132: 0 | AS132: 1 | AT132: 8 | AU132: 0 | AV132: 3 | AW132: 31 | AX132: 22 | AY132: 0 | AZ132: 0 | BA132: 0 | BB132: 14 | BC132: 0 | BD132: 1 | BE132: 2 | BF132: 27 | BG132: 11 | BH132: 4 | BI132: 10 | BJ132: 6 | BK132: 4 | BL132: 0 | BM132: 34 | BN132: 0 | BO132: 13 | BP132: 5 | BQ132: 3 | BR132: 5 | BS132: 123 | BT132: 0 | BU132: 108 | BV132: 50 | BW132: 35 | BY132: 24 | BZ132: JBPe | CA132: 558180.22 | CB132: 1
A133: BAS_RHIN | B133: STRASBOURG | C133: STRASBOURG AUSTERLITZ | D133: 24 | E133: JBPne | F133: 35 | G133: 0 | H133: 35 | I133: 35 | J133: 31 | K133: 4 | L133: 35 | M133: 31 | N133: 1 | O133: 3 | P133: 21.34285714 | Q133: 1250.899143 | R133: 43781.47 | S133: 0 | T133: 21 | U133: 5 | V133: 0 | W133: 0 | X133: 1 | Y133: 35 | Z133: 1 | AA133: 5 | AB133: 5 | AC133: 0 | AD133: 0 | AE133: 35 | AF133: 27 | AG133: 0 | AH133: 0 | AI133: 0 | AJ133: 0 | AK133: 0 | AL133: 0 | AM133: 21 | AN133: 0 | AO133: 18 | AP133: 0 | AQ133: 0 | AR133: 0 | AS133: 1 | AT133: 0 | AU133: 0 | AV133: 0 | AW133: 2 | AX133: 0 | AY133: 0 | AZ133: 0 | BA133: 0 | BB133: 0 | BC133: 0 | BD133: 0 | BE133: 0 | BF133: 0 | BG133: 0 | BH133: 0 | BI133: 0 | BJ133: 0 | BK133: 1 | BL133: 0 | BM133: 1 | BN133: 0 | BO133: 3 | BP133: 0 | BQ133: 1 | BR133: 0 | BS133: 32 | BT133: 0 | BU133: 28 | BV133: 9 | BW133: 7 | BY133: 24 | BZ133: JBPne | CA133: 0 | CB133: 1
A134: BAS_RHIN | B134: STRASBOURG | C134: STRASBOURG AUSTERLITZ | D134: 24 | E134: JDe | F134: 15 | G134: 0 | H134: 15 | I134: 15 | J134: 10 | K134: 5 | L134: 15 | M134: 10 | N134: 1 | O134: 0 | P134: 19.33333333 | Q134: 20110.254 | R134: 301653.81 | S134: 50000 | T134: 1 | U134: 14 | V134: 14 | W134: 1 | X134: 1 | Y134: 6 | Z134: 0 | AA134: 0 | AB134: 2 | AC134: 0 | AD134: 0 | AE134: 6 | AF134: 1 | AG134: 1 | AH134: 1 | AI134: 0 | AJ134: 0 | AK134: 0 | AL134: 0 | AM134: 11 | AN134: 0 | AO134: 11 | AP134: 1 | AQ134: 0 | AR134: 0 | AS134: 0 | AT134: 1 | AU134: 0 | AV134: 2 | AW134: 1 | AX134: 10 | AY134: 0 | AZ134: 0 | BA134: 0 | BB134: 6 | BC134: 1 | BD134: 0 | BE134: 1 | BF134: 4 | BG134: 3 | BH134: 0 | BI134: 0 | BJ134: 0 | BK134: 0 | BL134: 0 | BM134: 1 | BN134: 0 | BO134: 0 | BP134: 0 | BQ134: 0 | BR134: 0 | BS134: 10 | BT134: 0 | BU134: 5 | BV134: 0 | BW134: 5 | BY134: 24 | BZ134: JDe | CA134: 50000 | CB134: 1
A135: BAS_RHIN | B135: STRASBOURG | C135: STRASBOURG AUSTERLITZ | D135: 24 | E135: JDne | F135: 148 | G135: 0 | H135: 148 | I135: 148 | J135: 112 | K135: 36 | L135: 148 | M135: 112 | N135: 4 | O135: 9 | P135: 20.38513514 | Q135: 3488.284324 | R135: 516266.08 | S135: 2054.61 | T135: 2 | U135: 49 | V135: 9 | W135: 3 | X135: 1 | Y135: 22 | Z135: 2 | AA135: 3 | AB135: 2 | AC135: 0 | AD135: 0 | AE135: 24 | AF135: 11 | AG135: 2 | AH135: 0 | AI135: 1 | AJ135: 0 | AK135: 1 | AL135: 0 | AM135: 109 | AN135: 0 | AO135: 68 | AP135: 0 | AQ135: 0 | AR135: 0 | AS135: 0 | AT135: 1 | AU135: 0 | AV135: 0 | AW135: 14 | AX135: 7 | AY135: 0 | AZ135: 0 | BA135: 0 | BB135: 5 | BC135: 1 | BD135: 0 | BE135: 0 | BF135: 14 | BG135: 3 | BH135: 0 | BI135: 0 | BJ135: 0 | BK135: 0 | BL135: 0 | BM135: 1 | BN135: 0 | BO135: 2 | BP135: 1 | BQ135: 0 | BR135: 0 | BS135: 29 | BT135: 0 | BU135: 18 | BV135: 3 | BW135: 10 | BY135: 24 | BZ135: JDne | CA135: 2054.61 | CB135: 1
A136: BAS_RHIN | B136: STRASBOURG | C136: STRASBOURG ESPLANADE | D136: 25 | E136: BPe | F136: 568 | G136: 0 | H136: 0 | I136: 568 | J136: 568 | K136: 0 | L136: 0 | M136: 37 | N136: 1 | O136: 7 | P136: 49.34330986 | Q136: 52961.38762 | R136: 30082068.17 | S136: 16668444.64 | T136: 552 | U136: 502 | V136: 388 | W136: 324 | X136: 262 | Y136: 560 | Z136: 264 | AA136: 248 | AB136: 156 | AC136: 0 | AD136: 0 | AE136: 607 | AF136: 446 | AG136: 171 | AH136: 9 | AI136: 6 | AJ136: 6 | AK136: 80 | AL136: 156 | AM136: 518 | AN136: 0 | AO136: 0 | AP136: 34 | AQ136: 31 | AR136: 10 | AS136: 24 | AT136: 205 | AU136: 94 | AV136: 101 | AW136: 184 | AX136: 219 | AY136: 11 | AZ136: 0 | BA136: 20 | BB136: 181 | BC136: 30 | BD136: 97 | BE136: 46 | BF136: 354 | BG136: 176 | BH136: 45 | BI136: 132 | BJ136: 85 | BK136: 16 | BL136: 0 | BM136: 101 | BN136: 14 | BO136: 61 | BP136: 66 | BQ136: 34 | BR136: 41 | BS136: 454 | BT136: 41 | BU136: 95 | BV136: 105 | BW136: 72 | BY136: 25 | BZ136: BPe | CA136: 16668444.64 | CB136: 1
A137: BAS_RHIN | B137: STRASBOURG | C137: STRASBOURG ESPLANADE | D137: 25 | E137: BPne | F137: 386 | G137: 0 | H137: 0 | I137: 386 | J137: 386 | K137: 0 | L137: 0 | M137: 45 | N137: 7 | O137: 13 | P137: 47.09067358 | Q137: 10903.09907 | R137: 4208596.24 | S137: 1845852.75 | T137: 311 | U137: 148 | V137: 38 | W137: 60 | X137: 41 | Y137: 337 | Z137: 77 | AA137: 77 | AB137: 52 | AC137: 0 | AD137: 0 | AE137: 366 | AF137: 272 | AG137: 40 | AH137: 2 | AI137: 2 | AJ137: 0 | AK137: 17 | AL137: 19 | AM137: 264 | AN137: 0 | AO137: 0 | AP137: 3 | AQ137: 5 | AR137: 1 | AS137: 1 | AT137: 44 | AU137: 36 | AV137: 6 | AW137: 33 | AX137: 17 | AY137: 0 | AZ137: 0 | BA137: 1 | BB137: 15 | BC137: 1 | BD137: 16 | BE137: 3 | BF137: 107 | BG137: 10 | BH137: 4 | BI137: 30 | BJ137: 11 | BK137: 3 | BL137: 0 | BM137: 8 | BN137: 2 | BO137: 29 | BP137: 23 | BQ137: 10 | BR137: 17 | BS137: 284 | BT137: 5 | BU137: 80 | BV137: 85 | BW137: 39 | BY137: 25 | BZ137: BPne | CA137: 1845852.75 | CB137: 1
A138: BAS_RHIN | B138: STRASBOURG | C138: STRASBOURG ESPLANADE | D138: 25 | E138: De | F138: 425 | G138: 0 | H138: 0 | I138: 425 | J138: 425 | K138: 0 | L138: 0 | M138: 17 | N138: 1 | O138: 14 | P138: 61.98352941 | Q138: 77009.67654 | R138: 32729112.53 | S138: 3189263.13 | T138: 95 | U138: 374 | V138: 350 | W138: 63 | X138: 91 | Y138: 178 | Z138: 40 | AA138: 40 | AB138: 29 | AC138: 0 | AD138: 0 | AE138: 178 | AF138: 134 | AG138: 32 | AH138: 3 | AI138: 1 | AJ138: 2 | AK138: 9 | AL138: 34 | AM138: 377 | AN138: 0 | AO138: 0 | AP138: 23 | AQ138: 27 | AR138: 7 | AS138: 17 | AT138: 122 | AU138: 76 | AV138: 49 | AW138: 66 | AX138: 147 | AY138: 3 | AZ138: 3 | BA138: 10 | BB138: 173 | BC138: 11 | BD138: 45 | BE138: 60 | BF138: 239 | BG138: 163 | BH138: 8 | BI138: 59 | BJ138: 23 | BK138: 8 | BL138: 1 | BM138: 13 | BN138: 10 | BO138: 16 | BP138: 19 | BQ138: 3 | BR138: 8 | BS138: 168 | BT138: 13 | BU138: 29 | BV138: 39 | BW138: 15 | BY138: 25 | BZ138: De | CA138: 3189263.13 | CB138: 1
A139: BAS_RHIN | B139: STRASBOURG | C139: STRASBOURG ESPLANADE | D139: 25 | E139: Dne | F139: 948 | G139: 0 | H139: 0 | I139: 948 | J139: 948 | K139: 0 | L139: 0 | M139: 49 | N139: 9 | O139: 77 | P139: 54.96518987 | Q139: 10566.47897 | R139: 10017022.06 | S139: 1595460.96 | T139: 39 | U139: 425 | V139: 103 | W139: 42 | X139: 22 | Y139: 170 | Z139: 12 | AA139: 23 | AB139: 15 | AC139: 0 | AD139: 0 | AE139: 164 | AF139: 106 | AG139: 32 | AH139: 9 | AI139: 0 | AJ139: 1 | AK139: 3 | AL139: 15 | AM139: 585 | AN139: 0 | AO139: 0 | AP139: 20 | AQ139: 18 | AR139: 4 | AS139: 7 | AT139: 65 | AU139: 42 | AV139: 15 | AW139: 18 | AX139: 26 | AY139: 0 | AZ139: 0 | BA139: 3 | BB139: 53 | BC139: 7 | BD139: 21 | BE139: 11 | BF139: 222 | BG139: 27 | BH139: 2 | BI139: 11 | BJ139: 4 | BK139: 1 | BL139: 0 | BM139: 7 | BN139: 2 | BO139: 12 | BP139: 9 | BQ139: 3 | BR139: 7 | BS139: 274 | BT139: 6 | BU139: 29 | BV139: 43 | BW139: 17 | BY139: 25 | BZ139: Dne | CA139: 1595460.96 | CB139: 1
A140: BAS_RHIN | B140: STRASBOURG | C140: STRASBOURG ESPLANADE | D140: 25 | E140: Ee | F140: 165 | G140: 25 | H140: 55 | I140: 55 | J140: 0 | K140: 55 | L140: 0 | M140: 0 | N140: 2 | O140: 4 | P140: 9.151515152 | Q140: 9054.997697 | R140: 1494074.62 | S140: 0 | T140: 3 | U140: 87 | V140: 112 | W140: 0 | X140: 0 | Y140: 9 | Z140: 0 | AA140: 0 | AB140: 0 | AC140: 0 | AD140: 0 | AE140: 9 | AF140: 0 | AG140: 0 | AH140: 0 | AI140: 0 | AJ140: 0 | AK140: 0 | AL140: 0 | AM140: 135 | AN140: 3 | AO140: 21 | AP140: 0 | AQ140: 0 | AR140: 0 | AS140: 2 | AT140: 0 | AU140: 0 | AV140: 2 | AW140: 76 | AX140: 44 | AY140: 0 | AZ140: 0 | BA140: 0 | BB140: 54 | BC140: 3 | BD140: 0 | BE140: 0 | BF140: 18 | BG140: 13 | BH140: 0 | BI140: 0 | BJ140: 0 | BK140: 0 | BL140: 0 | BM140: 0 | BN140: 0 | BO140: 0 | BP140: 0 | BQ140: 0 | BR140: 0 | BS140: 44 | BT140: 0 | BU140: 0 | BV140: 0 | BW140: 9 | BY140: 25 | BZ140: Ee | CA140: 0 | CB140: 1
A141: BAS_RHIN | B141: STRASBOURG | C141: STRASBOURG ESPLANADE | D141: 25 | E141: Ene | F141: 150 | G141: 60 | H141: 58 | I141: 58 | J141: 0 | K141: 58 | L141: 0 | M141: 0 | N141: 5 | O141: 4 | P141: 9.826666667 | Q141: 2052.281133 | R141: 307842.17 | S141: 0 | T141: 0 | U141: 0 | V141: 0 | W141: 0 | X141: 0 | Y141: 7 | Z141: 0 | AA141: 0 | AB141: 0 | AC141: 0 | AD141: 0 | AE141: 8 | AF141: 3 | AG141: 0 | AH141: 0 | AI141: 0 | AJ141: 0 | AK141: 0 | AL141: 0 | AM141: 140 | AN141: 1 | AO141: 3 | AP141: 0 | AQ141: 1 | AR141: 0 | AS141: 0 | AT141: 0 | AU141: 0 | AV141: 0 | AW141: 28 | AX141: 0 | AY141: 0 | AZ141: 0 | BA141: 0 | BB141: 0 | BC141: 0 | BD141: 0 | BE141: 0 | BF141: 9 | BG141: 3 | BH141: 0 | BI141: 0 | BJ141: 0 | BK141: 0 | BL141: 0 | BM141: 0 | BN141: 0 | BO141: 0 | BP141: 0 | BQ141: 0 | BR141: 0 | BS141: 19 | BT141: 0 | BU141: 3 | BV141: 0 | BW141: 5 | BY141: 25 | BZ141: Ene | CA141: 0 | CB141: 1
A142: BAS_RHIN | B142: STRASBOURG | C142: STRASBOURG ESPLANADE | D142: 25 | E142: I | F142: 562 | G142: 0 | H142: 0 | I142: 562 | J142: 562 | K142: 0 | L142: 0 | M142: 35 | N142: 0 | O142: 115 | P142: 49.49644128 | Q142: 16.47549822 | R142: 9259.23 | S142: 0 | T142: 0 | U142: 14 | V142: 0 | W142: 0 | X142: 21 | Y142: 3 | Z142: 0 | AA142: 0 | AB142: 0 | AC142: 0 | AD142: 0 | AE142: 0 | AF142: 0 | AG142: 0 | AH142: 0 | AI142: 0 | AJ142: 0 | AK142: 0 | AL142: 0 | AM142: 304 | AN142: 0 | AO142: 0 | AP142: 2 | AQ142: 0 | AR142: 1 | AS142: 0 | AT142: 6 | AU142: 0 | AV142: 0 | AW142: 0 | AX142: 0 | AY142: 0 | AZ142: 0 | BA142: 0 | BB142: 0 | BC142: 0 | BD142: 0 | BE142: 0 | BF142: 7 | BG142: 0 | BH142: 1 | BI142: 7 | BJ142: 4 | BK142: 6 | BL142: 1 | BM142: 5 | BN142: 1 | BO142: 5 | BP142: 3 | BQ142: 2 | BR142: 0 | BS142: 16 | BT142: 0 | BU142: 0 | BV142: 0 | BW142: 0 | BY142: 25 | BZ142: I | CA142: 0 | CB142: 1
A143: BAS_RHIN | B143: STRASBOURG | C143: STRASBOURG ESPLANADE | D143: 25 | E143: JBPe | F143: 196 | G143: 0 | H143: 196 | I143: 196 | J143: 191 | K143: 5 | L143: 196 | M143: 191 | N143: 11 | O143: 3 | P143: 22.03061224 | Q143: 8676.093418 | R143: 1700514.31 | S143: 651254.84 | T143: 189 | U143: 160 | V143: 59 | W143: 51 | X143: 57 | Y143: 196 | Z143: 21 | AA143: 70 | AB143: 43 | AC143: 0 | AD143: 0 | AE143: 197 | AF143: 132 | AG143: 48 | AH143: 19 | AI143: 4 | AJ143: 0 | AK143: 10 | AL143: 2 | AM143: 152 | AN143: 0 | AO143: 167 | AP143: 1 | AQ143: 0 | AR143: 0 | AS143: 2 | AT143: 23 | AU143: 2 | AV143: 2 | AW143: 62 | AX143: 21 | AY143: 0 | AZ143: 0 | BA143: 0 | BB143: 22 | BC143: 0 | BD143: 1 | BE143: 0 | BF143: 52 | BG143: 26 | BH143: 4 | BI143: 31 | BJ143: 13 | BK143: 3 | BL143: 0 | BM143: 26 | BN143: 0 | BO143: 20 | BP143: 10 | BQ143: 12 | BR143: 16 | BS143: 186 | BT143: 0 | BU143: 144 | BV143: 92 | BW143: 59 | BY143: 25 | BZ143: JBPe | CA143: 651254.84 | CB143: 1
A144: BAS_RHIN | B144: STRASBOURG | C144: STRASBOURG ESPLANADE | D144: 25 | E144: JBPne | F144: 69 | G144: 0 | H144: 69 | I144: 69 | J144: 66 | K144: 3 | L144: 69 | M144: 66 | N144: 8 | O144: 11 | P144: 21.42028986 | Q144: 2290.052464 | R144: 158013.62 | S144: 3914.01 | T144: 42 | U144: 6 | V144: 5 | W144: 1 | X144: 2 | Y144: 68 | Z144: 0 | AA144: 8 | AB144: 6 | AC144: 0 | AD144: 0 | AE144: 67 | AF144: 55 | AG144: 1 | AH144: 1 | AI144: 0 | AJ144: 0 | AK144: 0 | AL144: 0 | AM144: 25 | AN144: 0 | AO144: 41 | AP144: 0 | AQ144: 0 | AR144: 0 | AS144: 0 | AT144: 1 | AU144: 0 | AV144: 0 | AW144: 4 | AX144: 1 | AY144: 0 | AZ144: 0 | BA144: 0 | BB144: 2 | BC144: 0 | BD144: 0 | BE144: 0 | BF144: 11 | BG144: 2 | BH144: 0 | BI144: 2 | BJ144: 0 | BK144: 0 | BL144: 0 | BM144: 0 | BN144: 0 | BO144: 6 | BP144: 1 | BQ144: 1 | BR144: 6 | BS144: 64 | BT144: 0 | BU144: 51 | BV144: 22 | BW144: 10 | BY144: 25 | BZ144: JBPne | CA144: 3914.01 | CB144: 1
A145: BAS_RHIN | B145: STRASBOURG | C145: STRASBOURG ESPLANADE | D145: 25 | E145: JDe | F145: 21 | G145: 0 | H145: 21 | I145: 21 | J145: 9 | K145: 12 | L145: 21 | M145: 9 | N145: 0 | O145: 1 | P145: 18.23809524 | Q145: 21491.98762 | R145: 451331.74 | S145: 0 | T145: 1 | U145: 21 | V145: 20 | W145: 0 | X145: 0 | Y145: 3 | Z145: 0 | AA145: 0 | AB145: 0 | AC145: 0 | AD145: 0 | AE145: 3 | AF145: 1 | AG145: 0 | AH145: 0 | AI145: 0 | AJ145: 0 | AK145: 0 | AL145: 0 | AM145: 20 | AN145: 0 | AO145: 9 | AP145: 0 | AQ145: 0 | AR145: 0 | AS145: 0 | AT145: 0 | AU145: 0 | AV145: 1 | AW145: 3 | AX145: 12 | AY145: 0 | AZ145: 0 | BA145: 0 | BB145: 5 | BC145: 0 | BD145: 0 | BE145: 0 | BF145: 9 | BG145: 8 | BH145: 0 | BI145: 0 | BJ145: 0 | BK145: 0 | BL145: 0 | BM145: 0 | BN145: 0 | BO145: 0 | BP145: 0 | BQ145: 0 | BR145: 0 | BS145: 5 | BT145: 0 | BU145: 0 | BV145: 0 | BW145: 2 | BY145: 25 | BZ145: JDe | CA145: 0 | CB145: 1
A146: BAS_RHIN | B146: STRASBOURG | C146: STRASBOURG ESPLANADE | D146: 25 | E146: JDne | F146: 185 | G146: 0 | H146: 185 | I146: 185 | J146: 142 | K146: 43 | L146: 185 | M146: 142 | N146: 3 | O146: 16 | P146: 20.44864865 | Q146: 2601.424541 | R146: 481263.54 | S146: 1723.25 | T146: 0 | U146: 73 | V146: 16 | W146: 4 | X146: 6 | Y146: 41 | Z146: 1 | AA146: 2 | AB146: 2 | AC146: 0 | AD146: 0 | AE146: 41 | AF146: 36 | AG146: 4 | AH146: 0 | AI146: 0 | AJ146: 0 | AK146: 0 | AL146: 0 | AM146: 122 | AN146: 0 | AO146: 65 | AP146: 0 | AQ146: 0 | AR146: 0 | AS146: 0 | AT146: 0 | AU146: 0 | AV146: 0 | AW146: 24 | AX146: 2 | AY146: 0 | AZ146: 0 | BA146: 0 | BB146: 11 | BC146: 1 | BD146: 1 | BE146: 0 | BF146: 18 | BG146: 5 | BH146: 1 | BI146: 4 | BJ146: 0 | BK146: 1 | BL146: 0 | BM146: 1 | BN146: 0 | BO146: 5 | BP146: 0 | BQ146: 0 | BR146: 4 | BS146: 52 | BT146: 0 | BU146: 27 | BV146: 16 | BW146: 4 | BY146: 25 | BZ146: JDne | CA146: 1723.25 | CB146: 1
A147: BAS_RHIN | B147: STRASBOURG | C147: STRASBOURG DANUBE | D147: 26 | E147: BPe | F147: 316 | G147: 0 | H147: 0 | I147: 316 | J147: 316 | K147: 0 | L147: 0 | M147: 16 | N147: 0 | O147: 2 | P147: 45.50632911 | Q147: 51550.46174 | R147: 16289945.91 | S147: 15883217.12 | T147: 303 | U147: 265 | V147: 243 | W147: 194 | X147: 156 | Y147: 309 | Z147: 181 | AA147: 155 | AB147: 72 | AC147: 0 | AD147: 0 | AE147: 343 | AF147: 277 | AG147: 90 | AH147: 5 | AI147: 0 | AJ147: 11 | AK147: 52 | AL147: 121 | AM147: 280 | AN147: 0 | AO147: 0 | AP147: 14 | AQ147: 17 | AR147: 10 | AS147: 14 | AT147: 109 | AU147: 32 | AV147: 46 | AW147: 98 | AX147: 134 | AY147: 6 | AZ147: 0 | BA147: 14 | BB147: 107 | BC147: 14 | BD147: 58 | BE147: 19 | BF147: 173 | BG147: 114 | BH147: 33 | BI147: 87 | BJ147: 57 | BK147: 13 | BL147: 3 | BM147: 61 | BN147: 3 | BO147: 32 | BP147: 43 | BQ147: 16 | BR147: 53 | BS147: 279 | BT147: 15 | BU147: 44 | BV147: 86 | BW147: 24 | BY147: 26 | BZ147: BPe | CA147: 15883217.12 | CB147: 1
A148: BAS_RHIN | B148: STRASBOURG | C148: STRASBOURG DANUBE | D148: 26 | E148: BPne | F148: 202 | G148: 0 | H148: 0 | I148: 202 | J148: 202 | K148: 0 | L148: 0 | M148: 15 | N148: 5 | O148: 4 | P148: 46.21782178 | Q148: 14097.04129 | R148: 2847602.34 | S148: 2319938.22 | T148: 146 | U148: 84 | V148: 25 | W148: 46 | X148: 10 | Y148: 172 | Z148: 53 | AA148: 48 | AB148: 22 | AC148: 0 | AD148: 0 | AE148: 189 | AF148: 165 | AG148: 19 | AH148: 0 | AI148: 0 | AJ148: 1 | AK148: 13 | AL148: 27 | AM148: 124 | AN148: 0 | AO148: 0 | AP148: 3 | AQ148: 4 | AR148: 1 | AS148: 2 | AT148: 32 | AU148: 13 | AV148: 7 | AW148: 13 | AX148: 12 | AY148: 0 | AZ148: 0 | BA148: 1 | BB148: 6 | BC148: 1 | BD148: 4 | BE148: 3 | BF148: 62 | BG148: 14 | BH148: 4 | BI148: 6 | BJ148: 4 | BK148: 1 | BL148: 0 | BM148: 1 | BN148: 0 | BO148: 12 | BP148: 10 | BQ148: 4 | BR148: 22 | BS148: 163 | BT148: 3 | BU148: 25 | BV148: 41 | BW148: 11 | BY148: 26 | BZ148: BPne | CA148: 2319938.22 | CB148: 1
A149: BAS_RHIN | B149: STRASBOURG | C149: STRASBOURG DANUBE | D149: 26 | E149: De | F149: 259 | G149: 0 | H149: 0 | I149: 259 | J149: 259 | K149: 0 | L149: 0 | M149: 7 | N149: 0 | O149: 6 | P149: 56.34749035 | Q149: 50300.59564 | R149: 13027854.27 | S149: 3487093.64 | T149: 27 | U149: 219 | V149: 224 | W149: 48 | X149: 45 | Y149: 63 | Z149: 24 | AA149: 14 | AB149: 11 | AC149: 0 | AD149: 0 | AE149: 69 | AF149: 60 | AG149: 15 | AH149: 1 | AI149: 1 | AJ149: 2 | AK149: 3 | AL149: 35 | AM149: 216 | AN149: 0 | AO149: 0 | AP149: 7 | AQ149: 9 | AR149: 6 | AS149: 8 | AT149: 46 | AU149: 30 | AV149: 22 | AW149: 28 | AX149: 85 | AY149: 0 | AZ149: 0 | BA149: 5 | BB149: 88 | BC149: 4 | BD149: 29 | BE149: 29 | BF149: 151 | BG149: 125 | BH149: 6 | BI149: 24 | BJ149: 13 | BK149: 4 | BL149: 0 | BM149: 11 | BN149: 3 | BO149: 4 | BP149: 9 | BQ149: 1 | BR149: 12 | BS149: 127 | BT149: 0 | BU149: 6 | BV149: 53 | BW149: 3 | BY149: 26 | BZ149: De | CA149: 3487093.64 | CB149: 1
A150: BAS_RHIN | B150: STRASBOURG | C150: STRASBOURG DANUBE | D150: 26 | E150: Dne | F150: 598 | G150: 0 | H150: 0 | I150: 598 | J150: 598 | K150: 0 | L150: 0 | M150: 17 | N150: 12 | O150: 48 | P150: 49.76923077 | Q150: 8982.453478 | R150: 5371507.18 | S150: 1664203.84 | T150: 10 | U150: 270 | V150: 95 | W150: 34 | X150: 14 | Y150: 58 | Z150: 10 | AA150: 10 | AB150: 12 | AC150: 0 | AD150: 0 | AE150: 65 | AF150: 45 | AG150: 14 | AH150: 3 | AI150: 1 | AJ150: 0 | AK150: 2 | AL150: 20 | AM150: 347 | AN150: 0 | AO150: 0 | AP150: 15 | AQ150: 10 | AR150: 4 | AS150: 2 | AT150: 48 | AU150: 23 | AV150: 14 | AW150: 7 | AX150: 28 | AY150: 1 | AZ150: 0 | BA150: 6 | BB150: 42 | BC150: 2 | BD150: 14 | BE150: 9 | BF150: 111 | BG150: 27 | BH150: 0 | BI150: 4 | BJ150: 3 | BK150: 0 | BL150: 0 | BM150: 7 | BN150: 1 | BO150: 3 | BP150: 0 | BQ150: 1 | BR150: 5 | BS150: 266 | BT150: 1 | BU150: 6 | BV150: 83 | BW150: 8 | BY150: 26 | BZ150: Dne | CA150: 1664203.84 | CB150: 1
A151: BAS_RHIN | B151: STRASBOURG | C151: STRASBOURG DANUBE | D151: 26 | E151: Ee | F151: 99 | G151: 12 | H151: 23 | I151: 23 | J151: 0 | K151: 23 | L151: 0 | M151: 0 | N151: 3 | O151: 1 | P151: 8.060606061 | Q151: 4458.025152 | R151: 441344.49 | S151: 0 | T151: 3 | U151: 71 | V151: 38 | W151: 0 | X151: 0 | Y151: 4 | Z151: 0 | AA151: 0 | AB151: 0 | AC151: 0 | AD151: 0 | AE151: 4 | AF151: 2 | AG151: 0 | AH151: 0 | AI151: 0 | AJ151: 0 | AK151: 0 | AL151: 0 | AM151: 84 | AN151: 3 | AO151: 11 | AP151: 3 | AQ151: 0 | AR151: 0 | AS151: 0 | AT151: 0 | AU151: 0 | AV151: 1 | AW151: 39 | AX151: 13 | AY151: 0 | AZ151: 0 | BA151: 0 | BB151: 23 | BC151: 0 | BD151: 0 | BE151: 0 | BF151: 6 | BG151: 2 | BH151: 0 | BI151: 0 | BJ151: 0 | BK151: 0 | BL151: 0 | BM151: 0 | BN151: 0 | BO151: 0 | BP151: 0 | BQ151: 0 | BR151: 0 | BS151: 30 | BT151: 0 | BU151: 1 | BV151: 0 | BW151: 2 | BY151: 26 | BZ151: Ee | CA151: 0 | CB151: 1
A152: BAS_RHIN | B152: STRASBOURG | C152: STRASBOURG DANUBE | D152: 26 | E152: Ene | F152: 65 | G152: 19 | H152: 35 | I152: 35 | J152: 0 | K152: 35 | L152: 0 | M152: 0 | N152: 4 | O152: 1 | P152: 10.61538462 | Q152: 1028.563538 | R152: 66856.63 | S152: 0 | T152: 0 | U152: 0 | V152: 0 | W152: 0 | X152: 0 | Y152: 0 | Z152: 0 | AA152: 0 | AB152: 0 | AC152: 0 | AD152: 0 | AE152: 0 | AF152: 0 | AG152: 0 | AH152: 0 | AI152: 0 | AJ152: 0 | AK152: 0 | AL152: 0 | AM152: 52 | AN152: 0 | AO152: 0 | AP152: 0 | AQ152: 0 | AR152: 0 | AS152: 1 | AT152: 0 | AU152: 0 | AV152: 0 | AW152: 13 | AX152: 0 | AY152: 0 | AZ152: 0 | BA152: 0 | BB152: 0 | BC152: 0 | BD152: 0 | BE152: 0 | BF152: 2 | BG152: 0 | BH152: 0 | BI152: 0 | BJ152: 0 | BK152: 0 | BL152: 0 | BM152: 0 | BN152: 0 | BO152: 0 | BP152: 0 | BQ152: 0 | BR152: 0 | BS152: 8 | BT152: 0 | BU152: 0 | BV152: 0 | BW152: 0 | BY152: 26 | BZ152: Ene | CA152: 0 | CB152: 1
A153: BAS_RHIN | B153: STRASBOURG | C153: STRASBOURG DANUBE | D153: 26 | E153: I | F153: 220 | G153: 0 | H153: 0 | I153: 220 | J153: 220 | K153: 0 | L153: 0 | M153: 11 | N153: 0 | O153: 11 | P153: 43.64545455 | Q153: 20.105 | R153: 4423.1 | S153: 0 | T153: 0 | U153: 8 | V153: 1 | W153: 0 | X153: 7 | Y153: 0 | Z153: 0 | AA153: 0 | AB153: 0 | AC153: 0 | AD153: 0 | AE153: 0 | AF153: 0 | AG153: 0 | AH153: 0 | AI153: 0 | AJ153: 0 | AK153: 0 | AL153: 0 | AM153: 146 | AN153: 0 | AO153: 0 | AP153: 0 | AQ153: 0 | AR153: 0 | AS153: 2 | AT153: 6 | AU153: 0 | AV153: 0 | AW153: 0 | AX153: 0 | AY153: 0 | AZ153: 0 | BA153: 1 | BB153: 0 | BC153: 0 | BD153: 0 | BE153: 0 | BF153: 2 | BG153: 0 | BH153: 1 | BI153: 4 | BJ153: 1 | BK153: 0 | BL153: 1 | BM153: 1 | BN153: 0 | BO153: 1 | BP153: 0 | BQ153: 0 | BR153: 0 | BS153: 13 | BT153: 0 | BU153: 0 | BV153: 0 | BW153: 0 | BY153: 26 | BZ153: I | CA153: 0 | CB153: 1
A154: BAS_RHIN | B154: STRASBOURG | C154: STRASBOURG DANUBE | D154: 26 | E154: JBPe | F154: 76 | G154: 0 | H154: 76 | I154: 76 | J154: 73 | K154: 3 | L154: 76 | M154: 73 | N154: 5 | O154: 3 | P154: 22.22368421 | Q154: 10042.86197 | R154: 763257.51 | S154: 749077.81 | T154: 71 | U154: 56 | V154: 28 | W154: 20 | X154: 20 | Y154: 75 | Z154: 5 | AA154: 23 | AB154: 14 | AC154: 0 | AD154: 0 | AE154: 80 | AF154: 60 | AG154: 16 | AH154: 9 | AI154: 4 | AJ154: 0 | AK154: 1 | AL154: 4 | AM154: 57 | AN154: 0 | AO154: 63 | AP154: 0 | AQ154: 0 | AR154: 0 | AS154: 2 | AT154: 4 | AU154: 0 | AV154: 0 | AW154: 13 | AX154: 18 | AY154: 1 | AZ154: 0 | BA154: 0 | BB154: 4 | BC154: 1 | BD154: 1 | BE154: 0 | BF154: 16 | BG154: 11 | BH154: 2 | BI154: 5 | BJ154: 1 | BK154: 1 | BL154: 0 | BM154: 15 | BN154: 0 | BO154: 9 | BP154: 0 | BQ154: 1 | BR154: 3 | BS154: 74 | BT154: 1 | BU154: 57 | BV154: 31 | BW154: 16 | BY154: 26 | BZ154: JBPe | CA154: 749077.81 | CB154: 1
A155: BAS_RHIN | B155: STRASBOURG | C155: STRASBOURG DANUBE | D155: 26 | E155: JBPne | F155: 39 | G155: 0 | H155: 39 | I155: 39 | J155: 35 | K155: 4 | L155: 39 | M155: 35 | N155: 8 | O155: 4 | P155: 20.79487179 | Q155: 1673.293333 | R155: 65258.44 | S155: 0 | T155: 27 | U155: 4 | V155: 1 | W155: 0 | X155: 0 | Y155: 38 | Z155: 1 | AA155: 6 | AB155: 3 | AC155: 0 | AD155: 0 | AE155: 40 | AF155: 27 | AG155: 0 | AH155: 0 | AI155: 0 | AJ155: 0 | AK155: 0 | AL155: 0 | AM155: 10 | AN155: 0 | AO155: 21 | AP155: 0 | AQ155: 0 | AR155: 0 | AS155: 0 | AT155: 0 | AU155: 0 | AV155: 0 | AW155: 2 | AX155: 0 | AY155: 0 | AZ155: 0 | BA155: 0 | BB155: 0 | BC155: 0 | BD155: 0 | BE155: 0 | BF155: 5 | BG155: 1 | BH155: 0 | BI155: 0 | BJ155: 0 | BK155: 0 | BL155: 0 | BM155: 0 | BN155: 0 | BO155: 5 | BP155: 0 | BQ155: 0 | BR155: 2 | BS155: 34 | BT155: 0 | BU155: 25 | BV155: 13 | BW155: 12 | BY155: 26 | BZ155: JBPne | CA155: 0 | CB155: 1
A156: BAS_RHIN | B156: STRASBOURG | C156: STRASBOURG DANUBE | D156: 26 | E156: JDe | F156: 11 | G156: 0 | H156: 11 | I156: 11 | J156: 7 | K156: 4 | L156: 11 | M156: 7 | N156: 0 | O156: 1 | P156: 20.27272727 | Q156: 33919.53182 | R156: 373114.85 | S156: 0 | T156: 1 | U156: 9 | V156: 11 | W156: 0 | X156: 2 | Y156: 3 | Z156: 0 | AA156: 1 | AB156: 1 | AC156: 0 | AD156: 0 | AE156: 3 | AF156: 2 | AG156: 0 | AH156: 0 | AI156: 0 | AJ156: 0 | AK156: 0 | AL156: 0 | AM156: 9 | AN156: 0 | AO156: 6 | AP156: 0 | AQ156: 0 | AR156: 0 | AS156: 0 | AT156: 0 | AU156: 0 | AV156: 1 | AW156: 4 | AX156: 6 | AY156: 0 | AZ156: 0 | BA156: 0 | BB156: 4 | BC156: 0 | BD156: 0 | BE156: 0 | BF156: 2 | BG156: 2 | BH156: 0 | BI156: 0 | BJ156: 0 | BK156: 0 | BL156: 0 | BM156: 2 | BN156: 0 | BO156: 0 | BP156: 0 | BQ156: 0 | BR156: 0 | BS156: 6 | BT156: 0 | BU156: 3 | BV156: 1 | BW156: 1 | BY156: 26 | BZ156: JDe | CA156: 0 | CB156: 1
A157: BAS_RHIN | B157: STRASBOURG | C157: STRASBOURG DANUBE | D157: 26 | E157: JDne | F157: 98 | G157: 0 | H157: 98 | I157: 98 | J157: 80 | K157: 18 | L157: 98 | M157: 80 | N157: 2 | O157: 7 | P157: 20.47959184 | Q157: 3290.607347 | R157: 322479.52 | S157: 16797.36 | T157: 0 | U157: 48 | V157: 5 | W157: 2 | X157: 2 | Y157: 8 | Z157: 1 | AA157: 1 | AB157: 1 | AC157: 0 | AD157: 0 | AE157: 8 | AF157: 8 | AG157: 2 | AH157: 1 | AI157: 0 | AJ157: 0 | AK157: 0 | AL157: 0 | AM157: 76 | AN157: 0 | AO157: 43 | AP157: 0 | AQ157: 0 | AR157: 0 | AS157: 0 | AT157: 0 | AU157: 0 | AV157: 0 | AW157: 4 | AX157: 2 | AY157: 0 | AZ157: 0 | BA157: 0 | BB157: 1 | BC157: 0 | BD157: 1 | BE157: 0 | BF157: 8 | BG157: 2 | BH157: 1 | BI157: 1 | BJ157: 0 | BK157: 0 | BL157: 0 | BM157: 0 | BN157: 0 | BO157: 0 | BP157: 0 | BQ157: 0 | BR157: 1 | BS157: 23 | BT157: 0 | BU157: 9 | BV157: 4 | BW157: 0 | BY157: 26 | BZ157: JDne | CA157: 16797.36 | CB157: 1
A158: BAS_RHIN | B158: STRASBOURG | C158: SCHILTIGHEIM CENTRE | D158: 27 | E158: BPe | F158: 785 | G158: 0 | H158: 0 | I158: 785 | J158: 785 | K158: 0 | L158: 0 | M158: 61 | N158: 13 | O158: 3 | P158: 48.16178344 | Q158: 41553.51654 | R158: 32619510.48 | S158: 29371297.94 | T158: 755 | U158: 646 | V158: 468 | W158: 488 | X158: 424 | Y158: 771 | Z158: 462 | AA158: 338 | AB158: 195 | AC158: 0 | AD158: 0 | AE158: 854 | AF158: 665 | AG158: 241 | AH158: 7 | AI158: 6 | AJ158: 31 | AK158: 130 | AL158: 266 | AM158: 678 | AN158: 0 | AO158: 0 | AP158: 49 | AQ158: 22 | AR158: 10 | AS158: 6 | AT158: 266 | AU158: 108 | AV158: 81 | AW158: 253 | AX158: 248 | AY158: 13 | AZ158: 1 | BA158: 30 | BB158: 272 | BC158: 28 | BD158: 104 | BE158: 51 | BF158: 376 | BG158: 177 | BH158: 98 | BI158: 222 | BJ158: 120 | BK158: 26 | BL158: 0 | BM158: 194 | BN158: 36 | BO158: 78 | BP158: 120 | BQ158: 39 | BR158: 58 | BS158: 631 | BT158: 30 | BU158: 110 | BV158: 156 | BW158: 102 | BY158: 27 | BZ158: BPe | CA158: 29371297.94 | CB158: 1
A159: BAS_RHIN | B159: STRASBOURG | C159: SCHILTIGHEIM CENTRE | D159: 27 | E159: BPne | F159: 533 | G159: 0 | H159: 0 | I159: 533 | J159: 533 | K159: 0 | L159: 0 | M159: 41 | N159: 12 | O159: 23 | P159: 48.61726079 | Q159: 13877.52096 | R159: 7396718.67 | S159: 4869381.82 | T159: 408 | U159: 210 | V159: 64 | W159: 103 | X159: 60 | Y159: 450 | Z159: 124 | AA159: 89 | AB159: 63 | AC159: 0 | AD159: 0 | AE159: 510 | AF159: 418 | AG159: 41 | AH159: 0 | AI159: 2 | AJ159: 2 | AK159: 28 | AL159: 55 | AM159: 374 | AN159: 0 | AO159: 0 | AP159: 9 | AQ159: 5 | AR159: 4 | AS159: 1 | AT159: 89 | AU159: 55 | AV159: 7 | AW159: 51 | AX159: 26 | AY159: 0 | AZ159: 0 | BA159: 6 | BB159: 34 | BC159: 3 | BD159: 16 | BE159: 11 | BF159: 179 | BG159: 24 | BH159: 7 | BI159: 34 | BJ159: 23 | BK159: 5 | BL159: 0 | BM159: 14 | BN159: 0 | BO159: 38 | BP159: 35 | BQ159: 16 | BR159: 32 | BS159: 370 | BT159: 1 | BU159: 74 | BV159: 107 | BW159: 38 | BY159: 27 | BZ159: BPne | CA159: 4869381.82 | CB159: 1
A160: BAS_RHIN | B160: STRASBOURG | C160: SCHILTIGHEIM CENTRE | D160: 27 | E160: De | F160: 540 | G160: 0 | H160: 0 | I160: 540 | J160: 540 | K160: 0 | L160: 0 | M160: 11 | N160: 12 | O160: 28 | P160: 63.68333333 | Q160: 65870.92339 | R160: 35570298.63 | S160: 3093296.75 | T160: 99 | U160: 491 | V160: 449 | W160: 54 | X160: 92 | Y160: 180 | Z160: 35 | AA160: 27 | AB160: 16 | AC160: 0 | AD160: 0 | AE160: 191 | AF160: 139 | AG160: 20 | AH160: 2 | AI160: 1 | AJ160: 2 | AK160: 7 | AL160: 31 | AM160: 477 | AN160: 0 | AO160: 0 | AP160: 31 | AQ160: 48 | AR160: 8 | AS160: 3 | AT160: 131 | AU160: 92 | AV160: 29 | AW160: 68 | AX160: 157 | AY160: 4 | AZ160: 1 | BA160: 6 | BB160: 271 | BC160: 19 | BD160: 67 | BE160: 50 | BF160: 262 | BG160: 184 | BH160: 10 | BI160: 41 | BJ160: 25 | BK160: 8 | BL160: 0 | BM160: 19 | BN160: 7 | BO160: 10 | BP160: 14 | BQ160: 0 | BR160: 7 | BS160: 166 | BT160: 5 | BU160: 14 | BV160: 29 | BW160: 14 | BY160: 27 | BZ160: De | CA160: 3093296.75 | CB160: 1
A161: BAS_RHIN | B161: STRASBOURG | C161: SCHILTIGHEIM CENTRE | D161: 27 | E161: Dne | F161: 1468 | G161: 0 | H161: 0 | I161: 1468 | J161: 1468 | K161: 0 | L161: 0 | M161: 56 | N161: 50 | O161: 107 | P161: 57.83787466 | Q161: 9520.619911 | R161: 13976270.03 | S161: 2586586.96 | T161: 47 | U161: 701 | V161: 155 | W161: 72 | X161: 23 | Y161: 191 | Z161: 21 | AA161: 23 | AB161: 28 | AC161: 0 | AD161: 0 | AE161: 218 | AF161: 136 | AG161: 32 | AH161: 1 | AI161: 1 | AJ161: 2 | AK161: 7 | AL161: 39 | AM161: 925 | AN161: 0 | AO161: 0 | AP161: 36 | AQ161: 30 | AR161: 6 | AS161: 6 | AT161: 103 | AU161: 82 | AV161: 14 | AW161: 40 | AX161: 19 | AY161: 0 | AZ161: 0 | BA161: 13 | BB161: 96 | BC161: 3 | BD161: 30 | BE161: 11 | BF161: 265 | BG161: 37 | BH161: 2 | BI161: 13 | BJ161: 3 | BK161: 2 | BL161: 0 | BM161: 6 | BN161: 3 | BO161: 18 | BP161: 12 | BQ161: 3 | BR161: 7 | BS161: 327 | BT161: 1 | BU161: 29 | BV161: 48 | BW161: 31 | BY161: 27 | BZ161: Dne | CA161: 2586586.96 | CB161: 1
A162: BAS_RHIN | B162: STRASBOURG | C162: SCHILTIGHEIM CENTRE | D162: 27 | E162: Ee | F162: 239 | G162: 29 | H162: 57 | I162: 57 | J162: 0 | K162: 57 | L162: 0 | M162: 0 | N162: 17 | O162: 6 | P162: 7.820083682 | Q162: 3792.313473 | R162: 906362.92 | S162: 0 | T162: 1 | U162: 176 | V162: 96 | W162: 0 | X162: 0 | Y162: 5 | Z162: 0 | AA162: 0 | AB162: 0 | AC162: 0 | AD162: 0 | AE162: 7 | AF162: 1 | AG162: 0 | AH162: 0 | AI162: 0 | AJ162: 0 | AK162: 0 | AL162: 0 | AM162: 218 | AN162: 6 | AO162: 28 | AP162: 5 | AQ162: 0 | AR162: 0 | AS162: 0 | AT162: 0 | AU162: 0 | AV162: 0 | AW162: 118 | AX162: 35 | AY162: 0 | AZ162: 0 | BA162: 0 | BB162: 39 | BC162: 0 | BD162: 0 | BE162: 0 | BF162: 21 | BG162: 9 | BH162: 0 | BI162: 0 | BJ162: 0 | BK162: 0 | BL162: 0 | BM162: 0 | BN162: 0 | BO162: 0 | BP162: 0 | BQ162: 0 | BR162: 0 | BS162: 47 | BT162: 0 | BU162: 0 | BV162: 0 | BW162: 4 | BY162: 27 | BZ162: Ee | CA162: 0 | CB162: 1
A163: BAS_RHIN | B163: STRASBOURG | C163: SCHILTIGHEIM CENTRE | D163: 27 | E163: Ene | F163: 188 | G163: 78 | H163: 74 | I163: 74 | J163: 0 | K163: 74 | L163: 0 | M163: 0 | N163: 4 | O163: 7 | P163: 9.808510638 | Q163: 982.5320213 | R163: 184716.02 | S163: 0 | T163: 0 | U163: 0 | V163: 0 | W163: 0 | X163: 0 | Y163: 5 | Z163: 0 | AA163: 0 | AB163: 0 | AC163: 0 | AD163: 0 | AE163: 5 | AF163: 1 | AG163: 0 | AH163: 0 | AI163: 0 | AJ163: 0 | AK163: 0 | AL163: 0 | AM163: 163 | AN163: 0 | AO163: 1 | AP163: 3 | AQ163: 0 | AR163: 0 | AS163: 1 | AT163: 0 | AU163: 0 | AV163: 0 | AW163: 26 | AX163: 0 | AY163: 0 | AZ163: 0 | BA163: 0 | BB163: 0 | BC163: 1 | BD163: 0 | BE163: 0 | BF163: 14 | BG163: 2 | BH163: 0 | BI163: 0 | BJ163: 0 | BK163: 0 | BL163: 0 | BM163: 0 | BN163: 0 | BO163: 0 | BP163: 0 | BQ163: 0 | BR163: 0 | BS163: 21 | BT163: 0 | BU163: 1 | BV163: 0 | BW163: 4 | BY163: 27 | BZ163: Ene | CA163: 0 | CB163: 1
A164: BAS_RHIN | B164: STRASBOURG | C164: SCHILTIGHEIM CENTRE | D164: 27 | E164: I | F164: 910 | G164: 0 | H164: 0 | I164: 910 | J164: 910 | K164: 0 | L164: 0 | M164: 56 | N164: 1 | O164: 134 | P164: 49.97582418 | Q164: 15.35042857 | R164: 13968.89 | S164: 0 | T164: 0 | U164: 23 | V164: 4 | W164: 0 | X164: 14 | Y164: 7 | Z164: 0 | AA164: 0 | AB164: 0 | AC164: 0 | AD164: 0 | AE164: 2 | AF164: 0 | AG164: 0 | AH164: 0 | AI164: 0 | AJ164: 0 | AK164: 0 | AL164: 0 | AM164: 576 | AN164: 0 | AO164: 0 | AP164: 5 | AQ164: 1 | AR164: 0 | AS164: 0 | AT164: 14 | AU164: 1 | AV164: 0 | AW164: 0 | AX164: 0 | AY164: 0 | AZ164: 0 | BA164: 4 | BB164: 0 | BC164: 0 | BD164: 0 | BE164: 0 | BF164: 6 | BG164: 0 | BH164: 0 | BI164: 7 | BJ164: 2 | BK164: 3 | BL164: 0 | BM164: 2 | BN164: 1 | BO164: 1 | BP164: 5 | BQ164: 0 | BR164: 0 | BS164: 17 | BT164: 0 | BU164: 0 | BV164: 0 | BW164: 0 | BY164: 27 | BZ164: I | CA164: 0 | CB164: 1
A165: BAS_RHIN | B165: STRASBOURG | C165: SCHILTIGHEIM CENTRE | D165: 27 | E165: JBPe | F165: 179 | G165: 0 | H165: 179 | I165: 179 | J165: 171 | K165: 8 | L165: 179 | M165: 171 | N165: 5 | O165: 8 | P165: 21.96089385 | Q165: 11463.14754 | R165: 2051903.41 | S165: 859799.35 | T165: 174 | U165: 143 | V165: 58 | W165: 50 | X165: 57 | Y165: 179 | Z165: 27 | AA165: 62 | AB165: 27 | AC165: 0 | AD165: 0 | AE165: 181 | AF165: 136 | AG165: 43 | AH165: 19 | AI165: 5 | AJ165: 1 | AK165: 11 | AL165: 4 | AM165: 156 | AN165: 0 | AO165: 146 | AP165: 1 | AQ165: 0 | AR165: 0 | AS165: 0 | AT165: 7 | AU165: 2 | AV165: 2 | AW165: 35 | AX165: 50 | AY165: 0 | AZ165: 0 | BA165: 0 | BB165: 18 | BC165: 2 | BD165: 2 | BE165: 0 | BF165: 19 | BG165: 12 | BH165: 9 | BI165: 21 | BJ165: 7 | BK165: 2 | BL165: 0 | BM165: 38 | BN165: 0 | BO165: 23 | BP165: 2 | BQ165: 18 | BR165: 15 | BS165: 160 | BT165: 1 | BU165: 120 | BV165: 74 | BW165: 41 | BY165: 27 | BZ165: JBPe | CA165: 859799.35 | CB165: 1
A166: BAS_RHIN | B166: STRASBOURG | C166: SCHILTIGHEIM CENTRE | D166: 27 | E166: JBPne | F166: 56 | G166: 0 | H166: 56 | I166: 56 | J166: 52 | K166: 4 | L166: 56 | M166: 52 | N166: 7 | O166: 3 | P166: 21.42857143 | Q166: 1411.356786 | R166: 79035.98 | S166: 12932.07 | T166: 40 | U166: 6 | V166: 0 | W166: 2 | X166: 1 | Y166: 53 | Z166: 1 | AA166: 3 | AB166: 4 | AC166: 0 | AD166: 0 | AE166: 56 | AF166: 40 | AG166: 2 | AH166: 0 | AI166: 0 | AJ166: 0 | AK166: 0 | AL166: 0 | AM166: 28 | AN166: 0 | AO166: 33 | AP166: 0 | AQ166: 0 | AR166: 0 | AS166: 0 | AT166: 0 | AU166: 0 | AV166: 0 | AW166: 2 | AX166: 0 | AY166: 0 | AZ166: 0 | BA166: 0 | BB166: 0 | BC166: 0 | BD166: 0 | BE166: 0 | BF166: 3 | BG166: 0 | BH166: 1 | BI166: 0 | BJ166: 0 | BK166: 0 | BL166: 0 | BM166: 0 | BN166: 0 | BO166: 3 | BP166: 0 | BQ166: 1 | BR166: 4 | BS166: 44 | BT166: 0 | BU166: 32 | BV166: 16 | BW166: 14 | BY166: 27 | BZ166: JBPne | CA166: 12932.07 | CB166: 1
A167: BAS_RHIN | B167: STRASBOURG | C167: SCHILTIGHEIM CENTRE | D167: 27 | E167: JDe | F167: 30 | G167: 0 | H167: 30 | I167: 30 | J167: 16 | K167: 14 | L167: 30 | M167: 16 | N167: 0 | O167: 2 | P167: 18.63333333 | Q167: 14710.72833 | R167: 441321.85 | S167: 7132.44 | T167: 1 | U167: 29 | V167: 27 | W167: 1 | X167: 2 | Y167: 7 | Z167: 0 | AA167: 1 | AB167: 1 | AC167: 0 | AD167: 0 | AE167: 8 | AF167: 4 | AG167: 1 | AH167: 1 | AI167: 0 | AJ167: 0 | AK167: 0 | AL167: 0 | AM167: 26 | AN167: 0 | AO167: 22 | AP167: 1 | AQ167: 2 | AR167: 0 | AS167: 0 | AT167: 0 | AU167: 0 | AV167: 1 | AW167: 10 | AX167: 12 | AY167: 0 | AZ167: 0 | BA167: 0 | BB167: 11 | BC167: 1 | BD167: 0 | BE167: 0 | BF167: 8 | BG167: 6 | BH167: 0 | BI167: 1 | BJ167: 0 | BK167: 0 | BL167: 0 | BM167: 2 | BN167: 0 | BO167: 0 | BP167: 0 | BQ167: 1 | BR167: 0 | BS167: 9 | BT167: 0 | BU167: 3 | BV167: 0 | BW167: 3 | BY167: 27 | BZ167: JDe | CA167: 7132.44 | CB167: 1
A168: BAS_RHIN | B168: STRASBOURG | C168: SCHILTIGHEIM CENTRE | D168: 27 | E168: JDne | F168: 214 | G168: 0 | H168: 214 | I168: 214 | J168: 163 | K168: 51 | L168: 214 | M168: 163 | N168: 8 | O168: 20 | P168: 20.3364486 | Q168: 2338.716636 | R168: 500485.36 | S168: 358458.54 | T168: 0 | U168: 76 | V168: 19 | W168: 5 | X168: 2 | Y168: 30 | Z168: 1 | AA168: 2 | AB168: 3 | AC168: 0 | AD168: 0 | AE168: 30 | AF168: 17 | AG168: 4 | AH168: 2 | AI168: 0 | AJ168: 0 | AK168: 0 | AL168: 1 | AM168: 152 | AN168: 0 | AO168: 89 | AP168: 4 | AQ168: 0 | AR168: 0 | AS168: 0 | AT168: 2 | AU168: 0 | AV168: 0 | AW168: 16 | AX168: 9 | AY168: 0 | AZ168: 0 | BA168: 0 | BB168: 8 | BC168: 2 | BD168: 0 | BE168: 0 | BF168: 11 | BG168: 0 | BH168: 1 | BI168: 2 | BJ168: 0 | BK168: 0 | BL168: 0 | BM168: 0 | BN168: 0 | BO168: 2 | BP168: 0 | BQ168: 0 | BR168: 0 | BS168: 45 | BT168: 0 | BU168: 17 | BV168: 3 | BW168: 11 | BY168: 27 | BZ168: JDne | CA168: 358458.54 | CB168: 1
A169: BAS_RHIN | B169: STRASBOURG | C169: BISCHHEIM | D169: 28 | E169: BPe | F169: 798 | G169: 0 | H169: 0 | I169: 798 | J169: 798 | K169: 0 | L169: 0 | M169: 35 | N169: 5 | O169: 9 | P169: 51.86591479 | Q169: 48042.09991 | R169: 38337595.73 | S169: 21520666.11 | T169: 778 | U169: 697 | V169: 520 | W169: 468 | X169: 421 | Y169: 785 | Z169: 441 | AA169: 348 | AB169: 138 | AC169: 0 | AD169: 0 | AE169: 851 | AF169: 700 | AG169: 275 | AH169: 2 | AI169: 2 | AJ169: 26 | AK169: 144 | AL169: 217 | AM169: 743 | AN169: 0 | AO169: 0 | AP169: 29 | AQ169: 30 | AR169: 14 | AS169: 17 | AT169: 260 | AU169: 117 | AV169: 93 | AW169: 272 | AX169: 282 | AY169: 3 | AZ169: 0 | BA169: 29 | BB169: 295 | BC169: 19 | BD169: 134 | BE169: 69 | BF169: 436 | BG169: 202 | BH169: 95 | BI169: 222 | BJ169: 155 | BK169: 35 | BL169: 3 | BM169: 189 | BN169: 38 | BO169: 81 | BP169: 111 | BQ169: 34 | BR169: 64 | BS169: 572 | BT169: 27 | BU169: 141 | BV169: 200 | BW169: 46 | BY169: 28 | BZ169: BPe | CA169: 21520666.11 | CB169: 1
A170: BAS_RHIN | B170: STRASBOURG | C170: BISCHHEIM | D170: 28 | E170: BPne | F170: 461 | G170: 0 | H170: 0 | I170: 461 | J170: 461 | K170: 0 | L170: 0 | M170: 33 | N170: 7 | O170: 19 | P170: 53.30802603 | Q170: 17439.29184 | R170: 8039513.54 | S170: 1712776.54 | T170: 342 | U170: 225 | V170: 65 | W170: 55 | X170: 65 | Y170: 381 | Z170: 94 | AA170: 84 | AB170: 38 | AC170: 0 | AD170: 0 | AE170: 432 | AF170: 353 | AG170: 31 | AH170: 2 | AI170: 0 | AJ170: 4 | AK170: 15 | AL170: 28 | AM170: 355 | AN170: 0 | AO170: 0 | AP170: 3 | AQ170: 3 | AR170: 1 | AS170: 5 | AT170: 74 | AU170: 63 | AV170: 7 | AW170: 67 | AX170: 37 | AY170: 0 | AZ170: 0 | BA170: 0 | BB170: 39 | BC170: 0 | BD170: 25 | BE170: 12 | BF170: 171 | BG170: 37 | BH170: 10 | BI170: 33 | BJ170: 15 | BK170: 6 | BL170: 0 | BM170: 28 | BN170: 5 | BO170: 36 | BP170: 36 | BQ170: 16 | BR170: 31 | BS170: 273 | BT170: 3 | BU170: 76 | BV170: 91 | BW170: 22 | BY170: 28 | BZ170: BPne | CA170: 1712776.54 | CB170: 1
A171: BAS_RHIN | B171: STRASBOURG | C171: BISCHHEIM | D171: 28 | E171: De | F171: 616 | G171: 0 | H171: 0 | I171: 616 | J171: 616 | K171: 0 | L171: 0 | M171: 9 | N171: 1 | O171: 35 | P171: 66.78571429 | Q171: 71361.77089 | R171: 43958850.87 | S171: 1984344.7 | T171: 119 | U171: 568 | V171: 518 | W171: 60 | X171: 98 | Y171: 221 | Z171: 41 | AA171: 24 | AB171: 18 | AC171: 0 | AD171: 0 | AE171: 233 | AF171: 163 | AG171: 27 | AH171: 2 | AI171: 0 | AJ171: 0 | AK171: 11 | AL171: 28 | AM171: 557 | AN171: 0 | AO171: 0 | AP171: 28 | AQ171: 38 | AR171: 21 | AS171: 15 | AT171: 174 | AU171: 122 | AV171: 56 | AW171: 76 | AX171: 218 | AY171: 0 | AZ171: 1 | BA171: 14 | BB171: 323 | BC171: 14 | BD171: 102 | BE171: 75 | BF171: 348 | BG171: 226 | BH171: 10 | BI171: 54 | BJ171: 21 | BK171: 11 | BL171: 0 | BM171: 22 | BN171: 12 | BO171: 9 | BP171: 25 | BQ171: 3 | BR171: 16 | BS171: 148 | BT171: 7 | BU171: 28 | BV171: 37 | BW171: 19 | BY171: 28 | BZ171: De | CA171: 1984344.7 | CB171: 1
A172: BAS_RHIN | B172: STRASBOURG | C172: BISCHHEIM | D172: 28 | E172: Dne | F172: 1233 | G172: 0 | H172: 0 | I172: 1233 | J172: 1233 | K172: 0 | L172: 0 | M172: 60 | N172: 17 | O172: 76 | P172: 58.68532036 | Q172: 11023.69874 | R172: 13592220.55 | S172: 661012.25 | T172: 32 | U172: 577 | V172: 172 | W172: 41 | X172: 32 | Y172: 153 | Z172: 7 | AA172: 10 | AB172: 6 | AC172: 0 | AD172: 0 | AE172: 151 | AF172: 102 | AG172: 20 | AH172: 2 | AI172: 1 | AJ172: 0 | AK172: 3 | AL172: 21 | AM172: 796 | AN172: 0 | AO172: 0 | AP172: 15 | AQ172: 19 | AR172: 6 | AS172: 7 | AT172: 103 | AU172: 71 | AV172: 21 | AW172: 29 | AX172: 34 | AY172: 0 | AZ172: 0 | BA172: 12 | BB172: 97 | BC172: 2 | BD172: 32 | BE172: 27 | BF172: 250 | BG172: 35 | BH172: 2 | BI172: 12 | BJ172: 9 | BK172: 5 | BL172: 0 | BM172: 7 | BN172: 5 | BO172: 12 | BP172: 13 | BQ172: 2 | BR172: 13 | BS172: 187 | BT172: 1 | BU172: 23 | BV172: 26 | BW172: 12 | BY172: 28 | BZ172: Dne | CA172: 661012.25 | CB172: 1
A173: BAS_RHIN | B173: STRASBOURG | C173: BISCHHEIM | D173: 28 | E173: Ee | F173: 249 | G173: 41 | H173: 63 | I173: 63 | J173: 0 | K173: 63 | L173: 0 | M173: 0 | N173: 14 | O173: 5 | P173: 8.128514056 | Q173: 3229.607309 | R173: 804172.22 | S173: 0 | T173: 1 | U173: 180 | V173: 100 | W173: 0 | X173: 0 | Y173: 2 | Z173: 0 | AA173: 0 | AB173: 0 | AC173: 0 | AD173: 0 | AE173: 3 | AF173: 0 | AG173: 0 | AH173: 0 | AI173: 0 | AJ173: 0 | AK173: 0 | AL173: 0 | AM173: 221 | AN173: 6 | AO173: 35 | AP173: 4 | AQ173: 0 | AR173: 0 | AS173: 2 | AT173: 0 | AU173: 0 | AV173: 4 | AW173: 114 | AX173: 21 | AY173: 0 | AZ173: 0 | BA173: 0 | BB173: 48 | BC173: 2 | BD173: 0 | BE173: 1 | BF173: 15 | BG173: 4 | BH173: 0 | BI173: 0 | BJ173: 0 | BK173: 0 | BL173: 0 | BM173: 0 | BN173: 0 | BO173: 0 | BP173: 0 | BQ173: 0 | BR173: 0 | BS173: 47 | BT173: 0 | BU173: 2 | BV173: 0 | BW173: 2 | BY173: 28 | BZ173: Ee | CA173: 0 | CB173: 1
A174: BAS_RHIN | B174: STRASBOURG | C174: BISCHHEIM | D174: 28 | E174: Ene | F174: 139 | G174: 55 | H174: 64 | I174: 64 | J174: 0 | K174: 64 | L174: 0 | M174: 0 | N174: 1 | O174: 5 | P174: 11.04316547 | Q174: 972.1671942 | R174: 135131.24 | S174: 0 | T174: 0 | U174: 0 | V174: 0 | W174: 0 | X174: 0 | Y174: 3 | Z174: 0 | AA174: 0 | AB174: 0 | AC174: 0 | AD174: 0 | AE174: 3 | AF174: 0 | AG174: 0 | AH174: 0 | AI174: 0 | AJ174: 0 | AK174: 0 | AL174: 0 | AM174: 123 | AN174: 0 | AO174: 1 | AP174: 1 | AQ174: 0 | AR174: 0 | AS174: 0 | AT174: 0 | AU174: 0 | AV174: 1 | AW174: 25 | AX174: 0 | AY174: 0 | AZ174: 0 | BA174: 0 | BB174: 0 | BC174: 0 | BD174: 0 | BE174: 1 | BF174: 12 | BG174: 0 | BH174: 0 | BI174: 0 | BJ174: 0 | BK174: 0 | BL174: 0 | BM174: 0 | BN174: 0 | BO174: 0 | BP174: 0 | BQ174: 0 | BR174: 0 | BS174: 17 | BT174: 0 | BU174: 1 | BV174: 0 | BW174: 3 | BY174: 28 | BZ174: Ene | CA174: 0 | CB174: 1
A175: BAS_RHIN | B175: STRASBOURG | C175: BISCHHEIM | D175: 28 | E175: I | F175: 742 | G175: 0 | H175: 0 | I175: 742 | J175: 742 | K175: 0 | L175: 0 | M175: 41 | N175: 2 | O175: 83 | P175: 50.45822102 | Q175: 17.30706199 | R175: 12841.84 | S175: 0 | T175: 0 | U175: 27 | V175: 4 | W175: 0 | X175: 15 | Y175: 2 | Z175: 0 | AA175: 0 | AB175: 0 | AC175: 0 | AD175: 0 | AE175: 0 | AF175: 0 | AG175: 0 | AH175: 0 | AI175: 0 | AJ175: 0 | AK175: 0 | AL175: 0 | AM175: 509 | AN175: 0 | AO175: 0 | AP175: 0 | AQ175: 0 | AR175: 0 | AS175: 0 | AT175: 16 | AU175: 0 | AV175: 0 | AW175: 0 | AX175: 0 | AY175: 0 | AZ175: 0 | BA175: 3 | BB175: 0 | BC175: 0 | BD175: 0 | BE175: 1 | BF175: 12 | BG175: 0 | BH175: 4 | BI175: 8 | BJ175: 4 | BK175: 2 | BL175: 0 | BM175: 2 | BN175: 0 | BO175: 5 | BP175: 4 | BQ175: 2 | BR175: 0 | BS175: 11 | BT175: 0 | BU175: 0 | BV175: 0 | BW175: 0 | BY175: 28 | BZ175: I | CA175: 0 | CB175: 1
A176: BAS_RHIN | B176: STRASBOURG | C176: BISCHHEIM | D176: 28 | E176: JBPe | F176: 167 | G176: 0 | H176: 167 | I176: 167 | J176: 158 | K176: 9 | L176: 167 | M176: 158 | N176: 3 | O176: 2 | P176: 21.58083832 | Q176: 9802.434251 | R176: 1637006.52 | S176: 942541.92 | T176: 166 | U176: 145 | V176: 51 | W176: 34 | X176: 60 | Y176: 167 | Z176: 24 | AA176: 46 | AB176: 10 | AC176: 0 | AD176: 0 | AE176: 171 | AF176: 141 | AG176: 27 | AH176: 8 | AI176: 9 | AJ176: 3 | AK176: 7 | AL176: 5 | AM176: 145 | AN176: 0 | AO176: 145 | AP176: 1 | AQ176: 0 | AR176: 0 | AS176: 0 | AT176: 6 | AU176: 4 | AV176: 4 | AW176: 58 | AX176: 34 | AY176: 0 | AZ176: 0 | BA176: 0 | BB176: 21 | BC176: 1 | BD176: 2 | BE176: 0 | BF176: 33 | BG176: 9 | BH176: 4 | BI176: 23 | BJ176: 14 | BK176: 5 | BL176: 0 | BM176: 34 | BN176: 0 | BO176: 29 | BP176: 7 | BQ176: 8 | BR176: 12 | BS176: 151 | BT176: 0 | BU176: 136 | BV176: 53 | BW176: 23 | BY176: 28 | BZ176: JBPe | CA176: 942541.92 | CB176: 1
A177: BAS_RHIN | B177: STRASBOURG | C177: BISCHHEIM | D177: 28 | E177: JBPne | F177: 37 | G177: 0 | H177: 37 | I177: 37 | J177: 36 | K177: 1 | L177: 37 | M177: 36 | N177: 9 | O177: 6 | P177: 21.21621622 | Q177: 2224.161622 | R177: 82293.98 | S177: 0 | T177: 27 | U177: 5 | V177: 2 | W177: 0 | X177: 0 | Y177: 36 | Z177: 1 | AA177: 2 | AB177: 0 | AC177: 0 | AD177: 0 | AE177: 37 | AF177: 25 | AG177: 0 | AH177: 0 | AI177: 0 | AJ177: 0 | AK177: 0 | AL177: 0 | AM177: 17 | AN177: 0 | AO177: 15 | AP177: 0 | AQ177: 0 | AR177: 0 | AS177: 0 | AT177: 1 | AU177: 0 | AV177: 0 | AW177: 1 | AX177: 1 | AY177: 0 | AZ177: 0 | BA177: 0 | BB177: 1 | BC177: 0 | BD177: 0 | BE177: 0 | BF177: 2 | BG177: 0 | BH177: 0 | BI177: 0 | BJ177: 0 | BK177: 0 | BL177: 0 | BM177: 0 | BN177: 0 | BO177: 7 | BP177: 1 | BQ177: 1 | BR177: 1 | BS177: 29 | BT177: 0 | BU177: 24 | BV177: 8 | BW177: 10 | BY177: 28 | BZ177: JBPne | CA177: 0 | CB177: 1
A178: BAS_RHIN | B178: STRASBOURG | C178: BISCHHEIM | D178: 28 | E178: JDe | F178: 25 | G178: 0 | H178: 25 | I178: 25 | J178: 21 | K178: 4 | L178: 25 | M178: 21 | N178: 0 | O178: 0 | P178: 19.36 | Q178: 10476.024 | R178: 261900.6 | S178: 0 | T178: 0 | U178: 25 | V178: 25 | W178: 0 | X178: 0 | Y178: 9 | Z178: 0 | AA178: 0 | AB178: 0 | AC178: 0 | AD178: 0 | AE178: 9 | AF178: 3 | AG178: 0 | AH178: 0 | AI178: 0 | AJ178: 0 | AK178: 0 | AL178: 0 | AM178: 24 | AN178: 0 | AO178: 15 | AP178: 0 | AQ178: 0 | AR178: 0 | AS178: 0 | AT178: 0 | AU178: 0 | AV178: 0 | AW178: 5 | AX178: 15 | AY178: 0 | AZ178: 0 | BA178: 0 | BB178: 9 | BC178: 0 | BD178: 1 | BE178: 0 | BF178: 6 | BG178: 3 | BH178: 0 | BI178: 0 | BJ178: 0 | BK178: 0 | BL178: 0 | BM178: 0 | BN178: 0 | BO178: 0 | BP178: 0 | BQ178: 0 | BR178: 0 | BS178: 5 | BT178: 0 | BU178: 4 | BV178: 0 | BW178: 6 | BY178: 28 | BZ178: JDe | CA178: 0 | CB178: 1
A179: BAS_RHIN | B179: STRASBOURG | C179: BISCHHEIM | D179: 28 | E179: JDne | F179: 244 | G179: 0 | H179: 244 | I179: 244 | J179: 164 | K179: 80 | L179: 244 | M179: 164 | N179: 8 | O179: 16 | P179: 19.76639344 | Q179: 1948.784959 | R179: 475503.53 | S179: 0 | T179: 0 | U179: 82 | V179: 24 | W179: 2 | X179: 2 | Y179: 31 | Z179: 0 | AA179: 0 | AB179: 0 | AC179: 0 | AD179: 0 | AE179: 30 | AF179: 13 | AG179: 1 | AH179: 0 | AI179: 0 | AJ179: 0 | AK179: 1 | AL179: 0 | AM179: 179 | AN179: 0 | AO179: 86 | AP179: 0 | AQ179: 0 | AR179: 0 | AS179: 0 | AT179: 0 | AU179: 0 | AV179: 2 | AW179: 21 | AX179: 0 | AY179: 0 | AZ179: 0 | BA179: 0 | BB179: 23 | BC179: 0 | BD179: 0 | BE179: 1 | BF179: 21 | BG179: 2 | BH179: 0 | BI179: 0 | BJ179: 0 | BK179: 1 | BL179: 0 | BM179: 1 | BN179: 0 | BO179: 4 | BP179: 0 | BQ179: 0 | BR179: 0 | BS179: 40 | BT179: 0 | BU179: 16 | BV179: 2 | BW179: 16 | BY179: 28 | BZ179: JDne | CA179: 0 | CB179: 1
A180: BAS_RHIN | B180: STRASBOURG | C180: SCHILTIGHEIM KLEBER | D180: 29 | E180: BPe | F180: 500 | G180: 0 | H180: 0 | I180: 500 | J180: 500 | K180: 0 | L180: 0 | M180: 33 | N180: 4 | O180: 3 | P180: 49.63 | Q180: 37996.48492 | R180: 18998242.46 | S180: 14633332.89 | T180: 483 | U180: 428 | V180: 302 | W180: 310 | X180: 275 | Y180: 492 | Z180: 304 | AA180: 201 | AB180: 112 | AC180: 0 | AD180: 0 | AE180: 525 | AF180: 418 | AG180: 189 | AH180: 3 | AI180: 7 | AJ180: 13 | AK180: 102 | AL180: 138 | AM180: 434 | AN180: 0 | AO180: 0 | AP180: 21 | AQ180: 16 | AR180: 7 | AS180: 9 | AT180: 168 | AU180: 100 | AV180: 54 | AW180: 168 | AX180: 144 | AY180: 6 | AZ180: 1 | BA180: 20 | BB180: 155 | BC180: 8 | BD180: 57 | BE180: 25 | BF180: 261 | BG180: 132 | BH180: 66 | BI180: 138 | BJ180: 100 | BK180: 16 | BL180: 1 | BM180: 106 | BN180: 21 | BO180: 52 | BP180: 100 | BQ180: 23 | BR180: 25 | BS180: 379 | BT180: 39 | BU180: 80 | BV180: 72 | BW180: 49 | BY180: 29 | BZ180: BPe | CA180: 14633332.89 | CB180: 1
A181: BAS_RHIN | B181: STRASBOURG | C181: SCHILTIGHEIM KLEBER | D181: 29 | E181: BPne | F181: 333 | G181: 0 | H181: 0 | I181: 333 | J181: 333 | K181: 0 | L181: 0 | M181: 20 | N181: 9 | O181: 7 | P181: 53.74774775 | Q181: 17868.27162 | R181: 5950134.45 | S181: 1642579.63 | T181: 245 | U181: 152 | V181: 43 | W181: 39 | X181: 39 | Y181: 289 | Z181: 88 | AA181: 63 | AB181: 49 | AC181: 0 | AD181: 0 | AE181: 314 | AF181: 248 | AG181: 17 | AH181: 0 | AI181: 2 | AJ181: 2 | AK181: 12 | AL181: 19 | AM181: 247 | AN181: 0 | AO181: 0 | AP181: 4 | AQ181: 8 | AR181: 2 | AS181: 0 | AT181: 61 | AU181: 61 | AV181: 8 | AW181: 40 | AX181: 15 | AY181: 0 | AZ181: 0 | BA181: 3 | BB181: 27 | BC181: 0 | BD181: 9 | BE181: 11 | BF181: 101 | BG181: 15 | BH181: 5 | BI181: 23 | BJ181: 11 | BK181: 0 | BL181: 0 | BM181: 12 | BN181: 6 | BO181: 18 | BP181: 18 | BQ181: 4 | BR181: 6 | BS181: 201 | BT181: 3 | BU181: 45 | BV181: 40 | BW181: 26 | BY181: 29 | BZ181: BPne | CA181: 1642579.63 | CB181: 1
A182: BAS_RHIN | B182: STRASBOURG | C182: SCHILTIGHEIM KLEBER | D182: 29 | E182: De | F182: 378 | G182: 0 | H182: 0 | I182: 378 | J182: 378 | K182: 0 | L182: 0 | M182: 8 | N182: 1 | O182: 16 | P182: 64.61904762 | Q182: 54987.30521 | R182: 20785201.37 | S182: 1424657.35 | T182: 97 | U182: 346 | V182: 287 | W182: 42 | X182: 69 | Y182: 149 | Z182: 37 | AA182: 20 | AB182: 16 | AC182: 0 | AD182: 0 | AE182: 133 | AF182: 95 | AG182: 12 | AH182: 0 | AI182: 1 | AJ182: 0 | AK182: 14 | AL182: 20 | AM182: 334 | AN182: 0 | AO182: 0 | AP182: 18 | AQ182: 30 | AR182: 7 | AS182: 0 | AT182: 114 | AU182: 114 | AV182: 35 | AW182: 45 | AX182: 121 | AY182: 1 | AZ182: 0 | BA182: 4 | BB182: 157 | BC182: 2 | BD182: 46 | BE182: 25 | BF182: 190 | BG182: 132 | BH182: 10 | BI182: 31 | BJ182: 16 | BK182: 9 | BL182: 0 | BM182: 10 | BN182: 9 | BO182: 8 | BP182: 19 | BQ182: 1 | BR182: 2 | BS182: 114 | BT182: 9 | BU182: 11 | BV182: 27 | BW182: 10 | BY182: 29 | BZ182: De | CA182: 1424657.35 | CB182: 1
A183: BAS_RHIN | B183: STRASBOURG | C183: SCHILTIGHEIM KLEBER | D183: 29 | E183: Dne | F183: 736 | G183: 0 | H183: 0 | I183: 736 | J183: 736 | K183: 0 | L183: 0 | M183: 19 | N183: 6 | O183: 54 | P183: 58.25271739 | Q183: 8863.313927 | R183: 6523399.05 | S183: 428028.12 | T183: 26 | U183: 355 | V183: 70 | W183: 21 | X183: 22 | Y183: 122 | Z183: 11 | AA183: 15 | AB183: 9 | AC183: 0 | AD183: 0 | AE183: 114 | AF183: 75 | AG183: 11 | AH183: 0 | AI183: 1 | AJ183: 0 | AK183: 1 | AL183: 10 | AM183: 509 | AN183: 0 | AO183: 0 | AP183: 11 | AQ183: 11 | AR183: 4 | AS183: 0 | AT183: 76 | AU183: 68 | AV183: 7 | AW183: 21 | AX183: 12 | AY183: 0 | AZ183: 0 | BA183: 12 | BB183: 40 | BC183: 1 | BD183: 7 | BE183: 4 | BF183: 117 | BG183: 12 | BH183: 0 | BI183: 13 | BJ183: 5 | BK183: 1 | BL183: 0 | BM183: 9 | BN183: 3 | BO183: 12 | BP183: 7 | BQ183: 0 | BR183: 1 | BS183: 128 | BT183: 0 | BU183: 13 | BV183: 11 | BW183: 8 | BY183: 29 | BZ183: Dne | CA183: 428028.12 | CB183: 1
A184: BAS_RHIN | B184: STRASBOURG | C184: SCHILTIGHEIM KLEBER | D184: 29 | E184: Ee | F184: 143 | G184: 13 | H184: 24 | I184: 24 | J184: 0 | K184: 24 | L184: 0 | M184: 0 | N184: 11 | O184: 2 | P184: 7.111888112 | Q184: 2941.308741 | R184: 420607.15 | S184: 0 | T184: 1 | U184: 115 | V184: 39 | W184: 0 | X184: 0 | Y184: 4 | Z184: 0 | AA184: 0 | AB184: 0 | AC184: 0 | AD184: 0 | AE184: 5 | AF184: 3 | AG184: 0 | AH184: 0 | AI184: 0 | AJ184: 0 | AK184: 0 | AL184: 0 | AM184: 129 | AN184: 3 | AO184: 16 | AP184: 1 | AQ184: 0 | AR184: 0 | AS184: 1 | AT184: 0 | AU184: 0 | AV184: 0 | AW184: 59 | AX184: 12 | AY184: 0 | AZ184: 0 | BA184: 0 | BB184: 21 | BC184: 2 | BD184: 0 | BE184: 0 | BF184: 7 | BG184: 2 | BH184: 0 | BI184: 0 | BJ184: 0 | BK184: 0 | BL184: 0 | BM184: 0 | BN184: 0 | BO184: 0 | BP184: 0 | BQ184: 0 | BR184: 0 | BS184: 36 | BT184: 0 | BU184: 2 | BV184: 0 | BW184: 1 | BY184: 29 | BZ184: Ee | CA184: 0 | CB184: 1
A185: BAS_RHIN | B185: STRASBOURG | C185: SCHILTIGHEIM KLEBER | D185: 29 | E185: Ene | F185: 170 | G185: 71 | H185: 69 | I185: 69 | J185: 0 | K185: 69 | L185: 0 | M185: 0 | N185: 8 | O185: 1 | P185: 10.50588235 | Q185: 741.7945882 | R185: 126105.08 | S185: 0 | T185: 0 | U185: 0 | V185: 0 | W185: 0 | X185: 0 | Y185: 7 | Z185: 0 | AA185: 0 | AB185: 0 | AC185: 0 | AD185: 0 | AE185: 7 | AF185: 0 | AG185: 0 | AH185: 0 | AI185: 0 | AJ185: 0 | AK185: 0 | AL185: 0 | AM185: 157 | AN185: 2 | AO185: 3 | AP185: 3 | AQ185: 0 | AR185: 0 | AS185: 0 | AT185: 0 | AU185: 0 | AV185: 1 | AW185: 29 | AX185: 0 | AY185: 0 | AZ185: 0 | BA185: 0 | BB185: 0 | BC185: 0 | BD185: 0 | BE185: 0 | BF185: 14 | BG185: 4 | BH185: 0 | BI185: 0 | BJ185: 0 | BK185: 0 | BL185: 0 | BM185: 0 | BN185: 0 | BO185: 0 | BP185: 0 | BQ185: 0 | BR185: 0 | BS185: 20 | BT185: 0 | BU185: 0 | BV185: 0 | BW185: 7 | BY185: 29 | BZ185: Ene | CA185: 0 | CB185: 1
A186: BAS_RHIN | B186: STRASBOURG | C186: SCHILTIGHEIM KLEBER | D186: 29 | E186: I | F186: 530 | G186: 0 | H186: 0 | I186: 530 | J186: 530 | K186: 0 | L186: 0 | M186: 29 | N186: 1 | O186: 61 | P186: 50.10943396 | Q186: 16.98239623 | R186: 9000.67 | S186: 0 | T186: 0 | U186: 12 | V186: 5 | W186: 0 | X186: 9 | Y186: 1 | Z186: 0 | AA186: 0 | AB186: 0 | AC186: 0 | AD186: 0 | AE186: 0 | AF186: 0 | AG186: 0 | AH186: 0 | AI186: 0 | AJ186: 0 | AK186: 0 | AL186: 0 | AM186: 381 | AN186: 0 | AO186: 0 | AP186: 4 | AQ186: 3 | AR186: 0 | AS186: 0 | AT186: 14 | AU186: 4 | AV186: 0 | AW186: 1 | AX186: 0 | AY186: 0 | AZ186: 0 | BA186: 4 | BB186: 1 | BC186: 0 | BD186: 0 | BE186: 0 | BF186: 3 | BG186: 0 | BH186: 1 | BI186: 2 | BJ186: 0 | BK186: 2 | BL186: 0 | BM186: 3 | BN186: 2 | BO186: 1 | BP186: 4 | BQ186: 0 | BR186: 0 | BS186: 5 | BT186: 0 | BU186: 0 | BV186: 0 | BW186: 0 | BY186: 29 | BZ186: I | CA186: 0 | CB186: 1
A187: BAS_RHIN | B187: STRASBOURG | C187: SCHILTIGHEIM KLEBER | D187: 29 | E187: JBPe | F187: 129 | G187: 0 | H187: 129 | I187: 129 | J187: 126 | K187: 3 | L187: 129 | M187: 126 | N187: 13 | O187: 1 | P187: 21.76744186 | Q187: 6631.52062 | R187: 855466.16 | S187: 1148698.32 | T187: 126 | U187: 95 | V187: 34 | W187: 44 | X187: 56 | Y187: 129 | Z187: 29 | AA187: 47 | AB187: 32 | AC187: 0 | AD187: 0 | AE187: 133 | AF187: 86 | AG187: 34 | AH187: 9 | AI187: 13 | AJ187: 0 | AK187: 8 | AL187: 8 | AM187: 107 | AN187: 0 | AO187: 100 | AP187: 1 | AQ187: 0 | AR187: 0 | AS187: 1 | AT187: 10 | AU187: 0 | AV187: 0 | AW187: 30 | AX187: 19 | AY187: 0 | AZ187: 0 | BA187: 0 | BB187: 10 | BC187: 0 | BD187: 2 | BE187: 0 | BF187: 15 | BG187: 5 | BH187: 3 | BI187: 18 | BJ187: 15 | BK187: 3 | BL187: 0 | BM187: 33 | BN187: 0 | BO187: 18 | BP187: 10 | BQ187: 4 | BR187: 6 | BS187: 119 | BT187: 1 | BU187: 90 | BV187: 34 | BW187: 43 | BY187: 29 | BZ187: JBPe | CA187: 1148698.32 | CB187: 1
A188: BAS_RHIN | B188: STRASBOURG | C188: SCHILTIGHEIM KLEBER | D188: 29 | E188: JBPne | F188: 47 | G188: 0 | H188: 47 | I188: 47 | J188: 43 | K188: 4 | L188: 47 | M188: 43 | N188: 1 | O188: 2 | P188: 21.06382979 | Q188: 621.0468085 | R188: 29189.2 | S188: 0 | T188: 36 | U188: 1 | V188: 2 | W188: 0 | X188: 0 | Y188: 45 | Z188: 1 | AA188: 3 | AB188: 1 | AC188: 0 | AD188: 0 | AE188: 45 | AF188: 41 | AG188: 0 | AH188: 0 | AI188: 0 | AJ188: 0 | AK188: 0 | AL188: 0 | AM188: 28 | AN188: 0 | AO188: 28 | AP188: 0 | AQ188: 0 | AR188: 0 | AS188: 0 | AT188: 1 | AU188: 0 | AV188: 0 | AW188: 1 | AX188: 0 | AY188: 0 | AZ188: 0 | BA188: 0 | BB188: 1 | BC188: 0 | BD188: 0 | BE188: 0 | BF188: 8 | BG188: 2 | BH188: 0 | BI188: 0 | BJ188: 0 | BK188: 0 | BL188: 0 | BM188: 0 | BN188: 0 | BO188: 5 | BP188: 1 | BQ188: 2 | BR188: 2 | BS188: 41 | BT188: 0 | BU188: 35 | BV188: 5 | BW188: 4 | BY188: 29 | BZ188: JBPne | CA188: 0 | CB188: 1
A189: BAS_RHIN | B189: STRASBOURG | C189: SCHILTIGHEIM KLEBER | D189: 29 | E189: JDe | F189: 16 | G189: 0 | H189: 16 | I189: 16 | J189: 7 | K189: 9 | L189: 16 | M189: 7 | N189: 0 | O189: 0 | P189: 18.5625 | Q189: 11773.98625 | R189: 188383.78 | S189: 0 | T189: 1 | U189: 15 | V189: 16 | W189: 0 | X189: 0 | Y189: 3 | Z189: 0 | AA189: 0 | AB189: 0 | AC189: 0 | AD189: 0 | AE189: 3 | AF189: 1 | AG189: 0 | AH189: 0 | AI189: 0 | AJ189: 0 | AK189: 0 | AL189: 0 | AM189: 13 | AN189: 0 | AO189: 9 | AP189: 0 | AQ189: 0 | AR189: 0 | AS189: 0 | AT189: 0 | AU189: 0 | AV189: 0 | AW189: 0 | AX189: 6 | AY189: 0 | AZ189: 0 | BA189: 0 | BB189: 5 | BC189: 0 | BD189: 0 | BE189: 0 | BF189: 5 | BG189: 5 | BH189: 0 | BI189: 0 | BJ189: 0 | BK189: 0 | BL189: 0 | BM189: 0 | BN189: 0 | BO189: 0 | BP189: 0 | BQ189: 0 | BR189: 0 | BS189: 2 | BT189: 0 | BU189: 0 | BV189: 0 | BW189: 2 | BY189: 29 | BZ189: JDe | CA189: 0 | CB189: 1
A190: BAS_RHIN | B190: STRASBOURG | C190: SCHILTIGHEIM KLEBER | D190: 29 | E190: JDne | F190: 182 | G190: 0 | H190: 182 | I190: 182 | J190: 130 | K190: 52 | L190: 182 | M190: 130 | N190: 10 | O190: 11 | P190: 19.73076923 | Q190: 1104.558791 | R190: 201029.7 | S190: 108383.97 | T190: 2 | U190: 54 | V190: 4 | W190: 1 | X190: 1 | Y190: 29 | Z190: 0 | AA190: 1 | AB190: 1 | AC190: 0 | AD190: 0 | AE190: 34 | AF190: 9 | AG190: 0 | AH190: 0 | AI190: 0 | AJ190: 0 | AK190: 0 | AL190: 1 | AM190: 141 | AN190: 0 | AO190: 68 | AP190: 0 | AQ190: 0 | AR190: 0 | AS190: 0 | AT190: 0 | AU190: 0 | AV190: 0 | AW190: 17 | AX190: 0 | AY190: 0 | AZ190: 0 | BA190: 0 | BB190: 4 | BC190: 0 | BD190: 0 | BE190: 0 | BF190: 11 | BG190: 0 | BH190: 0 | BI190: 1 | BJ190: 1 | BK190: 0 | BL190: 0 | BM190: 0 | BN190: 0 | BO190: 0 | BP190: 0 | BQ190: 0 | BR190: 0 | BS190: 26 | BT190: 1 | BU190: 14 | BV190: 1 | BW190: 21 | BY190: 29 | BZ190: JDne | CA190: 108383.97 | CB190: 1
A191: BAS_RHIN | B191: HAGUENAU | C191: BRUMATH | D191: 30 | E191: BPe | F191: 1350 | G191: 0 | H191: 0 | I191: 1350 | J191: 1350 | K191: 0 | L191: 0 | M191: 91 | N191: 14 | O191: 14 | P191: 50.55333333 | Q191: 49378.72345 | R191: 66661276.66 | S191: 56449315.57 | T191: 1261 | U191: 1199 | V191: 992 | W191: 874 | X191: 682 | Y191: 1311 | Z191: 890 | AA191: 610 | AB191: 313 | AC191: 0 | AD191: 0 | AE191: 1515 | AF191: 1082 | AG191: 480 | AH191: 21 | AI191: 1 | AJ191: 28 | AK191: 164 | AL191: 563 | AM191: 1226 | AN191: 0 | AO191: 0 | AP191: 42 | AQ191: 62 | AR191: 14 | AS191: 30 | AT191: 486 | AU191: 167 | AV191: 225 | AW191: 464 | AX191: 520 | AY191: 26 | AZ191: 0 | BA191: 37 | BB191: 547 | BC191: 54 | BD191: 214 | BE191: 116 | BF191: 749 | BG191: 548 | BH191: 245 | BI191: 330 | BJ191: 256 | BK191: 34 | BL191: 2 | BM191: 263 | BN191: 92 | BO191: 124 | BP191: 186 | BQ191: 68 | BR191: 189 | BS191: 967 | BT191: 103 | BU191: 215 | BV191: 260 | BW191: 162 | BY191: 30 | BZ191: BPe | CA191: 56449315.57 | CB191: 1
A192: BAS_RHIN | B192: HAGUENAU | C192: BRUMATH | D192: 30 | E192: BPne | F192: 497 | G192: 0 | H192: 0 | I192: 497 | J192: 497 | K192: 0 | L192: 0 | M192: 21 | N192: 16 | O192: 17 | P192: 56.81891348 | Q192: 23386.71819 | R192: 11623198.94 | S192: 5362827.37 | T192: 292 | U192: 250 | V192: 99 | W192: 100 | X192: 55 | Y192: 365 | Z192: 153 | AA192: 100 | AB192: 68 | AC192: 0 | AD192: 0 | AE192: 481 | AF192: 321 | AG192: 52 | AH192: 0 | AI192: 0 | AJ192: 9 | AK192: 17 | AL192: 60 | AM192: 342 | AN192: 0 | AO192: 0 | AP192: 8 | AQ192: 18 | AR192: 5 | AS192: 4 | AT192: 104 | AU192: 68 | AV192: 19 | AW192: 55 | AX192: 43 | AY192: 0 | AZ192: 0 | BA192: 3 | BB192: 63 | BC192: 2 | BD192: 23 | BE192: 11 | BF192: 131 | BG192: 52 | BH192: 19 | BI192: 20 | BJ192: 16 | BK192: 8 | BL192: 0 | BM192: 22 | BN192: 7 | BO192: 27 | BP192: 27 | BQ192: 6 | BR192: 32 | BS192: 281 | BT192: 7 | BU192: 60 | BV192: 41 | BW192: 63 | BY192: 30 | BZ192: BPne | CA192: 5362827.37 | CB192: 1
A193: BAS_RHIN | B193: HAGUENAU | C193: BRUMATH | D193: 30 | E193: De | F193: 822 | G193: 0 | H193: 0 | I193: 822 | J193: 822 | K193: 0 | L193: 0 | M193: 25 | N193: 10 | O193: 23 | P193: 63.39051095 | Q193: 67366.46932 | R193: 55375237.78 | S193: 4423733.51 | T193: 121 | U193: 754 | V193: 729 | W193: 93 | X193: 135 | Y193: 243 | Z193: 81 | AA193: 42 | AB193: 35 | AC193: 0 | AD193: 0 | AE193: 290 | AF193: 156 | AG193: 35 | AH193: 5 | AI193: 0 | AJ193: 2 | AK193: 12 | AL193: 52 | AM193: 709 | AN193: 0 | AO193: 0 | AP193: 40 | AQ193: 62 | AR193: 17 | AS193: 19 | AT193: 244 | AU193: 153 | AV193: 94 | AW193: 94 | AX193: 288 | AY193: 8 | AZ193: 1 | BA193: 21 | BB193: 412 | BC193: 25 | BD193: 101 | BE193: 82 | BF193: 460 | BG193: 391 | BH193: 30 | BI193: 47 | BJ193: 33 | BK193: 11 | BL193: 1 | BM193: 23 | BN193: 35 | BO193: 12 | BP193: 30 | BQ193: 4 | BR193: 17 | BS193: 233 | BT193: 19 | BU193: 25 | BV193: 47 | BW193: 18 | BY193: 30 | BZ193: De | CA193: 4423733.51 | CB193: 1
A194: BAS_RHIN | B194: HAGUENAU | C194: BRUMATH | D194: 30 | E194: Dne | F194: 1618 | G194: 0 | H194: 0 | I194: 1618 | J194: 1618 | K194: 0 | L194: 0 | M194: 59 | N194: 66 | O194: 97 | P194: 56.51236094 | Q194: 11155.19991 | R194: 18049113.45 | S194: 2785252.86 | T194: 60 | U194: 777 | V194: 248 | W194: 85 | X194: 33 | Y194: 129 | Z194: 26 | AA194: 18 | AB194: 13 | AC194: 0 | AD194: 0 | AE194: 273 | AF194: 74 | AG194: 26 | AH194: 3 | AI194: 0 | AJ194: 3 | AK194: 9 | AL194: 54 | AM194: 941 | AN194: 0 | AO194: 0 | AP194: 15 | AQ194: 22 | AR194: 14 | AS194: 7 | AT194: 96 | AU194: 65 | AV194: 17 | AW194: 26 | AX194: 42 | AY194: 4 | AZ194: 0 | BA194: 27 | BB194: 140 | BC194: 8 | BD194: 23 | BE194: 23 | BF194: 202 | BG194: 78 | BH194: 6 | BI194: 9 | BJ194: 9 | BK194: 0 | BL194: 0 | BM194: 15 | BN194: 4 | BO194: 19 | BP194: 11 | BQ194: 5 | BR194: 8 | BS194: 310 | BT194: 4 | BU194: 31 | BV194: 44 | BW194: 19 | BY194: 30 | BZ194: Dne | CA194: 2785252.86 | CB194: 1
A195: BAS_RHIN | B195: HAGUENAU | C195: BRUMATH | D195: 30 | E195: Ee | F195: 400 | G195: 68 | H195: 124 | I195: 124 | J195: 0 | K195: 124 | L195: 0 | M195: 0 | N195: 34 | O195: 9 | P195: 8.1025 | Q195: 4626.411075 | R195: 1850564.43 | S195: 0 | T195: 4 | U195: 283 | V195: 183 | W195: 0 | X195: 0 | Y195: 12 | Z195: 0 | AA195: 0 | AB195: 0 | AC195: 0 | AD195: 0 | AE195: 13 | AF195: 1 | AG195: 0 | AH195: 0 | AI195: 0 | AJ195: 0 | AK195: 0 | AL195: 0 | AM195: 316 | AN195: 7 | AO195: 83 | AP195: 2 | AQ195: 0 | AR195: 0 | AS195: 1 | AT195: 0 | AU195: 0 | AV195: 3 | AW195: 133 | AX195: 76 | AY195: 0 | AZ195: 0 | BA195: 0 | BB195: 77 | BC195: 3 | BD195: 0 | BE195: 0 | BF195: 26 | BG195: 15 | BH195: 0 | BI195: 0 | BJ195: 0 | BK195: 0 | BL195: 0 | BM195: 0 | BN195: 0 | BO195: 0 | BP195: 0 | BQ195: 0 | BR195: 0 | BS195: 107 | BT195: 0 | BU195: 2 | BV195: 0 | BW195: 11 | BY195: 30 | BZ195: Ee | CA195: 0 | CB195: =IF(AND(BY195=D195,E195=BZ195),1,0) -> 1
A196: BAS_RHIN | B196: HAGUENAU | C196: BRUMATH | D196: 30 | E196: Ene | F196: 185 | G196: 75 | H196: 65 | I196: 65 | J196: 0 | K196: 65 | L196: 0 | M196: 0 | N196: 13 | O196: 6 | P196: 9.794594595 | Q196: 2265.824108 | R196: 419177.46 | S196: 0 | T196: 0 | U196: 0 | V196: 0 | W196: 0 | X196: 0 | Y196: 1 | Z196: 0 | AA196: 0 | AB196: 0 | AC196: 0 | AD196: 0 | AE196: 1 | AF196: 1 | AG196: 0 | AH196: 0 | AI196: 0 | AJ196: 0 | AK196: 0 | AL196: 0 | AM196: 139 | AN196: 1 | AO196: 4 | AP196: 3 | AQ196: 0 | AR196: 0 | AS196: 1 | AT196: 0 | AU196: 0 | AV196: 1 | AW196: 17 | AX196: 0 | AY196: 0 | AZ196: 0 | BA196: 0 | BB196: 0 | BC196: 0 | BD196: 0 | BE196: 0 | BF196: 17 | BG196: 11 | BH196: 0 | BI196: 0 | BJ196: 0 | BK196: 0 | BL196: 0 | BM196: 0 | BN196: 0 | BO196: 0 | BP196: 0 | BQ196: 0 | BR196: 0 | BS196: 36 | BT196: 0 | BU196: 0 | BV196: 0 | BW196: 0 | BY196: 30 | BZ196: Ene | CA196: 0 | CB196: 1
A197: BAS_RHIN | B197: HAGUENAU | C197: BRUMATH | D197: 30 | E197: I | F197: 905 | G197: 0 | H197: 0 | I197: 905 | J197: 905 | K197: 0 | L197: 0 | M197: 61 | N197: 0 | O197: 83 | P197: 48.73259669 | Q197: 18.04751381 | R197: 16333 | S197: 20000 | T197: 0 | U197: 39 | V197: 1 | W197: 0 | X197: 19 | Y197: 0 | Z197: 0 | AA197: 0 | AB197: 0 | AC197: 0 | AD197: 0 | AE197: 1 | AF197: 0 | AG197: 0 | AH197: 0 | AI197: 0 | AJ197: 0 | AK197: 0 | AL197: 0 | AM197: 586 | AN197: 0 | AO197: 0 | AP197: 3 | AQ197: 2 | AR197: 3 | AS197: 1 | AT197: 16 | AU197: 0 | AV197: 0 | AW197: 0 | AX197: 0 | AY197: 0 | AZ197: 1 | BA197: 0 | BB197: 0 | BC197: 0 | BD197: 0 | BE197: 0 | BF197: 3 | BG197: 0 | BH197: 3 | BI197: 3 | BJ197: 6 | BK197: 2 | BL197: 0 | BM197: 5 | BN197: 2 | BO197: 3 | BP197: 5 | BQ197: 3 | BR197: 0 | BS197: 19 | BT197: 0 | BU197: 0 | BV197: 0 | BW197: 0 | BY197: 30 | BZ197: I | CA197: 20000 | CB197: 1
A198: BAS_RHIN | B198: HAGUENAU | C198: BRUMATH | D198: 30 | E198: JBPe | F198: 240 | G198: 0 | H198: 240 | I198: 240 | J198: 225 | K198: 15 | L198: 240 | M198: 225 | N198: 4 | O198: 3 | P198: 21.6375 | Q198: 17000.16333 | R198: 4080039.2 | S198: 1743305.36 | T198: 235 | U198: 214 | V198: 129 | W198: 62 | X198: 67 | Y198: 239 | Z198: 48 | AA198: 114 | AB198: 26 | AC198: 0 | AD198: 0 | AE198: 255 | AF198: 175 | AG198: 56 | AH198: 19 | AI198: 7 | AJ198: 0 | AK198: 8 | AL198: 14 | AM198: 222 | AN198: 0 | AO198: 215 | AP198: 1 | AQ198: 0 | AR198: 0 | AS198: 1 | AT198: 15 | AU198: 3 | AV198: 15 | AW198: 56 | AX198: 97 | AY198: 0 | AZ198: 0 | BA198: 0 | BB198: 38 | BC198: 0 | BD198: 2 | BE198: 1 | BF198: 58 | BG198: 41 | BH198: 18 | BI198: 22 | BJ198: 11 | BK198: 5 | BL198: 0 | BM198: 43 | BN198: 0 | BO198: 39 | BP198: 5 | BQ198: 7 | BR198: 12 | BS198: 220 | BT198: 2 | BU198: 188 | BV198: 114 | BW198: 67 | BY198: 30 | BZ198: JBPe | CA198: 1743305.36 | CB198: 1
A199: BAS_RHIN | B199: HAGUENAU | C199: BRUMATH | D199: 30 | E199: JBPne | F199: 37 | G199: 0 | H199: 37 | I199: 37 | J199: 32 | K199: 5 | L199: 37 | M199: 32 | N199: 8 | O199: 0 | P199: 21.37837838 | Q199: 1508.807568 | R199: 55825.88 | S199: 13699.83 | T199: 26 | U199: 1 | V199: 1 | W199: 2 | X199: 0 | Y199: 33 | Z199: 1 | AA199: 9 | AB199: 1 | AC199: 0 | AD199: 0 | AE199: 39 | AF199: 25 | AG199: 2 | AH199: 1 | AI199: 1 | AJ199: 0 | AK199: 0 | AL199: 0 | AM199: 11 | AN199: 0 | AO199: 14 | AP199: 0 | AQ199: 0 | AR199: 0 | AS199: 0 | AT199: 0 | AU199: 0 | AV199: 0 | AW199: 0 | AX199: 0 | AY199: 0 | AZ199: 0 | BA199: 0 | BB199: 0 | BC199: 0 | BD199: 0 | BE199: 0 | BF199: 2 | BG199: 1 | BH199: 0 | BI199: 0 | BJ199: 0 | BK199: 0 | BL199: 0 | BM199: 0 | BN199: 0 | BO199: 6 | BP199: 0 | BQ199: 0 | BR199: 1 | BS199: 28 | BT199: 0 | BU199: 22 | BV199: 13 | BW199: 9 | BY199: 30 | BZ199: JBPne | CA199: 13699.83 | CB199: 1
A200: BAS_RHIN | B200: HAGUENAU | C200: BRUMATH | D200: 30 | E200: JDe | F200: 75 | G200: 0 | H200: 75 | I200: 75 | J200: 46 | K200: 29 | L200: 75 | M200: 46 | N200: 1 | O200: 3 | P200: 19.2 | Q200: 14267.17213 | R200: 1070037.91 | S200: 196120.65 | T200: 8 | U200: 72 | V200: 67 | W200: 7 | X200: 4 | Y200: 20 | Z200: 0 | AA200: 0 | AB200: 0 | AC200: 0 | AD200: 0 | AE200: 21 | AF200: 12 | AG200: 6 | AH200: 4 | AI200: 1 | AJ200: 0 | AK200: 0 | AL200: 2 | AM200: 61 | AN200: 0 | AO200: 67 | AP200: 1 | AQ200: 0 | AR200: 0 | AS200: 0 | AT200: 1 | AU200: 0 | AV200: 5 | AW200: 11 | AX200: 41 | AY200: 2 | AZ200: 0 | BA200: 0 | BB200: 21 | BC200: 3 | BD200: 1 | BE200: 0 | BF200: 25 | BG200: 21 | BH200: 0 | BI200: 2 | BJ200: 1 | BK200: 0 | BL200: 0 | BM200: 1 | BN200: 0 | BO200: 2 | BP200: 0 | BQ200: 0 | BR200: 0 | BS200: 21 | BT200: 0 | BU200: 13 | BV200: 0 | BW200: 8 | BY200: 30 | BZ200: JDe | CA200: 196120.65 | CB200: 1
... 925 more rows

Sheet A venir

Sheet Feuil3
A1: http://commerciaux.celca.caisse-epargne.fr/download/166/segmentation-activation/8760/segmentation_cegee.pdf

Sheet Infos segmentation

Sheet EDS
A1: eds pdv | B1: pdv | C1: eds pdv | D1: agence | E1: territoire | F1: région | I1: AUBE_HAUTE_MARNE | J1: BAS_RHIN | K1: HAUT_RHIN | L1: MARNE_ARDENNES | M1: MEURTHE_ET_MOSELLE_MEUSE | N1: MOSELLE | O1: VOSGES | P1: BANQUE_DIGITALE | Q1: CEGEE | R1: CHAUMONT | S1: TROYES | T1: HAGUENAU | U1: SELESTAT | V1: STRASBOURG | W1: COLMAR | X1: MULHOUSE | Y1: CHALONS_EN_CHAMPAGNE | Z1: CHARLEVILLE_MEZIERES | AA1: REIMS | AB1: NANCY | AC1: PONT_A_MOUSSON | AD1: VERDUN | AE1: METZ | AF1: MOSELLE_EST | AG1: MOSELLE_NORD | AH1: EPINAL | AI1: SAINT_DIE | AJ1: MON_AGENCE | AK1: MON_BANQUIER_EN_LIGNE | AL1: EXPERTS_DIRECT
A2: 10560 | B2: BOURBONNE LES BAINS | C2: 410560 | D2: BOURBONNE LES BAINS | E2: CHAUMONT | F2: AUBE_HAUTE_MARNE | I2: CHAUMONT | J2: HAGUENAU | K2: COLMAR | L2: CHALONS_EN_CHAMPAGNE | M2: NANCY | N2: METZ | O2: EPINAL | P2: MON_AGENCE | R2: BOURBONNE LES BAINS | S2: AIX EN OTHE | T2: BISCHWILLER | U2: BARR | V2: BISCHHEIM | W2: COLMAR MARAICHERS | X2: ALTKIRCH | Y2: CHALONS ROOSEVELT | Z2: CARIGNAN | AA2: AY CHAMPAGNE | AB2: BACCARAT | AC2: BRIEY | AD2: BAR LE DUC | AE2: ARS SUR MOSELLE | AF2: BEHREN LES FORBACH | AG2: AUDUN LE TICHE | AH2: CHANTRAINE | AI2: BRUYERES | AJ2: MON AGENCE | AK2: MON BANQUIER EN LIGNE | AL2: EXPERTS DIRECT
A3: 10558 | B3: CHALINDREY | C3: 510558 | D3: CHALINDREY | E3: CHAUMONT | F3: AUBE_HAUTE_MARNE | I3: TROYES | J3: SELESTAT | K3: MULHOUSE | L3: CHARLEVILLE_MEZIERES | M3: PONT_A_MOUSSON | N3: MOSELLE_EST | O3: SAINT_DIE | P3: MON_BANQUIER_EN_LIGNE | R3: CHALINDREY | S3: ARCIS SUR AUBE | T3: DRUSENHEIM | U3: BENFELD | V3: LA WANTZENAU | W3: COLMAR REPUBLIQUE | X3: FERRETTE | Y3: CHALONS VIVIERS | Z3: CHARLEVILLE JEAN JAURES | AA3: BETHENY | AB3: BLAINVILLE | AC3: CHALIGNY NEUVES MAISONS | AD3: COMMERCY | AE3: BOULAY | AF3: BITCHE | AG3: BOUSSE | AH3: CHARMES | AI3: CORNIMONT LA BRESSE
A4: 10539 | B4: CHATEAUVILLAIN | C4: 410539 | D4: CHATEAUVILLAIN | E4: CHAUMONT | F4: AUBE_HAUTE_MARNE | J4: STRASBOURG | L4: REIMS | M4: VERDUN | N4: MOSELLE_NORD | P4: EXPERTS_DIRECT | R4: CHAUMONT HOTEL DE VILLE | S4: BAR SUR AUBE | T4: BOUXWILLER | U4: ERSTEIN | V4: VENDENHEIM | W4: COLMAR SAINTE MARIE | X4: BRUNSTATT | Y4: FAGNIERES LECLERC | Z4: CHARLEVILLE MEZIERES | AA4: DAMERY | AB4: BLAMONT | AC4: CHAMPIGNEULLES | AD4: ETAIN | AE4: BOUZONVILLE | AF4: CHATEAU SALINS | AG4: CATTENOM | AH4: DARNEY | AI4: FRAIZE
A5: 10566 | B5: CHAUMONT HOTEL DE VILLE | C5: 410566 | D5: CHAUMONT HOTEL DE VILLE | E5: CHAUMONT | F5: AUBE_HAUTE_MARNE | R5: CHAUMONT REPUBLIQUE | S5: BAR SUR SEINE | T5: BRUMATH | U5: FEGERSHEIM | V5: MUNDOLSHEIM | W5: ENSISHEIM | X5: CERNAY | Y5: MONTMIRAIL | Z5: CHARLEVILLE NEVERS | AA5: DORMANS | AB5: DOMBASLE SUR MEURTHE | AC5: DIEULOUARD | AD5: LIGNY EN BARROIS | AE5: CLOUANGE | AF5: CREUTZWALD | AG5: FAMECK | AH5: ELOYES | AI5: GERARDMER
A6: 10590 | B6: CHAUMONT REPUBLIQUE | C6: 510590 | D6: CHAUMONT REPUBLIQUE | E6: CHAUMONT | F6: AUBE_HAUTE_MARNE | R6: JOINVILLE | S6: BRIENNE LE CHATEAU | T6: HAGUENAU HOUBLON | U6: ILLKIRCH CENTRE | V6: OBERHAUSBERGEN | W6: GUEBWILLER | X6: SEPPOIS LE BAS | Y6: SUIPPES | Z6: GIVET | AA6: EPERNAY | AB6: ESSEY LES NANCY | AC6: JARNY | AD6: LONGUYON | AE6: MAIZIERES LES METZ | AF6: DIEUZE | AG6: FLORANGE | AH6: EPINAL ARISTIDE BRIAND | AI6: LE THILLOT
A7: 51154 | B7: JOINVILLE | C7: 451154 | D7: JOINVILLE | E7: CHAUMONT | F7: AUBE_HAUTE_MARNE | R7: LANGRES | S7: LA CHAPELLE ST LUC | T7: HAGUENAU MUSAU | U7: LINGOLSHEIM | V7: REICHSTETT | W7: HORBOURG WIHR | X7: DANNEMARIE | Y7: MOURMELON LE GRAND | Z7: MOUZON | AA7: FISMES | AB7: JARVILLE LA MALGRANGE | AC7: JOEUF | AD7: LONGWY BAS | AE7: MARANGE SILVANGE | AF7: FAULQUEMONT | AG7: FONTOY | AH7: EPINAL AVRINSART | AI7: MOYENMOUTIER
A8: 10541 | B8: LANGRES | C8: 410541 | D8: LANGRES | E8: CHAUMONT | F8: AUBE_HAUTE_MARNE | R8: NOGENT | S8: NOGENT SUR SEINE | T8: HOCHFELDEN | U8: MARCKOLSHEIM | V8: SCHILTIGHEIM CENTRE | W8: INGERSHEIM | X8: ILLZACH | Y8: SAINTE MENEHOULD | Z8: RETHEL | AA8: PIERRY LECLERC | AB8: LUNEVILLE CARNOT | AC8: LAXOU ARISTIDE BRIAND | AD8: LONGWY HAUT | AE8: MARLY | AF8: FORBACH CENTRALE | AG8: GUENANGE | AH8: EPINAL LEOPOLD BOURG | AI8: RAMBERVILLERS
A9: 10582 | B9: NOGENT | C9: 410582 | D9: NOGENT | E9: CHAUMONT | F9: AUBE_HAUTE_MARNE | R9: SAINT DIZIER CENTRE | S9: ROMILLY SUR SEINE | T9: HOERDT | U9: MARLENHEIM | V9: SCHILTIGHEIM KLEBER | W9: KAYSERSBERG | X9: MASEVAUX | Y9: SARRY | Z9: REVIN | AA9: REIMS CENTRE VILLE | AB9: NANCY ARTEM | AC9: LAXOU BOUFFLERS | AD9: MONTMEDY | AE9: METZ CATHEDRALE | AF9: MERLEBACH | AG9: HAGONDANGE | AH9: GOLBEY | AI9: RAON L ETAPE
A10: 51156 | B10: SAINT DIZIER CENTRE | C10: 451156 | D10: SAINT DIZIER CENTRE | E10: CHAUMONT | F10: AUBE_HAUTE_MARNE | R10: SAINT DIZIER EUROPE | S10: SAINT ANDRE LES VERGERS | T10: INGWILLER | U10: MOLSHEIM | V10: STRASBOURG ANVERS | W10: MUNSTER | X10: MULHOUSE DORNACH | Y10: SEZANNE | Z10: ROCROI | AA10: REIMS CHATILLONS | AB10: NANCY JEAN JAURES | AC10: LUDRES | AD10: REVIGNY SUR ORNAIN | AE10: METZ MOZART | AF10: MORHANGE | AG10: HAYANGE | AH10: LE VAL D AJOL | AI10: SAINT DIE
A11: 51157 | B11: SAINT DIZIER EUROPE | C11: 551157 | D11: SAINT DIZIER EUROPE | E11: CHAUMONT | F11: AUBE_HAUTE_MARNE | R11: WASSY | S11: SAINT JULIEN LES VILLAS | T11: NIEDERBRONN LES BAINS | U11: MUTZIG | V11: STRASBOURG AUSTERLITZ | W11: MUNTZENHEIM | X11: MULHOUSE REUNION | Y11: VERTUS | Z11: SEDAN | AA11: REIMS EUROPE | AB11: NANCY PLACE DOMBASLE | AC11: NANCY TROIS MAISONS | AD11: SAINT MIHIEL | AE11: METZ PLAPPEVILLE | AF11: NEUNKIRCH | AG11: HETTANGE GRANDE | AH11: MIRECOURT | AI11: SAINT DIE CATHEDRALE
A12: 51151 | B12: WASSY | C12: 451151 | D12: WASSY | E12: CHAUMONT | F12: AUBE_HAUTE_MARNE | S12: SAINTE SAVINE | T12: PFAFFENHOFFEN | U12: OBERNAI | V12: STRASBOURG CRONENBOURG | W12: NEUF BRISACH | X12: PFASTATT | Y12: VITRY LE FRANCOIS | Z12: VILLERS SEMEUSE CORA | AA12: REIMS HIPPODROME | AB12: NANCY POINT CENTRAL | AC12: PAGNY SUR MOSELLE | AD12: STENAY | AE12: METZ POMPIDOU | AF12: PHALSBOURG | AG12: METZERVISSE | AH12: NEUFCHATEAU | AI12: SENONES
A13: 10583 | B13: AIX EN OTHE | C13: 410583 | D13: AIX EN OTHE | E13: TROYES | F13: AUBE_HAUTE_MARNE | S13: TROYES 1ER MAI | T13: SARRE UNION | U13: ROSHEIM | V13: STRASBOURG DANUBE | W13: ORBEY | X13: RIEDISHEIM | Z13: VOUZIERS | AA13: REIMS HOTEL DE VILLE | AB13: NANCY SAINT SEBASTIEN | AC13: POMPEY | AD13: VAUCOULEURS | AE13: METZ REPUBLIQUE | AF13: PUTTELANGE AUX LACS | AG13: NILVANGE | AH13: NOMEXY | AI13: VAGNEY
A14: 10530 | B14: ARCIS SUR AUBE | C14: 510530 | D14: ARCIS SUR AUBE | E14: TROYES | F14: AUBE_HAUTE_MARNE | S14: TROYES GAMBETTA | T14: SAVERNE | U14: SCHIRMECK | V14: STRASBOURG FRANCS BOURGEOIS | W14: RIBEAUVILLE | X14: RIXHEIM | AA14: REIMS JEAN JAURES | AB14: SAINT MAX | AC14: PONT A MOUSSON BREUIL | AD14: VERDUN CENTRALE | AE14: METZ SAINT LIVIER | AF14: SAINT AVOLD | AG14: SIERCK LES BAINS | AH14: REMIREMONT
A15: 10550 | B15: BAR SUR AUBE | C15: 410550 | D15: BAR SUR AUBE | E15: TROYES | F15: AUBE_HAUTE_MARNE | S15: TROYES ZOLA | T15: SCHWEIGHOUSE SUR MODER | U15: SELESTAT CENTRE | V15: ESPACE MESANGE | W15: ROUFFACH | X15: SAINT LOUIS | AA15: REIMS SAINT MARCEAUX | AB15: SAINT NICOLAS DE PORT | AC15: PONT A MOUSSON CENTRALE | AD15: VERDUN MAZEL | AE15: METZ SAINT LOUIS | AF15: SARREBOURG | AG15: TERVILLE | AH15: THAON LES VOSGES
A16: 10556 | B16: BAR SUR SEINE | C16: 510556 | D16: BAR SUR SEINE | E16: TROYES | F16: AUBE_HAUTE_MARNE | T16: SOUFFLENHEIM | U16: CHATENOIS | V16: STRASBOURG HALLES | W16: SAINTE MARIE AUX MINES | X16: SIERENTZ | AA16: REIMS SAINT REMI | AB16: TOMBLAINE | AC16: TOUL | AD16: VILLERUPT | AE16: METZ SAINT MAXIMIN | AF16: SARREGUEMINES | AG16: THIONVILLE CENTRALE | AH16: VITTEL
A17: 10551 | B17: BRIENNE LE CHATEAU | C17: 410551 | D17: BRIENNE LE CHATEAU | E17: TROYES | F17: AUBE_HAUTE_MARNE | T17: SOULTZ SOUS FORETS | U17: VILLE | V17: ECKBOLSHEIM | W17: SOULTZ | X17: THANN | AA17: REIMS SAINT THOMAS | AB17: VANDOEUVRE LES NANCY | AC17: VEZELISE | AE17: METZ SARRE | AF17: STIRING WENDEL | AG17: THIONVILLE COTE DES ROSES | AH17: XERTIGNY
A18: 10523 | B18: LA CHAPELLE ST LUC | C18: 510523 | D18: LA CHAPELLE ST LUC | E18: TROYES | F18: AUBE_HAUTE_MARNE | T18: TRUCHTERSHEIM | U18: WASSELONNE | V18: STRASBOURG KOENIGSHOFFEN | W18: WINTZENHEIM | X18: SAINT AMARIN | AA18: TINQUEUX | AC18: VILLERS GENERAL LECLERC | AE18: MONTIGNY LES METZ | AF18: VALMONT | AG18: UCKANGE
A19: 10570 | B19: NOGENT SUR SEINE | C19: 510570 | D19: NOGENT SUR SEINE | E19: TROYES | F19: AUBE_HAUTE_MARNE | T19: WISSEMBOURG | V19: STRASBOURG MEINAU | X19: WITTELSHEIM | AA19: VERZY | AE19: MOULINS LES METZ | AG19: YUTZ
A20: 10571 | B20: ROMILLY SUR SEINE | C20: 410571 | D20: ROMILLY SUR SEINE | E20: TROYES | F20: AUBE_HAUTE_MARNE | T20: BETSCHDORF | V20: STRASBOURG MONTAGNE VERTE | X20: WITTENHEIM | AE20: REMILLY
A21: 10520 | B21: SAINT ANDRE LES VERGERS | C21: 510520 | D21: SAINT ANDRE LES VERGERS | E21: TROYES | F21: AUBE_HAUTE_MARNE | T21: SELTZ | V21: STRASBOURG NEUDORF | AE21: ROMBAS
A22: 10524 | B22: SAINT JULIEN LES VILLAS | C22: 410524 | D22: SAINT JULIEN LES VILLAS | E22: TROYES | F22: AUBE_HAUTE_MARNE | T22: WOERTH | V22: STRASBOURG ROBERTSAU | AE22: SAINT JULIEN LES METZ
A23: 10521 | B23: SAINTE SAVINE | C23: 410521 | D23: SAINTE SAVINE | E23: TROYES | F23: AUBE_HAUTE_MARNE | V23: STRASBOURG STOCKFELD | AE23: SAINTE MARIE AUX CHENES
A24: 10513 | B24: TROYES 1ER MAI | C24: 510513 | D24: TROYES 1ER MAI | E24: TROYES | F24: AUBE_HAUTE_MARNE | V24: STRASBOURG VOSGES | AE24: WOIPPY
A25: 10511 | B25: TROYES BROSSOLETTE | C25: 510511 | D25: TROYES BROSSOLETTE | E25: TROYES | F25: AUBE_HAUTE_MARNE
A26: 10522 | B26: TROYES CHARTREUX | C26: 510522 | D26: TROYES CHARTREUX | E26: TROYES | F26: AUBE_HAUTE_MARNE
A27: 10510 | B27: TROYES GAMBETTA | C27: 410510 | D27: TROYES GAMBETTA | E27: TROYES | F27: AUBE_HAUTE_MARNE
A28: 10512 | B28: TROYES ZOLA | C28: 410512 | D28: TROYES ZOLA | E28: TROYES | F28: AUBE_HAUTE_MARNE
A29: 57 | B29: BISCHWILLER | C29: 4057 | D29: BISCHWILLER | E29: HAGUENAU | F29: BAS_RHIN
A30: 58 | B30: DRUSENHEIM | C30: 4057 | D30: BISCHWILLER | E30: HAGUENAU | F30: BAS_RHIN
A31: 59 | B31: HERRLISHEIM | C31: 4057 | D31: BISCHWILLER | E31: HAGUENAU | F31: BAS_RHIN
A32: 82 | B32: BOUXWILLER | C32: 4082 | D32: BOUXWILLER | E32: HAGUENAU | F32: BAS_RHIN
A33: 30 | B33: BRUMATH | C33: 4030 | D33: BRUMATH | E33: HAGUENAU | F33: BAS_RHIN
A34: 65 | B34: WEITBRUCH | C34: 4030 | D34: BRUMATH | E34: HAGUENAU | F34: BAS_RHIN
A35: 60 | B35: HAGUENAU HOUBLON | C35: 4060 | D35: HAGUENAU HOUBLON | E35: HAGUENAU | F35: BAS_RHIN
A36: 64 | B36: HAGUENAU MUSAU | C36: 4064 | D36: HAGUENAU MUSAU | E36: HAGUENAU | F36: BAS_RHIN
A37: 92 | B37: HOCHFELDEN | C37: 4092 | D37: HOCHFELDEN | E37: HAGUENAU | F37: BAS_RHIN
A38: 41 | B38: HOERDT | C38: 4041 | D38: HOERDT | E38: HAGUENAU | F38: BAS_RHIN
A39: 85 | B39: INGWILLER | C39: 4085 | D39: INGWILLER | E39: HAGUENAU | F39: BAS_RHIN
A40: 86 | B40: WINGEN SUR MODER | C40: 4085 | D40: INGWILLER | E40: HAGUENAU | F40: BAS_RHIN
A41: 66 | B41: NIEDERBRONN LES BAINS | C41: 4066 | D41: NIEDERBRONN LES BAINS | E41: HAGUENAU | F41: BAS_RHIN
A42: 68 | B42: REICHSHOFFEN | C42: 4066 | D42: NIEDERBRONN LES BAINS | E42: HAGUENAU | F42: BAS_RHIN
A43: 70 | B43: GUNDERSHOFFEN | C43: 4066 | D43: NIEDERBRONN LES BAINS | E43: HAGUENAU | F43: BAS_RHIN
A44: 67 | B44: PFAFFENHOFFEN | C44: 4067 | D44: PFAFFENHOFFEN | E44: HAGUENAU | F44: BAS_RHIN
A45: 89 | B45: DIEMERINGEN | C45: 4095 | D45: SARRE UNION | E45: HAGUENAU | F45: BAS_RHIN
A46: 95 | B46: SARRE UNION | C46: 4095 | D46: SARRE UNION | E46: HAGUENAU | F46: BAS_RHIN
A47: 87 | B47: SAVERNE | C47: 4087 | D47: SAVERNE | E47: HAGUENAU | F47: BAS_RHIN
A48: 93 | B48: MARMOUTIER | C48: 4087 | D48: SAVERNE | E48: HAGUENAU | F48: BAS_RHIN
A49: 73 | B49: SCHWEIGHOUSE SUR MODER | C49: 4073 | D49: SCHWEIGHOUSE SUR MODER | E49: HAGUENAU | F49: BAS_RHIN
A50: 74 | B50: SOUFFLENHEIM | C50: 4074 | D50: SOUFFLENHEIM | E50: HAGUENAU | F50: BAS_RHIN
A51: 79 | B51: SOULTZ SOUS FORETS | C51: 4079 | D51: SOULTZ SOUS FORETS | E51: HAGUENAU | F51: BAS_RHIN
A52: 31 | B52: TRUCHTERSHEIM | C52: 4031 | D52: TRUCHTERSHEIM | E52: HAGUENAU | F52: BAS_RHIN
A53: 71 | B53: WISSEMBOURG | C53: 4071 | D53: WISSEMBOURG | E53: HAGUENAU | F53: BAS_RHIN
A54: 76 | B54: BETSCHDORF | C54: 4071 | D54: WISSEMBOURG | E54: HAGUENAU | F54: BAS_RHIN
A55: 77 | B55: SELTZ | C55: 4071 | D55: WISSEMBOURG | E55: HAGUENAU | F55: BAS_RHIN
A56: 78 | B56: LAUTERBOURG | C56: 4071 | D56: WISSEMBOURG | E56: HAGUENAU | F56: BAS_RHIN
A57: 80 | B57: WOERTH | C57: 4080 | D57: WOERTH | E57: HAGUENAU | F57: BAS_RHIN
A58: 113 | B58: BARR | C58: 4113 | D58: BARR | E58: SELESTAT | F58: BAS_RHIN
A59: 111 | B59: BENFELD | C59: 4111 | D59: BENFELD | E59: SELESTAT | F59: BAS_RHIN
A60: 104 | B60: ERSTEIN | C60: 4104 | D60: ERSTEIN | E60: SELESTAT | F60: BAS_RHIN
A61: 8 | B61: FEGERSHEIM | C61: 4008 | D61: FEGERSHEIM | E61: SELESTAT | F61: BAS_RHIN
A62: 7 | B62: ILLKIRCH CENTRE | C62: 4007 | D62: ILLKIRCH CENTRE | E62: SELESTAT | F62: BAS_RHIN
A63: 13 | B63: ILLKIRCH NORD | C63: 4007 | D63: ILLKIRCH CENTRE | E63: SELESTAT | F63: BAS_RHIN
A64: 14 | B64: OSTWALD | C64: 4015 | D64: LINGOLSHEIM | E64: SELESTAT | F64: BAS_RHIN
A65: 15 | B65: LINGOLSHEIM | C65: 4015 | D65: LINGOLSHEIM | E65: SELESTAT | F65: BAS_RHIN
A66: 109 | B66: MARCKOLSHEIM | C66: 4109 | D66: MARCKOLSHEIM | E66: SELESTAT | F66: BAS_RHIN
A67: 129 | B67: MARLENHEIM | C67: 4129 | D67: MARLENHEIM | E67: SELESTAT | F67: BAS_RHIN
A68: 116 | B68: MOLSHEIM | C68: 4116 | D68: MOLSHEIM | E68: SELESTAT | F68: BAS_RHIN
A69: 126 | B69: MUTZIG | C69: 4126 | D69: MUTZIG | E69: SELESTAT | F69: BAS_RHIN
A70: 119 | B70: OBERNAI | C70: 4119 | D70: OBERNAI | E70: SELESTAT | F70: BAS_RHIN
A71: 127 | B71: ROSHEIM | C71: 4127 | D71: ROSHEIM | E71: SELESTAT | F71: BAS_RHIN
A72: 121 | B72: SCHIRMECK | C72: 4121 | D72: SCHIRMECK | E72: SELESTAT | F72: BAS_RHIN
A73: 101 | B73: SELESTAT CENTRE | C73: 4101 | D73: SELESTAT CENTRE | E73: SELESTAT | F73: BAS_RHIN
A74: 108 | B74: CHATENOIS | C74: 4101 | D74: SELESTAT CENTRE | E74: SELESTAT | F74: BAS_RHIN
A75: 110 | B75: SELESTAT OUEST | C75: 4110 | D75: SELESTAT OUEST | E75: SELESTAT | F75: BAS_RHIN
A76: 107 | B76: VILLE | C76: 4107 | D76: VILLE | E76: SELESTAT | F76: BAS_RHIN
A77: 120 | B77: WASSELONNE | C77: 4120 | D77: WASSELONNE | E77: SELESTAT | F77: BAS_RHIN
A78: 28 | B78: BISCHHEIM | C78: 4028 | D78: BISCHHEIM | E78: STRASBOURG | F78: BAS_RHIN
A79: 33 | B79: LA WANTZENAU | C79: 4033 | D79: LA WANTZENAU | E79: STRASBOURG | F79: BAS_RHIN
A80: 34 | B80: VENDENHEIM | C80: 4037 | D80: MUNDOLSHEIM | E80: STRASBOURG | F80: BAS_RHIN
A81: 37 | B81: MUNDOLSHEIM | C81: 4037 | D81: MUNDOLSHEIM | E81: STRASBOURG | F81: BAS_RHIN
A82: 38 | B82: OBERHAUSBERGEN | C82: 4038 | D82: OBERHAUSBERGEN | E82: STRASBOURG | F82: BAS_RHIN
A83: 39 | B83: REICHSTETT | C83: 4039 | D83: REICHSTETT | E83: STRASBOURG | F83: BAS_RHIN
A84: 27 | B84: SCHILTIGHEIM CENTRE | C84: 4027 | D84: SCHILTIGHEIM CENTRE | E84: STRASBOURG | F84: BAS_RHIN
A85: 29 | B85: SCHILTIGHEIM KLEBER | C85: 4029 | D85: SCHILTIGHEIM KLEBER | E85: STRASBOURG | F85: BAS_RHIN
A86: 19 | B86: STRASBOURG ANVERS | C86: 4019 | D86: STRASBOURG ANVERS | E86: STRASBOURG | F86: BAS_RHIN
A87: 24 | B87: STRASBOURG AUSTERLITZ | C87: 4024 | D87: STRASBOURG AUSTERLITZ | E87: STRASBOURG | F87: BAS_RHIN
A88: 47 | B88: STRASBOURG CRONENBOURG | C88: 4047 | D88: STRASBOURG CRONENBOURG | E88: STRASBOURG | F88: BAS_RHIN
A89: 26 | B89: STRASBOURG DANUBE | C89: 4026 | D89: STRASBOURG DANUBE | E89: STRASBOURG | F89: BAS_RHIN
A90: 25 | B90: STRASBOURG ESPLANADE | C90: 4025 | D90: STRASBOURG ESPLANADE | E90: STRASBOURG | F90: BAS_RHIN
A91: 45 | B91: STRASBOURG FRANCS BOURGEOIS | C91: 4045 | D91: STRASBOURG FRANCS BOURGEOIS | E91: STRASBOURG | F91: BAS_RHIN
A92: 18 | B92: ESPACE MESANGE | C92: 4043 | D92: STRASBOURG HALLES | E92: STRASBOURG | F92: BAS_RHIN
A93: 43 | B93: STRASBOURG HALLES | C93: 4043 | D93: STRASBOURG HALLES | E93: STRASBOURG | F93: BAS_RHIN
A94: 50 | B94: STRASBOURG GARE | C94: 4043 | D94: STRASBOURG HALLES | E94: STRASBOURG | F94: BAS_RHIN
A95: 40 | B95: ECKBOLSHEIM | C95: 4048 | D95: STRASBOURG KOENIGSHOFFEN | E95: STRASBOURG | F95: BAS_RHIN
A96: 48 | B96: STRASBOURG KOENIGSHOFFEN | C96: 4048 | D96: STRASBOURG KOENIGSHOFFEN | E96: STRASBOURG | F96: BAS_RHIN
A97: 10 | B97: STRASBOURG MEINAU | C97: 4010 | D97: STRASBOURG MEINAU | E97: STRASBOURG | F97: BAS_RHIN
A98: 54 | B98: STRASBOURG MONTAGNE VERTE | C98: 4054 | D98: STRASBOURG MONTAGNE VERTE | E98: STRASBOURG | F98: BAS_RHIN
A99: 6 | B99: STRASBOURG NEUDORF | C99: 4006 | D99: STRASBOURG NEUDORF | E99: STRASBOURG | F99: BAS_RHIN
A100: 20 | B100: STRASBOURG ROBERTSAU | C100: 4020 | D100: STRASBOURG ROBERTSAU | E100: STRASBOURG | F100: BAS_RHIN
A101: 12 | B101: STRASBOURG STOCKFELD | C101: 4012 | D101: STRASBOURG STOCKFELD | E101: STRASBOURG | F101: BAS_RHIN
A102: 23 | B102: STRASBOURG VOSGES | C102: 4023 | D102: STRASBOURG VOSGES | E102: STRASBOURG | F102: BAS_RHIN
A103: 132 | B103: COLMAR MARAICHERS | C103: 4132 | D103: COLMAR MARAICHERS | E103: COLMAR | F103: HAUT_RHIN
A104: 130 | B104: COLMAR REPUBLIQUE | C104: 4130 | D104: COLMAR REPUBLIQUE | E104: COLMAR | F104: HAUT_RHIN
A105: 134 | B105: COLMAR SAINT JOSEPH | C105: 4134 | D105: COLMAR SAINT JOSEPH | E105: COLMAR | F105: HAUT_RHIN
A106: 135 | B106: COLMAR SAINTE MARIE | C106: 4135 | D106: COLMAR SAINTE MARIE | E106: COLMAR | F106: HAUT_RHIN
A107: 133 | B107: COLMAR VAUBAN | C107: 4133 | D107: COLMAR VAUBAN | E107: COLMAR | F107: HAUT_RHIN
A108: 162 | B108: ENSISHEIM | C108: 4162 | D108: ENSISHEIM | E108: COLMAR | F108: HAUT_RHIN
A109: 163 | B109: PULVERSHEIM | C109: 4162 | D109: ENSISHEIM | E109: COLMAR | F109: HAUT_RHIN
A110: 147 | B110: GUEBWILLER | C110: 4147 | D110: GUEBWILLER | E110: COLMAR | F110: HAUT_RHIN
A111: 141 | B111: HORBOURG WIHR | C111: 4141 | D111: HORBOURG WIHR | E111: COLMAR | F111: HAUT_RHIN
A112: 139 | B112: INGERSHEIM | C112: 4139 | D112: INGERSHEIM | E112: COLMAR | F112: HAUT_RHIN
A113: 152 | B113: KAYSERSBERG | C113: 4139 | D113: INGERSHEIM | E113: COLMAR | F113: HAUT_RHIN
A114: 143 | B114: MUNSTER | C114: 4143 | D114: MUNSTER | E114: COLMAR | F114: HAUT_RHIN
A115: 159 | B115: MUNTZENHEIM | C115: 4159 | D115: MUNTZENHEIM | E115: COLMAR | F115: HAUT_RHIN
A116: 157 | B116: NEUF BRISACH | C116: 4157 | D116: NEUF BRISACH | E116: COLMAR | F116: HAUT_RHIN
A117: 148 | B117: ORBEY | C117: 4148 | D117: ORBEY | E117: COLMAR | F117: HAUT_RHIN
A118: 154 | B118: LAPOUTROIE | C118: 4148 | D118: ORBEY | E118: COLMAR | F118: HAUT_RHIN
A119: 144 | B119: RIBEAUVILLE | C119: 4144 | D119: RIBEAUVILLE | E119: COLMAR | F119: HAUT_RHIN
A120: 153 | B120: ROUFFACH | C120: 4153 | D120: ROUFFACH | E120: COLMAR | F120: HAUT_RHIN
A121: 156 | B121: SOULTZMATT | C121: 4153 | D121: ROUFFACH | E121: COLMAR | F121: HAUT_RHIN
A122: 164 | B122: SAINTE MARIE AUX MINES | C122: 4164 | D122: SAINTE MARIE AUX MINES | E122: COLMAR | F122: HAUT_RHIN
A123: 167 | B123: LIEPVRE | C123: 4164 | D123: SAINTE MARIE AUX MINES | E123: COLMAR | F123: HAUT_RHIN
A124: 160 | B124: SOULTZ | C124: 4160 | D124: SOULTZ | E124: COLMAR | F124: HAUT_RHIN
A125: 140 | B125: WINTZENHEIM | C125: 4140 | D125: WINTZENHEIM | E125: COLMAR | F125: HAUT_RHIN
A126: 189 | B126: ALTKIRCH | C126: 4189 | D126: ALTKIRCH | E126: MULHOUSE | F126: HAUT_RHIN
A127: 191 | B127: FERRETTE | C127: 4189 | D127: ALTKIRCH | E127: MULHOUSE | F127: HAUT_RHIN
A128: 186 | B128: BRUNSTATT | C128: 4186 | D128: BRUNSTATT | E128: MULHOUSE | F128: HAUT_RHIN
A129: 195 | B129: CERNAY | C129: 4195 | D129: CERNAY | E129: MULHOUSE | F129: HAUT_RHIN
A130: 192 | B130: SEPPOIS LE BAS | C130: 4193 | D130: DANNEMARIE | E130: MULHOUSE | F130: HAUT_RHIN
A131: 193 | B131: DANNEMARIE | C131: 4193 | D131: DANNEMARIE | E131: MULHOUSE | F131: HAUT_RHIN
A132: 184 | B132: ILLZACH | C132: 4184 | D132: ILLZACH | E132: MULHOUSE | F132: HAUT_RHIN
A133: 196 | B133: MASEVAUX | C133: 4196 | D133: MASEVAUX | E133: MULHOUSE | F133: HAUT_RHIN
A134: 174 | B134: MULHOUSE DORNACH | C134: 4174 | D134: MULHOUSE DORNACH | E134: MULHOUSE | F134: HAUT_RHIN
A135: 170 | B135: MULHOUSE REUNION | C135: 4170 | D135: MULHOUSE REUNION | E135: MULHOUSE | F135: HAUT_RHIN
A136: 169 | B136: MULHOUSE ROOSEVELT | C136: 4169 | D136: MULHOUSE ROOSEVELT | E136: MULHOUSE | F136: HAUT_RHIN
A137: 188 | B137: PFASTATT | C137: 4188 | D137: PFASTATT | E137: MULHOUSE | F137: HAUT_RHIN
A138: 180 | B138: RIEDISHEIM | C138: 4180 | D138: RIEDISHEIM | E138: MULHOUSE | F138: HAUT_RHIN
A139: 185 | B139: RIXHEIM | C139: 4185 | D139: RIXHEIM | E139: MULHOUSE | F139: HAUT_RHIN
A140: 178 | B140: SAINT LOUIS | C140: 4178 | D140: SAINT LOUIS | E140: MULHOUSE | F140: HAUT_RHIN
A141: 187 | B141: HUNINGUE | C141: 4178 | D141: SAINT LOUIS | E141: MULHOUSE | F141: HAUT_RHIN
A142: 179 | B142: SIERENTZ | C142: 4179 | D142: SIERENTZ | E142: MULHOUSE | F142: HAUT_RHIN
A143: 194 | B143: THANN | C143: 4194 | D143: THANN | E143: MULHOUSE | F143: HAUT_RHIN
A144: 198 | B144: SAINT AMARIN | C144: 4194 | D144: THANN | E144: MULHOUSE | F144: HAUT_RHIN
A145: 181 | B145: WITTELSHEIM | C145: 4181 | D145: WITTELSHEIM | E145: MULHOUSE | F145: HAUT_RHIN
A146: 183 | B146: WITTENHEIM | C146: 4183 | D146: WITTENHEIM | E146: MULHOUSE | F146: HAUT_RHIN
A147: 51110 | B147: CHALONS ROOSEVELT | C147: 551110 | D147: CHALONS ROOSEVELT | E147: CHALONS_EN_CHAMPAGNE | F147: MARNE_ARDENNES
A148: 51101 | B148: CHALONS VIVIERS | C148: 451101 | D148: CHALONS VIVIERS | E148: CHALONS_EN_CHAMPAGNE | F148: MARNE_ARDENNES
A149: 51103 | B149: FAGNIERES LECLERC | C149: 551103 | D149: FAGNIERES LECLERC | E149: CHALONS_EN_CHAMPAGNE | F149: MARNE_ARDENNES
A150: 51330 | B150: MONTMIRAIL | C150: 551330 | D150: MONTMIRAIL | E150: CHALONS_EN_CHAMPAGNE | F150: MARNE_ARDENNES
A151: 51114 | B151: SUIPPES | C151: 451115 | D151: MOURMELON LE GRAND | E151: CHALONS_EN_CHAMPAGNE | F151: MARNE_ARDENNES
A152: 51115 | B152: MOURMELON LE GRAND | C152: 451115 | D152: MOURMELON LE GRAND | E152: CHALONS_EN_CHAMPAGNE | F152: MARNE_ARDENNES
A153: 51128 | B153: SAINTE MENEHOULD | C153: 551128 | D153: SAINTE MENEHOULD | E153: CHALONS_EN_CHAMPAGNE | F153: MARNE_ARDENNES
A154: 51120 | B154: SARRY | C154: 451120 | D154: SARRY | E154: CHALONS_EN_CHAMPAGNE | F154: MARNE_ARDENNES
A155: 51381 | B155: SEZANNE | C155: 451381 | D155: SEZANNE | E155: CHALONS_EN_CHAMPAGNE | F155: MARNE_ARDENNES
A156: 51354 | B156: VERTUS | C156: 551354 | D156: VERTUS | E156: CHALONS_EN_CHAMPAGNE | F156: MARNE_ARDENNES
A157: 51166 | B157: VITRY LE FRANCOIS | C157: 451166 | D157: VITRY LE FRANCOIS | E157: CHALONS_EN_CHAMPAGNE | F157: MARNE_ARDENNES
A158: 8815 | B158: CARIGNAN | C158: 508815 | D158: CARIGNAN | E158: CHARLEVILLE_MEZIERES | F158: MARNE_ARDENNES
A159: 8801 | B159: CHARLEVILLE JEAN JAURES | C159: 408801 | D159: CHARLEVILLE JEAN JAURES | E159: CHARLEVILLE_MEZIERES | F159: MARNE_ARDENNES
A160: 8822 | B160: CHARLEVILLE MEZIERES | C160: 408822 | D160: CHARLEVILLE MEZIERES | E160: CHARLEVILLE_MEZIERES | F160: MARNE_ARDENNES
A161: 8817 | B161: CHARLEVILLE MOHON | C161: 508817 | D161: CHARLEVILLE MOHON | E161: CHARLEVILLE_MEZIERES | F161: MARNE_ARDENNES
A162: 8802 | B162: CHARLEVILLE NEVERS | C162: 508802 | D162: CHARLEVILLE NEVERS | E162: CHARLEVILLE_MEZIERES | F162: MARNE_ARDENNES
A163: 8839 | B163: GIVET | C163: 508839 | D163: GIVET | E163: CHARLEVILLE_MEZIERES | F163: MARNE_ARDENNES
A164: 8819 | B164: MOUZON | C164: 508819 | D164: MOUZON | E164: CHARLEVILLE_MEZIERES | F164: MARNE_ARDENNES
A165: 8840 | B165: RETHEL | C165: 408840 | D165: RETHEL | E165: CHARLEVILLE_MEZIERES | F165: MARNE_ARDENNES
A166: 8862 | B166: REVIN | C166: 408862 | D166: REVIN | E166: CHARLEVILLE_MEZIERES | F166: MARNE_ARDENNES
A167: 8860 | B167: ROCROI | C167: 508860 | D167: ROCROI | E167: CHARLEVILLE_MEZIERES | F167: MARNE_ARDENNES
A168: 8806 | B168: SEDAN | C168: 408806 | D168: SEDAN | E168: CHARLEVILLE_MEZIERES | F168: MARNE_ARDENNES
A169: 8833 | B169: VILLERS SEMEUSE CORA | C169: 508833 | D169: VILLERS SEMEUSE CORA | E169: CHARLEVILLE_MEZIERES | F169: MARNE_ARDENNES
A170: 8820 | B170: VOUZIERS | C170: 508820 | D170: VOUZIERS | E170: CHARLEVILLE_MEZIERES | F170: MARNE_ARDENNES
A171: 8814 | B171: VRIGNE AUX BOIS | C171: 408814 | D171: VRIGNE AUX BOIS | E171: CHARLEVILLE_MEZIERES | F171: MARNE_ARDENNES
A172: 51367 | B172: AY CHAMPAGNE | C172: 551367 | D172: AY CHAMPAGNE | E172: REIMS | F172: MARNE_ARDENNES
A173: 51340 | B173: BETHENY | C173: 551340 | D173: BETHENY | E173: REIMS | F173: MARNE_ARDENNES
A174: 51369 | B174: DAMERY | C174: 551369 | D174: DAMERY | E174: REIMS | F174: MARNE_ARDENNES
A175: 51365 | B175: DORMANS | C175: 551365 | D175: DORMANS | E175: REIMS | F175: MARNE_ARDENNES
A176: 51370 | B176: EPERNAY | C176: 451370 | D176: EPERNAY | E176: REIMS | F176: MARNE_ARDENNES
A177: 51314 | B177: FISMES | C177: 551314 | D177: FISMES | E177: REIMS | F177: MARNE_ARDENNES
A178: 51361 | B178: PIERRY LECLERC | C178: 451361 | D178: PIERRY LECLERC | E178: REIMS | F178: MARNE_ARDENNES
A179: 51350 | B179: REIMS CENTRE VILLE | C179: 451350 | D179: REIMS CENTRE VILLE | E179: REIMS | F179: MARNE_ARDENNES
A180: 51310 | B180: REIMS CHATILLONS | C180: 551310 | D180: REIMS CHATILLONS | E180: REIMS | F180: MARNE_ARDENNES
A181: 51309 | B181: REIMS EUROPE | C181: 551309 | D181: REIMS EUROPE | E181: REIMS | F181: MARNE_ARDENNES
A182: 51305 | B182: REIMS HIPPODROME | C182: 551305 | D182: REIMS HIPPODROME | E182: REIMS | F182: MARNE_ARDENNES
A183: 51301 | B183: REIMS HOTEL DE VILLE | C183: 451301 | D183: REIMS HOTEL DE VILLE | E183: REIMS | F183: MARNE_ARDENNES
A184: 51341 | B184: REIMS JEAN JAURES | C184: 551341 | D184: REIMS JEAN JAURES | E184: REIMS | F184: MARNE_ARDENNES
A185: 51306 | B185: REIMS SAINT MARCEAUX | C185: 551306 | D185: REIMS SAINT MARCEAUX | E185: REIMS | F185: MARNE_ARDENNES
A186: 51349 | B186: REIMS SAINT REMI | C186: 551349 | D186: REIMS SAINT REMI | E186: REIMS | F186: MARNE_ARDENNES
A187: 51308 | B187: REIMS SAINT THOMAS | C187: 451308 | D187: REIMS SAINT THOMAS | E187: REIMS | F187: MARNE_ARDENNES
A188: 51307 | B188: REIMS SAINTE ANNE | C188: 551307 | D188: REIMS SAINTE ANNE | E188: REIMS | F188: MARNE_ARDENNES
A189: 51336 | B189: TINQUEUX | C189: 451336 | D189: TINQUEUX | E189: REIMS | F189: MARNE_ARDENNES
A190: 51318 | B190: VERZY | C190: 451318 | D190: VERZY | E190: REIMS | F190: MARNE_ARDENNES
A191: 54116 | B191: BACCARAT | C191: 554116 | D191: BACCARAT | E191: NANCY | F191: MEURTHE_ET_MOSELLE_MEUSE
A192: 54161 | B192: BAYON | C192: 454161 | D192: BAYON | E192: NANCY | F192: MEURTHE_ET_MOSELLE_MEUSE
A193: 54166 | B193: BLAINVILLE | C193: 554166 | D193: BLAINVILLE | E193: NANCY | F193: MEURTHE_ET_MOSELLE_MEUSE
A194: 54171 | B194: BLAMONT | C194: 454171 | D194: BLAMONT | E194: NANCY | F194: MEURTHE_ET_MOSELLE_MEUSE
A195: 54266 | B195: DOMBASLE SUR MEURTHE | C195: 554266 | D195: DOMBASLE SUR MEURTHE | E195: NANCY | F195: MEURTHE_ET_MOSELLE_MEUSE
A196: 54296 | B196: ESSEY LES NANCY | C196: 554296 | D196: ESSEY LES NANCY | E196: NANCY | F196: MEURTHE_ET_MOSELLE_MEUSE
A197: 54356 | B197: JARVILLE LA MALGRANGE | C197: 554356 | D197: JARVILLE LA MALGRANGE | E197: NANCY | F197: MEURTHE_ET_MOSELLE_MEUSE
A198: 54426 | B198: LUNEVILLE CARNOT | C198: 454426 | D198: LUNEVILLE CARNOT | E198: NANCY | F198: MEURTHE_ET_MOSELLE_MEUSE
A199: 54431 | B199: LUNEVILLE CHATEAU | C199: 554431 | D199: LUNEVILLE CHATEAU | E199: NANCY | F199: MEURTHE_ET_MOSELLE_MEUSE
A200: 54476 | B200: NANCY ARTEM | C200: 554476 | D200: NANCY ARTEM | E200: NANCY | F200: MEURTHE_ET_MOSELLE_MEUSE
... 138 more rows

Sheet EDS 2
A1: territoire | B1: territoire | C1: région | D1: région
A2: CHAUMONT | B2: CHAUMONT | C2: AUBE HAUTE MARNE | D2: AUBE_HAUTE_MARNE
A3: CHAUMONT | B3: CHAUMONT | C3: AUBE HAUTE MARNE | D3: AUBE_HAUTE_MARNE
A4: CHAUMONT | B4: CHAUMONT | C4: AUBE HAUTE MARNE | D4: AUBE_HAUTE_MARNE
A5: CHAUMONT | B5: CHAUMONT | C5: AUBE HAUTE MARNE | D5: AUBE_HAUTE_MARNE
A6: CHAUMONT | B6: CHAUMONT | C6: AUBE HAUTE MARNE | D6: AUBE_HAUTE_MARNE
A7: CHAUMONT | B7: CHAUMONT | C7: AUBE HAUTE MARNE | D7: AUBE_HAUTE_MARNE
A8: CHAUMONT | B8: CHAUMONT | C8: AUBE HAUTE MARNE | D8: AUBE_HAUTE_MARNE
A9: CHAUMONT | B9: CHAUMONT | C9: AUBE HAUTE MARNE | D9: AUBE_HAUTE_MARNE
A10: CHAUMONT | B10: CHAUMONT | C10: AUBE HAUTE MARNE | D10: AUBE_HAUTE_MARNE
A11: CHAUMONT | B11: CHAUMONT | C11: AUBE HAUTE MARNE | D11: AUBE_HAUTE_MARNE
A12: CHAUMONT | B12: CHAUMONT | C12: AUBE HAUTE MARNE | D12: AUBE_HAUTE_MARNE
A13: TROYES | B13: TROYES | C13: AUBE HAUTE MARNE | D13: AUBE_HAUTE_MARNE
A14: TROYES | B14: TROYES | C14: AUBE HAUTE MARNE | D14: AUBE_HAUTE_MARNE
A15: TROYES | B15: TROYES | C15: AUBE HAUTE MARNE | D15: AUBE_HAUTE_MARNE
A16: TROYES | B16: TROYES | C16: AUBE HAUTE MARNE | D16: AUBE_HAUTE_MARNE
A17: TROYES | B17: TROYES | C17: AUBE HAUTE MARNE | D17: AUBE_HAUTE_MARNE
A18: TROYES | B18: TROYES | C18: AUBE HAUTE MARNE | D18: AUBE_HAUTE_MARNE
A19: TROYES | B19: TROYES | C19: AUBE HAUTE MARNE | D19: AUBE_HAUTE_MARNE
A20: TROYES | B20: TROYES | C20: AUBE HAUTE MARNE | D20: AUBE_HAUTE_MARNE
A21: TROYES | B21: TROYES | C21: AUBE HAUTE MARNE | D21: AUBE_HAUTE_MARNE
A22: TROYES | B22: TROYES | C22: AUBE HAUTE MARNE | D22: AUBE_HAUTE_MARNE
A23: TROYES | B23: TROYES | C23: AUBE HAUTE MARNE | D23: AUBE_HAUTE_MARNE
A24: TROYES | B24: TROYES | C24: AUBE HAUTE MARNE | D24: AUBE_HAUTE_MARNE
A25: TROYES | B25: TROYES | C25: AUBE HAUTE MARNE | D25: AUBE_HAUTE_MARNE
A26: TROYES | B26: TROYES | C26: AUBE HAUTE MARNE | D26: AUBE_HAUTE_MARNE
A27: TROYES | B27: TROYES | C27: AUBE HAUTE MARNE | D27: AUBE_HAUTE_MARNE
A28: TROYES | B28: TROYES | C28: AUBE HAUTE MARNE | D28: AUBE_HAUTE_MARNE
A29: HAGUENAU | B29: HAGUENAU | C29: BAS RHIN | D29: BAS_RHIN
A30: HAGUENAU | B30: HAGUENAU | C30: BAS RHIN | D30: BAS_RHIN
A31: HAGUENAU | B31: HAGUENAU | C31: BAS RHIN | D31: BAS_RHIN
A32: HAGUENAU | B32: HAGUENAU | C32: BAS RHIN | D32: BAS_RHIN
A33: HAGUENAU | B33: HAGUENAU | C33: BAS RHIN | D33: BAS_RHIN
A34: HAGUENAU | B34: HAGUENAU | C34: BAS RHIN | D34: BAS_RHIN
A35: HAGUENAU | B35: HAGUENAU | C35: BAS RHIN | D35: BAS_RHIN
A36: HAGUENAU | B36: HAGUENAU | C36: BAS RHIN | D36: BAS_RHIN
A37: HAGUENAU | B37: HAGUENAU | C37: BAS RHIN | D37: BAS_RHIN
A38: HAGUENAU | B38: HAGUENAU | C38: BAS RHIN | D38: BAS_RHIN
A39: HAGUENAU | B39: HAGUENAU | C39: BAS RHIN | D39: BAS_RHIN
A40: HAGUENAU | B40: HAGUENAU | C40: BAS RHIN | D40: BAS_RHIN
A41: HAGUENAU | B41: HAGUENAU | C41: BAS RHIN | D41: BAS_RHIN
A42: HAGUENAU | B42: HAGUENAU | C42: BAS RHIN | D42: BAS_RHIN
A43: HAGUENAU | B43: HAGUENAU | C43: BAS RHIN | D43: BAS_RHIN
A44: HAGUENAU | B44: HAGUENAU | C44: BAS RHIN | D44: BAS_RHIN
A45: HAGUENAU | B45: HAGUENAU | C45: BAS RHIN | D45: BAS_RHIN
A46: HAGUENAU | B46: HAGUENAU | C46: BAS RHIN | D46: BAS_RHIN
A47: HAGUENAU | B47: HAGUENAU | C47: BAS RHIN | D47: BAS_RHIN
A48: HAGUENAU | B48: HAGUENAU | C48: BAS RHIN | D48: BAS_RHIN
A49: HAGUENAU | B49: HAGUENAU | C49: BAS RHIN | D49: BAS_RHIN
A50: HAGUENAU | B50: HAGUENAU | C50: BAS RHIN | D50: BAS_RHIN
A51: HAGUENAU | B51: HAGUENAU | C51: BAS RHIN | D51: BAS_RHIN
A52: HAGUENAU | B52: HAGUENAU | C52: BAS RHIN | D52: BAS_RHIN
A53: HAGUENAU | B53: HAGUENAU | C53: BAS RHIN | D53: BAS_RHIN
A54: HAGUENAU | B54: HAGUENAU | C54: BAS RHIN | D54: BAS_RHIN
A55: HAGUENAU | B55: HAGUENAU | C55: BAS RHIN | D55: BAS_RHIN
A56: HAGUENAU | B56: HAGUENAU | C56: BAS RHIN | D56: BAS_RHIN
A57: HAGUENAU | B57: HAGUENAU | C57: BAS RHIN | D57: BAS_RHIN
A58: SELESTAT | B58: SELESTAT | C58: BAS RHIN | D58: BAS_RHIN
A59: SELESTAT | B59: SELESTAT | C59: BAS RHIN | D59: BAS_RHIN
A60: SELESTAT | B60: SELESTAT | C60: BAS RHIN | D60: BAS_RHIN
A61: SELESTAT | B61: SELESTAT | C61: BAS RHIN | D61: BAS_RHIN
A62: SELESTAT | B62: SELESTAT | C62: BAS RHIN | D62: BAS_RHIN
A63: SELESTAT | B63: SELESTAT | C63: BAS RHIN | D63: BAS_RHIN
A64: SELESTAT | B64: SELESTAT | C64: BAS RHIN | D64: BAS_RHIN
A65: SELESTAT | B65: SELESTAT | C65: BAS RHIN | D65: BAS_RHIN
A66: SELESTAT | B66: SELESTAT | C66: BAS RHIN | D66: BAS_RHIN
A67: SELESTAT | B67: SELESTAT | C67: BAS RHIN | D67: BAS_RHIN
A68: SELESTAT | B68: SELESTAT | C68: BAS RHIN | D68: BAS_RHIN
A69: SELESTAT | B69: SELESTAT | C69: BAS RHIN | D69: BAS_RHIN
A70: SELESTAT | B70: SELESTAT | C70: BAS RHIN | D70: BAS_RHIN
A71: SELESTAT | B71: SELESTAT | C71: BAS RHIN | D71: BAS_RHIN
A72: SELESTAT | B72: SELESTAT | C72: BAS RHIN | D72: BAS_RHIN
A73: SELESTAT | B73: SELESTAT | C73: BAS RHIN | D73: BAS_RHIN
A74: SELESTAT | B74: SELESTAT | C74: BAS RHIN | D74: BAS_RHIN
A75: SELESTAT | B75: SELESTAT | C75: BAS RHIN | D75: BAS_RHIN
A76: SELESTAT | B76: SELESTAT | C76: BAS RHIN | D76: BAS_RHIN
A77: SELESTAT | B77: SELESTAT | C77: BAS RHIN | D77: BAS_RHIN
A78: STRASBOURG | B78: STRASBOURG | C78: BAS RHIN | D78: BAS_RHIN
A79: STRASBOURG | B79: STRASBOURG | C79: BAS RHIN | D79: BAS_RHIN
A80: STRASBOURG | B80: STRASBOURG | C80: BAS RHIN | D80: BAS_RHIN
A81: STRASBOURG | B81: STRASBOURG | C81: BAS RHIN | D81: BAS_RHIN
A82: STRASBOURG | B82: STRASBOURG | C82: BAS RHIN | D82: BAS_RHIN
A83: STRASBOURG | B83: STRASBOURG | C83: BAS RHIN | D83: BAS_RHIN
A84: STRASBOURG | B84: STRASBOURG | C84: BAS RHIN | D84: BAS_RHIN
A85: STRASBOURG | B85: STRASBOURG | C85: BAS RHIN | D85: BAS_RHIN
A86: STRASBOURG | B86: STRASBOURG | C86: BAS RHIN | D86: BAS_RHIN
A87: STRASBOURG | B87: STRASBOURG | C87: BAS RHIN | D87: BAS_RHIN
A88: STRASBOURG | B88: STRASBOURG | C88: BAS RHIN | D88: BAS_RHIN
A89: STRASBOURG | B89: STRASBOURG | C89: BAS RHIN | D89: BAS_RHIN
A90: STRASBOURG | B90: STRASBOURG | C90: BAS RHIN | D90: BAS_RHIN
A91: STRASBOURG | B91: STRASBOURG | C91: BAS RHIN | D91: BAS_RHIN
A92: STRASBOURG | B92: STRASBOURG | C92: BAS RHIN | D92: BAS_RHIN
A93: STRASBOURG | B93: STRASBOURG | C93: BAS RHIN | D93: BAS_RHIN
A94: STRASBOURG | B94: STRASBOURG | C94: BAS RHIN | D94: BAS_RHIN
A95: STRASBOURG | B95: STRASBOURG | C95: BAS RHIN | D95: BAS_RHIN
A96: STRASBOURG | B96: STRASBOURG | C96: BAS RHIN | D96: BAS_RHIN
A97: STRASBOURG | B97: STRASBOURG | C97: BAS RHIN | D97: BAS_RHIN
A98: STRASBOURG | B98: STRASBOURG | C98: BAS RHIN | D98: BAS_RHIN
A99: STRASBOURG | B99: STRASBOURG | C99: BAS RHIN | D99: BAS_RHIN
A100: STRASBOURG | B100: STRASBOURG | C100: BAS RHIN | D100: BAS_RHIN
A101: STRASBOURG | B101: STRASBOURG | C101: BAS RHIN | D101: BAS_RHIN
A102: STRASBOURG | B102: STRASBOURG | C102: BAS RHIN | D102: BAS_RHIN
A103: COLMAR | B103: COLMAR | C103: HAUT RHIN | D103: HAUT_RHIN
A104: COLMAR | B104: COLMAR | C104: HAUT RHIN | D104: HAUT_RHIN
A105: COLMAR | B105: COLMAR | C105: HAUT RHIN | D105: HAUT_RHIN
A106: COLMAR | B106: COLMAR | C106: HAUT RHIN | D106: HAUT_RHIN
A107: COLMAR | B107: COLMAR | C107: HAUT RHIN | D107: HAUT_RHIN
A108: COLMAR | B108: COLMAR | C108: HAUT RHIN | D108: HAUT_RHIN
A109: COLMAR | B109: COLMAR | C109: HAUT RHIN | D109: HAUT_RHIN
A110: COLMAR | B110: COLMAR | C110: HAUT RHIN | D110: HAUT_RHIN
A111: COLMAR | B111: COLMAR | C111: HAUT RHIN | D111: HAUT_RHIN
A112: COLMAR | B112: COLMAR | C112: HAUT RHIN | D112: HAUT_RHIN
A113: COLMAR | B113: COLMAR | C113: HAUT RHIN | D113: HAUT_RHIN
A114: COLMAR | B114: COLMAR | C114: HAUT RHIN | D114: HAUT_RHIN
A115: COLMAR | B115: COLMAR | C115: HAUT RHIN | D115: HAUT_RHIN
A116: COLMAR | B116: COLMAR | C116: HAUT RHIN | D116: HAUT_RHIN
A117: COLMAR | B117: COLMAR | C117: HAUT RHIN | D117: HAUT_RHIN
A118: COLMAR | B118: COLMAR | C118: HAUT RHIN | D118: HAUT_RHIN
A119: COLMAR | B119: COLMAR | C119: HAUT RHIN | D119: HAUT_RHIN
A120: COLMAR | B120: COLMAR | C120: HAUT RHIN | D120: HAUT_RHIN
A121: COLMAR | B121: COLMAR | C121: HAUT RHIN | D121: HAUT_RHIN
A122: COLMAR | B122: COLMAR | C122: HAUT RHIN | D122: HAUT_RHIN
A123: COLMAR | B123: COLMAR | C123: HAUT RHIN | D123: HAUT_RHIN
A124: COLMAR | B124: COLMAR | C124: HAUT RHIN | D124: HAUT_RHIN
A125: COLMAR | B125: COLMAR | C125: HAUT RHIN | D125: HAUT_RHIN
A126: MULHOUSE | B126: MULHOUSE | C126: HAUT RHIN | D126: HAUT_RHIN
A127: MULHOUSE | B127: MULHOUSE | C127: HAUT RHIN | D127: HAUT_RHIN
A128: MULHOUSE | B128: MULHOUSE | C128: HAUT RHIN | D128: HAUT_RHIN
A129: MULHOUSE | B129: MULHOUSE | C129: HAUT RHIN | D129: HAUT_RHIN
A130: MULHOUSE | B130: MULHOUSE | C130: HAUT RHIN | D130: HAUT_RHIN
A131: MULHOUSE | B131: MULHOUSE | C131: HAUT RHIN | D131: HAUT_RHIN
A132: MULHOUSE | B132: MULHOUSE | C132: HAUT RHIN | D132: HAUT_RHIN
A133: MULHOUSE | B133: MULHOUSE | C133: HAUT RHIN | D133: HAUT_RHIN
A134: MULHOUSE | B134: MULHOUSE | C134: HAUT RHIN | D134: HAUT_RHIN
A135: MULHOUSE | B135: MULHOUSE | C135: HAUT RHIN | D135: HAUT_RHIN
A136: MULHOUSE | B136: MULHOUSE | C136: HAUT RHIN | D136: HAUT_RHIN
A137: MULHOUSE | B137: MULHOUSE | C137: HAUT RHIN | D137: HAUT_RHIN
A138: MULHOUSE | B138: MULHOUSE | C138: HAUT RHIN | D138: HAUT_RHIN
A139: MULHOUSE | B139: MULHOUSE | C139: HAUT RHIN | D139: HAUT_RHIN
A140: MULHOUSE | B140: MULHOUSE | C140: HAUT RHIN | D140: HAUT_RHIN
A141: MULHOUSE | B141: MULHOUSE | C141: HAUT RHIN | D141: HAUT_RHIN
A142: MULHOUSE | B142: MULHOUSE | C142: HAUT RHIN | D142: HAUT_RHIN
A143: MULHOUSE | B143: MULHOUSE | C143: HAUT RHIN | D143: HAUT_RHIN
A144: MULHOUSE | B144: MULHOUSE | C144: HAUT RHIN | D144: HAUT_RHIN
A145: MULHOUSE | B145: MULHOUSE | C145: HAUT RHIN | D145: HAUT_RHIN
A146: MULHOUSE | B146: MULHOUSE | C146: HAUT RHIN | D146: HAUT_RHIN
A147: CHALONS EN CHAMPAGNE | B147: CHALONS_EN_CHAMPAGNE | C147: MARNE ARDENNES | D147: MARNE_ARDENNES
A148: CHALONS EN CHAMPAGNE | B148: CHALONS_EN_CHAMPAGNE | C148: MARNE ARDENNES | D148: MARNE_ARDENNES
A149: CHALONS EN CHAMPAGNE | B149: CHALONS_EN_CHAMPAGNE | C149: MARNE ARDENNES | D149: MARNE_ARDENNES
A150: CHALONS EN CHAMPAGNE | B150: CHALONS_EN_CHAMPAGNE | C150: MARNE ARDENNES | D150: MARNE_ARDENNES
A151: CHALONS EN CHAMPAGNE | B151: CHALONS_EN_CHAMPAGNE | C151: MARNE ARDENNES | D151: MARNE_ARDENNES
A152: CHALONS EN CHAMPAGNE | B152: CHALONS_EN_CHAMPAGNE | C152: MARNE ARDENNES | D152: MARNE_ARDENNES
A153: CHALONS EN CHAMPAGNE | B153: CHALONS_EN_CHAMPAGNE | C153: MARNE ARDENNES | D153: MARNE_ARDENNES
A154: CHALONS EN CHAMPAGNE | B154: CHALONS_EN_CHAMPAGNE | C154: MARNE ARDENNES | D154: MARNE_ARDENNES
A155: CHALONS EN CHAMPAGNE | B155: CHALONS_EN_CHAMPAGNE | C155: MARNE ARDENNES | D155: MARNE_ARDENNES
A156: CHALONS EN CHAMPAGNE | B156: CHALONS_EN_CHAMPAGNE | C156: MARNE ARDENNES | D156: MARNE_ARDENNES
A157: CHALONS EN CHAMPAGNE | B157: CHALONS_EN_CHAMPAGNE | C157: MARNE ARDENNES | D157: MARNE_ARDENNES
A158: CHARLEVILLE MEZIERES | B158: CHARLEVILLE_MEZIERES | C158: MARNE ARDENNES | D158: MARNE_ARDENNES
A159: CHARLEVILLE MEZIERES | B159: CHARLEVILLE_MEZIERES | C159: MARNE ARDENNES | D159: MARNE_ARDENNES
A160: CHARLEVILLE MEZIERES | B160: CHARLEVILLE_MEZIERES | C160: MARNE ARDENNES | D160: MARNE_ARDENNES
A161: CHARLEVILLE MEZIERES | B161: CHARLEVILLE_MEZIERES | C161: MARNE ARDENNES | D161: MARNE_ARDENNES
A162: CHARLEVILLE MEZIERES | B162: CHARLEVILLE_MEZIERES | C162: MARNE ARDENNES | D162: MARNE_ARDENNES
A163: CHARLEVILLE MEZIERES | B163: CHARLEVILLE_MEZIERES | C163: MARNE ARDENNES | D163: MARNE_ARDENNES
A164: CHARLEVILLE MEZIERES | B164: CHARLEVILLE_MEZIERES | C164: MARNE ARDENNES | D164: MARNE_ARDENNES
A165: CHARLEVILLE MEZIERES | B165: CHARLEVILLE_MEZIERES | C165: MARNE ARDENNES | D165: MARNE_ARDENNES
A166: CHARLEVILLE MEZIERES | B166: CHARLEVILLE_MEZIERES | C166: MARNE ARDENNES | D166: MARNE_ARDENNES
A167: CHARLEVILLE MEZIERES | B167: CHARLEVILLE_MEZIERES | C167: MARNE ARDENNES | D167: MARNE_ARDENNES
A168: CHARLEVILLE MEZIERES | B168: CHARLEVILLE_MEZIERES | C168: MARNE ARDENNES | D168: MARNE_ARDENNES
A169: CHARLEVILLE MEZIERES | B169: CHARLEVILLE_MEZIERES | C169: MARNE ARDENNES | D169: MARNE_ARDENNES
A170: CHARLEVILLE MEZIERES | B170: CHARLEVILLE_MEZIERES | C170: MARNE ARDENNES | D170: MARNE_ARDENNES
A171: CHARLEVILLE MEZIERES | B171: CHARLEVILLE_MEZIERES | C171: MARNE ARDENNES | D171: MARNE_ARDENNES
A172: REIMS | B172: REIMS | C172: MARNE ARDENNES | D172: MARNE_ARDENNES
A173: REIMS | B173: REIMS | C173: MARNE ARDENNES | D173: MARNE_ARDENNES
A174: REIMS | B174: REIMS | C174: MARNE ARDENNES | D174: MARNE_ARDENNES
A175: REIMS | B175: REIMS | C175: MARNE ARDENNES | D175: MARNE_ARDENNES
A176: REIMS | B176: REIMS | C176: MARNE ARDENNES | D176: MARNE_ARDENNES
A177: REIMS | B177: REIMS | C177: MARNE ARDENNES | D177: MARNE_ARDENNES
A178: REIMS | B178: REIMS | C178: MARNE ARDENNES | D178: MARNE_ARDENNES
A179: REIMS | B179: REIMS | C179: MARNE ARDENNES | D179: MARNE_ARDENNES
A180: REIMS | B180: REIMS | C180: MARNE ARDENNES | D180: MARNE_ARDENNES
A181: REIMS | B181: REIMS | C181: MARNE ARDENNES | D181: MARNE_ARDENNES
A182: REIMS | B182: REIMS | C182: MARNE ARDENNES | D182: MARNE_ARDENNES
A183: REIMS | B183: REIMS | C183: MARNE ARDENNES | D183: MARNE_ARDENNES
A184: REIMS | B184: REIMS | C184: MARNE ARDENNES | D184: MARNE_ARDENNES
A185: REIMS | B185: REIMS | C185: MARNE ARDENNES | D185: MARNE_ARDENNES
A186: REIMS | B186: REIMS | C186: MARNE ARDENNES | D186: MARNE_ARDENNES
A187: REIMS | B187: REIMS | C187: MARNE ARDENNES | D187: MARNE_ARDENNES
A188: REIMS | B188: REIMS | C188: MARNE ARDENNES | D188: MARNE_ARDENNES
A189: REIMS | B189: REIMS | C189: MARNE ARDENNES | D189: MARNE_ARDENNES
A190: REIMS | B190: REIMS | C190: MARNE ARDENNES | D190: MARNE_ARDENNES
A191: NANCY | B191: NANCY | C191: MEURTHE ET MOSELLE MEUSE | D191: MEURTHE_ET_MOSELLE_MEUSE
A192: NANCY | B192: NANCY | C192: MEURTHE ET MOSELLE MEUSE | D192: MEURTHE_ET_MOSELLE_MEUSE
A193: NANCY | B193: NANCY | C193: MEURTHE ET MOSELLE MEUSE | D193: MEURTHE_ET_MOSELLE_MEUSE
A194: NANCY | B194: NANCY | C194: MEURTHE ET MOSELLE MEUSE | D194: MEURTHE_ET_MOSELLE_MEUSE
A195: NANCY | B195: NANCY | C195: MEURTHE ET MOSELLE MEUSE | D195: MEURTHE_ET_MOSELLE_MEUSE
A196: NANCY | B196: NANCY | C196: MEURTHE ET MOSELLE MEUSE | D196: MEURTHE_ET_MOSELLE_MEUSE
A197: NANCY | B197: NANCY | C197: MEURTHE ET MOSELLE MEUSE | D197: MEURTHE_ET_MOSELLE_MEUSE
A198: NANCY | B198: NANCY | C198: MEURTHE ET MOSELLE MEUSE | D198: MEURTHE_ET_MOSELLE_MEUSE
A199: NANCY | B199: NANCY | C199: MEURTHE ET MOSELLE MEUSE | D199: MEURTHE_ET_MOSELLE_MEUSE
A200: NANCY | B200: NANCY | C200: MEURTHE ET MOSELLE MEUSE | D200: MEURTHE_ET_MOSELLE_MEUSE
... 138 more rows

Sheet Menu
C2: Evolution du Fonds de Commerce

Sheet Activation
B2: FDC ET EQUIPEMENT PAR SEGMENT ACTIVATION
C4: REGION | F4: TERRITOIRE | J4: PDV
C5: CEGEE
D8: Tous segments | F8: Segments Activation - 11/2021
D9: 2021-11-01 | E9: 2020-12-01 | F9: BPe | G9: BPne | H9: De | I9: Dne | J9: JBPe | K9: JBPne | L9: JDe | M9: JDne | N9: Ee | O9: Ene | P9: I
B10: Fonds de commerce | C10: Nombre clients | D10: =SUM(F10:P10) -> 1388185 | E10: =IF(ISBLANK($F$5),SUMIFS('Données FDC déc 2020'!$F:$F,'Données FDC déc 2020'!$A:$A,Activation!$C$5),IF(ISBLANK($J$5),SUMIFS('Données FDC déc 2020'!$F:$F,'Données FDC déc 2020'!$B:$B,Activation!$F$5),SUMIFS('Données FDC déc 2020'!$F:$F,'Données FDC déc 2020'!$C:$C,Activation!$J$5))) -> 1420070 | F10: =IF(ISBLANK($F$5),SUMIFS('Données FDC'!$F:$F,'Données FDC'!$A:$A,Activation!$C$5,'Données FDC'!$E:$E,Activation!F$9),IF(ISBLANK($J$5),SUMIFS('Données FDC'!$F:$F,'Données FDC'!$B:$B,Activation!$F$5,'Données FDC'!$E:$E,Activation!F$9),SUMIFS('Données FDC'!$F:$F,'Données FDC'!$C:$C,Activation!$J$5,'Données FDC'!$E:$E,Activation!F$9))) -> 286072 | G10: =IF(ISBLANK($F$5),SUMIFS('Données FDC'!$F:$F,'Données FDC'!$A:$A,Activation!$C$5,'Données FDC'!$E:$E,Activation!G$9),IF(ISBLANK($J$5),SUMIFS('Données FDC'!$F:$F,'Données FDC'!$B:$B,Activation!$F$5,'Données FDC'!$E:$E,Activation!G$9),SUMIFS('Données FDC'!$F:$F,'Données FDC'!$C:$C,Activation!$J$5,'Données FDC'!$E:$E,Activation!G$9))) -> 158726 | H10: =IF(ISBLANK($F$5),SUMIFS('Données FDC'!$F:$F,'Données FDC'!$A:$A,Activation!$C$5,'Données FDC'!$E:$E,Activation!H$9),IF(ISBLANK($J$5),SUMIFS('Données FDC'!$F:$F,'Données FDC'!$B:$B,Activation!$F$5,'Données FDC'!$E:$E,Activation!H$9),SUMIFS('Données FDC'!$F:$F,'Données FDC'!$C:$C,Activation!$J$5,'Données FDC'!$E:$E,Activation!H$9))) -> 157175 | I10: =IF(ISBLANK($F$5),SUMIFS('Données FDC'!$F:$F,'Données FDC'!$A:$A,Activation!$C$5,'Données FDC'!$E:$E,Activation!I$9),IF(ISBLANK($J$5),SUMIFS('Données FDC'!$F:$F,'Données FDC'!$B:$B,Activation!$F$5,'Données FDC'!$E:$E,Activation!I$9),SUMIFS('Données FDC'!$F:$F,'Données FDC'!$C:$C,Activation!$J$5,'Données FDC'!$E:$E,Activation!I$9))) -> 318445 | J10: =IF(ISBLANK($F$5),SUMIFS('Données FDC'!$F:$F,'Données FDC'!$A:$A,Activation!$C$5,'Données FDC'!$E:$E,Activation!J$9),IF(ISBLANK($J$5),SUMIFS('Données FDC'!$F:$F,'Données FDC'!$B:$B,Activation!$F$5,'Données FDC'!$E:$E,Activation!J$9),SUMIFS('Données FDC'!$F:$F,'Données FDC'!$C:$C,Activation!$J$5,'Données FDC'!$E:$E,Activation!J$9))) -> 62252 | K10: =IF(ISBLANK($F$5),SUMIFS('Données FDC'!$F:$F,'Données FDC'!$A:$A,Activation!$C$5,'Données FDC'!$E:$E,Activation!K$9),IF(ISBLANK($J$5),SUMIFS('Données FDC'!$F:$F,'Données FDC'!$B:$B,Activation!$F$5,'Données FDC'!$E:$E,Activation!K$9),SUMIFS('Données FDC'!$F:$F,'Données FDC'!$C:$C,Activation!$J$5,'Données FDC'!$E:$E,Activation!K$9))) -> 15544 | L10: =IF(ISBLANK($F$5),SUMIFS('Données FDC'!$F:$F,'Données FDC'!$A:$A,Activation!$C$5,'Données FDC'!$E:$E,Activation!L$9),IF(ISBLANK($J$5),SUMIFS('Données FDC'!$F:$F,'Données FDC'!$B:$B,Activation!$F$5,'Données FDC'!$E:$E,Activation!L$9),SUMIFS('Données FDC'!$F:$F,'Données FDC'!$C:$C,Activation!$J$5,'Données FDC'!$E:$E,Activation!L$9))) -> 9033 | M10: =IF(ISBLANK($F$5),SUMIFS('Données FDC'!$F:$F,'Données FDC'!$A:$A,Activation!$C$5,'Données FDC'!$E:$E,Activation!M$9),IF(ISBLANK($J$5),SUMIFS('Données FDC'!$F:$F,'Données FDC'!$B:$B,Activation!$F$5,'Données FDC'!$E:$E,Activation!M$9),SUMIFS('Données FDC'!$F:$F,'Données FDC'!$C:$C,Activation!$J$5,'Données FDC'!$E:$E,Activation!M$9))) -> 64904 | N10: =IF(ISBLANK($F$5),SUMIFS('Données FDC'!$F:$F,'Données FDC'!$A:$A,Activation!$C$5,'Données FDC'!$E:$E,Activation!N$9),IF(ISBLANK($J$5),SUMIFS('Données FDC'!$F:$F,'Données FDC'!$B:$B,Activation!$F$5,'Données FDC'!$E:$E,Activation!N$9),SUMIFS('Données FDC'!$F:$F,'Données FDC'!$C:$C,Activation!$J$5,'Données FDC'!$E:$E,Activation!N$9))) -> 80350 | O10: =IF(ISBLANK($F$5),SUMIFS('Données FDC'!$F:$F,'Données FDC'!$A:$A,Activation!$C$5,'Données FDC'!$E:$E,Activation!O$9),IF(ISBLANK($J$5),SUMIFS('Données FDC'!$F:$F,'Données FDC'!$B:$B,Activation!$F$5,'Données FDC'!$E:$E,Activation!O$9),SUMIFS('Données FDC'!$F:$F,'Données FDC'!$C:$C,Activation!$J$5,'Données FDC'!$E:$E,Activation!O$9))) -> 53794 | P10: =IF(ISBLANK($F$5),SUMIFS('Données FDC'!$F:$F,'Données FDC'!$A:$A,Activation!$C$5,'Données FDC'!$E:$E,Activation!P$9),IF(ISBLANK($J$5),SUMIFS('Données FDC'!$F:$F,'Données FDC'!$B:$B,Activation!$F$5,'Données FDC'!$E:$E,Activation!P$9),SUMIFS('Données FDC'!$F:$F,'Données FDC'!$C:$C,Activation!$J$5,'Données FDC'!$E:$E,Activation!P$9))) -> 181890
C11: Poids | D11: =SUM(F11:P11) -> 1 | F11: =F10/$D10 -> 0.2060762795 | G11: =G10/$D10 -> 0.1143406679 | H11: 0.1132233816 | I11: 0.2293966582 | J11: 0.04484416702 | K11: 0.01119735482 | L11: 0.006507057777 | M11: 0.04675457522 | N11: 0.05788133426 | O11: 0.03875131917 | P11: 0.1310272046
C12: Poids CEGEE | D12: =SUM(F12:P12) -> 1 | F12: =SUMIF('Données FDC'!$E:$E,Activation!F$9,'Données FDC'!$F:$F)/SUM('Données FDC'!$F:$F) -> 0.2060762795 | G12: =SUMIF('Données FDC'!$E:$E,Activation!G$9,'Données FDC'!$F:$F)/SUM('Données FDC'!$F:$F) -> 0.1143406679 | H12: =SUMIF('Données FDC'!$E:$E,Activation!H$9,'Données FDC'!$F:$F)/SUM('Données FDC'!$F:$F) -> 0.1132233816 | I12: =SUMIF('Données FDC'!$E:$E,Activation!I$9,'Données FDC'!$F:$F)/SUM('Données FDC'!$F:$F) -> 0.2293966582 | J12: =SUMIF('Données FDC'!$E:$E,Activation!J$9,'Données FDC'!$F:$F)/SUM('Données FDC'!$F:$F) -> 0.04484416702 | K12: =SUMIF('Données FDC'!$E:$E,Activation!K$9,'Données FDC'!$F:$F)/SUM('Données FDC'!$F:$F) -> 0.01119735482 | L12: =SUMIF('Données FDC'!$E:$E,Activation!L$9,'Données FDC'!$F:$F)/SUM('Données FDC'!$F:$F) -> 0.006507057777 | M12: =SUMIF('Données FDC'!$E:$E,Activation!M$9,'Données FDC'!$F:$F)/SUM('Données FDC'!$F:$F) -> 0.04675457522 | N12: =SUMIF('Données FDC'!$E:$E,Activation!N$9,'Données FDC'!$F:$F)/SUM('Données FDC'!$F:$F) -> 0.05788133426 | O12: =SUMIF('Données FDC'!$E:$E,Activation!O$9,'Données FDC'!$F:$F)/SUM('Données FDC'!$F:$F) -> 0.03875131917 | P12: =SUMIF('Données FDC'!$E:$E,Activation!P$9,'Données FDC'!$F:$F)/SUM('Données FDC'!$F:$F) -> 0.1310272046
C13: Variation annuelle en nb | D13: =SUM(F13:P13) -> -31885 | F13: =F10-IF(ISBLANK($F$5),SUMIFS('Données FDC déc 2020'!$F:$F,'Données FDC déc 2020'!$A:$A,Activation!$C$5,'Données FDC déc 2020'!$E:$E,Activation!F$9),IF(ISBLANK($J$5),SUMIFS('Données FDC déc 2020'!$F:$F,'Données FDC déc 2020'!$B:$B,Activation!$F$5,'Données FDC déc 2020'!$E:$E,Activation!F$9),SUMIFS('Données FDC déc 2020'!$F:$F,'Données FDC déc 2020'!$C:$C,Activation!$J$5,'Données FDC déc 2020'!$E:$E,Activation!F$9))) -> 7126 | G13: =G10-IF(ISBLANK($F$5),SUMIFS('Données FDC déc 2020'!$F:$F,'Données FDC déc 2020'!$A:$A,Activation!$C$5,'Données FDC déc 2020'!$E:$E,Activation!G$9),IF(ISBLANK($J$5),SUMIFS('Données FDC déc 2020'!$F:$F,'Données FDC déc 2020'!$B:$B,Activation!$F$5,'Données FDC déc 2020'!$E:$E,Activation!G$9),SUMIFS('Données FDC déc 2020'!$F:$F,'Données FDC déc 2020'!$C:$C,Activation!$J$5,'Données FDC déc 2020'!$E:$E,Activation!G$9))) -> 2498 | H13: =H10-IF(ISBLANK($F$5),SUMIFS('Données FDC déc 2020'!$F:$F,'Données FDC déc 2020'!$A:$A,Activation!$C$5,'Données FDC déc 2020'!$E:$E,Activation!H$9),IF(ISBLANK($J$5),SUMIFS('Données FDC déc 2020'!$F:$F,'Données FDC déc 2020'!$B:$B,Activation!$F$5,'Données FDC déc 2020'!$E:$E,Activation!H$9),SUMIFS('Données FDC déc 2020'!$F:$F,'Données FDC déc 2020'!$C:$C,Activation!$J$5,'Données FDC déc 2020'!$E:$E,Activation!H$9))) -> -8830 | I13: =I10-IF(ISBLANK($F$5),SUMIFS('Données FDC déc 2020'!$F:$F,'Données FDC déc 2020'!$A:$A,Activation!$C$5,'Données FDC déc 2020'!$E:$E,Activation!I$9),IF(ISBLANK($J$5),SUMIFS('Données FDC déc 2020'!$F:$F,'Données FDC déc 2020'!$B:$B,Activation!$F$5,'Données FDC déc 2020'!$E:$E,Activation!I$9),SUMIFS('Données FDC déc 2020'!$F:$F,'Données FDC déc 2020'!$C:$C,Activation!$J$5,'Données FDC déc 2020'!$E:$E,Activation!I$9))) -> -19422 | J13: =J10-IF(ISBLANK($F$5),SUMIFS('Données FDC déc 2020'!$F:$F,'Données FDC déc 2020'!$A:$A,Activation!$C$5,'Données FDC déc 2020'!$E:$E,Activation!J$9),IF(ISBLANK($J$5),SUMIFS('Données FDC déc 2020'!$F:$F,'Données FDC déc 2020'!$B:$B,Activation!$F$5,'Données FDC déc 2020'!$E:$E,Activation!J$9),SUMIFS('Données FDC déc 2020'!$F:$F,'Données FDC déc 2020'!$C:$C,Activation!$J$5,'Données FDC déc 2020'!$E:$E,Activation!J$9))) -> 1458 | K13: =K10-IF(ISBLANK($F$5),SUMIFS('Données FDC déc 2020'!$F:$F,'Données FDC déc 2020'!$A:$A,Activation!$C$5,'Données FDC déc 2020'!$E:$E,Activation!K$9),IF(ISBLANK($J$5),SUMIFS('Données FDC déc 2020'!$F:$F,'Données FDC déc 2020'!$B:$B,Activation!$F$5,'Données FDC déc 2020'!$E:$E,Activation!K$9),SUMIFS('Données FDC déc 2020'!$F:$F,'Données FDC déc 2020'!$C:$C,Activation!$J$5,'Données FDC déc 2020'!$E:$E,Activation!K$9))) -> -119 | L13: =L10-IF(ISBLANK($F$5),SUMIFS('Données FDC déc 2020'!$F:$F,'Données FDC déc 2020'!$A:$A,Activation!$C$5,'Données FDC déc 2020'!$E:$E,Activation!L$9),IF(ISBLANK($J$5),SUMIFS('Données FDC déc 2020'!$F:$F,'Données FDC déc 2020'!$B:$B,Activation!$F$5,'Données FDC déc 2020'!$E:$E,Activation!L$9),SUMIFS('Données FDC déc 2020'!$F:$F,'Données FDC déc 2020'!$C:$C,Activation!$J$5,'Données FDC déc 2020'!$E:$E,Activation!L$9))) -> -1064 | M13: =M10-IF(ISBLANK($F$5),SUMIFS('Données FDC déc 2020'!$F:$F,'Données FDC déc 2020'!$A:$A,Activation!$C$5,'Données FDC déc 2020'!$E:$E,Activation!M$9),IF(ISBLANK($J$5),SUMIFS('Données FDC déc 2020'!$F:$F,'Données FDC déc 2020'!$B:$B,Activation!$F$5,'Données FDC déc 2020'!$E:$E,Activation!M$9),SUMIFS('Données FDC déc 2020'!$F:$F,'Données FDC déc 2020'!$C:$C,Activation!$J$5,'Données FDC déc 2020'!$E:$E,Activation!M$9))) -> -5537 | N13: =N10-IF(ISBLANK($F$5),SUMIFS('Données FDC déc 2020'!$F:$F,'Données FDC déc 2020'!$A:$A,Activation!$C$5,'Données FDC déc 2020'!$E:$E,Activation!N$9),IF(ISBLANK($J$5),SUMIFS('Données FDC déc 2020'!$F:$F,'Données FDC déc 2020'!$B:$B,Activation!$F$5,'Données FDC déc 2020'!$E:$E,Activation!N$9),SUMIFS('Données FDC déc 2020'!$F:$F,'Données FDC déc 2020'!$C:$C,Activation!$J$5,'Données FDC déc 2020'!$E:$E,Activation!N$9))) -> -2167 | O13: =O10-IF(ISBLANK($F$5),SUMIFS('Données FDC déc 2020'!$F:$F,'Données FDC déc 2020'!$A:$A,Activation!$C$5,'Données FDC déc 2020'!$E:$E,Activation!O$9),IF(ISBLANK($J$5),SUMIFS('Données FDC déc 2020'!$F:$F,'Données FDC déc 2020'!$B:$B,Activation!$F$5,'Données FDC déc 2020'!$E:$E,Activation!O$9),SUMIFS('Données FDC déc 2020'!$F:$F,'Données FDC déc 2020'!$C:$C,Activation!$J$5,'Données FDC déc 2020'!$E:$E,Activation!O$9))) -> -3881 | P13: =P10-IF(ISBLANK($F$5),SUMIFS('Données FDC déc 2020'!$F:$F,'Données FDC déc 2020'!$A:$A,Activation!$C$5,'Données FDC déc 2020'!$E:$E,Activation!P$9),IF(ISBLANK($J$5),SUMIFS('Données FDC déc 2020'!$F:$F,'Données FDC déc 2020'!$B:$B,Activation!$F$5,'Données FDC déc 2020'!$E:$E,Activation!P$9),SUMIFS('Données FDC déc 2020'!$F:$F,'Données FDC déc 2020'!$C:$C,Activation!$J$5,'Données FDC déc 2020'!$E:$E,Activation!P$9))) -> -1947
C14: Variation annuelle en % | D14: =D13/IF(ISBLANK($F$5),SUMIFS('Données FDC déc 2020'!$F:$F,'Données FDC déc 2020'!$A:$A,Activation!$C$5),IF(ISBLANK($J$5),SUMIFS('Données FDC déc 2020'!$F:$F,'Données FDC déc 2020'!$B:$B,Activation!$F$5),SUMIFS('Données FDC déc 2020'!$F:$F,'Données FDC déc 2020'!$C:$C,Activation!$J$5))) -> -0.02245311851 | F14: =F13/IF(ISBLANK($F$5),SUMIFS('Données FDC déc 2020'!$F:$F,'Données FDC déc 2020'!$A:$A,Activation!$C$5,'Données FDC déc 2020'!$E:$E,Activation!F$9),IF(ISBLANK($J$5),SUMIFS('Données FDC déc 2020'!$F:$F,'Données FDC déc 2020'!$B:$B,Activation!$F$5,'Données FDC déc 2020'!$E:$E,Activation!F$9),SUMIFS('Données FDC déc 2020'!$F:$F,'Données FDC déc 2020'!$C:$C,Activation!$J$5,'Données FDC déc 2020'!$E:$E,Activation!F$9))) -> 0.02554616306 | G14: =G13/IF(ISBLANK($F$5),SUMIFS('Données FDC déc 2020'!$F:$F,'Données FDC déc 2020'!$A:$A,Activation!$C$5,'Données FDC déc 2020'!$E:$E,Activation!G$9),IF(ISBLANK($J$5),SUMIFS('Données FDC déc 2020'!$F:$F,'Données FDC déc 2020'!$B:$B,Activation!$F$5,'Données FDC déc 2020'!$E:$E,Activation!G$9),SUMIFS('Données FDC déc 2020'!$F:$F,'Données FDC déc 2020'!$C:$C,Activation!$J$5,'Données FDC déc 2020'!$E:$E,Activation!G$9))) -> 0.01598945131 | H14: =H13/IF(ISBLANK($F$5),SUMIFS('Données FDC déc 2020'!$F:$F,'Données FDC déc 2020'!$A:$A,Activation!$C$5,'Données FDC déc 2020'!$E:$E,Activation!H$9),IF(ISBLANK($J$5),SUMIFS('Données FDC déc 2020'!$F:$F,'Données FDC déc 2020'!$B:$B,Activation!$F$5,'Données FDC déc 2020'!$E:$E,Activation!H$9),SUMIFS('Données FDC déc 2020'!$F:$F,'Données FDC déc 2020'!$C:$C,Activation!$J$5,'Données FDC déc 2020'!$E:$E,Activation!H$9))) -> -0.05319116894 | I14: =I13/IF(ISBLANK($F$5),SUMIFS('Données FDC déc 2020'!$F:$F,'Données FDC déc 2020'!$A:$A,Activation!$C$5,'Données FDC déc 2020'!$E:$E,Activation!I$9),IF(ISBLANK($J$5),SUMIFS('Données FDC déc 2020'!$F:$F,'Données FDC déc 2020'!$B:$B,Activation!$F$5,'Données FDC déc 2020'!$E:$E,Activation!I$9),SUMIFS('Données FDC déc 2020'!$F:$F,'Données FDC déc 2020'!$C:$C,Activation!$J$5,'Données FDC déc 2020'!$E:$E,Activation!I$9))) -> -0.05748415797 | J14: =J13/IF(ISBLANK($F$5),SUMIFS('Données FDC déc 2020'!$F:$F,'Données FDC déc 2020'!$A:$A,Activation!$C$5,'Données FDC déc 2020'!$E:$E,Activation!J$9),IF(ISBLANK($J$5),SUMIFS('Données FDC déc 2020'!$F:$F,'Données FDC déc 2020'!$B:$B,Activation!$F$5,'Données FDC déc 2020'!$E:$E,Activation!J$9),SUMIFS('Données FDC déc 2020'!$F:$F,'Données FDC déc 2020'!$C:$C,Activation!$J$5,'Données FDC déc 2020'!$E:$E,Activation!J$9))) -> 0.02398262986 | K14: =K13/IF(ISBLANK($F$5),SUMIFS('Données FDC déc 2020'!$F:$F,'Données FDC déc 2020'!$A:$A,Activation!$C$5,'Données FDC déc 2020'!$E:$E,Activation!K$9),IF(ISBLANK($J$5),SUMIFS('Données FDC déc 2020'!$F:$F,'Données FDC déc 2020'!$B:$B,Activation!$F$5,'Données FDC déc 2020'!$E:$E,Activation!K$9),SUMIFS('Données FDC déc 2020'!$F:$F,'Données FDC déc 2020'!$C:$C,Activation!$J$5,'Données FDC déc 2020'!$E:$E,Activation!K$9))) -> -0.007597522824 | L14: =L13/IF(ISBLANK($F$5),SUMIFS('Données FDC déc 2020'!$F:$F,'Données FDC déc 2020'!$A:$A,Activation!$C$5,'Données FDC déc 2020'!$E:$E,Activation!L$9),IF(ISBLANK($J$5),SUMIFS('Données FDC déc 2020'!$F:$F,'Données FDC déc 2020'!$B:$B,Activation!$F$5,'Données FDC déc 2020'!$E:$E,Activation!L$9),SUMIFS('Données FDC déc 2020'!$F:$F,'Données FDC déc 2020'!$C:$C,Activation!$J$5,'Données FDC déc 2020'!$E:$E,Activation!L$9))) -> -0.105377835 | M14: =M13/IF(ISBLANK($F$5),SUMIFS('Données FDC déc 2020'!$F:$F,'Données FDC déc 2020'!$A:$A,Activation!$C$5,'Données FDC déc 2020'!$E:$E,Activation!M$9),IF(ISBLANK($J$5),SUMIFS('Données FDC déc 2020'!$F:$F,'Données FDC déc 2020'!$B:$B,Activation!$F$5,'Données FDC déc 2020'!$E:$E,Activation!M$9),SUMIFS('Données FDC déc 2020'!$F:$F,'Données FDC déc 2020'!$C:$C,Activation!$J$5,'Données FDC déc 2020'!$E:$E,Activation!M$9))) -> -0.07860478982 | N14: =N13/IF(ISBLANK($F$5),SUMIFS('Données FDC déc 2020'!$F:$F,'Données FDC déc 2020'!$A:$A,Activation!$C$5,'Données FDC déc 2020'!$E:$E,Activation!N$9),IF(ISBLANK($J$5),SUMIFS('Données FDC déc 2020'!$F:$F,'Données FDC déc 2020'!$B:$B,Activation!$F$5,'Données FDC déc 2020'!$E:$E,Activation!N$9),SUMIFS('Données FDC déc 2020'!$F:$F,'Données FDC déc 2020'!$C:$C,Activation!$J$5,'Données FDC déc 2020'!$E:$E,Activation!N$9))) -> -0.02626125526 | O14: =O13/IF(ISBLANK($F$5),SUMIFS('Données FDC déc 2020'!$F:$F,'Données FDC déc 2020'!$A:$A,Activation!$C$5,'Données FDC déc 2020'!$E:$E,Activation!O$9),IF(ISBLANK($J$5),SUMIFS('Données FDC déc 2020'!$F:$F,'Données FDC déc 2020'!$B:$B,Activation!$F$5,'Données FDC déc 2020'!$E:$E,Activation!O$9),SUMIFS('Données FDC déc 2020'!$F:$F,'Données FDC déc 2020'!$C:$C,Activation!$J$5,'Données FDC déc 2020'!$E:$E,Activation!O$9))) -> -0.06729085392 | P14: =P13/IF(ISBLANK($F$5),SUMIFS('Données FDC déc 2020'!$F:$F,'Données FDC déc 2020'!$A:$A,Activation!$C$5,'Données FDC déc 2020'!$E:$E,Activation!P$9),IF(ISBLANK($J$5),SUMIFS('Données FDC déc 2020'!$F:$F,'Données FDC déc 2020'!$B:$B,Activation!$F$5,'Données FDC déc 2020'!$E:$E,Activation!P$9),SUMIFS('Données FDC déc 2020'!$F:$F,'Données FDC déc 2020'!$C:$C,Activation!$J$5,'Données FDC déc 2020'!$E:$E,Activation!P$9))) -> -0.0105909039
C15: Variation en % CEGEE | D15: =SUM('Données FDC'!$F:$F)/SUM('Données FDC déc 2020'!$F:$F)-1 -> -0.02245311851 | F15: =IF(ISBLANK($F$5),SUMIFS('Données FDC'!$F:$F,'Données FDC'!$E:$E,Activation!F$9),IF(ISBLANK($J$5),SUMIFS('Données FDC'!$F:$F,'Données FDC'!$E:$E,Activation!F$9),SUMIFS('Données FDC'!$F:$F,'Données FDC'!$E:$E,Activation!F$9)))/(IF(ISBLANK($F$5),SUMIFS('Données FDC déc 2020'!$F:$F,'Données FDC déc 2020'!$E:$E,Activation!F$9),IF(ISBLANK($J$5),SUMIFS('Données FDC déc 2020'!$F:$F,'Données FDC déc 2020'!$E:$E,Activation!F$9),SUMIFS('Données FDC déc 2020'!$F:$F,'Données FDC déc 2020'!$E:$E,Activation!F$9))))-1 -> 0.02554800131 | G15: =IF(ISBLANK($F$5),SUMIFS('Données FDC'!$F:$F,'Données FDC'!$E:$E,Activation!G$9),IF(ISBLANK($J$5),SUMIFS('Données FDC'!$F:$F,'Données FDC'!$E:$E,Activation!G$9),SUMIFS('Données FDC'!$F:$F,'Données FDC'!$E:$E,Activation!G$9)))/(IF(ISBLANK($F$5),SUMIFS('Données FDC déc 2020'!$F:$F,'Données FDC déc 2020'!$E:$E,Activation!G$9),IF(ISBLANK($J$5),SUMIFS('Données FDC déc 2020'!$F:$F,'Données FDC déc 2020'!$E:$E,Activation!G$9),SUMIFS('Données FDC déc 2020'!$F:$F,'Données FDC déc 2020'!$E:$E,Activation!G$9))))-1 -> 0.0159861997 | H15: =IF(ISBLANK($F$5),SUMIFS('Données FDC'!$F:$F,'Données FDC'!$E:$E,Activation!H$9),IF(ISBLANK($J$5),SUMIFS('Données FDC'!$F:$F,'Données FDC'!$E:$E,Activation!H$9),SUMIFS('Données FDC'!$F:$F,'Données FDC'!$E:$E,Activation!H$9)))/(IF(ISBLANK($F$5),SUMIFS('Données FDC déc 2020'!$F:$F,'Données FDC déc 2020'!$E:$E,Activation!H$9),IF(ISBLANK($J$5),SUMIFS('Données FDC déc 2020'!$F:$F,'Données FDC déc 2020'!$E:$E,Activation!H$9),SUMIFS('Données FDC déc 2020'!$F:$F,'Données FDC déc 2020'!$E:$E,Activation!H$9))))-1 -> -0.05319116894 | I15: =IF(ISBLANK($F$5),SUMIFS('Données FDC'!$F:$F,'Données FDC'!$E:$E,Activation!I$9),IF(ISBLANK($J$5),SUMIFS('Données FDC'!$F:$F,'Données FDC'!$E:$E,Activation!I$9),SUMIFS('Données FDC'!$F:$F,'Données FDC'!$E:$E,Activation!I$9)))/(IF(ISBLANK($F$5),SUMIFS('Données FDC déc 2020'!$F:$F,'Données FDC déc 2020'!$E:$E,Activation!I$9),IF(ISBLANK($J$5),SUMIFS('Données FDC déc 2020'!$F:$F,'Données FDC déc 2020'!$E:$E,Activation!I$9),SUMIFS('Données FDC déc 2020'!$F:$F,'Données FDC déc 2020'!$E:$E,Activation!I$9))))-1 -> -0.05747997354 | J15: =IF(ISBLANK($F$5),SUMIFS('Données FDC'!$F:$F,'Données FDC'!$E:$E,Activation!J$9),IF(ISBLANK($J$5),SUMIFS('Données FDC'!$F:$F,'Données FDC'!$E:$E,Activation!J$9),SUMIFS('Données FDC'!$F:$F,'Données FDC'!$E:$E,Activation!J$9)))/(IF(ISBLANK($F$5),SUMIFS('Données FDC déc 2020'!$F:$F,'Données FDC déc 2020'!$E:$E,Activation!J$9),IF(ISBLANK($J$5),SUMIFS('Données FDC déc 2020'!$F:$F,'Données FDC déc 2020'!$E:$E,Activation!J$9),SUMIFS('Données FDC déc 2020'!$F:$F,'Données FDC déc 2020'!$E:$E,Activation!J$9))))-1 -> 0.02398262986 | K15: =IF(ISBLANK($F$5),SUMIFS('Données FDC'!$F:$F,'Données FDC'!$E:$E,Activation!K$9),IF(ISBLANK($J$5),SUMIFS('Données FDC'!$F:$F,'Données FDC'!$E:$E,Activation!K$9),SUMIFS('Données FDC'!$F:$F,'Données FDC'!$E:$E,Activation!K$9)))/(IF(ISBLANK($F$5),SUMIFS('Données FDC déc 2020'!$F:$F,'Données FDC déc 2020'!$E:$E,Activation!K$9),IF(ISBLANK($J$5),SUMIFS('Données FDC déc 2020'!$F:$F,'Données FDC déc 2020'!$E:$E,Activation!K$9),SUMIFS('Données FDC déc 2020'!$F:$F,'Données FDC déc 2020'!$E:$E,Activation!K$9))))-1 -> -0.007629201647 | L15: =IF(ISBLANK($F$5),SUMIFS('Données FDC'!$F:$F,'Données FDC'!$E:$E,Activation!L$9),IF(ISBLANK($J$5),SUMIFS('Données FDC'!$F:$F,'Données FDC'!$E:$E,Activation!L$9),SUMIFS('Données FDC'!$F:$F,'Données FDC'!$E:$E,Activation!L$9)))/(IF(ISBLANK($F$5),SUMIFS('Données FDC déc 2020'!$F:$F,'Données FDC déc 2020'!$E:$E,Activation!L$9),IF(ISBLANK($J$5),SUMIFS('Données FDC déc 2020'!$F:$F,'Données FDC déc 2020'!$E:$E,Activation!L$9),SUMIFS('Données FDC déc 2020'!$F:$F,'Données FDC déc 2020'!$E:$E,Activation!L$9))))-1 -> -0.1054221342 | M15: =IF(ISBLANK($F$5),SUMIFS('Données FDC'!$F:$F,'Données FDC'!$E:$E,Activation!M$9),IF(ISBLANK($J$5),SUMIFS('Données FDC'!$F:$F,'Données FDC'!$E:$E,Activation!M$9),SUMIFS('Données FDC'!$F:$F,'Données FDC'!$E:$E,Activation!M$9)))/(IF(ISBLANK($F$5),SUMIFS('Données FDC déc 2020'!$F:$F,'Données FDC déc 2020'!$E:$E,Activation!M$9),IF(ISBLANK($J$5),SUMIFS('Données FDC déc 2020'!$F:$F,'Données FDC déc 2020'!$E:$E,Activation!M$9),SUMIFS('Données FDC déc 2020'!$F:$F,'Données FDC déc 2020'!$E:$E,Activation!M$9))))-1 -> -0.07860478982 | N15: =IF(ISBLANK($F$5),SUMIFS('Données FDC'!$F:$F,'Données FDC'!$E:$E,Activation!N$9),IF(ISBLANK($J$5),SUMIFS('Données FDC'!$F:$F,'Données FDC'!$E:$E,Activation!N$9),SUMIFS('Données FDC'!$F:$F,'Données FDC'!$E:$E,Activation!N$9)))/(IF(ISBLANK($F$5),SUMIFS('Données FDC déc 2020'!$F:$F,'Données FDC déc 2020'!$E:$E,Activation!N$9),IF(ISBLANK($J$5),SUMIFS('Données FDC déc 2020'!$F:$F,'Données FDC déc 2020'!$E:$E,Activation!N$9),SUMIFS('Données FDC déc 2020'!$F:$F,'Données FDC déc 2020'!$E:$E,Activation!N$9))))-1 -> -0.02626715545 | O15: =IF(ISBLANK($F$5),SUMIFS('Données FDC'!$F:$F,'Données FDC'!$E:$E,Activation!O$9),IF(ISBLANK($J$5),SUMIFS('Données FDC'!$F:$F,'Données FDC'!$E:$E,Activation!O$9),SUMIFS('Données FDC'!$F:$F,'Données FDC'!$E:$E,Activation!O$9)))/(IF(ISBLANK($F$5),SUMIFS('Données FDC déc 2020'!$F:$F,'Données FDC déc 2020'!$E:$E,Activation!O$9),IF(ISBLANK($J$5),SUMIFS('Données FDC déc 2020'!$F:$F,'Données FDC déc 2020'!$E:$E,Activation!O$9),SUMIFS('Données FDC déc 2020'!$F:$F,'Données FDC déc 2020'!$E:$E,Activation!O$9))))-1 -> -0.06728276795 | P15: =IF(ISBLANK($F$5),SUMIFS('Données FDC'!$F:$F,'Données FDC'!$E:$E,Activation!P$9),IF(ISBLANK($J$5),SUMIFS('Données FDC'!$F:$F,'Données FDC'!$E:$E,Activation!P$9),SUMIFS('Données FDC'!$F:$F,'Données FDC'!$E:$E,Activation!P$9)))/(IF(ISBLANK($F$5),SUMIFS('Données FDC déc 2020'!$F:$F,'Données FDC déc 2020'!$E:$E,Activation!P$9),IF(ISBLANK($J$5),SUMIFS('Données FDC déc 2020'!$F:$F,'Données FDC déc 2020'!$E:$E,Activation!P$9),SUMIFS('Données FDC déc 2020'!$F:$F,'Données FDC déc 2020'!$E:$E,Activation!P$9))))-1 -> -0.01059359489
C16: Nouveaux clients | D16: =SUM(F16:P16) -> 31601 | F16: =IF(ISBLANK($F$5),SUMIFS('Données FDC'!$N:$N,'Données FDC'!$A:$A,Activation!$C$5,'Données FDC'!$E:$E,Activation!F$9),IF(ISBLANK($J$5),SUMIFS('Données FDC'!$N:$N,'Données FDC'!$B:$B,Activation!$F$5,'Données FDC'!$E:$E,Activation!F$9),SUMIFS('Données FDC'!$N:$N,'Données FDC'!$C:$C,Activation!$J$5,'Données FDC'!$E:$E,Activation!F$9))) -> 4546 | G16: =IF(ISBLANK($F$5),SUMIFS('Données FDC'!$N:$N,'Données FDC'!$A:$A,Activation!$C$5,'Données FDC'!$E:$E,Activation!G$9),IF(ISBLANK($J$5),SUMIFS('Données FDC'!$N:$N,'Données FDC'!$B:$B,Activation!$F$5,'Données FDC'!$E:$E,Activation!G$9),SUMIFS('Données FDC'!$N:$N,'Données FDC'!$C:$C,Activation!$J$5,'Données FDC'!$E:$E,Activation!G$9))) -> 2653 | H16: =IF(ISBLANK($F$5),SUMIFS('Données FDC'!$N:$N,'Données FDC'!$A:$A,Activation!$C$5,'Données FDC'!$E:$E,Activation!H$9),IF(ISBLANK($J$5),SUMIFS('Données FDC'!$N:$N,'Données FDC'!$B:$B,Activation!$F$5,'Données FDC'!$E:$E,Activation!H$9),SUMIFS('Données FDC'!$N:$N,'Données FDC'!$C:$C,Activation!$J$5,'Données FDC'!$E:$E,Activation!H$9))) -> 1985 | I16: =IF(ISBLANK($F$5),SUMIFS('Données FDC'!$N:$N,'Données FDC'!$A:$A,Activation!$C$5,'Données FDC'!$E:$E,Activation!I$9),IF(ISBLANK($J$5),SUMIFS('Données FDC'!$N:$N,'Données FDC'!$B:$B,Activation!$F$5,'Données FDC'!$E:$E,Activation!I$9),SUMIFS('Données FDC'!$N:$N,'Données FDC'!$C:$C,Activation!$J$5,'Données FDC'!$E:$E,Activation!I$9))) -> 7110 | J16: =IF(ISBLANK($F$5),SUMIFS('Données FDC'!$N:$N,'Données FDC'!$A:$A,Activation!$C$5,'Données FDC'!$E:$E,Activation!J$9),IF(ISBLANK($J$5),SUMIFS('Données FDC'!$N:$N,'Données FDC'!$B:$B,Activation!$F$5,'Données FDC'!$E:$E,Activation!J$9),SUMIFS('Données FDC'!$N:$N,'Données FDC'!$C:$C,Activation!$J$5,'Données FDC'!$E:$E,Activation!J$9))) -> 2076 | K16: =IF(ISBLANK($F$5),SUMIFS('Données FDC'!$N:$N,'Données FDC'!$A:$A,Activation!$C$5,'Données FDC'!$E:$E,Activation!K$9),IF(ISBLANK($J$5),SUMIFS('Données FDC'!$N:$N,'Données FDC'!$B:$B,Activation!$F$5,'Données FDC'!$E:$E,Activation!K$9),SUMIFS('Données FDC'!$N:$N,'Données FDC'!$C:$C,Activation!$J$5,'Données FDC'!$E:$E,Activation!K$9))) -> 1676 | L16: =IF(ISBLANK($F$5),SUMIFS('Données FDC'!$N:$N,'Données FDC'!$A:$A,Activation!$C$5,'Données FDC'!$E:$E,Activation!L$9),IF(ISBLANK($J$5),SUMIFS('Données FDC'!$N:$N,'Données FDC'!$B:$B,Activation!$F$5,'Données FDC'!$E:$E,Activation!L$9),SUMIFS('Données FDC'!$N:$N,'Données FDC'!$C:$C,Activation!$J$5,'Données FDC'!$E:$E,Activation!L$9))) -> 139 | M16: =IF(ISBLANK($F$5),SUMIFS('Données FDC'!$N:$N,'Données FDC'!$A:$A,Activation!$C$5,'Données FDC'!$E:$E,Activation!M$9),IF(ISBLANK($J$5),SUMIFS('Données FDC'!$N:$N,'Données FDC'!$B:$B,Activation!$F$5,'Données FDC'!$E:$E,Activation!M$9),SUMIFS('Données FDC'!$N:$N,'Données FDC'!$C:$C,Activation!$J$5,'Données FDC'!$E:$E,Activation!M$9))) -> 1906 | N16: =IF(ISBLANK($F$5),SUMIFS('Données FDC'!$N:$N,'Données FDC'!$A:$A,Activation!$C$5,'Données FDC'!$E:$E,Activation!N$9),IF(ISBLANK($J$5),SUMIFS('Données FDC'!$N:$N,'Données FDC'!$B:$B,Activation!$F$5,'Données FDC'!$E:$E,Activation!N$9),SUMIFS('Données FDC'!$N:$N,'Données FDC'!$C:$C,Activation!$J$5,'Données FDC'!$E:$E,Activation!N$9))) -> 6033 | O16: =IF(ISBLANK($F$5),SUMIFS('Données FDC'!$N:$N,'Données FDC'!$A:$A,Activation!$C$5,'Données FDC'!$E:$E,Activation!O$9),IF(ISBLANK($J$5),SUMIFS('Données FDC'!$N:$N,'Données FDC'!$B:$B,Activation!$F$5,'Données FDC'!$E:$E,Activation!O$9),SUMIFS('Données FDC'!$N:$N,'Données FDC'!$C:$C,Activation!$J$5,'Données FDC'!$E:$E,Activation!O$9))) -> 3160 | P16: =IF(ISBLANK($F$5),SUMIFS('Données FDC'!$N:$N,'Données FDC'!$A:$A,Activation!$C$5,'Données FDC'!$E:$E,Activation!P$9),IF(ISBLANK($J$5),SUMIFS('Données FDC'!$N:$N,'Données FDC'!$B:$B,Activation!$F$5,'Données FDC'!$E:$E,Activation!P$9),SUMIFS('Données FDC'!$N:$N,'Données FDC'!$C:$C,Activation!$J$5,'Données FDC'!$E:$E,Activation!P$9))) -> 317
C17: % Conquête | D17: =D16/E10 -> 0.02225312837 | F17: =F16/IF(ISBLANK($F$5),SUMIFS('Données FDC déc 2020'!$F:$F,'Données FDC déc 2020'!$A:$A,Activation!$C$5,'Données FDC déc 2020'!$E:$E,Activation!F$9),IF(ISBLANK($J$5),SUMIFS('Données FDC déc 2020'!$F:$F,'Données FDC déc 2020'!$B:$B,Activation!$F$5,'Données FDC déc 2020'!$E:$E,Activation!F$9),SUMIFS('Données FDC déc 2020'!$F:$F,'Données FDC déc 2020'!$C:$C,Activation!$J$5,'Données FDC déc 2020'!$E:$E,Activation!F$9))) -> 0.01629706108 | G17: =G16/IF(ISBLANK($F$5),SUMIFS('Données FDC déc 2020'!$F:$F,'Données FDC déc 2020'!$A:$A,Activation!$C$5,'Données FDC déc 2020'!$E:$E,Activation!G$9),IF(ISBLANK($J$5),SUMIFS('Données FDC déc 2020'!$F:$F,'Données FDC déc 2020'!$B:$B,Activation!$F$5,'Données FDC déc 2020'!$E:$E,Activation!G$9),SUMIFS('Données FDC déc 2020'!$F:$F,'Données FDC déc 2020'!$C:$C,Activation!$J$5,'Données FDC déc 2020'!$E:$E,Activation!G$9))) -> 0.01698159101 | H17: =H16/IF(ISBLANK($F$5),SUMIFS('Données FDC déc 2020'!$F:$F,'Données FDC déc 2020'!$A:$A,Activation!$C$5,'Données FDC déc 2020'!$E:$E,Activation!H$9),IF(ISBLANK($J$5),SUMIFS('Données FDC déc 2020'!$F:$F,'Données FDC déc 2020'!$B:$B,Activation!$F$5,'Données FDC déc 2020'!$E:$E,Activation!H$9),SUMIFS('Données FDC déc 2020'!$F:$F,'Données FDC déc 2020'!$C:$C,Activation!$J$5,'Données FDC déc 2020'!$E:$E,Activation!H$9))) -> 0.01195747116 | I17: =I16/IF(ISBLANK($F$5),SUMIFS('Données FDC déc 2020'!$F:$F,'Données FDC déc 2020'!$A:$A,Activation!$C$5,'Données FDC déc 2020'!$E:$E,Activation!I$9),IF(ISBLANK($J$5),SUMIFS('Données FDC déc 2020'!$F:$F,'Données FDC déc 2020'!$B:$B,Activation!$F$5,'Données FDC déc 2020'!$E:$E,Activation!I$9),SUMIFS('Données FDC déc 2020'!$F:$F,'Données FDC déc 2020'!$C:$C,Activation!$J$5,'Données FDC déc 2020'!$E:$E,Activation!I$9))) -> 0.0210437835 | J17: =J16/IF(ISBLANK($F$5),SUMIFS('Données FDC déc 2020'!$F:$F,'Données FDC déc 2020'!$A:$A,Activation!$C$5,'Données FDC déc 2020'!$E:$E,Activation!J$9),IF(ISBLANK($J$5),SUMIFS('Données FDC déc 2020'!$F:$F,'Données FDC déc 2020'!$B:$B,Activation!$F$5,'Données FDC déc 2020'!$E:$E,Activation!J$9),SUMIFS('Données FDC déc 2020'!$F:$F,'Données FDC déc 2020'!$C:$C,Activation!$J$5,'Données FDC déc 2020'!$E:$E,Activation!J$9))) -> 0.03414810672 | K17: =K16/IF(ISBLANK($F$5),SUMIFS('Données FDC déc 2020'!$F:$F,'Données FDC déc 2020'!$A:$A,Activation!$C$5,'Données FDC déc 2020'!$E:$E,Activation!K$9),IF(ISBLANK($J$5),SUMIFS('Données FDC déc 2020'!$F:$F,'Données FDC déc 2020'!$B:$B,Activation!$F$5,'Données FDC déc 2020'!$E:$E,Activation!K$9),SUMIFS('Données FDC déc 2020'!$F:$F,'Données FDC déc 2020'!$C:$C,Activation!$J$5,'Données FDC déc 2020'!$E:$E,Activation!K$9))) -> 0.1070037668 | L17: =L16/IF(ISBLANK($F$5),SUMIFS('Données FDC déc 2020'!$F:$F,'Données FDC déc 2020'!$A:$A,Activation!$C$5,'Données FDC déc 2020'!$E:$E,Activation!L$9),IF(ISBLANK($J$5),SUMIFS('Données FDC déc 2020'!$F:$F,'Données FDC déc 2020'!$B:$B,Activation!$F$5,'Données FDC déc 2020'!$E:$E,Activation!L$9),SUMIFS('Données FDC déc 2020'!$F:$F,'Données FDC déc 2020'!$C:$C,Activation!$J$5,'Données FDC déc 2020'!$E:$E,Activation!L$9))) -> 0.01376646529 | M17: =M16/IF(ISBLANK($F$5),SUMIFS('Données FDC déc 2020'!$F:$F,'Données FDC déc 2020'!$A:$A,Activation!$C$5,'Données FDC déc 2020'!$E:$E,Activation!M$9),IF(ISBLANK($J$5),SUMIFS('Données FDC déc 2020'!$F:$F,'Données FDC déc 2020'!$B:$B,Activation!$F$5,'Données FDC déc 2020'!$E:$E,Activation!M$9),SUMIFS('Données FDC déc 2020'!$F:$F,'Données FDC déc 2020'!$C:$C,Activation!$J$5,'Données FDC déc 2020'!$E:$E,Activation!M$9))) -> 0.02705810536 | N17: =N16/IF(ISBLANK($F$5),SUMIFS('Données FDC déc 2020'!$F:$F,'Données FDC déc 2020'!$A:$A,Activation!$C$5,'Données FDC déc 2020'!$E:$E,Activation!N$9),IF(ISBLANK($J$5),SUMIFS('Données FDC déc 2020'!$F:$F,'Données FDC déc 2020'!$B:$B,Activation!$F$5,'Données FDC déc 2020'!$E:$E,Activation!N$9),SUMIFS('Données FDC déc 2020'!$F:$F,'Données FDC déc 2020'!$C:$C,Activation!$J$5,'Données FDC déc 2020'!$E:$E,Activation!N$9))) -> 0.07311220718 | O17: =O16/IF(ISBLANK($F$5),SUMIFS('Données FDC déc 2020'!$F:$F,'Données FDC déc 2020'!$A:$A,Activation!$C$5,'Données FDC déc 2020'!$E:$E,Activation!O$9),IF(ISBLANK($J$5),SUMIFS('Données FDC déc 2020'!$F:$F,'Données FDC déc 2020'!$B:$B,Activation!$F$5,'Données FDC déc 2020'!$E:$E,Activation!O$9),SUMIFS('Données FDC déc 2020'!$F:$F,'Données FDC déc 2020'!$C:$C,Activation!$J$5,'Données FDC déc 2020'!$E:$E,Activation!O$9))) -> 0.05478977026 | P17: =P16/IF(ISBLANK($F$5),SUMIFS('Données FDC déc 2020'!$F:$F,'Données FDC déc 2020'!$A:$A,Activation!$C$5,'Données FDC déc 2020'!$E:$E,Activation!P$9),IF(ISBLANK($J$5),SUMIFS('Données FDC déc 2020'!$F:$F,'Données FDC déc 2020'!$B:$B,Activation!$F$5,'Données FDC déc 2020'!$E:$E,Activation!P$9),SUMIFS('Données FDC déc 2020'!$F:$F,'Données FDC déc 2020'!$C:$C,Activation!$J$5,'Données FDC déc 2020'!$E:$E,Activation!P$9))) -> 0.001724353639
C18: % Conquête CEGEE | D18: =SUM('Données FDC'!$N:$N)/SUM('Données FDC déc 2020'!$F:$F) -> 0.02225312837 | F18: =SUMIF('Données FDC'!$E:$E,Activation!F$9,'Données FDC'!$N:$N)/SUMIF('Données FDC déc 2020'!$E:$E,Activation!F$9,'Données FDC déc 2020'!$F:$F) -> 0.01629709029 | G18: =SUMIF('Données FDC'!$E:$E,Activation!G$9,'Données FDC'!$N:$N)/SUMIF('Données FDC déc 2020'!$E:$E,Activation!G$9,'Données FDC déc 2020'!$F:$F) -> 0.01698153666 | H18: =SUMIF('Données FDC'!$E:$E,Activation!H$9,'Données FDC'!$N:$N)/SUMIF('Données FDC déc 2020'!$E:$E,Activation!H$9,'Données FDC déc 2020'!$F:$F) -> 0.01195747116 | I18: =SUMIF('Données FDC'!$E:$E,Activation!I$9,'Données FDC'!$N:$N)/SUMIF('Données FDC déc 2020'!$E:$E,Activation!I$9,'Données FDC déc 2020'!$F:$F) -> 0.02104387693 | J18: =SUMIF('Données FDC'!$E:$E,Activation!J$9,'Données FDC'!$N:$N)/SUMIF('Données FDC déc 2020'!$E:$E,Activation!J$9,'Données FDC déc 2020'!$F:$F) -> 0.03414810672 | K18: =SUMIF('Données FDC'!$E:$E,Activation!K$9,'Données FDC'!$N:$N)/SUMIF('Données FDC déc 2020'!$E:$E,Activation!K$9,'Données FDC déc 2020'!$F:$F) -> 0.1070003511 | L18: =SUMIF('Données FDC'!$E:$E,Activation!L$9,'Données FDC'!$N:$N)/SUMIF('Données FDC déc 2020'!$E:$E,Activation!L$9,'Données FDC déc 2020'!$F:$F) -> 0.01376578361 | M18: =SUMIF('Données FDC'!$E:$E,Activation!M$9,'Données FDC'!$N:$N)/SUMIF('Données FDC déc 2020'!$E:$E,Activation!M$9,'Données FDC déc 2020'!$F:$F) -> 0.02705810536 | N18: =SUMIF('Données FDC'!$E:$E,Activation!N$9,'Données FDC'!$N:$N)/SUMIF('Données FDC déc 2020'!$E:$E,Activation!N$9,'Données FDC déc 2020'!$F:$F) -> 0.07311176417 | O18: =SUMIF('Données FDC'!$E:$E,Activation!O$9,'Données FDC'!$N:$N)/SUMIF('Données FDC déc 2020'!$E:$E,Activation!O$9,'Données FDC déc 2020'!$F:$F) -> 0.05479024526 | P18: =SUMIF('Données FDC'!$E:$E,Activation!P$9,'Données FDC'!$N:$N)/SUMIF('Données FDC déc 2020'!$E:$E,Activation!P$9,'Données FDC déc 2020'!$F:$F) -> 0.001724348949
C19: Clients sortants | D19: =SUM(F19:P19) -> 61460 | F19: =IF(ISBLANK($F$5),SUMIFS('Données FDC'!$O:$O,'Données FDC'!$A:$A,Activation!$C$5,'Données FDC'!$E:$E,Activation!F$9),IF(ISBLANK($J$5),SUMIFS('Données FDC'!$O:$O,'Données FDC'!$B:$B,Activation!$F$5,'Données FDC'!$E:$E,Activation!F$9),SUMIFS('Données FDC'!$O:$O,'Données FDC'!$C:$C,Activation!$J$5,'Données FDC'!$E:$E,Activation!F$9))) -> 1999 | G19: =IF(ISBLANK($F$5),SUMIFS('Données FDC'!$O:$O,'Données FDC'!$A:$A,Activation!$C$5,'Données FDC'!$E:$E,Activation!G$9),IF(ISBLANK($J$5),SUMIFS('Données FDC'!$O:$O,'Données FDC'!$B:$B,Activation!$F$5,'Données FDC'!$E:$E,Activation!G$9),SUMIFS('Données FDC'!$O:$O,'Données FDC'!$C:$C,Activation!$J$5,'Données FDC'!$E:$E,Activation!G$9))) -> 4057 | H19: =IF(ISBLANK($F$5),SUMIFS('Données FDC'!$O:$O,'Données FDC'!$A:$A,Activation!$C$5,'Données FDC'!$E:$E,Activation!H$9),IF(ISBLANK($J$5),SUMIFS('Données FDC'!$O:$O,'Données FDC'!$B:$B,Activation!$F$5,'Données FDC'!$E:$E,Activation!H$9),SUMIFS('Données FDC'!$O:$O,'Données FDC'!$C:$C,Activation!$J$5,'Données FDC'!$E:$E,Activation!H$9))) -> 5486 | I19: =IF(ISBLANK($F$5),SUMIFS('Données FDC'!$O:$O,'Données FDC'!$A:$A,Activation!$C$5,'Données FDC'!$E:$E,Activation!I$9),IF(ISBLANK($J$5),SUMIFS('Données FDC'!$O:$O,'Données FDC'!$B:$B,Activation!$F$5,'Données FDC'!$E:$E,Activation!I$9),SUMIFS('Données FDC'!$O:$O,'Données FDC'!$C:$C,Activation!$J$5,'Données FDC'!$E:$E,Activation!I$9))) -> 24912 | J19: =IF(ISBLANK($F$5),SUMIFS('Données FDC'!$O:$O,'Données FDC'!$A:$A,Activation!$C$5,'Données FDC'!$E:$E,Activation!J$9),IF(ISBLANK($J$5),SUMIFS('Données FDC'!$O:$O,'Données FDC'!$B:$B,Activation!$F$5,'Données FDC'!$E:$E,Activation!J$9),SUMIFS('Données FDC'!$O:$O,'Données FDC'!$C:$C,Activation!$J$5,'Données FDC'!$E:$E,Activation!J$9))) -> 908 | K19: =IF(ISBLANK($F$5),SUMIFS('Données FDC'!$O:$O,'Données FDC'!$A:$A,Activation!$C$5,'Données FDC'!$E:$E,Activation!K$9),IF(ISBLANK($J$5),SUMIFS('Données FDC'!$O:$O,'Données FDC'!$B:$B,Activation!$F$5,'Données FDC'!$E:$E,Activation!K$9),SUMIFS('Données FDC'!$O:$O,'Données FDC'!$C:$C,Activation!$J$5,'Données FDC'!$E:$E,Activation!K$9))) -> 1161 | L19: =IF(ISBLANK($F$5),SUMIFS('Données FDC'!$O:$O,'Données FDC'!$A:$A,Activation!$C$5,'Données FDC'!$E:$E,Activation!L$9),IF(ISBLANK($J$5),SUMIFS('Données FDC'!$O:$O,'Données FDC'!$B:$B,Activation!$F$5,'Données FDC'!$E:$E,Activation!L$9),SUMIFS('Données FDC'!$O:$O,'Données FDC'!$C:$C,Activation!$J$5,'Données FDC'!$E:$E,Activation!L$9))) -> 201 | M19: =IF(ISBLANK($F$5),SUMIFS('Données FDC'!$O:$O,'Données FDC'!$A:$A,Activation!$C$5,'Données FDC'!$E:$E,Activation!M$9),IF(ISBLANK($J$5),SUMIFS('Données FDC'!$O:$O,'Données FDC'!$B:$B,Activation!$F$5,'Données FDC'!$E:$E,Activation!M$9),SUMIFS('Données FDC'!$O:$O,'Données FDC'!$C:$C,Activation!$J$5,'Données FDC'!$E:$E,Activation!M$9))) -> 5368 | N19: =IF(ISBLANK($F$5),SUMIFS('Données FDC'!$O:$O,'Données FDC'!$A:$A,Activation!$C$5,'Données FDC'!$E:$E,Activation!N$9),IF(ISBLANK($J$5),SUMIFS('Données FDC'!$O:$O,'Données FDC'!$B:$B,Activation!$F$5,'Données FDC'!$E:$E,Activation!N$9),SUMIFS('Données FDC'!$O:$O,'Données FDC'!$C:$C,Activation!$J$5,'Données FDC'!$E:$E,Activation!N$9))) -> 1686 | O19: =IF(ISBLANK($F$5),SUMIFS('Données FDC'!$O:$O,'Données FDC'!$A:$A,Activation!$C$5,'Données FDC'!$E:$E,Activation!O$9),IF(ISBLANK($J$5),SUMIFS('Données FDC'!$O:$O,'Données FDC'!$B:$B,Activation!$F$5,'Données FDC'!$E:$E,Activation!O$9),SUMIFS('Données FDC'!$O:$O,'Données FDC'!$C:$C,Activation!$J$5,'Données FDC'!$E:$E,Activation!O$9))) -> 1951 | P19: =IF(ISBLANK($F$5),SUMIFS('Données FDC'!$O:$O,'Données FDC'!$A:$A,Activation!$C$5,'Données FDC'!$E:$E,Activation!P$9),IF(ISBLANK($J$5),SUMIFS('Données FDC'!$O:$O,'Données FDC'!$B:$B,Activation!$F$5,'Données FDC'!$E:$E,Activation!P$9),SUMIFS('Données FDC'!$O:$O,'Données FDC'!$C:$C,Activation!$J$5,'Données FDC'!$E:$E,Activation!P$9))) -> 13731
C20: % Attrition | D20: =D19/E10 -> 0.04327955664 | F20: =F19/IF(ISBLANK($F$5),SUMIFS('Données FDC déc 2020'!$F:$F,'Données FDC déc 2020'!$A:$A,Activation!$C$5,'Données FDC déc 2020'!$E:$E,Activation!F$9),IF(ISBLANK($J$5),SUMIFS('Données FDC déc 2020'!$F:$F,'Données FDC déc 2020'!$B:$B,Activation!$F$5,'Données FDC déc 2020'!$E:$E,Activation!F$9),SUMIFS('Données FDC déc 2020'!$F:$F,'Données FDC déc 2020'!$C:$C,Activation!$J$5,'Données FDC déc 2020'!$E:$E,Activation!F$9))) -> 0.00716626157 | G20: =G19/IF(ISBLANK($F$5),SUMIFS('Données FDC déc 2020'!$F:$F,'Données FDC déc 2020'!$A:$A,Activation!$C$5,'Données FDC déc 2020'!$E:$E,Activation!G$9),IF(ISBLANK($J$5),SUMIFS('Données FDC déc 2020'!$F:$F,'Données FDC déc 2020'!$B:$B,Activation!$F$5,'Données FDC déc 2020'!$E:$E,Activation!G$9),SUMIFS('Données FDC déc 2020'!$F:$F,'Données FDC déc 2020'!$C:$C,Activation!$J$5,'Données FDC déc 2020'!$E:$E,Activation!G$9))) -> 0.02596845636 | H20: =H19/IF(ISBLANK($F$5),SUMIFS('Données FDC déc 2020'!$F:$F,'Données FDC déc 2020'!$A:$A,Activation!$C$5,'Données FDC déc 2020'!$E:$E,Activation!H$9),IF(ISBLANK($J$5),SUMIFS('Données FDC déc 2020'!$F:$F,'Données FDC déc 2020'!$B:$B,Activation!$F$5,'Données FDC déc 2020'!$E:$E,Activation!H$9),SUMIFS('Données FDC déc 2020'!$F:$F,'Données FDC déc 2020'!$C:$C,Activation!$J$5,'Données FDC déc 2020'!$E:$E,Activation!H$9))) -> 0.03304719737 | I20: =I19/IF(ISBLANK($F$5),SUMIFS('Données FDC déc 2020'!$F:$F,'Données FDC déc 2020'!$A:$A,Activation!$C$5,'Données FDC déc 2020'!$E:$E,Activation!I$9),IF(ISBLANK($J$5),SUMIFS('Données FDC déc 2020'!$F:$F,'Données FDC déc 2020'!$B:$B,Activation!$F$5,'Données FDC déc 2020'!$E:$E,Activation!I$9),SUMIFS('Données FDC déc 2020'!$F:$F,'Données FDC déc 2020'!$C:$C,Activation!$J$5,'Données FDC déc 2020'!$E:$E,Activation!I$9))) -> 0.07373315535 | J20: =J19/IF(ISBLANK($F$5),SUMIFS('Données FDC déc 2020'!$F:$F,'Données FDC déc 2020'!$A:$A,Activation!$C$5,'Données FDC déc 2020'!$E:$E,Activation!J$9),IF(ISBLANK($J$5),SUMIFS('Données FDC déc 2020'!$F:$F,'Données FDC déc 2020'!$B:$B,Activation!$F$5,'Données FDC déc 2020'!$E:$E,Activation!J$9),SUMIFS('Données FDC déc 2020'!$F:$F,'Données FDC déc 2020'!$C:$C,Activation!$J$5,'Données FDC déc 2020'!$E:$E,Activation!J$9))) -> 0.01493568444 | K20: =K19/IF(ISBLANK($F$5),SUMIFS('Données FDC déc 2020'!$F:$F,'Données FDC déc 2020'!$A:$A,Activation!$C$5,'Données FDC déc 2020'!$E:$E,Activation!K$9),IF(ISBLANK($J$5),SUMIFS('Données FDC déc 2020'!$F:$F,'Données FDC déc 2020'!$B:$B,Activation!$F$5,'Données FDC déc 2020'!$E:$E,Activation!K$9),SUMIFS('Données FDC déc 2020'!$F:$F,'Données FDC déc 2020'!$C:$C,Activation!$J$5,'Données FDC déc 2020'!$E:$E,Activation!K$9))) -> 0.07412373109 | L20: =L19/IF(ISBLANK($F$5),SUMIFS('Données FDC déc 2020'!$F:$F,'Données FDC déc 2020'!$A:$A,Activation!$C$5,'Données FDC déc 2020'!$E:$E,Activation!L$9),IF(ISBLANK($J$5),SUMIFS('Données FDC déc 2020'!$F:$F,'Données FDC déc 2020'!$B:$B,Activation!$F$5,'Données FDC déc 2020'!$E:$E,Activation!L$9),SUMIFS('Données FDC déc 2020'!$F:$F,'Données FDC déc 2020'!$C:$C,Activation!$J$5,'Données FDC déc 2020'!$E:$E,Activation!L$9))) -> 0.01990690304 | M20: =M19/IF(ISBLANK($F$5),SUMIFS('Données FDC déc 2020'!$F:$F,'Données FDC déc 2020'!$A:$A,Activation!$C$5,'Données FDC déc 2020'!$E:$E,Activation!M$9),IF(ISBLANK($J$5),SUMIFS('Données FDC déc 2020'!$F:$F,'Données FDC déc 2020'!$B:$B,Activation!$F$5,'Données FDC déc 2020'!$E:$E,Activation!M$9),SUMIFS('Données FDC déc 2020'!$F:$F,'Données FDC déc 2020'!$C:$C,Activation!$J$5,'Données FDC déc 2020'!$E:$E,Activation!M$9))) -> 0.07620561889 | N20: =N19/IF(ISBLANK($F$5),SUMIFS('Données FDC déc 2020'!$F:$F,'Données FDC déc 2020'!$A:$A,Activation!$C$5,'Données FDC déc 2020'!$E:$E,Activation!N$9),IF(ISBLANK($J$5),SUMIFS('Données FDC déc 2020'!$F:$F,'Données FDC déc 2020'!$B:$B,Activation!$F$5,'Données FDC déc 2020'!$E:$E,Activation!N$9),SUMIFS('Données FDC déc 2020'!$F:$F,'Données FDC déc 2020'!$C:$C,Activation!$J$5,'Données FDC déc 2020'!$E:$E,Activation!N$9))) -> 0.02043215337 | O20: =O19/IF(ISBLANK($F$5),SUMIFS('Données FDC déc 2020'!$F:$F,'Données FDC déc 2020'!$A:$A,Activation!$C$5,'Données FDC déc 2020'!$E:$E,Activation!O$9),IF(ISBLANK($J$5),SUMIFS('Données FDC déc 2020'!$F:$F,'Données FDC déc 2020'!$B:$B,Activation!$F$5,'Données FDC déc 2020'!$E:$E,Activation!O$9),SUMIFS('Données FDC déc 2020'!$F:$F,'Données FDC déc 2020'!$C:$C,Activation!$J$5,'Données FDC déc 2020'!$E:$E,Activation!O$9))) -> 0.03382748158 | P20: =P19/IF(ISBLANK($F$5),SUMIFS('Données FDC déc 2020'!$F:$F,'Données FDC déc 2020'!$A:$A,Activation!$C$5,'Données FDC déc 2020'!$E:$E,Activation!P$9),IF(ISBLANK($J$5),SUMIFS('Données FDC déc 2020'!$F:$F,'Données FDC déc 2020'!$B:$B,Activation!$F$5,'Données FDC déc 2020'!$E:$E,Activation!P$9),SUMIFS('Données FDC déc 2020'!$F:$F,'Données FDC déc 2020'!$C:$C,Activation!$J$5,'Données FDC déc 2020'!$E:$E,Activation!P$9))) -> 0.07469116663
C21: % Attrition CEGEE | D21: =SUM('Données FDC'!$O:$O)/SUM('Données FDC déc 2020'!$F:$F) -> 0.04327955664 | F21: =SUMIF('Données FDC'!$E:$E,Activation!F$9,'Données FDC'!$O:$O)/SUMIF('Données FDC déc 2020'!$E:$E,Activation!F$9,'Données FDC déc 2020'!$F:$F) -> 0.007166274416 | G21: =SUMIF('Données FDC'!$E:$E,Activation!G$9,'Données FDC'!$O:$O)/SUMIF('Données FDC déc 2020'!$E:$E,Activation!G$9,'Données FDC déc 2020'!$F:$F) -> 0.02596837325 | H21: =SUMIF('Données FDC'!$E:$E,Activation!H$9,'Données FDC'!$O:$O)/SUMIF('Données FDC déc 2020'!$E:$E,Activation!H$9,'Données FDC déc 2020'!$F:$F) -> 0.03304719737 | I21: =SUMIF('Données FDC'!$E:$E,Activation!I$9,'Données FDC'!$O:$O)/SUMIF('Données FDC déc 2020'!$E:$E,Activation!I$9,'Données FDC déc 2020'!$F:$F) -> 0.0737334827 | J21: =SUMIF('Données FDC'!$E:$E,Activation!J$9,'Données FDC'!$O:$O)/SUMIF('Données FDC déc 2020'!$E:$E,Activation!J$9,'Données FDC déc 2020'!$F:$F) -> 0.01493568444 | K21: =SUMIF('Données FDC'!$E:$E,Activation!K$9,'Données FDC'!$O:$O)/SUMIF('Données FDC déc 2020'!$E:$E,Activation!K$9,'Données FDC déc 2020'!$F:$F) -> 0.07412136496 | L21: =SUMIF('Données FDC'!$E:$E,Activation!L$9,'Données FDC'!$O:$O)/SUMIF('Données FDC déc 2020'!$E:$E,Activation!L$9,'Données FDC déc 2020'!$F:$F) -> 0.01990591731 | M21: =SUMIF('Données FDC'!$E:$E,Activation!M$9,'Données FDC'!$O:$O)/SUMIF('Données FDC déc 2020'!$E:$E,Activation!M$9,'Données FDC déc 2020'!$F:$F) -> 0.07620561889 | N21: =SUMIF('Données FDC'!$E:$E,Activation!N$9,'Données FDC'!$O:$O)/SUMIF('Données FDC déc 2020'!$E:$E,Activation!N$9,'Données FDC déc 2020'!$F:$F) -> 0.02043202957 | O21: =SUMIF('Données FDC'!$E:$E,Activation!O$9,'Données FDC'!$O:$O)/SUMIF('Données FDC déc 2020'!$E:$E,Activation!O$9,'Données FDC déc 2020'!$F:$F) -> 0.03382777484 | P21: =SUMIF('Données FDC'!$E:$E,Activation!P$9,'Données FDC'!$O:$O)/SUMIF('Données FDC déc 2020'!$E:$E,Activation!P$9,'Données FDC déc 2020'!$F:$F) -> 0.07469096349
B22: Age | C22: Moyenne | D22: =IF(ISBLANK($F$5),SUMIFS('Données pour moyenne'!$S:$S,'Données pour moyenne'!$Q:$Q,Activation!$C$5),IF(ISBLANK($J$5),SUMIFS('Données pour moyenne'!$H:$H,'Données pour moyenne'!$F:$F,Activation!$F$5),SUMIFS('Données pour moyenne'!$C:$C,'Données pour moyenne'!$A:$A,Activation!$J$5))) -> 46.5939365 | E22: =IF(ISBLANK($F$5),SUMIFS('Données pour moyenne 2020'!$S:$S,'Données pour moyenne 2020'!$Q:$Q,Activation!$C$5),IF(ISBLANK($J$5),SUMIFS('Données pour moyenne 2020'!$H:$H,'Données pour moyenne 2020'!$F:$F,Activation!$F$5),SUMIFS('Données pour moyenne 2020'!$C:$C,'Données pour moyenne 2020'!$A:$A,Activation!$J$5))) -> 46.36693103 | F22: =IF(ISBLANK($F$5),SUMIFS('Données pour moyenne'!$Y:$Y,'Données pour moyenne'!$V:$V,Activation!$C$5,'Données pour moyenne'!$X:$X,Activation!F$9),IF(ISBLANK($J$5),SUMIFS('Données pour moyenne'!$N:$N,'Données pour moyenne'!$K:$K,Activation!$F$5,'Données pour moyenne'!$M:$M,Activation!F$9),SUMIFS('Données FDC'!$P:$P,'Données FDC'!$C:$C,Activation!$J$5,'Données FDC'!$E:$E,Activation!F$9))) -> 49.92106782 | G22: =IF(ISBLANK($F$5),SUMIFS('Données pour moyenne'!$Y:$Y,'Données pour moyenne'!$V:$V,Activation!$C$5,'Données pour moyenne'!$X:$X,Activation!G$9),IF(ISBLANK($J$5),SUMIFS('Données pour moyenne'!$N:$N,'Données pour moyenne'!$K:$K,Activation!$F$5,'Données pour moyenne'!$M:$M,Activation!G$9),SUMIFS('Données FDC'!$P:$P,'Données FDC'!$C:$C,Activation!$J$5,'Données FDC'!$E:$E,Activation!G$9))) -> 52.83133791 | H22: =IF(ISBLANK($F$5),SUMIFS('Données pour moyenne'!$Y:$Y,'Données pour moyenne'!$V:$V,Activation!$C$5,'Données pour moyenne'!$X:$X,Activation!H$9),IF(ISBLANK($J$5),SUMIFS('Données pour moyenne'!$N:$N,'Données pour moyenne'!$K:$K,Activation!$F$5,'Données pour moyenne'!$M:$M,Activation!H$9),SUMIFS('Données FDC'!$P:$P,'Données FDC'!$C:$C,Activation!$J$5,'Données FDC'!$E:$E,Activation!H$9))) -> 64.40796074 | I22: =IF(ISBLANK($F$5),SUMIFS('Données pour moyenne'!$Y:$Y,'Données pour moyenne'!$V:$V,Activation!$C$5,'Données pour moyenne'!$X:$X,Activation!I$9),IF(ISBLANK($J$5),SUMIFS('Données pour moyenne'!$N:$N,'Données pour moyenne'!$K:$K,Activation!$F$5,'Données pour moyenne'!$M:$M,Activation!I$9),SUMIFS('Données FDC'!$P:$P,'Données FDC'!$C:$C,Activation!$J$5,'Données FDC'!$E:$E,Activation!I$9))) -> 57.693185 | J22: =IF(ISBLANK($F$5),SUMIFS('Données pour moyenne'!$Y:$Y,'Données pour moyenne'!$V:$V,Activation!$C$5,'Données pour moyenne'!$X:$X,Activation!J$9),IF(ISBLANK($J$5),SUMIFS('Données pour moyenne'!$N:$N,'Données pour moyenne'!$K:$K,Activation!$F$5,'Données pour moyenne'!$M:$M,Activation!J$9),SUMIFS('Données FDC'!$P:$P,'Données FDC'!$C:$C,Activation!$J$5,'Données FDC'!$E:$E,Activation!J$9))) -> 21.51493773 | K22: =IF(ISBLANK($F$5),SUMIFS('Données pour moyenne'!$Y:$Y,'Données pour moyenne'!$V:$V,Activation!$C$5,'Données pour moyenne'!$X:$X,Activation!K$9),IF(ISBLANK($J$5),SUMIFS('Données pour moyenne'!$N:$N,'Données pour moyenne'!$K:$K,Activation!$F$5,'Données pour moyenne'!$M:$M,Activation!K$9),SUMIFS('Données FDC'!$P:$P,'Données FDC'!$C:$C,Activation!$J$5,'Données FDC'!$E:$E,Activation!K$9))) -> 20.73240616 | L22: =IF(ISBLANK($F$5),SUMIFS('Données pour moyenne'!$Y:$Y,'Données pour moyenne'!$V:$V,Activation!$C$5,'Données pour moyenne'!$X:$X,Activation!L$9),IF(ISBLANK($J$5),SUMIFS('Données pour moyenne'!$N:$N,'Données pour moyenne'!$K:$K,Activation!$F$5,'Données pour moyenne'!$M:$M,Activation!L$9),SUMIFS('Données FDC'!$P:$P,'Données FDC'!$C:$C,Activation!$J$5,'Données FDC'!$E:$E,Activation!L$9))) -> 19.20879486 | M22: =IF(ISBLANK($F$5),SUMIFS('Données pour moyenne'!$Y:$Y,'Données pour moyenne'!$V:$V,Activation!$C$5,'Données pour moyenne'!$X:$X,Activation!M$9),IF(ISBLANK($J$5),SUMIFS('Données pour moyenne'!$N:$N,'Données pour moyenne'!$K:$K,Activation!$F$5,'Données pour moyenne'!$M:$M,Activation!M$9),SUMIFS('Données FDC'!$P:$P,'Données FDC'!$C:$C,Activation!$J$5,'Données FDC'!$E:$E,Activation!M$9))) -> 20.04715527 | N22: =IF(ISBLANK($F$5),SUMIFS('Données pour moyenne'!$Y:$Y,'Données pour moyenne'!$V:$V,Activation!$C$5,'Données pour moyenne'!$X:$X,Activation!N$9),IF(ISBLANK($J$5),SUMIFS('Données pour moyenne'!$N:$N,'Données pour moyenne'!$K:$K,Activation!$F$5,'Données pour moyenne'!$M:$M,Activation!N$9),SUMIFS('Données FDC'!$P:$P,'Données FDC'!$C:$C,Activation!$J$5,'Données FDC'!$E:$E,Activation!N$9))) -> 8.303858461 | O22: =IF(ISBLANK($F$5),SUMIFS('Données pour moyenne'!$Y:$Y,'Données pour moyenne'!$V:$V,Activation!$C$5,'Données pour moyenne'!$X:$X,Activation!O$9),IF(ISBLANK($J$5),SUMIFS('Données pour moyenne'!$N:$N,'Données pour moyenne'!$K:$K,Activation!$F$5,'Données pour moyenne'!$M:$M,Activation!O$9),SUMIFS('Données FDC'!$P:$P,'Données FDC'!$C:$C,Activation!$J$5,'Données FDC'!$E:$E,Activation!O$9))) -> 10.38047338 | P22: =IF(ISBLANK($F$5),SUMIFS('Données pour moyenne'!$Y:$Y,'Données pour moyenne'!$V:$V,Activation!$C$5,'Données pour moyenne'!$X:$X,Activation!P$9),IF(ISBLANK($J$5),SUMIFS('Données pour moyenne'!$N:$N,'Données pour moyenne'!$K:$K,Activation!$F$5,'Données pour moyenne'!$M:$M,Activation!P$9),SUMIFS('Données FDC'!$P:$P,'Données FDC'!$C:$C,Activation!$J$5,'Données FDC'!$E:$E,Activation!P$9))) -> 50.36435921
C23: Moyenne CEGEE | D23: ='Données pour moyenne'!AC2 -> 46.5939365 | E23: ='Données pour moyenne 2020'!AC2 -> 46.36693103 | F23: =VLOOKUP(F$9,'Données pour moyenne'!$AF:$AG,2,FALSE) -> 49.92106782 | G23: =VLOOKUP(G$9,'Données pour moyenne'!$AF:$AG,2,FALSE) -> 52.83133791 | H23: =VLOOKUP(H$9,'Données pour moyenne'!$AF:$AG,2,FALSE) -> 64.40796074 | I23: =VLOOKUP(I$9,'Données pour moyenne'!$AF:$AG,2,FALSE) -> 57.693185 | J23: =VLOOKUP(J$9,'Données pour moyenne'!$AF:$AG,2,FALSE) -> 21.51493773 | K23: =VLOOKUP(K$9,'Données pour moyenne'!$AF:$AG,2,FALSE) -> 20.73240616 | L23: =VLOOKUP(L$9,'Données pour moyenne'!$AF:$AG,2,FALSE) -> 19.20879486 | M23: =VLOOKUP(M$9,'Données pour moyenne'!$AF:$AG,2,FALSE) -> 20.04715527 | N23: =VLOOKUP(N$9,'Données pour moyenne'!$AF:$AG,2,FALSE) -> 8.303858461 | O23: =VLOOKUP(O$9,'Données pour moyenne'!$AF:$AG,2,FALSE) -> 10.38047338 | P23: =VLOOKUP(P$9,'Données pour moyenne'!$AF:$AG,2,FALSE) -> 50.36435921
B24: PNB client annuel (en €) | C24: Moyenne | D24: =IF(ISBLANK($F$5),SUMIFS('Données pour moyenne'!$BJ:$BJ,'Données pour moyenne'!$BH:$BH,Activation!$C$5),IF(ISBLANK($J$5),SUMIFS('Données pour moyenne'!$BA:$BA,'Données pour moyenne'!$AY:$AY,Activation!$F$5),SUMIFS('Données pour moyenne'!$AR:$AR,'Données pour moyenne'!$AP:$AP,Activation!$J$5))) -> 345.4881133 | E24: =IF(ISBLANK($F$5),SUMIFS('Données pour moyenne 2020'!$BJ:$BJ,'Données pour moyenne 2020'!$BH:$BH,Activation!$C$5),IF(ISBLANK($J$5),SUMIFS('Données pour moyenne 2020'!$BA:$BA,'Données pour moyenne 2020'!$AY:$AY,Activation!$F$5),SUMIFS('Données pour moyenne 2020'!$AR:$AR,'Données pour moyenne 2020'!$AP:$AP,Activation!$J$5))) -> 333.534159 | F24: =IF(ISBLANK($F$5),SUMIFS('Données pour moyenne'!$BF:$BF,'Données pour moyenne'!$BC:$BC,Activation!$C$5,'Données pour moyenne'!$BE:$BE,Activation!F$9),IF(ISBLANK($J$5),SUMIFS('Données pour moyenne'!$AW:$AW,'Données pour moyenne'!$AT:$AT,Activation!$F$5,'Données pour moyenne'!$AV:$AV,Activation!F$9),SUMIFS('Données pour moyenne'!$AM:$AM,'Données pour moyenne'!$AJ:$AJ,Activation!$J$5,'Données pour moyenne'!$AL:$AL,Activation!F$9))) -> 659.7572683 | G24: =IF(ISBLANK($F$5),SUMIFS('Données pour moyenne'!$BF:$BF,'Données pour moyenne'!$BC:$BC,Activation!$C$5,'Données pour moyenne'!$BE:$BE,Activation!G$9),IF(ISBLANK($J$5),SUMIFS('Données pour moyenne'!$AW:$AW,'Données pour moyenne'!$AT:$AT,Activation!$F$5,'Données pour moyenne'!$AV:$AV,Activation!G$9),SUMIFS('Données pour moyenne'!$AM:$AM,'Données pour moyenne'!$AJ:$AJ,Activation!$J$5,'Données pour moyenne'!$AL:$AL,Activation!G$9))) -> 328.3249039 | H24: =IF(ISBLANK($F$5),SUMIFS('Données pour moyenne'!$BF:$BF,'Données pour moyenne'!$BC:$BC,Activation!$C$5,'Données pour moyenne'!$BE:$BE,Activation!H$9),IF(ISBLANK($J$5),SUMIFS('Données pour moyenne'!$AW:$AW,'Données pour moyenne'!$AT:$AT,Activation!$F$5,'Données pour moyenne'!$AV:$AV,Activation!H$9),SUMIFS('Données pour moyenne'!$AM:$AM,'Données pour moyenne'!$AJ:$AJ,Activation!$J$5,'Données pour moyenne'!$AL:$AL,Activation!H$9))) -> 438.7639573 | I24: =IF(ISBLANK($F$5),SUMIFS('Données pour moyenne'!$BF:$BF,'Données pour moyenne'!$BC:$BC,Activation!$C$5,'Données pour moyenne'!$BE:$BE,Activation!I$9),IF(ISBLANK($J$5),SUMIFS('Données pour moyenne'!$AW:$AW,'Données pour moyenne'!$AT:$AT,Activation!$F$5,'Données pour moyenne'!$AV:$AV,Activation!I$9),SUMIFS('Données pour moyenne'!$AM:$AM,'Données pour moyenne'!$AJ:$AJ,Activation!$J$5,'Données pour moyenne'!$AL:$AL,Activation!I$9))) -> 106.8621475 | J24: =IF(ISBLANK($F$5),SUMIFS('Données pour moyenne'!$BF:$BF,'Données pour moyenne'!$BC:$BC,Activation!$C$5,'Données pour moyenne'!$BE:$BE,Activation!J$9),IF(ISBLANK($J$5),SUMIFS('Données pour moyenne'!$AW:$AW,'Données pour moyenne'!$AT:$AT,Activation!$F$5,'Données pour moyenne'!$AV:$AV,Activation!J$9),SUMIFS('Données pour moyenne'!$AM:$AM,'Données pour moyenne'!$AJ:$AJ,Activation!$J$5,'Données pour moyenne'!$AL:$AL,Activation!J$9))) -> 238.4283124 | K24: =IF(ISBLANK($F$5),SUMIFS('Données pour moyenne'!$BF:$BF,'Données pour moyenne'!$BC:$BC,Activation!$C$5,'Données pour moyenne'!$BE:$BE,Activation!K$9),IF(ISBLANK($J$5),SUMIFS('Données pour moyenne'!$AW:$AW,'Données pour moyenne'!$AT:$AT,Activation!$F$5,'Données pour moyenne'!$AV:$AV,Activation!K$9),SUMIFS('Données pour moyenne'!$AM:$AM,'Données pour moyenne'!$AJ:$AJ,Activation!$J$5,'Données pour moyenne'!$AL:$AL,Activation!K$9))) -> 125.9472655 | L24: =IF(ISBLANK($F$5),SUMIFS('Données pour moyenne'!$BF:$BF,'Données pour moyenne'!$BC:$BC,Activation!$C$5,'Données pour moyenne'!$BE:$BE,Activation!L$9),IF(ISBLANK($J$5),SUMIFS('Données pour moyenne'!$AW:$AW,'Données pour moyenne'!$AT:$AT,Activation!$F$5,'Données pour moyenne'!$AV:$AV,Activation!L$9),SUMIFS('Données pour moyenne'!$AM:$AM,'Données pour moyenne'!$AJ:$AJ,Activation!$J$5,'Données pour moyenne'!$AL:$AL,Activation!L$9))) -> 105.6804678 | M24: =IF(ISBLANK($F$5),SUMIFS('Données pour moyenne'!$BF:$BF,'Données pour moyenne'!$BC:$BC,Activation!$C$5,'Données pour moyenne'!$BE:$BE,Activation!M$9),IF(ISBLANK($J$5),SUMIFS('Données pour moyenne'!$AW:$AW,'Données pour moyenne'!$AT:$AT,Activation!$F$5,'Données pour moyenne'!$AV:$AV,Activation!M$9),SUMIFS('Données pour moyenne'!$AM:$AM,'Données pour moyenne'!$AJ:$AJ,Activation!$J$5,'Données pour moyenne'!$AL:$AL,Activation!M$9))) -> 18.62204505
C25: Moyenne CEGEE | D25: ='Données pour moyenne'!BN2 -> 345.4881133 | E25: ='Données pour moyenne 2020'!BN2 -> 333.534159 | F25: =SUMIF('Données pour moyenne'!$BQ:$BQ,Activation!F$9,'Données pour moyenne'!$BR:$BR) -> 659.7572683 | G25: =SUMIF('Données pour moyenne'!$BQ:$BQ,Activation!G$9,'Données pour moyenne'!$BR:$BR) -> 328.3249039 | H25: =SUMIF('Données pour moyenne'!$BQ:$BQ,Activation!H$9,'Données pour moyenne'!$BR:$BR) -> 438.7639573 | I25: =SUMIF('Données pour moyenne'!$BQ:$BQ,Activation!I$9,'Données pour moyenne'!$BR:$BR) -> 106.8621475 | J25: =SUMIF('Données pour moyenne'!$BQ:$BQ,Activation!J$9,'Données pour moyenne'!$BR:$BR) -> 238.4283124 | K25: =SUMIF('Données pour moyenne'!$BQ:$BQ,Activation!K$9,'Données pour moyenne'!$BR:$BR) -> 125.9472655 | L25: =SUMIF('Données pour moyenne'!$BQ:$BQ,Activation!L$9,'Données pour moyenne'!$BR:$BR) -> 105.6804678 | M25: =SUMIF('Données pour moyenne'!$BQ:$BQ,Activation!M$9,'Données pour moyenne'!$BR:$BR) -> 18.62204505
C26: Variation | D26: =D24/(IF(ISBLANK($F$5),SUMIFS('Données pour moyenne 2020'!$BJ:$BJ,'Données pour moyenne 2020'!$BH:$BH,Activation!$C$5),IF(ISBLANK($J$5),SUMIFS('Données pour moyenne 2020'!$BA:$BA,'Données pour moyenne 2020'!$AY:$AY,Activation!$F$5),SUMIFS('Données pour moyenne 2020'!$AR:$AR,'Données pour moyenne 2020'!$AP:$AP,Activation!$J$5))))-1 -> 0.03584026979 | F26: =F24/(IF(ISBLANK($F$5),SUMIFS('Données pour moyenne 2020'!$BF:$BF,'Données pour moyenne 2020'!$BC:$BC,Activation!$C$5,'Données pour moyenne 2020'!$BE:$BE,Activation!F$9),IF(ISBLANK($J$5),SUMIFS('Données pour moyenne 2020'!$AW:$AW,'Données pour moyenne 2020'!$AT:$AT,Activation!$F$5,'Données pour moyenne 2020'!$AV:$AV,Activation!F$9),SUMIFS('Données pour moyenne 2020'!$AM:$AM,'Données pour moyenne 2020'!$AJ:$AJ,Activation!$J$5,'Données pour moyenne 2020'!$AL:$AL,Activation!F$9))))-1 -> 0.04439605184 | G26: =G24/(IF(ISBLANK($F$5),SUMIFS('Données pour moyenne 2020'!$BF:$BF,'Données pour moyenne 2020'!$BC:$BC,Activation!$C$5,'Données pour moyenne 2020'!$BE:$BE,Activation!G$9),IF(ISBLANK($J$5),SUMIFS('Données pour moyenne 2020'!$AW:$AW,'Données pour moyenne 2020'!$AT:$AT,Activation!$F$5,'Données pour moyenne 2020'!$AV:$AV,Activation!G$9),SUMIFS('Données pour moyenne 2020'!$AM:$AM,'Données pour moyenne 2020'!$AJ:$AJ,Activation!$J$5,'Données pour moyenne 2020'!$AL:$AL,Activation!G$9))))-1 -> -0.002087366583 | H26: =H24/(IF(ISBLANK($F$5),SUMIFS('Données pour moyenne 2020'!$BF:$BF,'Données pour moyenne 2020'!$BC:$BC,Activation!$C$5,'Données pour moyenne 2020'!$BE:$BE,Activation!H$9),IF(ISBLANK($J$5),SUMIFS('Données pour moyenne 2020'!$AW:$AW,'Données pour moyenne 2020'!$AT:$AT,Activation!$F$5,'Données pour moyenne 2020'!$AV:$AV,Activation!H$9),SUMIFS('Données pour moyenne 2020'!$AM:$AM,'Données pour moyenne 2020'!$AJ:$AJ,Activation!$J$5,'Données pour moyenne 2020'!$AL:$AL,Activation!H$9))))-1 -> -0.02801268798 | I26: =I24/(IF(ISBLANK($F$5),SUMIFS('Données pour moyenne 2020'!$BF:$BF,'Données pour moyenne 2020'!$BC:$BC,Activation!$C$5,'Données pour moyenne 2020'!$BE:$BE,Activation!I$9),IF(ISBLANK($J$5),SUMIFS('Données pour moyenne 2020'!$AW:$AW,'Données pour moyenne 2020'!$AT:$AT,Activation!$F$5,'Données pour moyenne 2020'!$AV:$AV,Activation!I$9),SUMIFS('Données pour moyenne 2020'!$AM:$AM,'Données pour moyenne 2020'!$AJ:$AJ,Activation!$J$5,'Données pour moyenne 2020'!$AL:$AL,Activation!I$9))))-1 -> -0.01293984214 | J26: =J24/(IF(ISBLANK($F$5),SUMIFS('Données pour moyenne 2020'!$BF:$BF,'Données pour moyenne 2020'!$BC:$BC,Activation!$C$5,'Données pour moyenne 2020'!$BE:$BE,Activation!J$9),IF(ISBLANK($J$5),SUMIFS('Données pour moyenne 2020'!$AW:$AW,'Données pour moyenne 2020'!$AT:$AT,Activation!$F$5,'Données pour moyenne 2020'!$AV:$AV,Activation!J$9),SUMIFS('Données pour moyenne 2020'!$AM:$AM,'Données pour moyenne 2020'!$AJ:$AJ,Activation!$J$5,'Données pour moyenne 2020'!$AL:$AL,Activation!J$9))))-1 -> 0.03049972506 | K26: =K24/(IF(ISBLANK($F$5),SUMIFS('Données pour moyenne 2020'!$BF:$BF,'Données pour moyenne 2020'!$BC:$BC,Activation!$C$5,'Données pour moyenne 2020'!$BE:$BE,Activation!K$9),IF(ISBLANK($J$5),SUMIFS('Données pour moyenne 2020'!$AW:$AW,'Données pour moyenne 2020'!$AT:$AT,Activation!$F$5,'Données pour moyenne 2020'!$AV:$AV,Activation!K$9),SUMIFS('Données pour moyenne 2020'!$AM:$AM,'Données pour moyenne 2020'!$AJ:$AJ,Activation!$J$5,'Données pour moyenne 2020'!$AL:$AL,Activation!K$9))))-1 -> -0.06640960667 | L26: =L24/(IF(ISBLANK($F$5),SUMIFS('Données pour moyenne 2020'!$BF:$BF,'Données pour moyenne 2020'!$BC:$BC,Activation!$C$5,'Données pour moyenne 2020'!$BE:$BE,Activation!L$9),IF(ISBLANK($J$5),SUMIFS('Données pour moyenne 2020'!$AW:$AW,'Données pour moyenne 2020'!$AT:$AT,Activation!$F$5,'Données pour moyenne 2020'!$AV:$AV,Activation!L$9),SUMIFS('Données pour moyenne 2020'!$AM:$AM,'Données pour moyenne 2020'!$AJ:$AJ,Activation!$J$5,'Données pour moyenne 2020'!$AL:$AL,Activation!L$9))))-1 -> -0.0898339961 | M26: =M24/(IF(ISBLANK($F$5),SUMIFS('Données pour moyenne 2020'!$BF:$BF,'Données pour moyenne 2020'!$BC:$BC,Activation!$C$5,'Données pour moyenne 2020'!$BE:$BE,Activation!M$9),IF(ISBLANK($J$5),SUMIFS('Données pour moyenne 2020'!$AW:$AW,'Données pour moyenne 2020'!$AT:$AT,Activation!$F$5,'Données pour moyenne 2020'!$AV:$AV,Activation!M$9),SUMIFS('Données pour moyenne 2020'!$AM:$AM,'Données pour moyenne 2020'!$AJ:$AJ,Activation!$J$5,'Données pour moyenne 2020'!$AL:$AL,Activation!M$9))))-1 -> -0.03373579802
C27: Variation CEGEE | D27: =(D25-E25)/E25 -> 0.03584026979 | F27: =(F25/SUMIF('Données pour moyenne 2020'!$BQ:$BQ,Activation!F$9,'Données pour moyenne 2020'!$BR:$BR))-1 -> 0.04439605184 | G27: =(G25/SUMIF('Données pour moyenne 2020'!$BQ:$BQ,Activation!G$9,'Données pour moyenne 2020'!$BR:$BR))-1 -> -0.002087366583 | H27: =(H25/SUMIF('Données pour moyenne 2020'!$BQ:$BQ,Activation!H$9,'Données pour moyenne 2020'!$BR:$BR))-1 -> -0.02801268798 | I27: =(I25/SUMIF('Données pour moyenne 2020'!$BQ:$BQ,Activation!I$9,'Données pour moyenne 2020'!$BR:$BR))-1 -> -0.01293984214 | J27: =(J25/SUMIF('Données pour moyenne 2020'!$BQ:$BQ,Activation!J$9,'Données pour moyenne 2020'!$BR:$BR))-1 -> 0.03049972506 | K27: =(K25/SUMIF('Données pour moyenne 2020'!$BQ:$BQ,Activation!K$9,'Données pour moyenne 2020'!$BR:$BR))-1 -> -0.06640960667 | L27: =(L25/SUMIF('Données pour moyenne 2020'!$BQ:$BQ,Activation!L$9,'Données pour moyenne 2020'!$BR:$BR))-1 -> -0.0898339961 | M27: =(M25/SUMIF('Données pour moyenne 2020'!$BQ:$BQ,Activation!M$9,'Données pour moyenne 2020'!$BR:$BR))-1 -> -0.03373579802
B28: SF totale moyenne (en €) | C28: Moyenne | D28: =IF(ISBLANK($F$5),SUMIFS('Données pour moyenne'!$T:$T,'Données pour moyenne'!$Q:$Q,Activation!$C$5),IF(ISBLANK($J$5),SUMIFS('Données pour moyenne'!$I:$I,'Données pour moyenne'!$F:$F,Activation!$F$5),SUMIFS('Données pour moyenne'!$D:$D,'Données pour moyenne'!$A:$A,Activation!$J$5))) -> 23134.3313 | E28: =IF(ISBLANK($F$5),SUMIFS('Données pour moyenne 2020'!$T:$T,'Données pour moyenne 2020'!$Q:$Q,Activation!$C$5),IF(ISBLANK($J$5),SUMIFS('Données pour moyenne 2020'!$I:$I,'Données pour moyenne 2020'!$F:$F,Activation!$F$5),SUMIFS('Données pour moyenne 2020'!$D:$D,'Données pour moyenne 2020'!$A:$A,Activation!$J$5))) -> 22085.54628 | F28: =IF(ISBLANK($F$5),SUMIFS('Données pour moyenne'!$Z:$Z,'Données pour moyenne'!$V:$V,Activation!$C$5,'Données pour moyenne'!$X:$X,Activation!F$9),IF(ISBLANK($J$5),SUMIFS('Données pour moyenne'!$O:$O,'Données pour moyenne'!$K:$K,Activation!$F$5,'Données pour moyenne'!$M:$M,Activation!F$9),SUMIFS('Données FDC'!$Q:$Q,'Données FDC'!$C:$C,Activation!$J$5,'Données FDC'!$E:$E,Activation!F$9))) -> 44335.73201 | G28: =IF(ISBLANK($F$5),SUMIFS('Données pour moyenne'!$Z:$Z,'Données pour moyenne'!$V:$V,Activation!$C$5,'Données pour moyenne'!$X:$X,Activation!G$9),IF(ISBLANK($J$5),SUMIFS('Données pour moyenne'!$O:$O,'Données pour moyenne'!$K:$K,Activation!$F$5,'Données pour moyenne'!$M:$M,Activation!G$9),SUMIFS('Données FDC'!$Q:$Q,'Données FDC'!$C:$C,Activation!$J$5,'Données FDC'!$E:$E,Activation!G$9))) -> 18883.51545 | H28: =IF(ISBLANK($F$5),SUMIFS('Données pour moyenne'!$Z:$Z,'Données pour moyenne'!$V:$V,Activation!$C$5,'Données pour moyenne'!$X:$X,Activation!H$9),IF(ISBLANK($J$5),SUMIFS('Données pour moyenne'!$O:$O,'Données pour moyenne'!$K:$K,Activation!$F$5,'Données pour moyenne'!$M:$M,Activation!H$9),SUMIFS('Données FDC'!$Q:$Q,'Données FDC'!$C:$C,Activation!$J$5,'Données FDC'!$E:$E,Activation!H$9))) -> 71502.98437 | I28: =IF(ISBLANK($F$5),SUMIFS('Données pour moyenne'!$Z:$Z,'Données pour moyenne'!$V:$V,Activation!$C$5,'Données pour moyenne'!$X:$X,Activation!I$9),IF(ISBLANK($J$5),SUMIFS('Données pour moyenne'!$O:$O,'Données pour moyenne'!$K:$K,Activation!$F$5,'Données pour moyenne'!$M:$M,Activation!I$9),SUMIFS('Données FDC'!$Q:$Q,'Données FDC'!$C:$C,Activation!$J$5,'Données FDC'!$E:$E,Activation!I$9))) -> 11750.32884 | J28: =IF(ISBLANK($F$5),SUMIFS('Données pour moyenne'!$Z:$Z,'Données pour moyenne'!$V:$V,Activation!$C$5,'Données pour moyenne'!$X:$X,Activation!J$9),IF(ISBLANK($J$5),SUMIFS('Données pour moyenne'!$O:$O,'Données pour moyenne'!$K:$K,Activation!$F$5,'Données pour moyenne'!$M:$M,Activation!J$9),SUMIFS('Données FDC'!$Q:$Q,'Données FDC'!$C:$C,Activation!$J$5,'Données FDC'!$E:$E,Activation!J$9))) -> 10800.3488 | K28: =IF(ISBLANK($F$5),SUMIFS('Données pour moyenne'!$Z:$Z,'Données pour moyenne'!$V:$V,Activation!$C$5,'Données pour moyenne'!$X:$X,Activation!K$9),IF(ISBLANK($J$5),SUMIFS('Données pour moyenne'!$O:$O,'Données pour moyenne'!$K:$K,Activation!$F$5,'Données pour moyenne'!$M:$M,Activation!K$9),SUMIFS('Données FDC'!$Q:$Q,'Données FDC'!$C:$C,Activation!$J$5,'Données FDC'!$E:$E,Activation!K$9))) -> 1310.451704 | L28: =IF(ISBLANK($F$5),SUMIFS('Données pour moyenne'!$Z:$Z,'Données pour moyenne'!$V:$V,Activation!$C$5,'Données pour moyenne'!$X:$X,Activation!L$9),IF(ISBLANK($J$5),SUMIFS('Données pour moyenne'!$O:$O,'Données pour moyenne'!$K:$K,Activation!$F$5,'Données pour moyenne'!$M:$M,Activation!L$9),SUMIFS('Données FDC'!$Q:$Q,'Données FDC'!$C:$C,Activation!$J$5,'Données FDC'!$E:$E,Activation!L$9))) -> 17972.94789 | M28: =IF(ISBLANK($F$5),SUMIFS('Données pour moyenne'!$Z:$Z,'Données pour moyenne'!$V:$V,Activation!$C$5,'Données pour moyenne'!$X:$X,Activation!M$9),IF(ISBLANK($J$5),SUMIFS('Données pour moyenne'!$O:$O,'Données pour moyenne'!$K:$K,Activation!$F$5,'Données pour moyenne'!$M:$M,Activation!M$9),SUMIFS('Données FDC'!$Q:$Q,'Données FDC'!$C:$C,Activation!$J$5,'Données FDC'!$E:$E,Activation!M$9))) -> 2351.004315 | N28: =IF(ISBLANK($F$5),SUMIFS('Données pour moyenne'!$Z:$Z,'Données pour moyenne'!$V:$V,Activation!$C$5,'Données pour moyenne'!$X:$X,Activation!N$9),IF(ISBLANK($J$5),SUMIFS('Données pour moyenne'!$O:$O,'Données pour moyenne'!$K:$K,Activation!$F$5,'Données pour moyenne'!$M:$M,Activation!N$9),SUMIFS('Données FDC'!$Q:$Q,'Données FDC'!$C:$C,Activation!$J$5,'Données FDC'!$E:$E,Activation!N$9))) -> 4737.347462 | O28: =IF(ISBLANK($F$5),SUMIFS('Données pour moyenne'!$Z:$Z,'Données pour moyenne'!$V:$V,Activation!$C$5,'Données pour moyenne'!$X:$X,Activation!O$9),IF(ISBLANK($J$5),SUMIFS('Données pour moyenne'!$O:$O,'Données pour moyenne'!$K:$K,Activation!$F$5,'Données pour moyenne'!$M:$M,Activation!O$9),SUMIFS('Données FDC'!$Q:$Q,'Données FDC'!$C:$C,Activation!$J$5,'Données FDC'!$E:$E,Activation!O$9))) -> 1109.010391 | P28: =IF(ISBLANK($F$5),SUMIFS('Données pour moyenne'!$Z:$Z,'Données pour moyenne'!$V:$V,Activation!$C$5,'Données pour moyenne'!$X:$X,Activation!P$9),IF(ISBLANK($J$5),SUMIFS('Données pour moyenne'!$O:$O,'Données pour moyenne'!$K:$K,Activation!$F$5,'Données pour moyenne'!$M:$M,Activation!P$9),SUMIFS('Données FDC'!$Q:$Q,'Données FDC'!$C:$C,Activation!$J$5,'Données FDC'!$E:$E,Activation!P$9))) -> 16.65147802
C29: Moyenne CEGEE | D29: ='Données pour moyenne'!AD2 -> 23134.3313 | E29: ='Données pour moyenne 2020'!AD2 -> 22085.54628 | F29: =VLOOKUP(F$9,'Données pour moyenne'!$AF:$AH,3,FALSE) -> 44335.73201 | G29: =VLOOKUP(G$9,'Données pour moyenne'!$AF:$AH,3,FALSE) -> 18883.51545 | H29: =VLOOKUP(H$9,'Données pour moyenne'!$AF:$AH,3,FALSE) -> 71502.98437 | I29: =VLOOKUP(I$9,'Données pour moyenne'!$AF:$AH,3,FALSE) -> 11750.32884 | J29: =VLOOKUP(J$9,'Données pour moyenne'!$AF:$AH,3,FALSE) -> 10800.3488 | K29: =VLOOKUP(K$9,'Données pour moyenne'!$AF:$AH,3,FALSE) -> 1310.451704 | L29: =VLOOKUP(L$9,'Données pour moyenne'!$AF:$AH,3,FALSE) -> 17972.94789 | M29: =VLOOKUP(M$9,'Données pour moyenne'!$AF:$AH,3,FALSE) -> 2351.004315 | N29: =VLOOKUP(N$9,'Données pour moyenne'!$AF:$AH,3,FALSE) -> 4737.347462 | O29: =VLOOKUP(O$9,'Données pour moyenne'!$AF:$AH,3,FALSE) -> 1109.010391 | P29: =VLOOKUP(P$9,'Données pour moyenne'!$AF:$AH,3,FALSE) -> 16.65147802
C30: Variation | D30: =(D28-E28)/E28 -> 0.04748739314 | F30: =F28/(IF(ISBLANK($F$5),SUMIFS('Données pour moyenne 2020'!$Z:$Z,'Données pour moyenne 2020'!$V:$V,Activation!$C$5,'Données pour moyenne 2020'!$X:$X,Activation!F$9),IF(ISBLANK($J$5),SUMIFS('Données pour moyenne 2020'!$O:$O,'Données pour moyenne 2020'!$K:$K,Activation!$F$5,'Données pour moyenne 2020'!$M:$M,Activation!F$9),SUMIFS('Données FDC déc 2020'!$Q:$Q,'Données FDC déc 2020'!$C:$C,Activation!$J$5,'Données FDC déc 2020'!$E:$E,Activation!F$9))))-1 -> 0.04747975707 | G30: =G28/(IF(ISBLANK($F$5),SUMIFS('Données pour moyenne 2020'!$Z:$Z,'Données pour moyenne 2020'!$V:$V,Activation!$C$5,'Données pour moyenne 2020'!$X:$X,Activation!G$9),IF(ISBLANK($J$5),SUMIFS('Données pour moyenne 2020'!$O:$O,'Données pour moyenne 2020'!$K:$K,Activation!$F$5,'Données pour moyenne 2020'!$M:$M,Activation!G$9),SUMIFS('Données FDC déc 2020'!$Q:$Q,'Données FDC déc 2020'!$C:$C,Activation!$J$5,'Données FDC déc 2020'!$E:$E,Activation!G$9))))-1 -> 0.02885566338 | H30: =H28/(IF(ISBLANK($F$5),SUMIFS('Données pour moyenne 2020'!$Z:$Z,'Données pour moyenne 2020'!$V:$V,Activation!$C$5,'Données pour moyenne 2020'!$X:$X,Activation!H$9),IF(ISBLANK($J$5),SUMIFS('Données pour moyenne 2020'!$O:$O,'Données pour moyenne 2020'!$K:$K,Activation!$F$5,'Données pour moyenne 2020'!$M:$M,Activation!H$9),SUMIFS('Données FDC déc 2020'!$Q:$Q,'Données FDC déc 2020'!$C:$C,Activation!$J$5,'Données FDC déc 2020'!$E:$E,Activation!H$9))))-1 -> 0.03493315237 | I30: =I28/(IF(ISBLANK($F$5),SUMIFS('Données pour moyenne 2020'!$Z:$Z,'Données pour moyenne 2020'!$V:$V,Activation!$C$5,'Données pour moyenne 2020'!$X:$X,Activation!I$9),IF(ISBLANK($J$5),SUMIFS('Données pour moyenne 2020'!$O:$O,'Données pour moyenne 2020'!$K:$K,Activation!$F$5,'Données pour moyenne 2020'!$M:$M,Activation!I$9),SUMIFS('Données FDC déc 2020'!$Q:$Q,'Données FDC déc 2020'!$C:$C,Activation!$J$5,'Données FDC déc 2020'!$E:$E,Activation!I$9))))-1 -> 0.05612561043 | J30: =J28/(IF(ISBLANK($F$5),SUMIFS('Données pour moyenne 2020'!$Z:$Z,'Données pour moyenne 2020'!$V:$V,Activation!$C$5,'Données pour moyenne 2020'!$X:$X,Activation!J$9),IF(ISBLANK($J$5),SUMIFS('Données pour moyenne 2020'!$O:$O,'Données pour moyenne 2020'!$K:$K,Activation!$F$5,'Données pour moyenne 2020'!$M:$M,Activation!J$9),SUMIFS('Données FDC déc 2020'!$Q:$Q,'Données FDC déc 2020'!$C:$C,Activation!$J$5,'Données FDC déc 2020'!$E:$E,Activation!J$9))))-1 -> 0.01159925025 | K30: =K28/(IF(ISBLANK($F$5),SUMIFS('Données pour moyenne 2020'!$Z:$Z,'Données pour moyenne 2020'!$V:$V,Activation!$C$5,'Données pour moyenne 2020'!$X:$X,Activation!K$9),IF(ISBLANK($J$5),SUMIFS('Données pour moyenne 2020'!$O:$O,'Données pour moyenne 2020'!$K:$K,Activation!$F$5,'Données pour moyenne 2020'!$M:$M,Activation!K$9),SUMIFS('Données FDC déc 2020'!$Q:$Q,'Données FDC déc 2020'!$C:$C,Activation!$J$5,'Données FDC déc 2020'!$E:$E,Activation!K$9))))-1 -> -0.1734539701 | L30: =L28/(IF(ISBLANK($F$5),SUMIFS('Données pour moyenne 2020'!$Z:$Z,'Données pour moyenne 2020'!$V:$V,Activation!$C$5,'Données pour moyenne 2020'!$X:$X,Activation!L$9),IF(ISBLANK($J$5),SUMIFS('Données pour moyenne 2020'!$O:$O,'Données pour moyenne 2020'!$K:$K,Activation!$F$5,'Données pour moyenne 2020'!$M:$M,Activation!L$9),SUMIFS('Données FDC déc 2020'!$Q:$Q,'Données FDC déc 2020'!$C:$C,Activation!$J$5,'Données FDC déc 2020'!$E:$E,Activation!L$9))))-1 -> 0.02801528886 | M30: =M28/(IF(ISBLANK($F$5),SUMIFS('Données pour moyenne 2020'!$Z:$Z,'Données pour moyenne 2020'!$V:$V,Activation!$C$5,'Données pour moyenne 2020'!$X:$X,Activation!M$9),IF(ISBLANK($J$5),SUMIFS('Données pour moyenne 2020'!$O:$O,'Données pour moyenne 2020'!$K:$K,Activation!$F$5,'Données pour moyenne 2020'!$M:$M,Activation!M$9),SUMIFS('Données FDC déc 2020'!$Q:$Q,'Données FDC déc 2020'!$C:$C,Activation!$J$5,'Données FDC déc 2020'!$E:$E,Activation!M$9))))-1 -> 0.02395199143 | N30: =N28/(IF(ISBLANK($F$5),SUMIFS('Données pour moyenne 2020'!$Z:$Z,'Données pour moyenne 2020'!$V:$V,Activation!$C$5,'Données pour moyenne 2020'!$X:$X,Activation!N$9),IF(ISBLANK($J$5),SUMIFS('Données pour moyenne 2020'!$O:$O,'Données pour moyenne 2020'!$K:$K,Activation!$F$5,'Données pour moyenne 2020'!$M:$M,Activation!N$9),SUMIFS('Données FDC déc 2020'!$Q:$Q,'Données FDC déc 2020'!$C:$C,Activation!$J$5,'Données FDC déc 2020'!$E:$E,Activation!N$9))))-1 -> 0.03435719963 | O30: =O28/(IF(ISBLANK($F$5),SUMIFS('Données pour moyenne 2020'!$Z:$Z,'Données pour moyenne 2020'!$V:$V,Activation!$C$5,'Données pour moyenne 2020'!$X:$X,Activation!O$9),IF(ISBLANK($J$5),SUMIFS('Données pour moyenne 2020'!$O:$O,'Données pour moyenne 2020'!$K:$K,Activation!$F$5,'Données pour moyenne 2020'!$M:$M,Activation!O$9),SUMIFS('Données FDC déc 2020'!$Q:$Q,'Données FDC déc 2020'!$C:$C,Activation!$J$5,'Données FDC déc 2020'!$E:$E,Activation!O$9))))-1 -> -0.01372143773 | P30: =P28/(IF(ISBLANK($F$5),SUMIFS('Données pour moyenne 2020'!$Z:$Z,'Données pour moyenne 2020'!$V:$V,Activation!$C$5,'Données pour moyenne 2020'!$X:$X,Activation!P$9),IF(ISBLANK($J$5),SUMIFS('Données pour moyenne 2020'!$O:$O,'Données pour moyenne 2020'!$K:$K,Activation!$F$5,'Données pour moyenne 2020'!$M:$M,Activation!P$9),SUMIFS('Données FDC déc 2020'!$Q:$Q,'Données FDC déc 2020'!$C:$C,Activation!$J$5,'Données FDC déc 2020'!$E:$E,Activation!P$9))))-1 -> -0.0149621152
C31: Variation CEGEE | D31: =(D29-E29)/E29 -> 0.04748739314 | F31: =F29/VLOOKUP(F$9,'Données pour moyenne 2020'!$AF:$AH,3,FALSE)-1 -> 0.04747975707 | G31: =G29/VLOOKUP(G$9,'Données pour moyenne 2020'!$AF:$AH,3,FALSE)-1 -> 0.02885566338 | H31: =H29/VLOOKUP(H$9,'Données pour moyenne 2020'!$AF:$AH,3,FALSE)-1 -> 0.03493315237 | I31: =I29/VLOOKUP(I$9,'Données pour moyenne 2020'!$AF:$AH,3,FALSE)-1 -> 0.05612561043 | J31: =J29/VLOOKUP(J$9,'Données pour moyenne 2020'!$AF:$AH,3,FALSE)-1 -> 0.01159925025 | K31: =K29/VLOOKUP(K$9,'Données pour moyenne 2020'!$AF:$AH,3,FALSE)-1 -> -0.1734539701 | L31: =L29/VLOOKUP(L$9,'Données pour moyenne 2020'!$AF:$AH,3,FALSE)-1 -> 0.02801528886 | M31: =M29/VLOOKUP(M$9,'Données pour moyenne 2020'!$AF:$AH,3,FALSE)-1 -> 0.02395199143 | N31: =N29/VLOOKUP(N$9,'Données pour moyenne 2020'!$AF:$AH,3,FALSE)-1 -> 0.03435719963 | O31: =O29/VLOOKUP(O$9,'Données pour moyenne 2020'!$AF:$AH,3,FALSE)-1 -> -0.01372143773 | P31: =P29/VLOOKUP(P$9,'Données pour moyenne 2020'!$AF:$AH,3,FALSE)-1 -> -0.0149621152
